Workbook

Sheet Lit review (hidden)
A1: No. | B1: Date | C1: Title | D1: Author | E1: File name / Link | F1: Description | G1: Source | H1: Notes
A2: 1 | B2: 2015 | C2: Collaborative Research between Aston Research Centre for Healthy Ageing (ARCHA) and the ExtraCare Charitable Trust | D2: Aston University | E2: Collaborative Research between Aston Research Centre for Healthy Ageing (ARCHA) and the ExtraCare Charitable Trust | F2: This 3 year longitudinal study sought to compare changes over time in care needs and care costs of new ExtraCare residents with those of a control sample in the community.
A3: 2 | B3: 2013 | C3: Investing in Shared Lives | D3: A Social Finance report produced in partnership with Shared Lives Plus, Community Catalysts, Macintyre and RSA 2020 Public Service | E3: https://www.socialfinance.org.uk/sites/default/files/publications/sf_shared_lives_final.pdf | F3: Report by Social Finance looking at how greater use of Shared Lives care could deliver higher quality of care at a lower cost, and how Shared Lives services could be expanded.
A4: 3 | B4: 2017 | C4: Evaluation of Extra Care Housing in Wales | D4: Elaine Batty, Mike Foden, Stephen Green, Lindsey McCarthy, David Robinson and Ian Wilson Centre for Regional Economic and Social Research Sheffield Hallam University with The University of Sheffield | E4: https://www4.shu.ac.uk/research/cresr/sites/shu.ac.uk/files/eval-extra-care-housing-wales.pdf#page125 | F4: This report presents the findings to emerge from an evaluation of the extra care housing sector in Wales. It presents a comprehensive, independent assessment of the role played by the sector to help inform discussion about the role that extra care should play in delivering the strategic vision on housing for older people in Wales and to inform future investment decisions
A5: 4 | B5: 2018 | C5: Funding supported housing for all - Specialised Supported Housing for people with a learning disability | D5: MenCap and Housing LIN | E5: https://www.mencap.org.uk/sites/default/files/2018-04/2018.052%20Housing%20report_FINAL_WEB.pdf | F5: Focus is on specialist housing for adults with learning disabilitie and includes some cost estimates for different options.
A6: 5 | B6: 2016 | C6: Alternative accommodation-based care - Shared Lives Promising models of care – case studies | D6: SCIE | E6: https://www.scie.org.uk/future-of-care/total-transformation/case-studies/shared-lives | F6: Estimated current and potential financial benefits of shared lives for Birmngham City Council
A7: 6 | B7: 2013 | C7: The Business Case for Extra Care Housing in Adult Social Care: An Evaluation of Extra Care Housing schemes in East Sussex | D7: Housing Learning & Improvement Network (LIN) | E7: https://www.housinglin.org.uk/_assets/Resources/Housing/Practice_examples/Housing_LIN_case_studies/HLIN_CaseStudy78_EastSussex.pdf | F7: This case study provides a synthesis of the detailed evaluation of extra care housing schemes undertaken by East Sussex County Council to inform future decisions related to financial investment in extra care housing. In particular, to ascertain whether: • extra care housing acts as a preventative model, supporting independence and avoiding admissions into residential care; • extra care housing is a more cost effective model of care delivery than other models, including residential care and care in the community. The resultant findings revealed that the financial impact of the findings was considerable, with the evaluation indicating that the cost of extra care housing was on average half the gross cost of the alternative placements. This has given pause for thought about the future strategic direction of extra care housing and has helped inform growth plans.
A8: 7 | B8: 2017 | C8: Demonstrating the Health and Social Cost-Benefits of Lifestyle Housing for Older People | D8: Housing Learning and Improvement Network (LIN) for Keepmoat Regeneration/ENGIE | E8: HLIN_Keepmoat_Report_FINAL.pdf (housinglin.org.uk) | F8: This report is set out in two parts: • Part One pulls together the headline facts and fgures on the health and social care cost-benefts of lifestyle housing for older people. These are listed in an ‘at a glance’ format. • Part Two provides the substantative fndings and sources the relevant evidence base.
A9: 8 | B9: 2017? | C9: THE BUSINESS CASE FOR EXTRA CARE HOUSING AT OUTWOODS IN BURTON-ON-TRENT EVIDENCE AND INFORMATION IN SUPPORT OF THE DEVELOPMENT OF SPECIALISED SUPPORTED HOUSING FOR OLDER PEOPLE | D9: business case has been commissioned by Community Solutions Partnerships Ltd from Social Care Strategies Ltd | E9: https://www.socialcarestrategies.co.uk/wp-content/uploads/2018/01/Extra-Care-Housing-Report-Burton-on-Trent-v4.pdf | F9: This business case describes a process for commissioning, funding, designing and developing extra care housing at Outwoods in Burton-on-Trent. The town is served by Staffordshire County Council and East Staffordshire Borough Council.
A10: 9 | B10: 2019 | C10: Unit Costs of Health and Social Care | D10: PSSRU (Personal Social Services Unit) | E10: https://www.pssru.ac.uk/pub/uc/uc2019/services.pdf | F10: Unit Costs of Health and Social Care 2019 for Private sector nursing homes for older people (age 65+); 1.2 Private sector residential care for older people (age 65+); Local authority own-provision residential care for older people (age 65+); Local authority own-provision day care for older people (age 65+); Dementia memory service; Multi-professional clinical medication reviews in care homes for older people
A11: 10 | B11: 2014 | C11: Shared Lives – improving understanding of the costs of family-based support | D11: PSSRU - Nadia Brookes and Lisa Callaghan | E11: https://www.pssru.ac.uk/pub/uc/uc2014/brookes-callaghan.pdf | F11: The National Institute for Health Research School for Social Care Research commissioned the Personal Social Services Research Unit at the University of Kent to examine the potential of Shared Lives to support certain groups of older people. The Outcomes, Processes and Costs of Shared Lives evaluation was conducted between 2012 and 2014. This short article presents some of the cost information obtained for the project, and aims to contribute to the understanding of the costs of Shared Lives more generally, as well as highlight where some of the gaps still lie.
A12: 11 | B12: 2016 | C12: Evaluating extra care - valuing what really matters... The case for taking relationships seriously | D12: Housing LIN | E12: https://www.housinglin.org.uk/Topics/type/Evaluating-extra-care-valuing-what-really-matters-The-case-for-taking-relationships-seriously/ | F12: This Housing LIN Case Study No 129 features Strand Court, the first of a number of planned extra care housing schemes to be built in North East Lincolnshire. It looks at the benefits of extra care housing from a residents' perspective, drawing on research undertaken to identify people's experience of wellbeing and satisfaction within the scheme using a new measure of 'relational value'.
A13: 12 | B13: 2011 | C13: Evaluating Extra Care Housing for Older People in England: A Comparative Cost and Outcome Analysis with Residential Care | D13: Theresia Bäumker, Ann Netten, Robin Darton, Lisa Callaghan - | E13: https://file.scirp.org/pdf/JSSM20110400011_63454840.pdf | F13: Extra care housing is an important innovation in the care and support of older people, and is a housing model that has considerable potential to support older people in leading active, independent lives. Based on cost-effectiveness analyses on statistically matched samples with physical functioning as the primary outcome measure, the study found that costs were lower when comparing equivalent people who moved into publicly-funded residential care homes in 1995, and similar to the more dependent type of person moving into care homes in 2005. Similar or lower costs combined with better outcomes mean that although extra care housing does not appear to provide a direct alternative, it can support some older people at risk of moving into a residential care homes in a cost-effective way. | G13: Journal of Service Science and Management, 2011, 4, 523-539
A14: 13 | B14: 2010 | C14: Financial benefits of investment in specialist housing for vulnerable and older people | D14: Frontier Economics Ltd, London. | E14: https://www.housinglin.org.uk/_assets/Resources/Housing/Support_materials/Other_reports_and_guidance/Financial_benefits_of_investment_in_specialist_housing_FINAL.pdf | F14: This report recommends that the HCA should continue to prioritise investment in specialist housing provision, to include making the best value of existing stock. In addition, it states that the needs of vulnerable and older people should be embedded in the Agency's Local Investment Planning process and that older and vulnerable people should be considered contributors to, and customers of initiatives and programmes outside of specialist schemes
A15: 14 | B15: 2011 | C15: Money matters: reviews of cost-effective initiatives | D15: Institute for Research and Innovation in Social Services (IRISS) | E15: https://ipc.brookes.ac.uk/publications/publication_676.html | F15: This case study is based on an evaluation of the quality, outcomes and cost-effectiveness of Shared Lives services (formerly known as Adult Placement) in south east England, conducted in 20091 . The study found that most Shared Lives schemes provide: ‘care that is good or excellent, care that meets national minimum standards, positive experiences and outcomes for people, high levels of satisfaction among stakeholders, and value for money’, delivering high quality support at a relatively low price. | G15: Essence Project - NIHR School for Social Care Research
A16: 15 | B16: 2014 | C16: Local area impact assessment of retirement living and assisted living developments | D16: McCarthy & Stone commissioned the Institute of Public Care at Oxford Brookes University | E16: https://www.housinglin.org.uk/_assets/Resources/Housing/OtherOrganisation/Final_McCarthy_and_Stone_EIA_report_-_March_20141.pdf | F16: This report by the Institute of Public Care at Oxford Brookes University considers a local area economic impact assessment of Retirement Living and Assisted Living Extra Care developments across England, Wales and Scotland. Commissioned by McCarthy and Stone, is aims to provide independent, objective and robust evidence about the extent to which there is a case for Retirement Living and Assisted Living Extra Care schemes in terms of the local economic and wider social impact of these schemes. | G16: Essence Project - NIHR School for Social Care Research | H16: Finished here 31/12/2020
A17: 16 | B17: 2016 | C17: Valuing Retirement Housing Exploring the economic effects of specialist housing for older people | D17: The Strategic Society Centre | E17: https://www.housinglin.org.uk/_assets/Resources/Housing/OtherOrganisation/Valuing-Retirement-Housing.pdf | F17: Estimates the financial value of these economic effects drawing on relevant social survey, administrative and population data; Aggregates the total estimated financial value of a single unit of new specialist retirement housing across the lifetime of its first resident | G17: Essence Project - NIHR School for Social Care Research
A18: 17 | B18: 2018 | C18: An Independent Review of Shared Lives for Older People and People Living with Dementia | D18: PPL, Cordis Bright, Social Finance PPL, London. | E18: https://essenceproject.uk/keyword/supported-housing/#collapse-912 | F18: Shared Lives is based around a Shared Lives carer sharing their home with an adult in need of care, to encourage meaningful relationships, independent living skills and community integration. This review explores how Shared Lives’ respite service for older people and people with dementia compare to ‘traditional’ forms of care for across three areas: outcomes for service users, carer and care commissioners; direct care costs to commissioners; and impact on the broader health system, such as a reduced usage. The review found that Shared Lives model provides positive outcomes for both service users and carers. It found that Shared Lives arrangements were able to reduce social isolation experience by carers and help increase their general wellbeing. Shared Lives also resulted in increased independence, wellbeing and choice for service users. In addition, the study found that the costs Shared Lives approach are similar to ‘traditional’ respite provision and provide an important option for commissioners. Appendices include details of calculations of the cost of providing Shared Lives respite care and day services; the results of a rapid evidence assessment on outcomes of ‘traditional’ respite care; and details of Healthcare service usage modelling. | G18: Essence Project - NIHR School for Social Care Research | H18: Skipped
A19: 18 | B19: 2011 | C19: How can local authorities with less money support better outcomes for older people? | D19: Centre for Policy on Ageing | E19: https://www.jrf.org.uk/sites/default/files/jrf/migrated/files/authorities-supporting-older-people-summary.pdf | F19: How can the life experiences of older people be enhanced whilst at the same time achieving less demand for more costly health and social care services? | G19: Essence Project - NIHR School for Social Care Research
A20: 19 | B20: 2020 | C20: The Housing-with-Care Task Force | D20: ARCO (Assosciated Retirement Community Operators) | E20: www.arcouk.org/sites/default/files/Housing%20with%20Care%20Task%20Force%20Overview.pdf | F20: 1) Identify barriers for growth 2) Provide detailed proposals for change building on existing work, including on: • Smart regulation of the sector (including consumer protection) • Clarifying the role of housing with care in the planning system • Availability of funding for those with more moderate means
A21: 20 | B21: 2020 | C21: Guidance - Supported housing: national statement of expectations | D21: The Ministry of Housing, Communities and Local Government (MHCLG) | E21: http://www.gov.uk/government/publications/supported-housing-national-statement-of-expectations/supported-housing-national-statement-of-expectations | F21: We are pleased to announce the National Statement of Expectations (NSE) for supported housing. It sets out government’s vision for ways of working in the sector and recommendations for standards in accommodation and is an important step in establishing what good looks like and how it can be achieved. This is part of our work to improve oversight, ensure quality and value for money. (see 'What funding is available to support supply?')
A22: 21 | B22: 2020-12-01 | C22: Briefing paper - Adult social care funding reform: developments since July 2019 (England) | D22: House of Commons Library | E22: https://commonslibrary.parliament.uk/research-briefings/cbp-8001/ | F22: This House of Commons Library briefing paper provides a summary of developments concerning the reform of adult social care since Boris Johnson became Prime Minister in July 2019. It applies to England only.
A23: 22 | B23: 2020 | C23: The state of the adult social care sector and workforce in England | D23: Workforce Intelligence | E23: http://www.skillsforcare.org.uk/adult-social-care-workforce-data/Workforce-intelligence/publications/national-information/The-state-of-the-adult-social-care-sector-and-workforce-in-England.aspx | F23: This report provides a comprehensive analysis of the adult social care workforce in England and the characteristics of the 1.52 million people working in it. Topics covered include: employment information, recruitment and retention, demographics, pay, qualification rates and future workforce forecasts.
A24: 23 | B24: 2018 | C24: Approaches to social care funding Social care funding options | D24: Health Foundation | E24: http://www.health.org.uk/publications/approaches-to-social-care-funding | F24: This paper considers the following approaches to funding social care for older people in England. • Improving the current system. • The Conservative Party’s proposals at the time of the 2017 general election (a revised means test and a cap on care costs). • A single budget for health and social care. • Free personal care. • A hypothecated tax for social care. These models were chosen to reflect the solutions most commonly raised in the debate around social care funding, and are not a comprehensive list of possible models. | G24: Literature review
A25: 24 | B25: 2018 | C25: Government Response to the Competition and Markets Authority's 'Care homes market study, final report' | D25: Social Care Oversight, Care and Transformation Directorate. | E25: www.gov.uk/government/publications/cma-care-homes-market-study-government-response | F25: On 30 November 2017, the Competition and Markets Authority (CMA) published the final report of its market study of the care homes market. The report set out a series of recommendations for Government, Local Authorities, sector regulators and the adult social care industry to address the issues identified. This response is in relation to recommendations made for the provision of adult social care in England, as adult social care is a devolved matter. The Devolved Administrations have each been asked by the CMA to respond to the report. | G25: Literature review
A26: 25 | B26: 2014 | C26: “ A vision for care fit for the twenty-first century…” THE COMMISSION ON RESIDENTIAL CARE | D26: Demos | E26: http://demos.co.uk/files/Demos_CORC_report.pdf | F26: This is the final report from the Commission on Residential Care (CORC) – a group of academics, experts and practitioners, chaired by Paul Burstow MP, who have over the past year examined a range of evidence and consulted a number of experts and practitioners in the UK and abroad regarding the future of residential care for disabled and older people. | G26: Literature review
A27: 26 | B27: 2018 | C27: At What Cost? the Impact of UK Long-term Care Funding Policies on Social Work Practice with Older People’: A Literature Review | D27: Alison Higgins - Ethics and Social Welfare Journal | E27: http://www.tandfonline.com/doi/abs/10.1080/17496535.2018.1505931?journalCode=resw2 | F27: This paper examines themes from recent literature in the field of social work with vulnerable older people, particularly in relation to funding arrangements for residential care, examining how ethical issues in this field of social work practice are. identified and discussed. | G27: Literature review
A28: 27 | B28: 2020 | C28: FIXING SOCIAL CARE: NEW FUNDING, NEW METHODS, NEW PARTNERSHIPS | D28: Adam Smith Instutiue | E28: http://www.adamsmith.org/research/fixing-social-care-new-funding-new-methods-new-partnerships | F28: The ASI’s latest paper, authored by ASI Director Eamonn Butler and adult social care sector expert Paul Saper, argues that that the social care system is broken, unfit for purpose and cannot be fixed by new taxes. | G28: Literature review
A29: 28 | B29: 2012 | C29: Innovative funding and delivery options in extra care sheltered housing A Housing Learning and Improvement Network “Get Smart ” guide | D29: Edited by Brian Johnston and Jeremy Porteus - Housing LIN | E29: http://www.housinglin.org.uk/_assets/Resources/Housing/Support_materials/Other_reports_and_guidance/HLIN_GetSmart_Funding.pdf | F29: During summer 2012, the Housing Learning and Improvement Network (LIN) invited a range of housing sector specialists with a range of professional perspectives to give some thought to what is currently “innovative thinking” that early adapters are seeking to develop, and can be more widely used across the public and private sectors. | G29: Essence Project - NIHR School for Social Care Research
A30: 29 | B30: 2017 | C30: The Lightbulb Project: Switched on to integration in Leicestershire | D30: Written for the Housing Learning and Improvement Network by Alison Moran, Interim Lightbulb Service Manager, Blaby District Council. | E30: http://www.housinglin.org.uk/_assets/Resources/Housing/Practice_examples/Housing_LIN_case_studies/HLIN_CaseStudy_135_Lightbulb_Project.pdf | F30: The Impact of the Service Formal evaluation of the service has taken place using Social Care and Health data and simulation modelling. Lightbulb delivery costs, including Hospital Housing team, are approximately £1m p/a against a potential £2m p/a saving to the Leicestershire and savings to the wider health economy. | G30: Essence Project - NIHR School for Social Care Research
A31: 30 | B31: 2017 | C31: Creating the five year forward view for social care - How transformed and integrated health and care could improve outcomes and cost-effectiveness | D31: SCIE | E31: http://www.scie.org.uk/future-of-care/total-transformation | F31: This paper explores the potential for scaling up the most promising examples of care, support and community health services, initially using data from Birmingham City Council, modelling their outcomes and costs. Originally published in November 2016, it has been updated to include additional models. | G31: SCIE
A32: 31 | B32: 2017 | C32: The Social Value of Sheltered Housing Briefing paper | D32: Claudia Wood | E32: http://www.demos.co.uk/wp-content/uploads/2017/06/Sheltered-Housing-paper-June-2017.pdf | F32: This paper provides a review of the existing evidence regarding the impact of sheltered housing, and then draws on this to make some initial estimates as to the cost savings it can achieve in a range of fields.
A33: 32 | B33: 2017 | C33: The Value of Sheltered Housing | D33: James Berrington | E33: https://www.housinglin.org.uk/_assets/Resources/Housing/OtherOrganisation/Value_of_Sheltered_Housing_Report.pdf | F33: The value derived from sheltered housing and extra care housing can be found in the benefits to the individual, to the community and to the taxpayer, mostly as a preventative service. While schemes vary greatly in size, scale and facicities, there are some common areas where we can see that schemes deliver value (to a large extent in some schemes such as extra care). | G33: Housing LIN
A34: 33 | B34: 2019 | C34: Extra Care Housing Resource Pack for Greater Manchester Health and Social Care Partnership | D34: Clare Skidmore, Ian Copeman, Lois Beech and Sophie Fox | E34: https://www.local.gov.uk/sites/default/files/documents/GM_Housing_LIN_Extra_Care_Resource_Pack_FINAL_Jan2020 270120.pdf#page58 | F34: This is an extra care housing resource pack produced on behalf of the Greater Manchester Health and Social Care Partnership (GMHSCP). It is intended to be used by its locality partners when considering commissioning extra care housing schemes. It provides examples and guidance in relation to development of the most appropriate mix of additional extra care housing across Greater Manchester.
A35: 34 | B35: 2019 | C35: Integrated housing with care and support for older people: econimic evidence | D35: Tinelli Michela, Knapp Martin, & Guy Danielle - London School of Economics and Policy Science | E35: https://essenceproject.uk/wp-content/uploads/2019/08/Essence_20_integrated-housing.pdf | F35: This case summary draws on existing research to provide economic evidence on extra care housing. The summary looks at whether extra housing is effective; residents views of extra care housing; whetehr it is cost effective; and how it is currently implemented. The evidence suggestes that extra care housing can be cost effective. Howeveb research has focused on comparison with the cost of living in a residential care home, which may not always be the relevant comparator. There is aso evidence that extra care housing produces heath benefits and increases life expectancy of residents, and reduces needs for care and use of health and social care resources. | G35: Essence Project - NIHR School for Social Care Research | H35: Is there a breakdown of the models that sit behind this project?
A36: 35 | B36: 2013 | C36: A cost comparison of supported living in Wales: a Swansea case study | D36: Nash Paul, Farr Angela, and Phillips Ceri Swansea University. Centre for Innovative Ageing | E36: http://www.housinglin.org.uk/_library/Resources/Housing/Wales/swansea-uni-report-to-sewic1.pdf | F36: This report sets out the findings of a research project on the costs of receiving care and support in Extracare sheltered housing in Wales, the comparable cost differences between receiving care in residential care, Extracare and in the community, and the variation in the use of NHS services in different care environments. Using the Secure Anonymised Information Linkage (SAIL) databank, this research was able to link data for housing and health care provision through social services and NHS service delivery data. The research found that the least expensive environment for delivery of care is in service users’ own homes with the most expensive being residential care. Caveats to this are that residential care supports older adults with higher levels of care needs, and that it incurs additional housing costs. The lowest equipment/modification costs were incurred by residents in Extracare with the highest by those receiving care and support in the community. This is reflective of the age of housing stock and support infrastructure, with Extracare having communal aides and ready modified flats, whereas this is not the case for community properties. In-patient costs were significantly higher in residential care than in Extracare, again reflective of the underlying care need of older adults in each environment. The highest costs were associated with those in receipt of care in the community, which is likely because of delays in enacting assessments, re-ablement and new community support care packages. Outpatient admissions and A&E costs were relatively stable across each of the care environments. The most common GP services utilised by residents in each of the care environments were telephone consultations, home visits and GP surgery consultations. Overall, residential care appears to be the most expensive for all costs relating to GP activity. | G36: Housing LIN
A37: 36 | B37: 2018 | C37: Comparing costs and outcomes of supported living with group homes in Austrailia | D37: Bigby Christine, Bould Emma, and Beadle-Brown Julie | E37: https://doi.org/10.3109/13668250.2017.1299117 | F37: Background: Supported living is perceived as more flexible than group homes for people with intellectual disability. This study identified costs and factors associated with quality of life (QOL) in supported living and compared this with group homes. Method: Thirty-one residents in supported living participated in a survey incorporating measures of service user characteristics and QOL. Participants in supported living were compared to a sample of 397 people in 96 group homes, and QOL outcomes compared for a matched sample of 29 people in supported living and group homes. Results: QOL differed little, supported living was cheaper, and 30–35% of both groups had similar support needs. Being younger, having autism, better health, family support, and participation in structured activities were associated with better outcomes in supported living. Conclusions: Supported living holds potential for group home residents, but greater support is required in domains such as health and interpersonal relationships. | G37: Journal of Intellectual and Developmental Disabiity
A38: 37 | B38: 2020 | C38: Housing - State of Aging in 2020 | D38: Centre for aging better | E38: https://www.ageing-better.org.uk/housing-state-ageing-2020 | F38: The State of Ageing in 2020 is an online report with multiple chapters, capturing a snapshot of ageing today and considering our future prospects.
A39: 38 | B39: 2020 | C39: Housing and Care for Older People, Defining the Sector, | D39: British Property Federation in partnership with Cushman & Wakefield | E39: https://bpf.org.uk/our-work/research-and-briefings/housing-and-care-for-older-people-defining-the-sector/ | F39: Central and local government stakeholders and others can use this report to understand the range of housing options available to older people in the UK. The report also includes definitions of care, support and services provided to residents. And it quantifies the current stock of housing for older people and reviews relevant case studies and planning policies. Considering our rapidly ageing population, this report also makes the case for greater provision of purpose-built housing for older people, and the need to rectify its severe under supply. | G39: British Housing Foundation
A40: 39 | B40: 2020 | C40: Coming of Age Better housing options for older people | D40: ARCO and later Life Ambitions | E40: http://www.arcouk.org/sites/default/files/ARCO_LLA%20Report%202020.pdf | F40: These surveys, conducted by our two organisations - Later Life Ambitions and the Associated Retirement Community Operators (ARCO), illuminate the mis-match between the needs and wants of older people and the options available to them: 56% of older people are interested in moving, rising to 70% if to somewhere with care and support as an alternative to a care home, yet only 12% say their local area has enough downsizing options, including those with care. | G40: ARCO
A41: 40 | B41: 2019 | C41: ETHICAL CARE A BOLD REFORM AGENDA FOR ADULT SOCIAL CARE | D41: Harry Quilter-Pinner - Institute for Public Policy Research | E41: http://www.ippr.org/files/2019-11/ethical-care-nov19.pdf | F41: Our research has identified three major drivers of quality in social care. • Funding: Cuts to adult social care spending have significantly reduced access to care. This is a national scandal, but it has helped to protect quality for those who are still receiving it. However, we may now be reaching a ‘tipping point’, where the drivers of quality are overcome by budgetary pressures. Moreover, cuts to non-statutory services may have contributed to low levels of user satisfaction in terms of ‘social connection’. • Workforce: There is a strong consensus in the sector that workforce is a significant driver of quality. In particular, the Care Quality Commission (CQC) has identified a link between high vacancy and turnover rates, and poorer levels of care being provided, while carers themselves highlight a lack of time and training as a factor. This is concerning because we are facing a workforce crisis, with high turnover and vacancy rates driven by low pay, training, progression and status in caring jobs. • Provider type: There is some evidence that the provider type and a provider’s business model has an impact on quality. Future Care Capital analysis of CQC data shows that, on average, private residential care providers deliver a lower quality of care than is delivered by the voluntary and state sector. This can be explained in a number of ways; for example, there is evidence that private providers have worse workforce outcomes, are more unstable (with a higher risk of bankruptcy) and tend to be larger (with smaller care homes on average delivering better care). | G41: Research review
A42: 41 | B42: 2017 | C42: Housing our Ageing Population - learning From Councils meeting the Housing Need of our Ageing Population | D42: Local Government Association | E42: http://www.local.gov.uk/sites/default/files/documents/5.17%20-%20Housing%20our%20ageing%20population_07_0.pdf | F42: The case studies in this report demonstrate how Birmingham City Council, Central Bedfordshire Council, Essex County Council, Mansfield District Council, Newcastle City Council, North Somerset, Bristol, Bath and North-East Somerset Councils, and Worcestershire County Council are playing a significant place-making role in shaping the current and future supply of housing for an ageing population in their areas.
A43: 42 | B43: 2019 | C43: Social care: the action we need - Election briefing | D43: Natasha Curry, Nina Hemmings, Camille Oung and Eilís Keeble - Nuffield Trust | E43: http://www.nuffieldtrust.org.uk/files/2019-11/social-care-election-briefing-web.pdf | F43: There is an expectation that social care will feature highly on the to-do list of the next government and that reform will aim to deliver an expanded service to a greater number of people. However laudable this is, any expanded offer will not be deliverable if it is not supported by a radical increase in our care workforce and funding reform. | G43: Research Review
A44: 43 | B44: 2018 | C44: Who cares? Building the care workforce of the future | D44: Andrew McKechnie, Reena Virdee and Ollie Cohen - PWC | E44: ww.pwc.co.uk/healthcare/assets/documents/who-cares-building-the-care-workforce-of-the-future.pdf | F44: Every day, across the country, hundreds of thousands of hardworking and committed health and social care professionals go to work to care for people at their most vulnerable. They are strongly motivated by their desire to work in a sector that directly helps so many people. Many find their work hugely rewarding but working in the care sector is becoming more challenging. Funding pressures, red tape and low wages contribute to high levels of staff turnover. How do you successfully attract, develop and inspire a care workforce in this environment? | G44: Research Review
A45: 44 | B45: 2018 | C45: Supersized The impact of adult social care on jobs, growth and regeneration in the West Midlands | D45: Sherman Wong commissioned by West Midlands ADASS (Directors of Adult Social Services) | E45: http://wm-adass.org.uk/media/1027/adass_economy_2018_final.pdf | F45: Last year, West Midlands ADASS took a look at the multi-faceted £4.4 billion footprint of the West Midlands adult social care sector as an economic driver, looking at how the sector contributes or could contribute to wider economic, social and place-shaping objectives. Nearly a year later we have commissioned Sherman to take a fresh look which brings together a series of reports, analysis and thoughts on how we develop the ‘Flipping social care’ concept and provide information and argument that helps us all make the case for the importance of the sector in driving the local economy. | G45: Research Review
A46: 45 | B46: 2018 | C46: House of Commons Communities and Local Government Committee Housing for older people Second Report of Session 2017–19 | D46: House of Commons | E46: https://publications.parliament.uk/pa/cm201719/cmselect/cmcomloc/370/370.pdf | F46: we have sought to produce a report which reflects the diversity of older people in terms of their ages, their individual circumstances and their choices and preferences. This report considers the provision of advice and information on housing; the link between housing and health; the situation for people who ‘stay put’ and for those who move home; housing options and supply and, finally, the need for a national strategy. In the Housing White Paper, the Government stated its intention to explore the issues relating to housing for older people and find sustainable solutions to any emerging problems
A47: 46 | B47: 2017 | C47: Written evidence submitted by the Housing Learning and Improvement Network | D47: Housing LIN | E47: http://http://data.parliament.uk/writtenevidence/committeeevidence.svc/evidencedocument/communities-and-local-government-committee/housing-for-older-people/written/49166.pdf | F47: Response to Select Committee enquiry into Housing.
E48: https://www.housinglin.org.uk/_assets/Resources/Housing/Research_evaluation/DP2783v2.pdf
E49: https://www.jrf.org.uk/sites/default/files/jrf/migrated/files/2276-housing-care-costs.pdf
A50: 47 | B50: 2012 | C50: Affordability, choices and quality of life in housing with care: report. *aged from 18 upwards | D50: Pannell Jenny, Blood Imogen, and Copeman Ian. York: Joseph Rowntree Foundation, | E50: https://www.tandfonline.com/doi/full/10.3109/13668250.2017.1299117 | F50: Our study suggests significant differences in the cost of support between supported living and group homes. The estimated average annual cost for supported living, including day support, was $30,435 compared to the estimate of at least $80,000 per person, plus day program support, of approximately $19,000 for group homes. Such cost differentials are similar to Stancliffe and Keane’s (2000) matched sample study. The characteristics of their participants differed slightly from the present study (they were younger, lived in their current home less time, and part of larger households). Comparison of estimated support costs between studies is hampered by the differing value of money over time and inclusion of different items, such as the omission of day support, and the unit used to calculate costs (household or individual). Nevertheless, both studies found the estimated cost of living in group homes was much higher than that of supporting living arrangements. | G50: Literature review
A51: 48 | B51: 2019 | C51: Integrated housing with care and support for older people: economic evidence | D51: Michela Tinelli, Martin Knapp, Danielle Guy | E51: https://essenceproject.uk/wp-content/uploads/2019/08/Essence_20_integrated-housing.pdf | F51: In England extra care development has been supported through the Department of Health and Social Care's Extra Care Housing Fund. Between 2004 and 2010 this fund provided £227 million to local authorities and housing associations to encourage innovative schemes and partnerships. A detailed evaluation of the overall initiative was completed by Personal Social Services Research Unit at Kent University. Key findings confirmed that extra care housing can provide a quality alternative to residential care from public housing, social and health care perspectives. | G51: Literature review | H51: Duplicated
A52: 49 | B52: 2011 | C52: Improving housing with care choices for older people: an evaluation of extra care housing | D52: Ann Netten, Robin Darton, Theresia Bäumker and Lisa Callaghan | E52: https://www.housinglin.org.uk/_assets/Resources/Housing/Research_evaluation/PSSRUsummary.pdf | F52: This report summarises the results of aThis report summarises the results of a Department of Health (DH) funded evaluation of 19 extra care housing schemes that opened between April 2006 and November 2008, and which received capital funding from the Department‘s Extra Care Housing Fund. | G52: referenced in 'Integrated housing with care and support for older people: economic evidence'
A53: 50 | B53: 2015 | C53: Collaborative Research between Aston Research Centre for Healthy Ageing (ARCHA) and the ExtraCare Charitable Trust | D53: Principal Investigator: Carol Holland | E53: https://www2.aston.ac.uk/migrated-assets/applicationpdf/lhs/245545-final%20report1.pdf | F53: We set out with the overall objective of evaluating whether the ExtraCare approach gives positive outcomes for healthy ageing which result in measurable health and social care cost savings. In a longitudinal study, 162 new residents are compared against 39 control participants. We took measures of health, well-being, cognitive ability and mobility at entry, 3, 12 and 18 months. Qualitative data were gathered using focus groups, interviews and case studies. People were additionally invited to keep a diary to record activities. Outcomes also include health and social care usage and costs to contribute to answering the original question. | G53: referenced in 'Integrated housing with care and support for older people: economic evidence'
A54: 51 | B54: 2008 | C54: LEARNINGS FROM THE EVALUATION: DISABILTY SERVICES ACCOMMODATION INNOVATION GRANTS 2007 | D54: Prepared for: Disability Services Division, Department of Human Services, Victoria Prepared by Dr Chris Fyffe, Jeffrey McCubbery and Dr Christine Bigby | E54: https://www.researchgate.net/publication/262936241_Learnings_from_the_Evaluation_of_the_Disability_Services_Accommodation_Innovation_Grants | F54: In February 2005, the Minister for Community Services announced grant funding to several organisations to undertake Accommodation Innovation projects. The funding was provided to the organisations to develop innovative ways of supporting people with disabilities to locate and make a success of independent living arrangements. An evaluation of the projects was conducted during the early part of 2007 to determine whether the projects were achieving the key outcomes for their participants. This document is a summary of the collective achievements and issues identified in the evaluation. | G54: referenced in 'Affordability, choices and quality of life in housing with care: report'
A55: 52 | B55: 2006 | C55: Trade-off between quality, price, and profit orientation in Germany’s nursing homes. | D55: Geraedts Max, and et al. Ageing International, 41, pp.89-98. | E55: https://link.springer.com/article/10.1007/s12126-015-9227-1 | F55: International data suggest that for-profit nursing homes tend to provide lower quality than not-for-profit nursing homes. In Germany, the relationships between profit orientation, price and quality of nursing homes have not been investigated. We performed an observational study using secondary data from statutory quality audits of all nursing homes in Germany. The relationships were analyzed bivariately via Mann–Whitney U-Test and Kruskal-Wallis Test respectively, followed by a multivariate variance analysis which also covered the interaction effect between quality, price and type of ownership. 41 % of 10,168 German nursing homes were for-profit charging on average about 10 % less than not-for-profit homes. In five out of six quality categories under study, for-profit nursing homes provided lower quality than not-for-profit homes. Quality of care in all quality categories improved with increasing prices per day. However, for four out of six quality categories examined, the quality difference between for-profit and non-profit nursing homes existed independent of the price charged. When selecting a nursing home it is therefore advisable to consider the profit orientation of the institution. German legislation should require that statutory public quality reports contain details on the profit orientation of nursing homes. | G55: Literature review
A56: 53 | B56: 2017 | C56: Housing choices discussion paper 1: what is the evidence for the cost or cost-effectiveness of housing and support options for people with care or support needs? | D56: Harflett Naomi, and et al. | E56: https://www.ndti.org.uk/assets/files/Housing_Choices_Discussion_Paper_1.pdf | F56: a summary of the evidence available on the cost and cost-effectiveness of residential care compared to other housing and support options, including highlighting significant limitations in the evidence available | G56: Literature review
A57: 54 | B57: 2020 | C57: Assessment of the demand for specialist housing and accommodation for older people in Wales | D57: THE HOUSING LEARNING & IMPROVEMENT NETWORK Reuben Hastings, Ian Copeman & Jeremy Porteus | E57: https://gov.wales/sites/default/files/publications/2020-01/independent-report-on-accommodation-for-older-people.pdf | F57: This is a report from the Housing Learning & Improvement Network (Housing LIN). It identifies current provision of and future demand to 2035 for different types of specialist housing and accommodation for older people. A report ofr the Welsh Government | G57: Literature Review
A58: 55 | B58: 2020 | C58: Design and cost considerations in extra care housing. London: Housing Learning and Improvement Network | D58: Housing Learning, Improvement Network, and et al. | E58: https://www.housinglin.org.uk/_assets/Resources/Housing/Support_materials/Reports/Design-and-Cost-in-Extra-Care-Housing_June-2020_RevC.pdf | F58: This report aims to demonstrate that with careful consideration and the right tools, including useful new cost modelling, extra care will remain a viable and sustainable housing with care choice for residents, commissioners and funders, operators and developers. The key challenge for anyone charged with delivering extra care housing is to create attractive, affordable homes so that people can make a positive choice for later life, rather than face being admitted at a point of crisis. Also known as assisted living, housing with flexi-care and supported housing, extra care housing is self-contained homes with design and support features to enable independent living. Developments are most often built in the form of apartments accessed from a corridor in a single building, but they can also be bungalows or houses. They also have shared communal facilities – the key factor that differentiates them from sheltered housing or retirement housing is the provision of 24-hour care staff on site. The document covers design aspects; trends in the development of extra care housing; considerations when converting sheltered housing to extra care housing; planning policy; considerations for infection control; and cost modelling. One of the core messages in this report is that extra care environments cannot simply be built using a ‘one-size fits all’ approach. In addition, lessons from the COVID-19 pandemic, fire safety and fire protection following Grenfell, and residents’ wider health and social care determinants all need to be learned quickly, to safeguard public confidence in extra care housing. | G58: Literature review
A59: 56 | B59: 2013 | C59: A COST COMPARISON OF SUPPORTED LIVING IN WALES: A SWANSEA CASE STUDY | D59: Dr Paul Nash, Angela Farr, Professor Ceri Phillips | E59: http://www.housinglin.org.uk/_library/Resources/Housing/Wales/swansea-uni-report-to-sewic1.pdf | F59: This report sets out the findings of a research project on the costs of receiving care and support in Extracare sheltered housing in Wales, the comparable cost differences between receiving care in residential care, Extracare and in the community, and the variation in the use of NHS services in different care environments. Using the Secure Anonymised Information Linkage (SAIL) databank, this research was able to link data for housing and health care provision through social services and NHS service delivery data. The research found that the least expensive environment for delivery of care is in service users’ own homes with the most expensive being residential care. Caveats to this are that residential care supports older adults with higher levels of care needs, and that it incurs additional housing costs. The lowest equipment/modification costs were incurred by residents in Extracare with the highest by those receiving care and support in the community. This is reflective of the age of housing stock and support infrastructure, with Extracare having communal aides and ready modified flats, whereas this is not the case for community properties. In-patient costs were significantly higher in residential care than in Extracare, again reflective of the underlying care need of older adults in each environment. The highest costs were associated with those in receipt of care in the community, which is likely because of delays in enacting assessments, re-ablement and new community support care packages. Outpatient admissions and A&E costs were relatively stable across each of the care environments. The most common GP services utilised by residents in each of the care environments were telephone consultations, home visits and GP surgery consultations. Overall, residential care appears to be the most expensive for all costs relating to GP activity. | G59: Literature review
A60: 57 | B60: 2020 | C60: Design and cost considerations in extra care housing. London: Housing Learning and Improvement Network | D60: Housing Learning, Improvement Network, and et al | E60: https://www.housinglin.org.uk/Topics/type/Design-and-Cost-Considerations-in-Extra-Care-Housing/ | F60: This report aims to demonstrate that with careful consideration and the right tools, including useful new cost modelling, extra care will remain a viable and sustainable housing with care choice for residents, commissioners and funders, operators and developers. The key challenge for anyone charged with delivering extra care housing is to create attractive, affordable homes so that people can make a positive choice for later life, rather than face being admitted at a point of crisis. Also known as assisted living, housing with flexi-care and supported housing, extra care housing is self-contained homes with design and support features to enable independent living. Developments are most often built in the form of apartments accessed from a corridor in a single building, but they can also be bungalows or houses. They also have shared communal facilities – the key factor that differentiates them from sheltered housing or retirement housing is the provision of 24-hour care staff on site. The document covers design aspects; trends in the development of extra care housing; considerations when converting sheltered housing to extra care housing; planning policy; considerations for infection control; and cost modelling. One of the core messages in this report is that extra care environments cannot simply be built using a ‘one-size fits all’ approach. In addition, lessons from the COVID-19 pandemic, fire safety and fire protection following Grenfell, and residents’ wider health and social care determinants all need to be learned quickly, to safeguard public confidence in extra care housing.
A61: 58 | B61: 2014 | C61: Extending the housing options for older people: focus on extra care. | D61: Petch Alison, Glasgow: Institute for Research and Innovation in Social Services | E61: https://www.iriss.org.uk/resources/insights/extending-housing-options-older-people-focus-extra-care | F61: This Insight summarises the evidence on policy and practice issues for housing with care and support for older people, focusing on extra care provision, and the extent to which different models provide an effective alternative to residential and nursing care. The review begins by providing a short overview to the policy context in Scotland. It then looks at the evidence in the following areas: location, support arrangements, quality of life, provision for dementia, building design, end of life and cost. The Insight covers ‘extra care’ that offers self-contained accommodation units, support accessible 24 hours, some collective meal provision and a range of leisure and other facilities on site.
A62: 59 | B62: 2019 | C62: Identifying the health care system benefits of housing with care | D62: Strzelecka Dorota, and et al, Southampton City Council Housing Learning and Improvement Network | E62: https://www.housinglin.org.uk/_assets/Resources/Housing/Support_materials/Reports/HLIN_SouthamptonCC_HwC-Health-Care-System-Benefits_Report.pdf | F62: A research report, commissioned by Southampton City Council, to investigate the benefits of housing with care services on the health care system. The report draws on findings from an evidence review and provides an estimated financial impact for health care services in Southampton. The study found the use of housing with care services resulted in reductions in the use of health services, including reductions in the number of non-elective admissions to hospital and reductions in length of stay and delayed discharges from hospital. It also identified significant cost-benefits for the health system and improvements to residents’ quality of life. Although the research focuses on Southampton, the findings will be of interest to planners and commissioners of services across the UK.
A63: 60 | B63: 2019 | C63: Integrated housing with care and support for older people: economic evidence | D63: Michela Tinelli, Martin Knapp, Danielle Guy Care Policy and Evaluation Centre, London School of Economics and Political Science | E63: https://essenceproject.uk/wp-content/uploads/2019/08/Essence_20_integrated-housing.pdf | F63: The summary looks at: whether extra care housing is effective; residents views of extra-care housing; whether it is cost-effective; and how it is currently implemented. The evidence suggests that extra-care housing can be cost-effective. However, research has focused on comparison with the cost of living in a residential care home, which may not always be the relevant comparator. There is also evidence that extra care housing produces health benefits and increases life expectancy of residents, and reduces needs for care and use of health and social care resources.
A64: 61 | B64: 2013 | C64: The business case extra housing in adult social care: an evaluation of extra care housing schemes in East Sussex | D64: Weis Wolfgang, and Tuck Jenny | E64: http://www.housinglin.org.uk/_library/Resources/Housing/Practice_examples/Housing_LIN_case_studies/HLIN_CaseStudy78_EastSussex.pdf | F64: This case study provides summarises the evaluation of extra care housing schemes undertaken by East Sussex County Council to inform future decisions related to financial investment in extra care housing. It looks at whether: extra care housing acts as a preventative model, supporting independence and avoiding admissions into residential care; and whether extra care housing is a more cost effective model of care delivery than other models, including residential care and care in the community. It is based on a snapshot of people living in extra care housing between November 2012 and January 2013, using information for 189 out of a total of over 200 people living in extra care housing. The evaluation looked at where people would be living if they were not in extra care housing, whether they were appropriately placed in extra care housing, and the financial benefits of their placement. The evaluation indicates that the cost of extra care housing was on average half the gross cost of the alternative placements.

Sheet Mappings (hidden)
A1: Conversion units
A3: Amount Per year | K3: Sub table 1
A4: £/Per week | B4: 52 | K4: £/period of time | L4: convert easily to £/year
A5: Per bed-space | K5: Per thing | L5: Find the cost of the item in £/year
A6: Per facility unit
A7: Per metre square
A8: £/Per year | B8: 1
A9: Per person
A10: % saved Per year
A11: per person per week

Sheet Introduction
A1: Commission on the Role of Housing in Care and Support Cost Benefit Analysis Tool
A3: Version | B3: Final version - 15 November 2021
A5: Release date | B5: 15 November 2021
A7: Release notes | B7: This tool has the primary purpose: To help users (primarily expected to be Local Authority commissioners) compare the costs and different of different options as part of plans to change the mix of housing with care available locally
A11: Supporting documents | B11: User Guide: Housing that facilitates care and support - Cost Benefit Tool: User Guide
B12: Summary Report: Investing in different types of housing with care and support: Cost Benefit Tool for Commissioners - Summary Report
A14: Authors | B14: This tool has been developed by SCIE and PPL, as part of the Commission on the Role of Housing in Care and Support; commissioned by the Dunhill Medical Trust

Sheet Sheet1

Sheet User inputs
B2: 1) Comparison
C4: Model 1 | D4: Model 2 | G4: KEY
B5: Which models of housing would you like to compare? | C5: Extra Care | D5: Residential Care | H5: Grey cells are fixed/ formula generated | J5: Green cells are drop downs | L5: Any pink cell can be changed
B7: 2) Defining need
C9: Low need | D9: Medium need | E9: High need | G9: Additional over 65 population who need housing | J9: 40000 | S9: Self funder | T9: Low | U9: Extra Care | W9: Yes
B10: Average hours of care/week | C10: 5 | D10: 10 | E10: 18 | S10: Funded | T10: Medium | U10: Residential Care | W10: No
B11: Need | C11: 0 | D11: 1 | E11: 0 | G11: Low need | H11: Medium need | I11: High need | T11: High | U11: Shared Lives
B12: Self funder | C12: 0.3 | D12: 0.3 | E12: 0.3 | G12: Number of individuals being compared | U12: Retirement Housing
B13: Funded | C13: =1-C12 -> 0.7 | D13: =1-D12 -> 0.7 | E13: =1-E12 -> 0.7 | G13: =C11*$J$9 -> 0 | H13: =D11*$J$9 -> 40000 | I13: =E11*$J$9 -> 0
B14: Funders - what % do they contribute themselves (on average)? | C14: 0.3 | D14: 0.3 | E14: 0.3 | G14: =C12*G$13 -> 0 | H14: 12000 | I14: 0
B15: Eligible for Attendance Allowance (AA) | C15: 0 | D15: 0.1 | E15: 0.2 | G15: 0 | H15: 28000 | I15: 0
B16: Attendance Allowance (AA) self funders | C16: N/A | D16: 0 | E16: 0.1 | G16: =C15*G$13 -> 0 | H16: =D15*H$13 -> 4000 | I16: =E15*I$13 -> 0
B18: 3) Impact of | C18: =J9 -> 40000 | D18: additional over 65s in | F18: =C5 -> Extra Care | G18: compared to in | H18: =D5 -> Residential Care
B20: SAVINGS/COSTS | C20: Person | D20: LA | E20: NHS | F20: Central govt | G20: State (net) | I20: Use price or bottom up costing?
B21: Financial support (incl. council tax support & housing benefit) | C21: =IF($I$21="bottom up costing",-('Savings analysis'!I27-'Savings analysis'!R27),0) -> -10224240 | D21: =IF($I$21="bottom up costing",-('Savings analysis'!I53-'Savings analysis'!R53),0) -> 89711440 | E21: =IF($I$21="bottom up costing",-('Savings analysis'!I79-'Savings analysis'!R79),0) -> 0 | F21: =IF($I$21="bottom up costing",-('Savings analysis'!I105-'Savings analysis'!R105),0) -> -113568000 | G21: =SUM(C21:F21) -> -34080800 | I21: Bottom up costing | S21: Price
B22: Care staff costs | C22: =IF($I$21="bottom up costing",-('Savings analysis'!I21-'Savings analysis'!R21),0) -> 101824800 | D22: =IF($I$21="bottom up costing",-('Savings analysis'!I47-'Savings analysis'!R47),0) -> 237591200 | E22: =IF($I$21="bottom up costing",-('Savings analysis'!I73-'Savings analysis'!R73),0) -> 0 | F22: =IF($I$21="bottom up costing",-('Savings analysis'!I99-'Savings analysis'!R99),0) -> 0 | G22: =SUM(C22:F22) -> 339416000 | I22: To use price, will need to add assumptions about prices paid for different types of housing | S22: Bottom up costing
B23: Running costs | C23: =IF($I$21="bottom up costing",-('Savings analysis'!I22-'Savings analysis'!R22),0) -> 44453760 | D23: =IF($I$21="bottom up costing",-('Savings analysis'!I48-'Savings analysis'!R48),0) -> 103725440 | E23: =IF($I$21="bottom up costing",-('Savings analysis'!I74-'Savings analysis'!R74),0) -> 0 | F23: =IF($I$21="bottom up costing",-('Savings analysis'!I100-'Savings analysis'!R100),0) -> 0 | G23: =SUM(C23:F23) -> 148179200
B24: Land costs (includes cost of purchasing land, cost of capital, and site development costs | C24: =IF($I$21="bottom up costing",-('Savings analysis'!I23-'Savings analysis'!R23),0) -> 0 | D24: =IF($I$21="bottom up costing",-('Savings analysis'!I49-'Savings analysis'!R49),0) -> 14560000 | E24: =IF($I$21="bottom up costing",-('Savings analysis'!I75-'Savings analysis'!R75),0) -> 0 | F24: =IF($I$21="bottom up costing",-('Savings analysis'!I101-'Savings analysis'!R101),0) -> 0 | G24: =SUM(C24:F24) -> 14560000
B25: Price | C25: =IF($I$21="price",-('Savings analysis'!I25-'Savings analysis'!R25),0) -> 0 | D25: =IF($I$21="price",-('Savings analysis'!I51-'Savings analysis'!R51),0) -> 0 | E25: =IF($I$21="price",-('Savings analysis'!I77-'Savings analysis'!R77),0) -> 0 | F25: =IF($I$21="price",-('Savings analysis'!I103-'Savings analysis'!R103),0) -> 0 | G25: =SUM(C25:F25) -> 0 | I25: If you expect to sell or rent some of your units to self-funders and expect to get additional income from that, please enter those values here. If not, please ignore
B26: Benefits (value of non-cashable activity reduction) | C26: ='Savings analysis'!I34-'Savings analysis'!R34 -> 0 | D26: ='Savings analysis'!I60-'Savings analysis'!R60 -> 0 | E26: =('Savings analysis'!I86-'Savings analysis'!R86) -> 56460800 | F26: ='Savings analysis'!I112-'Savings analysis'!R112 -> 0 | G26: =SUM(C26:F26) -> 56460800
B27: Additional contribution from part funders | C27: =IF($I$21="bottom up costing",-'Savings analysis'!Y13,0) -> -95238024 | D27: =IF($I$21="bottom up costing",-'Savings analysis'!Z13,0) -> 95238024 | E27: =IF($I$21="bottom up costing",'Savings analysis'!AA13,0) -> 0 | F27: =IF($I$21="bottom up costing",'Savings analysis'!AB13,0) -> 0 | G27: =SUM(C27:F27) -> 0
B28: Additional income to LA via rent or buying (self-funders) | C28: =-D28 -> 0 | D28: =L29 -> 0 | G28: =SUM(C28:F28) -> 0
B29: Total | C29: =SUM(C21:C28) -> 40816296 | D29: =SUM(D21:D28) -> 540826104 | E29: =SUM(E21:E28) -> 56460800 | F29: =SUM(F21:F28) -> -113568000 | G29: =SUM(G21:G28) -> 524535200 | I29: Additional contribution via rent or buying (self-funders) | L29: 0
B31: 4) Costs and benefits - per person
B33: Individual characteristics | C33: Need | D33: Medium | E33: Financial status | F33: Funded | G33: Eligible for Attendance Allowance? | I33: No | K33: Cost/benefit assumptions | L33: User | S33: Original
K34: If you would like to return to 'factory' assumptions, please select 'Original' | S34: User
C36: Model 1 | D36: =C5 -> Extra Care | H36: Model 2 | I36: =D5 -> Residential Care
C38: Person | D38: LA | E38: NHS | F38: Central govt | G38: State (net) | H38: Person | I38: LA | J38: NHS | K38: Central govt | L38: State (net)
B39: COSTS
B40: Care costs | C40: =INDEX('Who pays assumptions - merged'!$B$93:$AJ$120,MATCH('User inputs'!$B40,'Who pays assumptions - merged'!$B$93:$B$120,0),MATCH('User inputs'!C$74,'Who pays assumptions - merged'!$B$93:$AJ$93,0)) -> 0 | D40: =INDEX('Who pays assumptions - merged'!$B$93:$AJ$120,MATCH('User inputs'!$B40,'Who pays assumptions - merged'!$B$93:$B$120,0),MATCH('User inputs'!D$74,'Who pays assumptions - merged'!$B$93:$AJ$93,0)) -> 15089.6 | E40: =INDEX('Who pays assumptions - merged'!$B$93:$AJ$120,MATCH('User inputs'!$B40,'Who pays assumptions - merged'!$B$93:$B$120,0),MATCH('User inputs'!E$74,'Who pays assumptions - merged'!$B$93:$AJ$93,0)) -> 0 | F40: =INDEX('Who pays assumptions - merged'!$B$93:$AJ$120,MATCH('User inputs'!$B40,'Who pays assumptions - merged'!$B$93:$B$120,0),MATCH('User inputs'!F$74,'Who pays assumptions - merged'!$B$93:$AJ$93,0)) -> 0 | H40: =INDEX('Who pays assumptions - merged'!$B$93:$AJ$120,MATCH('User inputs'!$B40,'Who pays assumptions - merged'!$B$93:$B$120,0),MATCH('User inputs'!H$74,'Who pays assumptions - merged'!$B$93:$AJ$93,0)) -> 0 | I40: =INDEX('Who pays assumptions - merged'!$B$93:$AJ$120,MATCH('User inputs'!$B40,'Who pays assumptions - merged'!$B$93:$B$120,0),MATCH('User inputs'!I$74,'Who pays assumptions - merged'!$B$93:$AJ$93,0)) -> 23575 | J40: =INDEX('Who pays assumptions - merged'!$B$93:$AJ$120,MATCH('User inputs'!$B40,'Who pays assumptions - merged'!$B$93:$B$120,0),MATCH('User inputs'!J$74,'Who pays assumptions - merged'!$B$93:$AJ$93,0)) -> 0 | K40: =INDEX('Who pays assumptions - merged'!$B$93:$AJ$120,MATCH('User inputs'!$B40,'Who pays assumptions - merged'!$B$93:$B$120,0),MATCH('User inputs'!K$74,'Who pays assumptions - merged'!$B$93:$AJ$93,0)) -> 0
B41: Running costs | C41: =INDEX('Who pays assumptions - merged'!$B$93:$AJ$120,MATCH('User inputs'!$B41,'Who pays assumptions - merged'!$B$93:$B$120,0),MATCH('User inputs'!C$74,'Who pays assumptions - merged'!$B$93:$AJ$93,0)) -> 0 | D41: =INDEX('Who pays assumptions - merged'!$B$93:$AJ$120,MATCH('User inputs'!$B41,'Who pays assumptions - merged'!$B$93:$B$120,0),MATCH('User inputs'!D$74,'Who pays assumptions - merged'!$B$93:$AJ$93,0)) -> 2743.52 | E41: =INDEX('Who pays assumptions - merged'!$B$93:$AJ$120,MATCH('User inputs'!$B41,'Who pays assumptions - merged'!$B$93:$B$120,0),MATCH('User inputs'!E$74,'Who pays assumptions - merged'!$B$93:$AJ$93,0)) -> 0 | F41: =INDEX('Who pays assumptions - merged'!$B$93:$AJ$120,MATCH('User inputs'!$B41,'Who pays assumptions - merged'!$B$93:$B$120,0),MATCH('User inputs'!F$74,'Who pays assumptions - merged'!$B$93:$AJ$93,0)) -> 0 | H41: =INDEX('Who pays assumptions - merged'!$B$93:$AJ$120,MATCH('User inputs'!$B41,'Who pays assumptions - merged'!$B$93:$B$120,0),MATCH('User inputs'!H$74,'Who pays assumptions - merged'!$B$93:$AJ$93,0)) -> 0 | I41: =INDEX('Who pays assumptions - merged'!$B$93:$AJ$120,MATCH('User inputs'!$B41,'Who pays assumptions - merged'!$B$93:$B$120,0),MATCH('User inputs'!I$74,'Who pays assumptions - merged'!$B$93:$AJ$93,0)) -> 6448 | J41: =INDEX('Who pays assumptions - merged'!$B$93:$AJ$120,MATCH('User inputs'!$B41,'Who pays assumptions - merged'!$B$93:$B$120,0),MATCH('User inputs'!J$74,'Who pays assumptions - merged'!$B$93:$AJ$93,0)) -> 0 | K41: =INDEX('Who pays assumptions - merged'!$B$93:$AJ$120,MATCH('User inputs'!$B41,'Who pays assumptions - merged'!$B$93:$B$120,0),MATCH('User inputs'!K$74,'Who pays assumptions - merged'!$B$93:$AJ$93,0)) -> 0 | S41: =CONCATENATE(D37,F34,C39) ->  | T41: =CONCATENATE(I37,F34,H39) -> 
B42: Land costs | C42: =INDEX('Who pays assumptions - merged'!$B$93:$AJ$120,MATCH('User inputs'!$B42,'Who pays assumptions - merged'!$B$93:$B$120,0),MATCH('User inputs'!C$74,'Who pays assumptions - merged'!$B$93:$AJ$93,0)) -> 0 | D42: =INDEX('Who pays assumptions - merged'!$B$93:$AJ$120,MATCH('User inputs'!$B42,'Who pays assumptions - merged'!$B$93:$B$120,0),MATCH('User inputs'!D$74,'Who pays assumptions - merged'!$B$93:$AJ$93,0)) -> 6032 | E42: =INDEX('Who pays assumptions - merged'!$B$93:$AJ$120,MATCH('User inputs'!$B42,'Who pays assumptions - merged'!$B$93:$B$120,0),MATCH('User inputs'!E$74,'Who pays assumptions - merged'!$B$93:$AJ$93,0)) -> 0 | F42: =INDEX('Who pays assumptions - merged'!$B$93:$AJ$120,MATCH('User inputs'!$B42,'Who pays assumptions - merged'!$B$93:$B$120,0),MATCH('User inputs'!F$74,'Who pays assumptions - merged'!$B$93:$AJ$93,0)) -> 0 | H42: =INDEX('Who pays assumptions - merged'!$B$93:$AJ$120,MATCH('User inputs'!$B42,'Who pays assumptions - merged'!$B$93:$B$120,0),MATCH('User inputs'!H$74,'Who pays assumptions - merged'!$B$93:$AJ$93,0)) -> 0 | I42: =INDEX('Who pays assumptions - merged'!$B$93:$AJ$120,MATCH('User inputs'!$B42,'Who pays assumptions - merged'!$B$93:$B$120,0),MATCH('User inputs'!I$74,'Who pays assumptions - merged'!$B$93:$AJ$93,0)) -> 6396 | J42: =INDEX('Who pays assumptions - merged'!$B$93:$AJ$120,MATCH('User inputs'!$B42,'Who pays assumptions - merged'!$B$93:$B$120,0),MATCH('User inputs'!J$74,'Who pays assumptions - merged'!$B$93:$AJ$93,0)) -> 0 | K42: =INDEX('Who pays assumptions - merged'!$B$93:$AJ$120,MATCH('User inputs'!$B42,'Who pays assumptions - merged'!$B$93:$B$120,0),MATCH('User inputs'!K$74,'Who pays assumptions - merged'!$B$93:$AJ$93,0)) -> 0
B44: PRICE | C44: =INDEX('Who pays assumptions - merged'!$B$93:$AJ$120,MATCH('User inputs'!$B44,'Who pays assumptions - merged'!$B$93:$B$120,0),MATCH('User inputs'!C$74,'Who pays assumptions - merged'!$B$93:$AJ$93,0)) -> 0 | D44: =INDEX('Who pays assumptions - merged'!$B$93:$AJ$120,MATCH('User inputs'!$B44,'Who pays assumptions - merged'!$B$93:$B$120,0),MATCH('User inputs'!D$74,'Who pays assumptions - merged'!$B$93:$AJ$93,0)) -> 0 | E44: =INDEX('Who pays assumptions - merged'!$B$93:$AJ$120,MATCH('User inputs'!$B44,'Who pays assumptions - merged'!$B$93:$B$120,0),MATCH('User inputs'!E$74,'Who pays assumptions - merged'!$B$93:$AJ$93,0)) -> 0 | F44: =INDEX('Who pays assumptions - merged'!$B$93:$AJ$120,MATCH('User inputs'!$B44,'Who pays assumptions - merged'!$B$93:$B$120,0),MATCH('User inputs'!F$74,'Who pays assumptions - merged'!$B$93:$AJ$93,0)) -> 0 | H44: =INDEX('Who pays assumptions - merged'!$B$93:$AJ$120,MATCH('User inputs'!$B44,'Who pays assumptions - merged'!$B$93:$B$120,0),MATCH('User inputs'!H$74,'Who pays assumptions - merged'!$B$93:$AJ$93,0)) -> 0 | I44: =INDEX('Who pays assumptions - merged'!$B$93:$AJ$120,MATCH('User inputs'!$B44,'Who pays assumptions - merged'!$B$93:$B$120,0),MATCH('User inputs'!I$74,'Who pays assumptions - merged'!$B$93:$AJ$93,0)) -> 37544 | J44: =INDEX('Who pays assumptions - merged'!$B$93:$AJ$120,MATCH('User inputs'!$B44,'Who pays assumptions - merged'!$B$93:$B$120,0),MATCH('User inputs'!J$74,'Who pays assumptions - merged'!$B$93:$AJ$93,0)) -> 0 | K44: =INDEX('Who pays assumptions - merged'!$B$93:$AJ$120,MATCH('User inputs'!$B44,'Who pays assumptions - merged'!$B$93:$B$120,0),MATCH('User inputs'!K$74,'Who pays assumptions - merged'!$B$93:$AJ$93,0)) -> 0
B46: FINANCIAL SUPPORT COSTS
B47: Rental - housing benefit | C47: =INDEX('Who pays assumptions - merged'!$B$93:$AJ$120,MATCH('User inputs'!$B47,'Who pays assumptions - merged'!$B$93:$B$120,0),MATCH('User inputs'!C$74,'Who pays assumptions - merged'!$B$93:$AJ$93,0)) -> 0 | D47: =INDEX('Who pays assumptions - merged'!$B$93:$AJ$120,MATCH('User inputs'!$B47,'Who pays assumptions - merged'!$B$93:$B$120,0),MATCH('User inputs'!D$74,'Who pays assumptions - merged'!$B$93:$AJ$93,0)) -> 0 | E47: =INDEX('Who pays assumptions - merged'!$B$93:$AJ$120,MATCH('User inputs'!$B47,'Who pays assumptions - merged'!$B$93:$B$120,0),MATCH('User inputs'!E$74,'Who pays assumptions - merged'!$B$93:$AJ$93,0)) -> 0 | F47: =INDEX('Who pays assumptions - merged'!$B$93:$AJ$120,MATCH('User inputs'!$B47,'Who pays assumptions - merged'!$B$93:$B$120,0),MATCH('User inputs'!F$74,'Who pays assumptions - merged'!$B$93:$AJ$93,0)) -> 4056 | H47: =INDEX('Who pays assumptions - merged'!$B$93:$AJ$120,MATCH('User inputs'!$B47,'Who pays assumptions - merged'!$B$93:$B$120,0),MATCH('User inputs'!H$74,'Who pays assumptions - merged'!$B$93:$AJ$93,0)) -> 0 | I47: =INDEX('Who pays assumptions - merged'!$B$93:$AJ$120,MATCH('User inputs'!$B47,'Who pays assumptions - merged'!$B$93:$B$120,0),MATCH('User inputs'!I$74,'Who pays assumptions - merged'!$B$93:$AJ$93,0)) -> 4056 | J47: =INDEX('Who pays assumptions - merged'!$B$93:$AJ$120,MATCH('User inputs'!$B47,'Who pays assumptions - merged'!$B$93:$B$120,0),MATCH('User inputs'!J$74,'Who pays assumptions - merged'!$B$93:$AJ$93,0)) -> 0 | K47: =INDEX('Who pays assumptions - merged'!$B$93:$AJ$120,MATCH('User inputs'!$B47,'Who pays assumptions - merged'!$B$93:$B$120,0),MATCH('User inputs'!K$74,'Who pays assumptions - merged'!$B$93:$AJ$93,0)) -> 0 | M47: Housing Benefit is applicable to (funded placements in) Extra Care, Retirement Housing and Shared Lives.If a resident chooses to rent a room in an Extra Care or Retirement Housing facility, they are entitled to housing benefit. A component of the Shared Lives payment is for rental of a room in a scheme, in the case that a person cannot self-fund this component, housing benefit is used.
B48: Rental of a room in a Shared Lives scheme - housing benefit | C48: =INDEX('Who pays assumptions - merged'!$B$93:$AJ$120,MATCH('User inputs'!$B48,'Who pays assumptions - merged'!$B$93:$B$120,0),MATCH('User inputs'!C$74,'Who pays assumptions - merged'!$B$93:$AJ$93,0)) -> 0 | D48: =INDEX('Who pays assumptions - merged'!$B$93:$AJ$120,MATCH('User inputs'!$B48,'Who pays assumptions - merged'!$B$93:$B$120,0),MATCH('User inputs'!D$74,'Who pays assumptions - merged'!$B$93:$AJ$93,0)) -> 0 | E48: =INDEX('Who pays assumptions - merged'!$B$93:$AJ$120,MATCH('User inputs'!$B48,'Who pays assumptions - merged'!$B$93:$B$120,0),MATCH('User inputs'!E$74,'Who pays assumptions - merged'!$B$93:$AJ$93,0)) -> 0 | F48: =INDEX('Who pays assumptions - merged'!$B$93:$AJ$120,MATCH('User inputs'!$B48,'Who pays assumptions - merged'!$B$93:$B$120,0),MATCH('User inputs'!F$74,'Who pays assumptions - merged'!$B$93:$AJ$93,0)) -> 0 | H48: =INDEX('Who pays assumptions - merged'!$B$93:$AJ$120,MATCH('User inputs'!$B48,'Who pays assumptions - merged'!$B$93:$B$120,0),MATCH('User inputs'!H$74,'Who pays assumptions - merged'!$B$93:$AJ$93,0)) -> 0 | I48: =INDEX('Who pays assumptions - merged'!$B$93:$AJ$120,MATCH('User inputs'!$B48,'Who pays assumptions - merged'!$B$93:$B$120,0),MATCH('User inputs'!I$74,'Who pays assumptions - merged'!$B$93:$AJ$93,0)) -> 0 | J48: =INDEX('Who pays assumptions - merged'!$B$93:$AJ$120,MATCH('User inputs'!$B48,'Who pays assumptions - merged'!$B$93:$B$120,0),MATCH('User inputs'!J$74,'Who pays assumptions - merged'!$B$93:$AJ$93,0)) -> 0 | K48: =INDEX('Who pays assumptions - merged'!$B$93:$AJ$120,MATCH('User inputs'!$B48,'Who pays assumptions - merged'!$B$93:$B$120,0),MATCH('User inputs'!K$74,'Who pays assumptions - merged'!$B$93:$AJ$93,0)) -> 0
B49: Council tax | C49: =INDEX('Who pays assumptions - merged'!$B$93:$AJ$120,MATCH('User inputs'!$B49,'Who pays assumptions - merged'!$B$93:$B$120,0),MATCH('User inputs'!C$74,'Who pays assumptions - merged'!$B$93:$AJ$93,0)) -> 0 | D49: =INDEX('Who pays assumptions - merged'!$B$93:$AJ$120,MATCH('User inputs'!$B49,'Who pays assumptions - merged'!$B$93:$B$120,0),MATCH('User inputs'!D$74,'Who pays assumptions - merged'!$B$93:$AJ$93,0)) -> 852.02 | E49: =INDEX('Who pays assumptions - merged'!$B$93:$AJ$120,MATCH('User inputs'!$B49,'Who pays assumptions - merged'!$B$93:$B$120,0),MATCH('User inputs'!E$74,'Who pays assumptions - merged'!$B$93:$AJ$93,0)) -> 0 | F49: =INDEX('Who pays assumptions - merged'!$B$93:$AJ$120,MATCH('User inputs'!$B49,'Who pays assumptions - merged'!$B$93:$B$120,0),MATCH('User inputs'!F$74,'Who pays assumptions - merged'!$B$93:$AJ$93,0)) -> 0 | H49: =INDEX('Who pays assumptions - merged'!$B$93:$AJ$120,MATCH('User inputs'!$B49,'Who pays assumptions - merged'!$B$93:$B$120,0),MATCH('User inputs'!H$74,'Who pays assumptions - merged'!$B$93:$AJ$93,0)) -> 0 | I49: =INDEX('Who pays assumptions - merged'!$B$93:$AJ$120,MATCH('User inputs'!$B49,'Who pays assumptions - merged'!$B$93:$B$120,0),MATCH('User inputs'!I$74,'Who pays assumptions - merged'!$B$93:$AJ$93,0)) -> 0 | J49: =INDEX('Who pays assumptions - merged'!$B$93:$AJ$120,MATCH('User inputs'!$B49,'Who pays assumptions - merged'!$B$93:$B$120,0),MATCH('User inputs'!J$74,'Who pays assumptions - merged'!$B$93:$AJ$93,0)) -> 0 | K49: =INDEX('Who pays assumptions - merged'!$B$93:$AJ$120,MATCH('User inputs'!$B49,'Who pays assumptions - merged'!$B$93:$B$120,0),MATCH('User inputs'!K$74,'Who pays assumptions - merged'!$B$93:$AJ$93,0)) -> 0 | M49: Residents in Extra Care and Retirement Housing are required to pay council tax. In the `case that they cannot meet the full council tax payment, they may be entitled to a council tax support payment. For means tested individuals, council tax payment comes straight back so we assume that is a net zero position for the local authority (and the individual). For self-funders, there is a net gain to the LA for council tax.
B50: Attendance Allowance | C50: =IF($I$33="No",0,INDEX('Who pays assumptions - merged'!$B$93:$AJ$120,MATCH('User inputs'!$B50,'Who pays assumptions - merged'!$B$93:$B$120,0),MATCH('User inputs'!C$74,'Who pays assumptions - merged'!$B$93:$AJ$93,0))) -> 0 | D50: =IF($I$33="No",0,INDEX('Who pays assumptions - merged'!$B$93:$AJ$120,MATCH('User inputs'!$B50,'Who pays assumptions - merged'!$B$93:$B$120,0),MATCH('User inputs'!D$74,'Who pays assumptions - merged'!$B$93:$AJ$93,0))) -> 0 | E50: =IF($I$33="No",0,INDEX('Who pays assumptions - merged'!$B$93:$AJ$120,MATCH('User inputs'!$B50,'Who pays assumptions - merged'!$B$93:$B$120,0),MATCH('User inputs'!E$74,'Who pays assumptions - merged'!$B$93:$AJ$93,0))) -> 0 | F50: =IF($I$33="No",0,INDEX('Who pays assumptions - merged'!$B$93:$AJ$120,MATCH('User inputs'!$B50,'Who pays assumptions - merged'!$B$93:$B$120,0),MATCH('User inputs'!F$74,'Who pays assumptions - merged'!$B$93:$AJ$93,0))) -> 0 | H50: =IF($I$33="No",0,INDEX('Who pays assumptions - merged'!$B$93:$AJ$120,MATCH('User inputs'!$B50,'Who pays assumptions - merged'!$B$93:$B$120,0),MATCH('User inputs'!H$74,'Who pays assumptions - merged'!$B$93:$AJ$93,0))) -> 0 | I50: =IF($I$33="No",0,INDEX('Who pays assumptions - merged'!$B$93:$AJ$120,MATCH('User inputs'!$B50,'Who pays assumptions - merged'!$B$93:$B$120,0),MATCH('User inputs'!I$74,'Who pays assumptions - merged'!$B$93:$AJ$93,0))) -> 0 | J50: =IF($I$33="No",0,INDEX('Who pays assumptions - merged'!$B$93:$AJ$120,MATCH('User inputs'!$B50,'Who pays assumptions - merged'!$B$93:$B$120,0),MATCH('User inputs'!J$74,'Who pays assumptions - merged'!$B$93:$AJ$93,0))) -> 0 | K50: =IF($I$33="No",0,INDEX('Who pays assumptions - merged'!$B$93:$AJ$120,MATCH('User inputs'!$B50,'Who pays assumptions - merged'!$B$93:$B$120,0),MATCH('User inputs'!K$74,'Who pays assumptions - merged'!$B$93:$AJ$93,0))) -> 0 | M50: Attendance Allowance is for older adults who require help because of an illness of disability. This payment is provided for residents of Extra Care, Retirement Housing, Shared Lives and Residential Care.
B51: Other | C51: =INDEX('Who pays assumptions - merged'!$B$93:$AJ$120,MATCH('User inputs'!$B51,'Who pays assumptions - merged'!$B$93:$B$120,0),MATCH('User inputs'!C$74,'Who pays assumptions - merged'!$B$93:$AJ$93,0)) -> 0 | D51: =INDEX('Who pays assumptions - merged'!$B$93:$AJ$120,MATCH('User inputs'!$B51,'Who pays assumptions - merged'!$B$93:$B$120,0),MATCH('User inputs'!D$74,'Who pays assumptions - merged'!$B$93:$AJ$93,0)) -> 0 | E51: =INDEX('Who pays assumptions - merged'!$B$93:$AJ$120,MATCH('User inputs'!$B51,'Who pays assumptions - merged'!$B$93:$B$120,0),MATCH('User inputs'!E$74,'Who pays assumptions - merged'!$B$93:$AJ$93,0)) -> 0 | F51: =INDEX('Who pays assumptions - merged'!$B$93:$AJ$120,MATCH('User inputs'!$B51,'Who pays assumptions - merged'!$B$93:$B$120,0),MATCH('User inputs'!F$74,'Who pays assumptions - merged'!$B$93:$AJ$93,0)) -> 0 | H51: =INDEX('Who pays assumptions - merged'!$B$93:$AJ$120,MATCH('User inputs'!$B51,'Who pays assumptions - merged'!$B$93:$B$120,0),MATCH('User inputs'!H$74,'Who pays assumptions - merged'!$B$93:$AJ$93,0)) -> 0 | I51: =INDEX('Who pays assumptions - merged'!$B$93:$AJ$120,MATCH('User inputs'!$B51,'Who pays assumptions - merged'!$B$93:$B$120,0),MATCH('User inputs'!I$74,'Who pays assumptions - merged'!$B$93:$AJ$93,0)) -> 0 | J51: =INDEX('Who pays assumptions - merged'!$B$93:$AJ$120,MATCH('User inputs'!$B51,'Who pays assumptions - merged'!$B$93:$B$120,0),MATCH('User inputs'!J$74,'Who pays assumptions - merged'!$B$93:$AJ$93,0)) -> 0 | K51: =INDEX('Who pays assumptions - merged'!$B$93:$AJ$120,MATCH('User inputs'!$B51,'Who pays assumptions - merged'!$B$93:$B$120,0),MATCH('User inputs'!K$74,'Who pays assumptions - merged'!$B$93:$AJ$93,0)) -> 0 | M51: This category refers to potential cost components such as equipment and adaption grant and disability and facilities grant. Shared Lives and Retirement housing are eligible for Disability and Facilities Grant. The equipment and adaptions grant is applicable for residents in Shared Lives schemes.
B53: BENEFITS
B54: Hospital admissions | C54: =INDEX('Who pays assumptions - merged'!$B$93:$AJ$120,MATCH('User inputs'!$B54,'Who pays assumptions - merged'!$B$93:$B$120,0),MATCH('User inputs'!C$74,'Who pays assumptions - merged'!$B$93:$AJ$93,0)) -> 0 | D54: =INDEX('Who pays assumptions - merged'!$B$93:$AJ$120,MATCH('User inputs'!$B54,'Who pays assumptions - merged'!$B$93:$B$120,0),MATCH('User inputs'!D$74,'Who pays assumptions - merged'!$B$93:$AJ$93,0)) -> 0 | E54: =INDEX('Who pays assumptions - merged'!$B$93:$AJ$120,MATCH('User inputs'!$B54,'Who pays assumptions - merged'!$B$93:$B$120,0),MATCH('User inputs'!E$74,'Who pays assumptions - merged'!$B$93:$AJ$93,0)) -> 5055 | F54: =INDEX('Who pays assumptions - merged'!$B$93:$AJ$120,MATCH('User inputs'!$B54,'Who pays assumptions - merged'!$B$93:$B$120,0),MATCH('User inputs'!F$74,'Who pays assumptions - merged'!$B$93:$AJ$93,0)) -> 0 | H54: =INDEX('Who pays assumptions - merged'!$B$93:$AJ$120,MATCH('User inputs'!$B54,'Who pays assumptions - merged'!$B$93:$B$120,0),MATCH('User inputs'!H$74,'Who pays assumptions - merged'!$B$93:$AJ$93,0)) -> 0 | I54: =INDEX('Who pays assumptions - merged'!$B$93:$AJ$120,MATCH('User inputs'!$B54,'Who pays assumptions - merged'!$B$93:$B$120,0),MATCH('User inputs'!I$74,'Who pays assumptions - merged'!$B$93:$AJ$93,0)) -> 0 | J54: =INDEX('Who pays assumptions - merged'!$B$93:$AJ$120,MATCH('User inputs'!$B54,'Who pays assumptions - merged'!$B$93:$B$120,0),MATCH('User inputs'!J$74,'Who pays assumptions - merged'!$B$93:$AJ$93,0)) -> 4044 | K54: =INDEX('Who pays assumptions - merged'!$B$93:$AJ$120,MATCH('User inputs'!$B54,'Who pays assumptions - merged'!$B$93:$B$120,0),MATCH('User inputs'!K$74,'Who pays assumptions - merged'!$B$93:$AJ$93,0)) -> 0
B55: Falls | C55: =INDEX('Who pays assumptions - merged'!$B$93:$AJ$120,MATCH('User inputs'!$B55,'Who pays assumptions - merged'!$B$93:$B$120,0),MATCH('User inputs'!C$74,'Who pays assumptions - merged'!$B$93:$AJ$93,0)) -> 0 | D55: =INDEX('Who pays assumptions - merged'!$B$93:$AJ$120,MATCH('User inputs'!$B55,'Who pays assumptions - merged'!$B$93:$B$120,0),MATCH('User inputs'!D$74,'Who pays assumptions - merged'!$B$93:$AJ$93,0)) -> 0 | E55: =INDEX('Who pays assumptions - merged'!$B$93:$AJ$120,MATCH('User inputs'!$B55,'Who pays assumptions - merged'!$B$93:$B$120,0),MATCH('User inputs'!E$74,'Who pays assumptions - merged'!$B$93:$AJ$93,0)) -> 379.44 | F55: =INDEX('Who pays assumptions - merged'!$B$93:$AJ$120,MATCH('User inputs'!$B55,'Who pays assumptions - merged'!$B$93:$B$120,0),MATCH('User inputs'!F$74,'Who pays assumptions - merged'!$B$93:$AJ$93,0)) -> 0 | H55: =INDEX('Who pays assumptions - merged'!$B$93:$AJ$120,MATCH('User inputs'!$B55,'Who pays assumptions - merged'!$B$93:$B$120,0),MATCH('User inputs'!H$74,'Who pays assumptions - merged'!$B$93:$AJ$93,0)) -> 0 | I55: =INDEX('Who pays assumptions - merged'!$B$93:$AJ$120,MATCH('User inputs'!$B55,'Who pays assumptions - merged'!$B$93:$B$120,0),MATCH('User inputs'!I$74,'Who pays assumptions - merged'!$B$93:$AJ$93,0)) -> 0 | J55: =INDEX('Who pays assumptions - merged'!$B$93:$AJ$120,MATCH('User inputs'!$B55,'Who pays assumptions - merged'!$B$93:$B$120,0),MATCH('User inputs'!J$74,'Who pays assumptions - merged'!$B$93:$AJ$93,0)) -> -21.08 | K55: =INDEX('Who pays assumptions - merged'!$B$93:$AJ$120,MATCH('User inputs'!$B55,'Who pays assumptions - merged'!$B$93:$B$120,0),MATCH('User inputs'!K$74,'Who pays assumptions - merged'!$B$93:$AJ$93,0)) -> 0
C74: =CONCATENATE($D$33,$D$36,$F$33,C$38) -> MediumExtra CareFundedPerson | D74: =CONCATENATE($D$33,$D$36,$F$33,D$38) -> MediumExtra CareFundedLA | E74: MediumExtra CareFundedNHS | F74: MediumExtra CareFundedCentral govt | H74: =CONCATENATE($D$33,$I$36,$F$33,H$38) -> MediumResidential CareFundedPerson | I74: =CONCATENATE($D$33,$I$36,$F$33,I$38) -> MediumResidential CareFundedLA | J74: =CONCATENATE($D$33,$I$36,$F$33,J$38) -> MediumResidential CareFundedNHS | K74: =CONCATENATE($D$33,$I$36,$F$33,K$38) -> MediumResidential CareFundedCentral govt

Sheet Project costs + benefits
D2: Summary | E2: Costs per year
D3: Care staff costs | E3: =E13 -> 0
D4: Running costs | E4: =E33 -> 0
D5: Land costs | E5: =E56 -> 0
D6: Financial support | E6: =E67 -> 0
D7: Savings to the NHS | E7: =-E84 -> 0
D8: Savings to the LA | E8: =-E104 -> 0
D9: Savings to society | E9: =-E126 -> 0
D10: TOTAL | E10: =SUM(E3:E9) -> 0
W12: Type | X12: Category 1 | Y12: Category 2 | Z12: User input
B13: Production costs | D13: CARE STAFF COSTS (per year) | E13: =SUM(E14,E19) -> 0 | G13: KEY | W13: Cost | X13: Care staff costs | Y13: Care costs | Z13: =E14 -> 0
D14: Care costs | E14: =SUM((E15*E16),E17,E18) -> 0 | H14: Grey cells are fixed/ formula generated | W14: Cost | X14: Care staff costs | Y14: Care staff costs: Other | Z14: =E19 -> 0
D15: Cost per care worker | H15: Any pink cell can be changed | W15: Cost | X15: Land costs | Y15: Land costs | Z15: =E57 -> 0
D16: Number of care workers (FTE) | W16: Cost | X16: Land costs | Y16: Land costs: Other | Z16: =E58 -> 0
D17: Cost to recruit per care worker | W17: Cost | X17: Means-tested financial support | Y17: Rental - Housing benefit | Z17: =E68 -> 0
D18: CQC regulatory fee | W18: Cost | X18: Means-tested financial support | Y18: Personal expenses allowance | Z18: =E69 -> 0
D19: Care costs: other | E19: =SUM(E20:E28) -> 0 | W19: Cost | X19: Means-tested financial support | Y19: Attendance Allowance | Z19: =E70 -> 0
D20: Other (please enter as required)
D21: Other (please enter as required) | W21: Cost | X21: Means-tested financial support | Y21: Equipment and adaptions | Z21: =E71 -> 0
D22: Other (please enter as required) | W22: Cost | X22: Means-tested financial support | Y22: Disability and Facilities grant | Z22: 0
D23: Other (please enter as required) | W23: Cost | X23: Means-tested financial support | Y23: Council tax support | Z23: 0
D24: Other (please enter as required) | W24: Cost | X24: Means-tested financial support | Y24: Means-tested financial support: Other | Z24: 0
D25: Other (please enter as required) | W25: Cost | X25: Running costs | Y25: Housing management cost | Z25: =E36 -> 0
D26: Other (please enter as required) | W26: Cost | X26: Running costs | Y26: Rental of a room in a scheme- Housing benefit | Z26: =E34 -> 0
D27: Other (please enter as required) | W27: Cost | X27: Running costs | Y27: Board and lodgings payment | Z27: =E35 -> 0
D28: Other (please enter as required) | W28: Cost | X28: Running costs | Y28: Running costs: Other | Z28: =E48 -> 0
W29: Benefit | X29: Means-tested financial support | Y29: Equipment and adaptions | Z29: =E71 -> 0
W30: Benefit | X30: Means-tested financial support | Y30: Disability and Facilities grant | Z30: =E72 -> 0
W31: Benefit | X31: Means-tested financial support | Y31: Attendance Allowance | Z31: =E70 -> 0
W32: Benefit | X32: Means-tested financial support | Y32: Means-tested financial support: Other | Z32: =E74 -> 0
D33: RUNNING COSTS (per year) | E33: =SUM(E34:E36,E48) -> 0 | W33: Benefit | X33: Savings to Local authority | Y33: Home-care costs | Z33: =#REF! -> 
D34: Rental of a room in a scheme (Shared Lives) - Housing benefit | W34: Benefit | X34: Savings to Local authority | Y34: Council tax | Z34: =#REF! -> 
D35: Board and lodgings payment (Shared Lives) | W35: Benefit | X35: Savings to Local authority | Y35: Savings to Local authority : Other | Z35: =#REF! -> 
D36: Housing management cost | E36: =SUM(E37:E47) -> 0 | W36: Benefit | X36: Savings to the NHS | Y36: Falls | Z36: =#REF! -> 
D37: Housing management cost | W37: Benefit | X37: Savings to the NHS | Y37: Reduction in loneliness | Z37: =#REF! -> 
D38: Catering | W38: Benefit | X38: Savings to the NHS | Y38: Hospital admissions | Z38: =#REF! -> 
D39: Cleaning | W39: Benefit | X39: Savings to the NHS | Y39: GP visits | Z39: =#REF! -> 
D40: Laundry | W40: Benefit | X40: Savings to the NHS | Y40: Community nurse visits | Z40: =#REF! -> 
D41: Management | F41: v | W41: Benefit | X41: Savings to the NHS | Y41: DTOC | Z41: =#REF! -> 
D42: Administration costs | W42: Benefit | X42: Savings to the NHS | Y42: Savings to the NHS: Other | Z42: =#REF! -> 
D43: Reception staff | W43: Benefit | X43: Societal benefits | Y43: Fire-related fatalities | Z43: =#REF! -> 
D44: Non-staff current expenses (food, utilities, capital) | W44: Benefit | X44: Societal benefits | Y44: Societal benefits: Other | Z44: =#REF! -> 
D45: Maintenance
D46: Scheme manager service
D47: Emergency alarm
D48: Running costs: Other | E48: =SUM(E49:E52) -> 0
D49: Other (please enter as required) | W49: Crucial additional info (cannot be deleted)
D50: Other (please enter as required)
D51: Other (please enter as required)
D52: Other (please enter as required)
B56: Land costs | D56: LAND COSTS (per person per year) | E56: =SUM(E57:E58) -> 0
D57: Land costs
D58: Land costs: Other | E58: =SUM(E59:E63) -> 0
D59: Other (please enter as required)
D60: Other (please enter as required)
D61: Other (please enter as required)
D62: Other (please enter as required)
D63: Other (please enter as required)
B67: Means-tested financial support | D67: FINANCIAL SUPPORT (per year) | E67: =SUM(E68:E74) -> 0
D68: Rental -Housing Benefit
D69: Personal expenses allowance
D70: Attendance Allowance
D71: Equipment and adaptions
D72: Disability and Facilities Grant
D73: Council tax support
D74: Means-tested financial support: Other | E74: =SUM(E75:E80) -> 0
D75: Other (please enter as required)
D76: Other (please enter as required)
D77: Other (please enter as required)
D78: Other (please enter as required)
D79: Other (please enter as required)
D80: Other (please enter as required)
B83: Savings to a Local Authority | D83: SAVINGS TO THE LOCAL AUTHORITY (per year) | E83: Estimated cost saving
D84: Savings to a Local Authority: Other | E84: =SUM(E85:E99) -> 0
D85: Other (please enter as required)
D86: Other (please enter as required)
D87: Other (please enter as required)
D88: Other (please enter as required)
D89: Other (please enter as required)
D90: Other (please enter as required)
D91: Other (please enter as required)
D92: Other (please enter as required)
D93: Other (please enter as required)
D94: Other (please enter as required)
D95: Other (please enter as required)
D96: Other (please enter as required)
D97: Other (please enter as required)
D98: Other (please enter as required)
D99: Other (please enter as required)
B103: Savings to the NHS | D103: SAVINGS TO THE NHS (per year) | E103: Estimated cost saving
D104: Total | E104: =SUM(E105:E111) -> 0
D105: Hospital admission reductions
D106: Falls
D107: GP visits
D108: Delayed transfer of Care (DTOC)
D109: Community nurse visits
D110: Reduction in loneliness
D111: Savings to the NHS: Other | E111: =SUM(E112:E122) -> 0
D112: Other (please enter as required)
D113: Other (please enter as required)
D114: Other (please enter as required)
D115: Other (please enter as required)
D116: Other (please enter as required)
D117: Other (please enter as required)
D118: Other (please enter as required)
D119: Other (please enter as required)
D120: Other (please enter as required)
D121: Other (please enter as required)
D122: Other (please enter as required)
B125: Societal Benefits | D125: SAVINGS TO SOCIETY (per year) | E125: Estimated cost saving
D126: Societal Benefits: Other | E126: =SUM(E127:E136) -> 0
D127: Other (please enter as required)
D128: Other (please enter as required)
D129: Other (please enter as required)
D130: Other (please enter as required)
D131: Other (please enter as required)
D132: Other (please enter as required)
D133: Other (please enter as required)
D134: Other (please enter as required)
D135: Other (please enter as required)
D136: Other (please enter as required)

Sheet Who pays assumptions - USER
E2: =CONCATENATE($C$3,E3,E4,E7) -> LowResidential careSelf funderPerson | F2: =CONCATENATE($C$3,F3,F4,F7) -> LowResidential careSelf funderLA | G2: LowResidential careSelf funderNHS | H2: LowResidential careSelf funderCentral Govt | I2: LowResidential careFundedPerson | J2: LowResidential careFundedLA | K2: LowResidential careFundedNHS | L2: LowResidential careFundedCentral Govt | M2: LowExtra careSelf funderPerson | N2: LowExtra careSelf funderLA | O2: LowExtra careSelf funderNHS | P2: LowExtra careSelf funderCentral Govt | Q2: LowExtra careFundedPerson | R2: LowExtra careFundedLA | S2: LowExtra careFundedNHS | T2: LowExtra careFundedCentral Govt | U2: LowShared LivesSelf funderPerson | V2: LowShared LivesSelf funderLA | W2: LowShared LivesSelf funderNHS | X2: LowShared LivesSelf funderCentral Govt | Y2: LowShared LivesFundedPerson | Z2: LowShared LivesFundedLA | AA2: LowShared LivesFundedNHS | AB2: LowShared LivesFundedCentral Govt | AC2: LowRetirement housingSelf funderPerson | AD2: LowRetirement housingSelf funderLA | AE2: LowRetirement housingSelf funderNHS | AF2: LowRetirement housingSelf funderCentral Govt | AG2: LowRetirement housingFundedPerson | AH2: LowRetirement housingFundedLA | AI2: LowRetirement housingFundedNHS | AJ2: LowRetirement housingFundedCentral Govt
B3: Needs assumption * Please see needs assumption sheet to understand how needs change costs and benefits | C3: Low | E3: Residential care | F3: Residential care | G3: Residential care | H3: Residential care | I3: Residential care | J3: Residential care | K3: Residential care | L3: Residential care | M3: Extra care | N3: Extra care | O3: Extra care | P3: Extra care | Q3: Extra care | R3: Extra care | S3: Extra care | T3: Extra care | U3: Shared Lives | V3: Shared Lives | W3: Shared Lives | X3: Shared Lives | Y3: Shared Lives | Z3: Shared Lives | AA3: Shared Lives | AB3: Shared Lives | AC3: Retirement housing | AD3: Retirement housing | AE3: Retirement housing | AF3: Retirement housing | AG3: Retirement housing | AH3: Retirement housing | AI3: Retirement housing | AJ3: Retirement housing
E4: Self funder | F4: Self funder | G4: Self funder | H4: Self funder | I4: Funded | J4: Funded | K4: Funded | L4: Funded | M4: Self funder | N4: Self funder | O4: Self funder | P4: Self funder | Q4: Funded | R4: Funded | S4: Funded | T4: Funded | U4: Self funder | V4: Self funder | W4: Self funder | X4: Self funder | Y4: Funded | Z4: Funded | AA4: Funded | AB4: Funded | AC4: Self funder | AD4: Self funder | AE4: Self funder | AF4: Self funder | AG4: Funded | AH4: Funded | AI4: Funded | AJ4: Funded
E5: Yes | F5: Yes | G5: Yes | H5: Yes | I5: No | J5: No | K5: No | L5: No | M5: Yes | N5: Yes | O5: Yes | P5: Yes | Q5: No | R5: No | S5: No | T5: No | U5: Yes | V5: Yes | W5: Yes | X5: Yes | Y5: No | Z5: No | AA5: No | AB5: No | AC5: Yes | AD5: Yes | AE5: Yes | AF5: Yes | AG5: No | AH5: No | AI5: No | AJ5: No
E6: Who Pays | I6: Who Pays | M6: Who Pays | Q6: Who Pays | U6: Who pays | Y6: Who pays | AC6: Who pays | AG6: Who pays
B7: Cost detail | C7: Cost theme | D7: Cost category | E7: Person | F7: LA | G7: NHS | H7: Central Govt | I7: Person | J7: LA | K7: NHS | L7: Central Govt | M7: Person | N7: LA | O7: NHS | P7: Central Govt | Q7: Person | R7: LA | S7: NHS | T7: Central Govt | U7: Person | V7: LA | W7: NHS | X7: Central Govt | Y7: Person | Z7: LA | AA7: NHS | AB7: Central Govt | AC7: Person | AD7: LA | AE7: NHS | AF7: Central Govt | AG7: Person | AH7: LA | AI7: NHS | AJ7: Central Govt
B8: Care costs | C8: Care staff costs | D8: Production costs | E8: ='Care staff costs'!$H$7 -> 19030.2 | J8: ='Care staff costs'!$H$7 -> 19030.2 | M8: ='Care staff costs'!$H$25 -> 10544.8 | N8: 0 | R8: ='Care staff costs'!$H$25 -> 10544.8 | U8: ='Care staff costs'!$H$30 -> 12688 | Z8: ='Care staff costs'!$H$30 -> 12688 | AC8: ='Care staff costs'!$H$16 -> 10544.8 | AH8: ='Care staff costs'!$H$16 -> 10544.8
B9: Board and lodgings payment | C9: Running costs | D9: Production costs | J9: =SUMIFS(Database!$L:$L,Database!$F:$F,$B9,Database!$C:$C,J$3,Database!$P:$P,$C$3,Database!$N:$N,J$5)+SUMIFS(Database!$L:$L,Database!$F:$F,$B9,Database!$C:$C,J$3,Database!$P:$P,$C$3,Database!$N:$N,"n/a") -> 0 | M9: =SUMIFS(Database!$L:$L,Database!$F:$F,$B9,Database!$C:$C,M$3,Database!$P:$P,$C$3,Database!$N:$N,M$5)+SUMIFS(Database!$L:$L,Database!$F:$F,$B9,Database!$C:$C,M$3,Database!$P:$P,$C$3,Database!$N:$N,"n/a") -> 0 | N9: =SUMIFS(Database!$L:$L,Database!$F:$F,$B9,Database!$C:$C,N$3,Database!$P:$P,$C$3,Database!$N:$N,N$5)+SUMIFS(Database!$L:$L,Database!$F:$F,$B9,Database!$C:$C,N$3,Database!$P:$P,$C$3,Database!$N:$N,"n/a") -> 0 | R9: =SUMIFS(Database!$L:$L,Database!$F:$F,$B9,Database!$C:$C,R$3,Database!$P:$P,$C$3,Database!$N:$N,R$5)+SUMIFS(Database!$L:$L,Database!$F:$F,$B9,Database!$C:$C,R$3,Database!$P:$P,$C$3,Database!$N:$N,"n/a") -> 0 | U9: =SUMIFS(Database!$L:$L,Database!$F:$F,$B9,Database!$C:$C,U$3,Database!$P:$P,$C$3,Database!$N:$N,U$5)+SUMIFS(Database!$L:$L,Database!$F:$F,$B9,Database!$C:$C,U$3,Database!$P:$P,$C$3,Database!$N:$N,"n/a") -> 3484 | Z9: =SUMIFS(Database!$L:$L,Database!$F:$F,$B9,Database!$C:$C,Z$3,Database!$P:$P,$C$3,Database!$N:$N,Z$5)+SUMIFS(Database!$L:$L,Database!$F:$F,$B9,Database!$C:$C,Z$3,Database!$P:$P,$C$3,Database!$N:$N,"n/a") -> 3484 | AC9: =SUMIFS(Database!$L:$L,Database!$F:$F,$B9,Database!$C:$C,AC$3,Database!$P:$P,$C$3,Database!$N:$N,AC$5)+SUMIFS(Database!$L:$L,Database!$F:$F,$B9,Database!$C:$C,AC$3,Database!$P:$P,$C$3,Database!$N:$N,"n/a") -> 0 | AD9: =SUMIFS(Database!$L:$L,Database!$F:$F,$B9,Database!$C:$C,AD$3,Database!$P:$P,$C$3,Database!$N:$N,AD$5)+SUMIFS(Database!$L:$L,Database!$F:$F,$B9,Database!$C:$C,AD$3,Database!$P:$P,$C$3,Database!$N:$N,"n/a") -> 0 | AF9: =SUMIFS(Database!$L:$L,Database!$F:$F,$B9,Database!$C:$C,AF$3,Database!$P:$P,$C$3,Database!$N:$N,AF$5)+SUMIFS(Database!$L:$L,Database!$F:$F,$B9,Database!$C:$C,AF$3,Database!$P:$P,$C$3,Database!$N:$N,"n/a") -> 0 | AH9: =SUMIFS(Database!$L:$L,Database!$F:$F,$B9,Database!$C:$C,AH$3,Database!$P:$P,$C$3,Database!$N:$N,AH$5)+SUMIFS(Database!$L:$L,Database!$F:$F,$B9,Database!$C:$C,AH$3,Database!$P:$P,$C$3,Database!$N:$N,"n/a") -> 0
B10: Housing management cost | C10: Running costs | D10: Production costs | E10: =SUMIFS(Database!$L:$L,Database!$F:$F,$B10,Database!$C:$C,E$3,Database!$P:$P,$C$3,Database!$N:$N,E$5)+SUMIFS(Database!$L:$L,Database!$F:$F,$B10,Database!$C:$C,E$3,Database!$P:$P,$C$3,Database!$N:$N,"n/a") -> 6448 | J10: =SUMIFS(Database!$L:$L,Database!$F:$F,$B10,Database!$C:$C,J$3,Database!$P:$P,$C$3,Database!$N:$N,J$5)+SUMIFS(Database!$L:$L,Database!$F:$F,$B10,Database!$C:$C,J$3,Database!$P:$P,$C$3,Database!$N:$N,"n/a") -> 6448 | M10: =SUMIFS(Database!$L:$L,Database!$F:$F,$B10,Database!$C:$C,M$3,Database!$P:$P,$C$3,Database!$N:$N,M$5)+SUMIFS(Database!$L:$L,Database!$F:$F,$B10,Database!$C:$C,M$3,Database!$P:$P,$C$3,Database!$N:$N,"n/a") -> 2743.52 | N10: 0 | R10: =SUMIFS(Database!$L:$L,Database!$F:$F,$B10,Database!$C:$C,R$3,Database!$P:$P,$C$3,Database!$N:$N,R$5)+SUMIFS(Database!$L:$L,Database!$F:$F,$B10,Database!$C:$C,R$3,Database!$P:$P,$C$3,Database!$N:$N,"n/a") -> 2743.52 | U10: =SUMIFS(Database!$L:$L,Database!$F:$F,$B10,Database!$C:$C,U$3,Database!$P:$P,$C$3,Database!$N:$N,U$5)+SUMIFS(Database!$L:$L,Database!$F:$F,$B10,Database!$C:$C,U$3,Database!$P:$P,$C$3,Database!$N:$N,"n/a") -> 1456 | Z10: =SUMIFS(Database!$L:$L,Database!$F:$F,$B10,Database!$C:$C,Z$3,Database!$P:$P,$C$3,Database!$N:$N,Z$5)+SUMIFS(Database!$L:$L,Database!$F:$F,$B10,Database!$C:$C,Z$3,Database!$P:$P,$C$3,Database!$N:$N,"n/a") -> 1456 | AC10: =SUMIFS(Database!$L:$L,Database!$F:$F,$B10,Database!$C:$C,AC$3,Database!$P:$P,$C$3,Database!$N:$N,AC$5)+SUMIFS(Database!$L:$L,Database!$F:$F,$B10,Database!$C:$C,AC$3,Database!$P:$P,$C$3,Database!$N:$N,"n/a") -> 2250 | AH10: =SUMIFS(Database!$L:$L,Database!$F:$F,$B10,Database!$C:$C,AH$3,Database!$P:$P,$C$3,Database!$N:$N,AH$5)+SUMIFS(Database!$L:$L,Database!$F:$F,$B10,Database!$C:$C,AH$3,Database!$P:$P,$C$3,Database!$N:$N,"n/a") -> 2250
B11: Running costs | C11: Running costs | D11: Production costs | E11: =SUM(E9:E10) -> 6448 | J11: =SUM(J9:J10) -> 6448 | M11: 2743.52 | N11: 0 | R11: 2743.52 | T11: 0 | U11: 4940 | V11: 0 | X11: 0 | Z11: =SUM(Z9:Z10) -> 4940 | AB11: 0 | AC11: 2250 | AD11: 0 | AF11: 0 | AH11: =SUM(AH9:AH10) -> 2250 | AJ11: =SUM(AJ9:AJ10) -> 0
B12: Land costs | C12: Land costs | D12: Capital costs | F12: =SUMIFS(Database!$L:$L,Database!$F:$F,$B12,Database!$C:$C,F$3,Database!$P:$P,$C$3,Database!$N:$N,F$5)+SUMIFS(Database!$L:$L,Database!$F:$F,$B12,Database!$C:$C,F$3,Database!$P:$P,$C$3,Database!$N:$N,"n/a") -> 6396 | J12: =SUMIFS(Database!$L:$L,Database!$F:$F,$B12,Database!$C:$C,J$3,Database!$P:$P,$C$3,Database!$N:$N,J$5)+SUMIFS(Database!$L:$L,Database!$F:$F,$B12,Database!$C:$C,J$3,Database!$P:$P,$C$3,Database!$N:$N,"n/a") -> 6396 | M12: 0 | N12: =SUMIFS(Database!$L:$L,Database!$F:$F,$B12,Database!$C:$C,N$3,Database!$P:$P,$C$3,Database!$N:$N,N$5)+SUMIFS(Database!$L:$L,Database!$F:$F,$B12,Database!$C:$C,N$3,Database!$P:$P,$C$3,Database!$N:$N,"n/a") -> 6032 | R12: =SUMIFS(Database!$L:$L,Database!$F:$F,$B12,Database!$C:$C,R$3,Database!$P:$P,$C$3,Database!$N:$N,R$5)+SUMIFS(Database!$L:$L,Database!$F:$F,$B12,Database!$C:$C,R$3,Database!$P:$P,$C$3,Database!$N:$N,"n/a") -> 6032 | U12: =SUMIFS(Database!$L:$L,Database!$F:$F,$B12,Database!$C:$C,U$3,Database!$P:$P,$C$3,Database!$N:$N,U$5)+SUMIFS(Database!$L:$L,Database!$F:$F,$B12,Database!$C:$C,U$3,Database!$P:$P,$C$3,Database!$N:$N,"n/a") -> 0 | V12: =SUMIFS(Database!$L:$L,Database!$F:$F,$B12,Database!$C:$C,V$3,Database!$P:$P,$C$3,Database!$N:$N,V$5)+SUMIFS(Database!$L:$L,Database!$F:$F,$B12,Database!$C:$C,V$3,Database!$P:$P,$C$3,Database!$N:$N,"n/a") -> 0 | X12: =SUMIFS(Database!$L:$L,Database!$F:$F,$B12,Database!$C:$C,X$3,Database!$P:$P,$C$3,Database!$N:$N,X$5)+SUMIFS(Database!$L:$L,Database!$F:$F,$B12,Database!$C:$C,X$3,Database!$P:$P,$C$3,Database!$N:$N,"n/a") -> 0 | Z12: =SUMIFS(Database!$L:$L,Database!$F:$F,$B12,Database!$C:$C,Z$3,Database!$P:$P,$C$3,Database!$N:$N,Z$5)+SUMIFS(Database!$L:$L,Database!$F:$F,$B12,Database!$C:$C,Z$3,Database!$P:$P,$C$3,Database!$N:$N,"n/a") -> 0 | AD12: =SUMIFS(Database!$L:$L,Database!$F:$F,$B12,Database!$C:$C,AD$3,Database!$P:$P,$C$3,Database!$N:$N,AD$5)+SUMIFS(Database!$L:$L,Database!$F:$F,$B12,Database!$C:$C,AD$3,Database!$P:$P,$C$3,Database!$N:$N,"n/a") -> 9360 | AH12: =SUMIFS(Database!$L:$L,Database!$F:$F,$B12,Database!$C:$C,AH$3,Database!$P:$P,$C$3,Database!$N:$N,AH$5)+SUMIFS(Database!$L:$L,Database!$F:$F,$B12,Database!$C:$C,AH$3,Database!$P:$P,$C$3,Database!$N:$N,"n/a") -> 9360
B13: Financial support
B14: Rental of a room in a Shared Lives scheme - housing benefit | C14: Production cost | D14: Financial support | J14: =SUMIFS(Database!$L:$L,Database!$F:$F,$B14,Database!$C:$C,J$3,Database!$P:$P,$C$3,Database!$N:$N,J$5)+SUMIFS(Database!$L:$L,Database!$F:$F,$B14,Database!$C:$C,J$3,Database!$P:$P,$C$3,Database!$N:$N,"n/a") -> 0 | M14: =SUMIFS(Database!$L:$L,Database!$F:$F,$B14,Database!$C:$C,M$3,Database!$P:$P,$C$3,Database!$N:$N,M$5)+SUMIFS(Database!$L:$L,Database!$F:$F,$B14,Database!$C:$C,M$3,Database!$P:$P,$C$3,Database!$N:$N,"n/a") -> 0 | N14: =SUMIFS(Database!$L:$L,Database!$F:$F,$B14,Database!$C:$C,N$3,Database!$P:$P,$C$3,Database!$N:$N,N$5)+SUMIFS(Database!$L:$L,Database!$F:$F,$B14,Database!$C:$C,N$3,Database!$P:$P,$C$3,Database!$N:$N,"n/a") -> 0 | R14: =SUMIFS(Database!$L:$L,Database!$F:$F,$B14,Database!$C:$C,R$3,Database!$P:$P,$C$3,Database!$N:$N,R$5)+SUMIFS(Database!$L:$L,Database!$F:$F,$B14,Database!$C:$C,R$3,Database!$P:$P,$C$3,Database!$N:$N,"n/a") -> 0 | T14: =SUMIFS(Database!$L:$L,Database!$F:$F,$B14,Database!$C:$C,T$3,Database!$P:$P,$C$3,Database!$N:$N,T$5)+SUMIFS(Database!$L:$L,Database!$F:$F,$B14,Database!$C:$C,T$3,Database!$P:$P,$C$3,Database!$N:$N,"n/a") -> 0 | U14: =SUMIFS(Database!$L:$L,Database!$F:$F,$B14,Database!$C:$C,U$3,Database!$P:$P,$C$3,Database!$N:$N,U$5)+SUMIFS(Database!$L:$L,Database!$F:$F,$B14,Database!$C:$C,U$3,Database!$P:$P,$C$3,Database!$N:$N,"n/a") -> 4056 | AB14: =SUMIFS(Database!$L:$L,Database!$F:$F,$B14,Database!$C:$C,AB$3,Database!$P:$P,$C$3,Database!$N:$N,AB$5)+SUMIFS(Database!$L:$L,Database!$F:$F,$B14,Database!$C:$C,AB$3,Database!$P:$P,$C$3,Database!$N:$N,"n/a") -> 4056 | AC14: =SUMIFS(Database!$L:$L,Database!$F:$F,$B14,Database!$C:$C,AC$3,Database!$P:$P,$C$3,Database!$N:$N,AC$5)+SUMIFS(Database!$L:$L,Database!$F:$F,$B14,Database!$C:$C,AC$3,Database!$P:$P,$C$3,Database!$N:$N,"n/a") -> 0 | AD14: =SUMIFS(Database!$L:$L,Database!$F:$F,$B14,Database!$C:$C,AD$3,Database!$P:$P,$C$3,Database!$N:$N,AD$5)+SUMIFS(Database!$L:$L,Database!$F:$F,$B14,Database!$C:$C,AD$3,Database!$P:$P,$C$3,Database!$N:$N,"n/a") -> 0 | AF14: =SUMIFS(Database!$L:$L,Database!$F:$F,$B14,Database!$C:$C,AF$3,Database!$P:$P,$C$3,Database!$N:$N,AF$5)+SUMIFS(Database!$L:$L,Database!$F:$F,$B14,Database!$C:$C,AF$3,Database!$P:$P,$C$3,Database!$N:$N,"n/a") -> 0 | AH14: =SUMIFS(Database!$L:$L,Database!$F:$F,$B14,Database!$C:$C,AH$3,Database!$P:$P,$C$3,Database!$N:$N,AH$5)+SUMIFS(Database!$L:$L,Database!$F:$F,$B14,Database!$C:$C,AH$3,Database!$P:$P,$C$3,Database!$N:$N,"n/a") -> 0
B15: Rental - Housing benefit | C15: Housing benefit | D15: Financial support | J15: =T15 -> 4056 | T15: =SUMIFS(Database!$L:$L,Database!$F:$F,$B15,Database!$C:$C,T$3,Database!$P:$P,$C$3,Database!$N:$N,T$5)+SUMIFS(Database!$L:$L,Database!$F:$F,$B15,Database!$C:$C,T$3,Database!$P:$P,$C$3,Database!$N:$N,"n/a") -> 4056 | AJ15: =SUMIFS(Database!$L:$L,Database!$F:$F,$B15,Database!$C:$C,AJ$3,Database!$P:$P,$C$3,Database!$N:$N,AJ$5)+SUMIFS(Database!$L:$L,Database!$F:$F,$B15,Database!$C:$C,AJ$3,Database!$P:$P,$C$3,Database!$N:$N,"n/a") -> 4056
B16: Attendance Allowance | C16: Attendance Allowance | D16: Financial support | J16: =SUMIFS(Database!$L:$L,Database!$F:$F,$B16,Database!$C:$C,J$3,Database!$P:$P,$C$3,Database!$N:$N,J$5)+SUMIFS(Database!$L:$L,Database!$F:$F,$B16,Database!$C:$C,J$3,Database!$P:$P,$C$3,Database!$N:$N,"n/a") -> 0 | R16: =SUMIFS(Database!$L:$L,Database!$F:$F,$B16,Database!$C:$C,R$3,Database!$P:$P,$C$3,Database!$N:$N,R$5)+SUMIFS(Database!$L:$L,Database!$F:$F,$B16,Database!$C:$C,R$3,Database!$P:$P,$C$3,Database!$N:$N,"n/a") -> 0 | X16: =SUMIFS(Database!$L:$L,Database!$F:$F,$B16,Database!$C:$C,X$3,Database!$P:$P,$C$3,Database!$N:$N,X$5)+SUMIFS(Database!$L:$L,Database!$F:$F,$B16,Database!$C:$C,X$3,Database!$P:$P,$C$3,Database!$N:$N,"n/a") -> 0 | Z16: =SUMIFS(Database!$L:$L,Database!$F:$F,$B16,Database!$C:$C,Z$3,Database!$P:$P,$C$3,Database!$N:$N,Z$5)+SUMIFS(Database!$L:$L,Database!$F:$F,$B16,Database!$C:$C,Z$3,Database!$P:$P,$C$3,Database!$N:$N,"n/a") -> 0 | AF16: =SUMIFS(Database!$L:$L,Database!$F:$F,$B16,Database!$C:$C,AF$3,Database!$P:$P,$C$3,Database!$N:$N,AF$5)+SUMIFS(Database!$L:$L,Database!$F:$F,$B16,Database!$C:$C,AF$3,Database!$P:$P,$C$3,Database!$N:$N,"n/a") -> 0 | AH16: =SUMIFS(Database!$L:$L,Database!$F:$F,$B16,Database!$C:$C,AH$3,Database!$P:$P,$C$3,Database!$N:$N,AH$5)+SUMIFS(Database!$L:$L,Database!$F:$F,$B16,Database!$C:$C,AH$3,Database!$P:$P,$C$3,Database!$N:$N,"n/a") -> 0
B17: Equipment and adaptions | C17: Other | D17: Financial support | M17: =SUMIFS(Database!$L:$L,Database!$F:$F,$B17,Database!$C:$C,M$3,Database!$P:$P,$C$3,Database!$N:$N,M$5)+SUMIFS(Database!$L:$L,Database!$F:$F,$B17,Database!$C:$C,M$3,Database!$P:$P,$C$3,Database!$N:$N,"n/a") -> 0 | N17: =SUMIFS(Database!$L:$L,Database!$F:$F,$B17,Database!$C:$C,N$3,Database!$P:$P,$C$3,Database!$N:$N,N$5)+SUMIFS(Database!$L:$L,Database!$F:$F,$B17,Database!$C:$C,N$3,Database!$P:$P,$C$3,Database!$N:$N,"n/a") -> 0 | U17: =SUMIFS(Database!$L:$L,Database!$F:$F,$B17,Database!$C:$C,U$3,Database!$P:$P,$C$3,Database!$N:$N,U$5)+SUMIFS(Database!$L:$L,Database!$F:$F,$B17,Database!$C:$C,U$3,Database!$P:$P,$C$3,Database!$N:$N,"n/a") -> 0 | V17: =SUMIFS(Database!$L:$L,Database!$F:$F,$B17,Database!$C:$C,V$3,Database!$P:$P,$C$3,Database!$N:$N,V$5)+SUMIFS(Database!$L:$L,Database!$F:$F,$B17,Database!$C:$C,V$3,Database!$P:$P,$C$3,Database!$N:$N,"n/a") -> 0 | X17: =SUMIFS(Database!$L:$L,Database!$F:$F,$B17,Database!$C:$C,X$3,Database!$P:$P,$C$3,Database!$N:$N,X$5)+SUMIFS(Database!$L:$L,Database!$F:$F,$B17,Database!$C:$C,X$3,Database!$P:$P,$C$3,Database!$N:$N,"n/a") -> 0 | Z17: =SUMIFS(Database!$L:$L,Database!$F:$F,$B17,Database!$C:$C,Z$3,Database!$P:$P,$C$3,Database!$N:$N,Z$5)+SUMIFS(Database!$L:$L,Database!$F:$F,$B17,Database!$C:$C,Z$3,Database!$P:$P,$C$3,Database!$N:$N,"n/a") -> 83.33333333 | AC17: =SUMIFS(Database!$L:$L,Database!$F:$F,$B17,Database!$C:$C,AC$3,Database!$P:$P,$C$3,Database!$N:$N,AC$5)+SUMIFS(Database!$L:$L,Database!$F:$F,$B17,Database!$C:$C,AC$3,Database!$P:$P,$C$3,Database!$N:$N,"n/a") -> 0 | AD17: =SUMIFS(Database!$L:$L,Database!$F:$F,$B17,Database!$C:$C,AD$3,Database!$P:$P,$C$3,Database!$N:$N,AD$5)+SUMIFS(Database!$L:$L,Database!$F:$F,$B17,Database!$C:$C,AD$3,Database!$P:$P,$C$3,Database!$N:$N,"n/a") -> 0 | AF17: =SUMIFS(Database!$L:$L,Database!$F:$F,$B17,Database!$C:$C,AF$3,Database!$P:$P,$C$3,Database!$N:$N,AF$5)+SUMIFS(Database!$L:$L,Database!$F:$F,$B17,Database!$C:$C,AF$3,Database!$P:$P,$C$3,Database!$N:$N,"n/a") -> 0 | AH17: =SUMIFS(Database!$L:$L,Database!$F:$F,$B17,Database!$C:$C,AH$3,Database!$P:$P,$C$3,Database!$N:$N,AH$5)+SUMIFS(Database!$L:$L,Database!$F:$F,$B17,Database!$C:$C,AH$3,Database!$P:$P,$C$3,Database!$N:$N,"n/a") -> 83.33333333
B18: Disability and Facilities grant | C18: Other | D18: Financial support | M18: =SUMIFS(Database!$L:$L,Database!$F:$F,$B18,Database!$C:$C,M$3,Database!$P:$P,$C$3,Database!$N:$N,M$5)+SUMIFS(Database!$L:$L,Database!$F:$F,$B18,Database!$C:$C,M$3,Database!$P:$P,$C$3,Database!$N:$N,"n/a") -> 0 | N18: =SUMIFS(Database!$L:$L,Database!$F:$F,$B18,Database!$C:$C,N$3,Database!$P:$P,$C$3,Database!$N:$N,N$5)+SUMIFS(Database!$L:$L,Database!$F:$F,$B18,Database!$C:$C,N$3,Database!$P:$P,$C$3,Database!$N:$N,"n/a") -> 0 | U18: =SUMIFS(Database!$L:$L,Database!$F:$F,$B18,Database!$C:$C,U$3,Database!$P:$P,$C$3,Database!$N:$N,U$5)+SUMIFS(Database!$L:$L,Database!$F:$F,$B18,Database!$C:$C,U$3,Database!$P:$P,$C$3,Database!$N:$N,"n/a") -> 0 | V18: =SUMIFS(Database!$L:$L,Database!$F:$F,$B18,Database!$C:$C,V$3,Database!$P:$P,$C$3,Database!$N:$N,V$5)+SUMIFS(Database!$L:$L,Database!$F:$F,$B18,Database!$C:$C,V$3,Database!$P:$P,$C$3,Database!$N:$N,"n/a") -> 0 | X18: =SUMIFS(Database!$L:$L,Database!$F:$F,$B18,Database!$C:$C,X$3,Database!$P:$P,$C$3,Database!$N:$N,X$5)+SUMIFS(Database!$L:$L,Database!$F:$F,$B18,Database!$C:$C,X$3,Database!$P:$P,$C$3,Database!$N:$N,"n/a") -> 0 | AB18: =SUMIFS(Database!$L:$L,Database!$F:$F,$B18,Database!$C:$C,AB$3,Database!$P:$P,$C$3,Database!$N:$N,AB$5)+SUMIFS(Database!$L:$L,Database!$F:$F,$B18,Database!$C:$C,AB$3,Database!$P:$P,$C$3,Database!$N:$N,"n/a") -> 250 | AC18: =SUMIFS(Database!$L:$L,Database!$F:$F,$B18,Database!$C:$C,AC$3,Database!$P:$P,$C$3,Database!$N:$N,AC$5)+SUMIFS(Database!$L:$L,Database!$F:$F,$B18,Database!$C:$C,AC$3,Database!$P:$P,$C$3,Database!$N:$N,"n/a") -> 0 | AD18: =SUMIFS(Database!$L:$L,Database!$F:$F,$B18,Database!$C:$C,AD$3,Database!$P:$P,$C$3,Database!$N:$N,AD$5)+SUMIFS(Database!$L:$L,Database!$F:$F,$B18,Database!$C:$C,AD$3,Database!$P:$P,$C$3,Database!$N:$N,"n/a") -> 0 | AF18: =SUMIFS(Database!$L:$L,Database!$F:$F,$B18,Database!$C:$C,AF$3,Database!$P:$P,$C$3,Database!$N:$N,AF$5)+SUMIFS(Database!$L:$L,Database!$F:$F,$B18,Database!$C:$C,AF$3,Database!$P:$P,$C$3,Database!$N:$N,"n/a") -> 0 | AJ18: =SUMIFS(Database!$L:$L,Database!$F:$F,$B18,Database!$C:$C,AJ$3,Database!$P:$P,$C$3,Database!$N:$N,AJ$5)+SUMIFS(Database!$L:$L,Database!$F:$F,$B18,Database!$C:$C,AJ$3,Database!$P:$P,$C$3,Database!$N:$N,"n/a") -> 250
B19: Other | C19: Other | D19: Financial support | J19: =SUM(J17:J18) -> 0 | M19: 0 | N19: 0 | R19: 0 | T19: 0 | U19: 0 | V19: 0 | X19: 0 | Z19: =SUM(Z17:Z18) -> 83.33333333 | AB19: 250 | AC19: 0 | AD19: 0 | AF19: 0 | AH19: =SUM(AH17:AH18) -> 83.33333333 | AJ19: =SUM(AJ17:AJ18) -> 250
B20: Council tax | C20: Council tax | D20: Financial support | J20: =SUMIFS(Database!$L:$L,Database!$F:$F,$B20,Database!$C:$C,J$3,Database!$P:$P,$C$3,Database!$N:$N,J$5)+SUMIFS(Database!$L:$L,Database!$F:$F,$B20,Database!$C:$C,J$3,Database!$P:$P,$C$3,Database!$N:$N,"n/a") -> 0 | M20: =SUMIFS(Database!$L:$L,Database!$F:$F,$B20,Database!$C:$C,M$3,Database!$P:$P,$C$3,Database!$N:$N,M$5)+SUMIFS(Database!$L:$L,Database!$F:$F,$B20,Database!$C:$C,M$3,Database!$P:$P,$C$3,Database!$N:$N,"n/a") -> 852.02 | R20: =M20 -> 852.02 | U20: =SUMIFS(Database!$L:$L,Database!$F:$F,$B20,Database!$C:$C,U$3,Database!$P:$P,$C$3,Database!$N:$N,U$5)+SUMIFS(Database!$L:$L,Database!$F:$F,$B20,Database!$C:$C,U$3,Database!$P:$P,$C$3,Database!$N:$N,"n/a") -> 0 | V20: =SUMIFS(Database!$L:$L,Database!$F:$F,$B20,Database!$C:$C,V$3,Database!$P:$P,$C$3,Database!$N:$N,V$5)+SUMIFS(Database!$L:$L,Database!$F:$F,$B20,Database!$C:$C,V$3,Database!$P:$P,$C$3,Database!$N:$N,"n/a") -> 0 | X20: =SUMIFS(Database!$L:$L,Database!$F:$F,$B20,Database!$C:$C,X$3,Database!$P:$P,$C$3,Database!$N:$N,X$5)+SUMIFS(Database!$L:$L,Database!$F:$F,$B20,Database!$C:$C,X$3,Database!$P:$P,$C$3,Database!$N:$N,"n/a") -> 0 | Z20: =SUMIFS(Database!$L:$L,Database!$F:$F,$B20,Database!$C:$C,Z$3,Database!$P:$P,$C$3,Database!$N:$N,Z$5)+SUMIFS(Database!$L:$L,Database!$F:$F,$B20,Database!$C:$C,Z$3,Database!$P:$P,$C$3,Database!$N:$N,"n/a") -> 0 | AB20: =SUMIFS(Database!$L:$L,Database!$F:$F,$B20,Database!$C:$C,AB$3,Database!$P:$P,$C$3,Database!$N:$N,AB$5)+SUMIFS(Database!$L:$L,Database!$F:$F,$B20,Database!$C:$C,AB$3,Database!$P:$P,$C$3,Database!$N:$N,"n/a") -> 0 | AC20: =SUMIFS(Database!$L:$L,Database!$F:$F,$B20,Database!$C:$C,AC$3,Database!$P:$P,$C$3,Database!$N:$N,AC$5)+SUMIFS(Database!$L:$L,Database!$F:$F,$B20,Database!$C:$C,AC$3,Database!$P:$P,$C$3,Database!$N:$N,"n/a") -> 852.02 | AH20: =AC20 -> 852.02
B21: Benefits
B22: Falls | C22: NHS Benefits | D22: Benefits | G22: =SUMIFS(Database!$L:$L,Database!$F:$F,$B22,Database!$C:$C,G$3,Database!$P:$P,$C$3,Database!$N:$N,G$5)+SUMIFS(Database!$L:$L,Database!$F:$F,$B22,Database!$C:$C,G$3,Database!$P:$P,$C$3,Database!$N:$N,"n/a") -> -10.54 | K22: =SUMIFS(Database!$L:$L,Database!$F:$F,$B22,Database!$C:$C,K$3,Database!$P:$P,$C$3,Database!$N:$N,K$5)+SUMIFS(Database!$L:$L,Database!$F:$F,$B22,Database!$C:$C,K$3,Database!$P:$P,$C$3,Database!$N:$N,"n/a") -> -10.54 | O22: =SUMIFS(Database!$L:$L,Database!$F:$F,$B22,Database!$C:$C,O$3,Database!$P:$P,$C$3,Database!$N:$N,O$5)+SUMIFS(Database!$L:$L,Database!$F:$F,$B22,Database!$C:$C,O$3,Database!$P:$P,$C$3,Database!$N:$N,"n/a") -> 569.16 | S22: =SUMIFS(Database!$L:$L,Database!$F:$F,$B22,Database!$C:$C,S$3,Database!$P:$P,$C$3,Database!$N:$N,S$5)+SUMIFS(Database!$L:$L,Database!$F:$F,$B22,Database!$C:$C,S$3,Database!$P:$P,$C$3,Database!$N:$N,"n/a") -> 569.16 | V22: =SUMIFS(Database!$L:$L,Database!$F:$F,$B22,Database!$C:$C,V$3,Database!$P:$P,$C$3,Database!$N:$N,V$5)+SUMIFS(Database!$L:$L,Database!$F:$F,$B22,Database!$C:$C,V$3,Database!$P:$P,$C$3,Database!$N:$N,"n/a") -> 358.36 | AA22: =SUMIFS(Database!$L:$L,Database!$F:$F,$B22,Database!$C:$C,AA$3,Database!$P:$P,$C$3,Database!$N:$N,AA$5)+SUMIFS(Database!$L:$L,Database!$F:$F,$B22,Database!$C:$C,AA$3,Database!$P:$P,$C$3,Database!$N:$N,"n/a") -> 358.36 | AE22: =SUMIFS(Database!$L:$L,Database!$F:$F,$B22,Database!$C:$C,AE$3,Database!$P:$P,$C$3,Database!$N:$N,AE$5)+SUMIFS(Database!$L:$L,Database!$F:$F,$B22,Database!$C:$C,AE$3,Database!$P:$P,$C$3,Database!$N:$N,"n/a") -> 240.2139535 | AI22: =SUMIFS(Database!$L:$L,Database!$F:$F,$B22,Database!$C:$C,AI$3,Database!$P:$P,$C$3,Database!$N:$N,AI$5)+SUMIFS(Database!$L:$L,Database!$F:$F,$B22,Database!$C:$C,AI$3,Database!$P:$P,$C$3,Database!$N:$N,"n/a") -> 240.2139535
B23: Reduction in loneliness | C23: NHS Benefits | D23: Benefits | G23: =SUMIFS(Database!$L:$L,Database!$F:$F,$B23,Database!$C:$C,G$3,Database!$P:$P,$C$3,Database!$N:$N,G$5)+SUMIFS(Database!$L:$L,Database!$F:$F,$B23,Database!$C:$C,G$3,Database!$P:$P,$C$3,Database!$N:$N,"n/a") -> 13.93 | K23: =SUMIFS(Database!$L:$L,Database!$F:$F,$B23,Database!$C:$C,K$3,Database!$P:$P,$C$3,Database!$N:$N,K$5)+SUMIFS(Database!$L:$L,Database!$F:$F,$B23,Database!$C:$C,K$3,Database!$P:$P,$C$3,Database!$N:$N,"n/a") -> 13.93 | O23: =SUMIFS(Database!$L:$L,Database!$F:$F,$B23,Database!$C:$C,O$3,Database!$P:$P,$C$3,Database!$N:$N,O$5)+SUMIFS(Database!$L:$L,Database!$F:$F,$B23,Database!$C:$C,O$3,Database!$P:$P,$C$3,Database!$N:$N,"n/a") -> 85.57 | S23: =SUMIFS(Database!$L:$L,Database!$F:$F,$B23,Database!$C:$C,S$3,Database!$P:$P,$C$3,Database!$N:$N,S$5)+SUMIFS(Database!$L:$L,Database!$F:$F,$B23,Database!$C:$C,S$3,Database!$P:$P,$C$3,Database!$N:$N,"n/a") -> 85.57 | V23: =SUMIFS(Database!$L:$L,Database!$F:$F,$B23,Database!$C:$C,V$3,Database!$P:$P,$C$3,Database!$N:$N,V$5)+SUMIFS(Database!$L:$L,Database!$F:$F,$B23,Database!$C:$C,V$3,Database!$P:$P,$C$3,Database!$N:$N,"n/a") -> 75.62 | AA23: =SUMIFS(Database!$L:$L,Database!$F:$F,$B23,Database!$C:$C,AA$3,Database!$P:$P,$C$3,Database!$N:$N,AA$5)+SUMIFS(Database!$L:$L,Database!$F:$F,$B23,Database!$C:$C,AA$3,Database!$P:$P,$C$3,Database!$N:$N,"n/a") -> 75.62 | AE23: =SUMIFS(Database!$L:$L,Database!$F:$F,$B23,Database!$C:$C,AE$3,Database!$P:$P,$C$3,Database!$N:$N,AE$5)+SUMIFS(Database!$L:$L,Database!$F:$F,$B23,Database!$C:$C,AE$3,Database!$P:$P,$C$3,Database!$N:$N,"n/a") -> 48.755 | AI23: =SUMIFS(Database!$L:$L,Database!$F:$F,$B23,Database!$C:$C,AI$3,Database!$P:$P,$C$3,Database!$N:$N,AI$5)+SUMIFS(Database!$L:$L,Database!$F:$F,$B23,Database!$C:$C,AI$3,Database!$P:$P,$C$3,Database!$N:$N,"n/a") -> 48.755
B24: Hospital admissions | C24: NHS Benefits | D24: Benefits | G24: =SUMIFS(Database!$L:$L,Database!$F:$F,$B24,Database!$C:$C,G$3,Database!$P:$P,$C$3,Database!$N:$N,G$5)+SUMIFS(Database!$L:$L,Database!$F:$F,$B24,Database!$C:$C,G$3,Database!$P:$P,$C$3,Database!$N:$N,"n/a") -> 2022 | K24: =SUMIFS(Database!$L:$L,Database!$F:$F,$B24,Database!$C:$C,K$3,Database!$P:$P,$C$3,Database!$N:$N,K$5)+SUMIFS(Database!$L:$L,Database!$F:$F,$B24,Database!$C:$C,K$3,Database!$P:$P,$C$3,Database!$N:$N,"n/a") -> 2022 | O24: =SUMIFS(Database!$L:$L,Database!$F:$F,$B24,Database!$C:$C,O$3,Database!$P:$P,$C$3,Database!$N:$N,O$5)+SUMIFS(Database!$L:$L,Database!$F:$F,$B24,Database!$C:$C,O$3,Database!$P:$P,$C$3,Database!$N:$N,"n/a") -> 2527.5 | S24: =SUMIFS(Database!$L:$L,Database!$F:$F,$B24,Database!$C:$C,S$3,Database!$P:$P,$C$3,Database!$N:$N,S$5)+SUMIFS(Database!$L:$L,Database!$F:$F,$B24,Database!$C:$C,S$3,Database!$P:$P,$C$3,Database!$N:$N,"n/a") -> 2527.5 | V24: =SUMIFS(Database!$L:$L,Database!$F:$F,$B24,Database!$C:$C,V$3,Database!$P:$P,$C$3,Database!$N:$N,V$5)+SUMIFS(Database!$L:$L,Database!$F:$F,$B24,Database!$C:$C,V$3,Database!$P:$P,$C$3,Database!$N:$N,"n/a") -> 1670.958333 | AA24: =SUMIFS(Database!$L:$L,Database!$F:$F,$B24,Database!$C:$C,AA$3,Database!$P:$P,$C$3,Database!$N:$N,AA$5)+SUMIFS(Database!$L:$L,Database!$F:$F,$B24,Database!$C:$C,AA$3,Database!$P:$P,$C$3,Database!$N:$N,"n/a") -> 1670.958333 | AE24: =SUMIFS(Database!$L:$L,Database!$F:$F,$B24,Database!$C:$C,AE$3,Database!$P:$P,$C$3,Database!$N:$N,AE$5)+SUMIFS(Database!$L:$L,Database!$F:$F,$B24,Database!$C:$C,AE$3,Database!$P:$P,$C$3,Database!$N:$N,"n/a") -> 1685 | AI24: =SUMIFS(Database!$L:$L,Database!$F:$F,$B24,Database!$C:$C,AI$3,Database!$P:$P,$C$3,Database!$N:$N,AI$5)+SUMIFS(Database!$L:$L,Database!$F:$F,$B24,Database!$C:$C,AI$3,Database!$P:$P,$C$3,Database!$N:$N,"n/a") -> 1685
B25: GP visits | C25: NHS Benefits | D25: Benefits | G25: =SUMIFS(Database!$L:$L,Database!$F:$F,$B25,Database!$C:$C,G$3,Database!$P:$P,$C$3,Database!$N:$N,G$5)+SUMIFS(Database!$L:$L,Database!$F:$F,$B25,Database!$C:$C,G$3,Database!$P:$P,$C$3,Database!$N:$N,"n/a") -> 0 | K25: =SUMIFS(Database!$L:$L,Database!$F:$F,$B25,Database!$C:$C,K$3,Database!$P:$P,$C$3,Database!$N:$N,K$5)+SUMIFS(Database!$L:$L,Database!$F:$F,$B25,Database!$C:$C,K$3,Database!$P:$P,$C$3,Database!$N:$N,"n/a") -> 0 | O25: =SUMIFS(Database!$L:$L,Database!$F:$F,$B25,Database!$C:$C,O$3,Database!$P:$P,$C$3,Database!$N:$N,O$5)+SUMIFS(Database!$L:$L,Database!$F:$F,$B25,Database!$C:$C,O$3,Database!$P:$P,$C$3,Database!$N:$N,"n/a") -> 72.39 | S25: =SUMIFS(Database!$L:$L,Database!$F:$F,$B25,Database!$C:$C,S$3,Database!$P:$P,$C$3,Database!$N:$N,S$5)+SUMIFS(Database!$L:$L,Database!$F:$F,$B25,Database!$C:$C,S$3,Database!$P:$P,$C$3,Database!$N:$N,"n/a") -> 72.39 | U25: =SUMIFS(Database!$L:$L,Database!$F:$F,$B25,Database!$C:$C,U$3,Database!$P:$P,$C$3,Database!$N:$N,U$5)+SUMIFS(Database!$L:$L,Database!$F:$F,$B25,Database!$C:$C,U$3,Database!$P:$P,$C$3,Database!$N:$N,"n/a") -> 0 | V25: =SUMIFS(Database!$L:$L,Database!$F:$F,$B25,Database!$C:$C,V$3,Database!$P:$P,$C$3,Database!$N:$N,V$5)+SUMIFS(Database!$L:$L,Database!$F:$F,$B25,Database!$C:$C,V$3,Database!$P:$P,$C$3,Database!$N:$N,"n/a") -> 0 | AA25: =SUMIFS(Database!$L:$L,Database!$F:$F,$B25,Database!$C:$C,AA$3,Database!$P:$P,$C$3,Database!$N:$N,AA$5)+SUMIFS(Database!$L:$L,Database!$F:$F,$B25,Database!$C:$C,AA$3,Database!$P:$P,$C$3,Database!$N:$N,"n/a") -> 0 | AE25: =SUMIFS(Database!$L:$L,Database!$F:$F,$B25,Database!$C:$C,AE$3,Database!$P:$P,$C$3,Database!$N:$N,AE$5)+SUMIFS(Database!$L:$L,Database!$F:$F,$B25,Database!$C:$C,AE$3,Database!$P:$P,$C$3,Database!$N:$N,"n/a") -> 0 | AI25: =SUMIFS(Database!$L:$L,Database!$F:$F,$B25,Database!$C:$C,AI$3,Database!$P:$P,$C$3,Database!$N:$N,AI$5)+SUMIFS(Database!$L:$L,Database!$F:$F,$B25,Database!$C:$C,AI$3,Database!$P:$P,$C$3,Database!$N:$N,"n/a") -> 0
B26: Community nurse visits | C26: NHS Benefits | D26: Benefits | G26: =SUMIFS(Database!$L:$L,Database!$F:$F,$B26,Database!$C:$C,G$3,Database!$P:$P,$C$3,Database!$N:$N,G$5)+SUMIFS(Database!$L:$L,Database!$F:$F,$B26,Database!$C:$C,G$3,Database!$P:$P,$C$3,Database!$N:$N,"n/a") -> 0 | K26: =SUMIFS(Database!$L:$L,Database!$F:$F,$B26,Database!$C:$C,K$3,Database!$P:$P,$C$3,Database!$N:$N,K$5)+SUMIFS(Database!$L:$L,Database!$F:$F,$B26,Database!$C:$C,K$3,Database!$P:$P,$C$3,Database!$N:$N,"n/a") -> 0 | O26: =SUMIFS(Database!$L:$L,Database!$F:$F,$B26,Database!$C:$C,O$3,Database!$P:$P,$C$3,Database!$N:$N,O$5)+SUMIFS(Database!$L:$L,Database!$F:$F,$B26,Database!$C:$C,O$3,Database!$P:$P,$C$3,Database!$N:$N,"n/a") -> 181.275 | S26: =SUMIFS(Database!$L:$L,Database!$F:$F,$B26,Database!$C:$C,S$3,Database!$P:$P,$C$3,Database!$N:$N,S$5)+SUMIFS(Database!$L:$L,Database!$F:$F,$B26,Database!$C:$C,S$3,Database!$P:$P,$C$3,Database!$N:$N,"n/a") -> 181.275 | U26: =SUMIFS(Database!$L:$L,Database!$F:$F,$B26,Database!$C:$C,U$3,Database!$P:$P,$C$3,Database!$N:$N,U$5)+SUMIFS(Database!$L:$L,Database!$F:$F,$B26,Database!$C:$C,U$3,Database!$P:$P,$C$3,Database!$N:$N,"n/a") -> 0 | V26: =SUMIFS(Database!$L:$L,Database!$F:$F,$B26,Database!$C:$C,V$3,Database!$P:$P,$C$3,Database!$N:$N,V$5)+SUMIFS(Database!$L:$L,Database!$F:$F,$B26,Database!$C:$C,V$3,Database!$P:$P,$C$3,Database!$N:$N,"n/a") -> 0 | AA26: =SUMIFS(Database!$L:$L,Database!$F:$F,$B26,Database!$C:$C,AA$3,Database!$P:$P,$C$3,Database!$N:$N,AA$5)+SUMIFS(Database!$L:$L,Database!$F:$F,$B26,Database!$C:$C,AA$3,Database!$P:$P,$C$3,Database!$N:$N,"n/a") -> 0 | AE26: =SUMIFS(Database!$L:$L,Database!$F:$F,$B26,Database!$C:$C,AE$3,Database!$P:$P,$C$3,Database!$N:$N,AE$5)+SUMIFS(Database!$L:$L,Database!$F:$F,$B26,Database!$C:$C,AE$3,Database!$P:$P,$C$3,Database!$N:$N,"n/a") -> 0 | AI26: =SUMIFS(Database!$L:$L,Database!$F:$F,$B26,Database!$C:$C,AI$3,Database!$P:$P,$C$3,Database!$N:$N,AI$5)+SUMIFS(Database!$L:$L,Database!$F:$F,$B26,Database!$C:$C,AI$3,Database!$P:$P,$C$3,Database!$N:$N,"n/a") -> 0
B27: DTOC | C27: NHS Benefits | D27: Benefits | G27: =SUMIFS(Database!$L:$L,Database!$F:$F,$B27,Database!$C:$C,G$3,Database!$P:$P,$C$3,Database!$N:$N,G$5)+SUMIFS(Database!$L:$L,Database!$F:$F,$B27,Database!$C:$C,G$3,Database!$P:$P,$C$3,Database!$N:$N,"n/a") -> 0 | K27: =SUMIFS(Database!$L:$L,Database!$F:$F,$B27,Database!$C:$C,K$3,Database!$P:$P,$C$3,Database!$N:$N,K$5)+SUMIFS(Database!$L:$L,Database!$F:$F,$B27,Database!$C:$C,K$3,Database!$P:$P,$C$3,Database!$N:$N,"n/a") -> 0 | O27: =SUMIFS(Database!$L:$L,Database!$F:$F,$B27,Database!$C:$C,O$3,Database!$P:$P,$C$3,Database!$N:$N,O$5)+SUMIFS(Database!$L:$L,Database!$F:$F,$B27,Database!$C:$C,O$3,Database!$P:$P,$C$3,Database!$N:$N,"n/a") -> 232.65 | S27: =SUMIFS(Database!$L:$L,Database!$F:$F,$B27,Database!$C:$C,S$3,Database!$P:$P,$C$3,Database!$N:$N,S$5)+SUMIFS(Database!$L:$L,Database!$F:$F,$B27,Database!$C:$C,S$3,Database!$P:$P,$C$3,Database!$N:$N,"n/a") -> 232.65 | U27: =SUMIFS(Database!$L:$L,Database!$F:$F,$B27,Database!$C:$C,U$3,Database!$P:$P,$C$3,Database!$N:$N,U$5)+SUMIFS(Database!$L:$L,Database!$F:$F,$B27,Database!$C:$C,U$3,Database!$P:$P,$C$3,Database!$N:$N,"n/a") -> 0 | V27: =SUMIFS(Database!$L:$L,Database!$F:$F,$B27,Database!$C:$C,V$3,Database!$P:$P,$C$3,Database!$N:$N,V$5)+SUMIFS(Database!$L:$L,Database!$F:$F,$B27,Database!$C:$C,V$3,Database!$P:$P,$C$3,Database!$N:$N,"n/a") -> 0 | AA27: =SUMIFS(Database!$L:$L,Database!$F:$F,$B27,Database!$C:$C,AA$3,Database!$P:$P,$C$3,Database!$N:$N,AA$5)+SUMIFS(Database!$L:$L,Database!$F:$F,$B27,Database!$C:$C,AA$3,Database!$P:$P,$C$3,Database!$N:$N,"n/a") -> 0 | AE27: =SUMIFS(Database!$L:$L,Database!$F:$F,$B27,Database!$C:$C,AE$3,Database!$P:$P,$C$3,Database!$N:$N,AE$5)+SUMIFS(Database!$L:$L,Database!$F:$F,$B27,Database!$C:$C,AE$3,Database!$P:$P,$C$3,Database!$N:$N,"n/a") -> 0 | AI27: =SUMIFS(Database!$L:$L,Database!$F:$F,$B27,Database!$C:$C,AI$3,Database!$P:$P,$C$3,Database!$N:$N,AI$5)+SUMIFS(Database!$L:$L,Database!$F:$F,$B27,Database!$C:$C,AI$3,Database!$P:$P,$C$3,Database!$N:$N,"n/a") -> 0
B28: Fire-related fatalities | C28: Social Benefits | D28: Benefits | G28: =SUMIFS(Database!$L:$L,Database!$F:$F,$B28,Database!$C:$C,G$3,Database!$P:$P,$C$3,Database!$N:$N,G$5)+SUMIFS(Database!$L:$L,Database!$F:$F,$B28,Database!$C:$C,G$3,Database!$P:$P,$C$3,Database!$N:$N,"n/a") -> 93.32869565 | K28: =SUMIFS(Database!$L:$L,Database!$F:$F,$B28,Database!$C:$C,K$3,Database!$P:$P,$C$3,Database!$N:$N,K$5)+SUMIFS(Database!$L:$L,Database!$F:$F,$B28,Database!$C:$C,K$3,Database!$P:$P,$C$3,Database!$N:$N,"n/a") -> 93.32869565 | O28: =SUMIFS(Database!$L:$L,Database!$F:$F,$B28,Database!$C:$C,O$3,Database!$P:$P,$C$3,Database!$N:$N,O$5)+SUMIFS(Database!$L:$L,Database!$F:$F,$B28,Database!$C:$C,O$3,Database!$P:$P,$C$3,Database!$N:$N,"n/a") -> 93.32869565 | S28: =SUMIFS(Database!$L:$L,Database!$F:$F,$B28,Database!$C:$C,S$3,Database!$P:$P,$C$3,Database!$N:$N,S$5)+SUMIFS(Database!$L:$L,Database!$F:$F,$B28,Database!$C:$C,S$3,Database!$P:$P,$C$3,Database!$N:$N,"n/a") -> 93.32869565 | V28: =SUMIFS(Database!$L:$L,Database!$F:$F,$B28,Database!$C:$C,V$3,Database!$P:$P,$C$3,Database!$N:$N,V$5)+SUMIFS(Database!$L:$L,Database!$F:$F,$B28,Database!$C:$C,V$3,Database!$P:$P,$C$3,Database!$N:$N,"n/a") -> 82.56 | AA28: =SUMIFS(Database!$L:$L,Database!$F:$F,$B28,Database!$C:$C,AA$3,Database!$P:$P,$C$3,Database!$N:$N,AA$5)+SUMIFS(Database!$L:$L,Database!$F:$F,$B28,Database!$C:$C,AA$3,Database!$P:$P,$C$3,Database!$N:$N,"n/a") -> 82.56 | AE28: =SUMIFS(Database!$L:$L,Database!$F:$F,$B28,Database!$C:$C,AE$3,Database!$P:$P,$C$3,Database!$N:$N,AE$5)+SUMIFS(Database!$L:$L,Database!$F:$F,$B28,Database!$C:$C,AE$3,Database!$P:$P,$C$3,Database!$N:$N,"n/a") -> 73.38666667 | AI28: =SUMIFS(Database!$L:$L,Database!$F:$F,$B28,Database!$C:$C,AI$3,Database!$P:$P,$C$3,Database!$N:$N,AI$5)+SUMIFS(Database!$L:$L,Database!$F:$F,$B28,Database!$C:$C,AI$3,Database!$P:$P,$C$3,Database!$N:$N,"n/a") -> 73.38666667
B29: Price | E29: =J29 -> 0 | J29: ='Price assumptions'!C7 -> 0 | R29: ='Price assumptions'!D7 -> 0 | U29: =Z29 -> 20228 | Z29: ='Price assumptions'!E7 -> 20228 | AC29: =AH29 -> 0 | AH29: ='Price assumptions'!F7 -> 0
E32: =CONCATENATE($C$33,E33,E34,E37) -> MediumResidential careSelf funderPerson | F32: =CONCATENATE($C$33,F33,F34,F37) -> MediumResidential careSelf funderLA | G32: MediumResidential careSelf funderNHS | H32: MediumResidential careSelf funderCentral Govt | I32: MediumResidential careFundedPerson | J32: MediumResidential careFundedLA | K32: MediumResidential careFundedNHS | L32: MediumResidential careFundedCentral Govt | M32: MediumExtra careSelf funderPerson | N32: MediumExtra careSelf funderLA | O32: MediumExtra careSelf funderNHS | P32: MediumExtra careSelf funderCentral Govt | Q32: MediumExtra careFundedPerson | R32: MediumExtra careFundedLA | S32: MediumExtra careFundedNHS | T32: MediumExtra careFundedCentral Govt | U32: MediumShared LivesSelf funderPerson | V32: MediumShared LivesSelf funderLA | W32: MediumShared LivesSelf funderNHS | X32: MediumShared LivesSelf funderCentral Govt | Y32: MediumShared LivesFundedPerson | Z32: MediumShared LivesFundedLA | AA32: MediumShared LivesFundedNHS | AB32: MediumShared LivesFundedCentral Govt | AC32: MediumRetirement housingSelf funderPerson | AD32: MediumRetirement housingSelf funderLA | AE32: MediumRetirement housingSelf funderNHS | AF32: MediumRetirement housingSelf funderCentral Govt | AG32: MediumRetirement housingFundedPerson | AH32: MediumRetirement housingFundedLA | AI32: MediumRetirement housingFundedNHS | AJ32: MediumRetirement housingFundedCentral Govt | AM32: Needs categories
B33: Needs assumption * Please see needs assumption sheet to understand how needs change costs and benefits | C33: Medium | E33: Residential care | F33: Residential care | G33: Residential care | H33: Residential care | I33: Residential care | J33: Residential care | K33: Residential care | L33: Residential care | M33: Extra care | N33: Extra care | O33: Extra care | P33: Extra care | Q33: Extra care | R33: Extra care | S33: Extra care | T33: Extra care | U33: Shared Lives | V33: Shared Lives | W33: Shared Lives | X33: Shared Lives | Y33: Shared Lives | Z33: Shared Lives | AA33: Shared Lives | AB33: Shared Lives | AC33: Retirement housing | AD33: Retirement housing | AE33: Retirement housing | AF33: Retirement housing | AG33: Retirement housing | AH33: Retirement housing | AI33: Retirement housing | AJ33: Retirement housing | AM33: None
E34: Self funder | F34: Self funder | G34: Self funder | H34: Self funder | I34: Funded | J34: Funded | K34: Funded | L34: Funded | M34: Self funder | N34: Self funder | O34: Self funder | P34: Self funder | Q34: Funded | R34: Funded | S34: Funded | T34: Funded | U34: Self funder | V34: Self funder | W34: Self funder | X34: Self funder | Y34: Funded | Z34: Funded | AA34: Funded | AB34: Funded | AC34: Self funder | AD34: Self funder | AE34: Self funder | AF34: Self funder | AG34: Funded | AH34: Funded | AI34: Funded | AJ34: Funded | AM34: Low
E35: Yes | F35: Yes | G35: Yes | H35: Yes | I35: No | J35: No | K35: No | L35: No | M35: Yes | N35: Yes | O35: Yes | P35: Yes | Q35: No | R35: No | S35: No | T35: No | U35: Yes | V35: Yes | W35: Yes | X35: Yes | Y35: No | Z35: No | AA35: No | AB35: No | AC35: Yes | AD35: Yes | AE35: Yes | AF35: Yes | AG35: No | AH35: No | AI35: No | AJ35: No | AM35: Medium
E36: Who Pays | I36: Who Pays | M36: Who Pays | Q36: Who Pays | U36: Who pays | Y36: Who pays | AC36: Who pays | AG36: Who pays | AM36: High
B37: Cost detail | C37: Cost theme | D37: Cost category | E37: Person | F37: LA | G37: NHS | H37: Central Govt | I37: Person | J37: LA | K37: NHS | L37: Central Govt | M37: Person | N37: LA | O37: NHS | P37: Central Govt | Q37: Person | R37: LA | S37: NHS | T37: Central Govt | U37: Person | V37: LA | W37: NHS | X37: Central Govt | Y37: Person | Z37: LA | AA37: NHS | AB37: Central Govt | AC37: Person | AD37: LA | AE37: NHS | AF37: Central Govt | AG37: Person | AH37: LA | AI37: NHS | AJ37: Central Govt
B38: Care costs | C38: Care staff costs | D38: Production costs | E38: ='Care staff costs'!$H$8 -> 23575 | J38: ='Care staff costs'!$H$8 -> 23575 | M38: ='Care staff costs'!$H$26 -> 15089.6 | N38: 0 | P38: 0 | R38: ='Care staff costs'!$H$26 -> 15089.6 | U38: ='Care staff costs'!$H$31 -> 14976 | Z38: ='Care staff costs'!$H$31 -> 14976 | AC38: ='Care staff costs'!$H$17 -> 15089.6 | AH38: ='Care staff costs'!$H$17 -> 15089.6
B39: Board and lodgings payment | C39: Running costs | D39: Production costs | J39: =SUMIFS(Database!$L:$L,Database!$F:$F,$B39,Database!$C:$C,J$3,Database!$P:$P,$C$33,Database!$N:$N,J$5)+SUMIFS(Database!$L:$L,Database!$F:$F,$B39,Database!$C:$C,J$3,Database!$P:$P,$C$33,Database!$N:$N,"n/a") -> 0 | M39: =SUMIFS(Database!$L:$L,Database!$F:$F,$B39,Database!$C:$C,M$3,Database!$P:$P,$C$33,Database!$N:$N,M$5)+SUMIFS(Database!$L:$L,Database!$F:$F,$B39,Database!$C:$C,M$3,Database!$P:$P,$C$33,Database!$N:$N,"n/a") -> 0 | N39: =SUMIFS(Database!$L:$L,Database!$F:$F,$B39,Database!$C:$C,N$3,Database!$P:$P,$C$33,Database!$N:$N,N$5)+SUMIFS(Database!$L:$L,Database!$F:$F,$B39,Database!$C:$C,N$3,Database!$P:$P,$C$33,Database!$N:$N,"n/a") -> 0 | P39: 0 | R39: =SUMIFS(Database!$L:$L,Database!$F:$F,$B39,Database!$C:$C,R$3,Database!$P:$P,$C$33,Database!$N:$N,R$5)+SUMIFS(Database!$L:$L,Database!$F:$F,$B39,Database!$C:$C,R$3,Database!$P:$P,$C$33,Database!$N:$N,"n/a") -> 0 | U39: =SUMIFS(Database!$L:$L,Database!$F:$F,$B39,Database!$C:$C,U$3,Database!$P:$P,$C$33,Database!$N:$N,U$5)+SUMIFS(Database!$L:$L,Database!$F:$F,$B39,Database!$C:$C,U$3,Database!$P:$P,$C$33,Database!$N:$N,"n/a") -> 3484 | Z39: =SUMIFS(Database!$L:$L,Database!$F:$F,$B39,Database!$C:$C,Z$3,Database!$P:$P,$C$33,Database!$N:$N,Z$5)+SUMIFS(Database!$L:$L,Database!$F:$F,$B39,Database!$C:$C,Z$3,Database!$P:$P,$C$33,Database!$N:$N,"n/a") -> 3484 | AC39: =SUMIFS(Database!$L:$L,Database!$F:$F,$B39,Database!$C:$C,AC$3,Database!$P:$P,$C$33,Database!$N:$N,AC$5)+SUMIFS(Database!$L:$L,Database!$F:$F,$B39,Database!$C:$C,AC$3,Database!$P:$P,$C$33,Database!$N:$N,"n/a") -> 0 | AD39: =SUMIFS(Database!$L:$L,Database!$F:$F,$B39,Database!$C:$C,AD$3,Database!$P:$P,$C$33,Database!$N:$N,AD$5)+SUMIFS(Database!$L:$L,Database!$F:$F,$B39,Database!$C:$C,AD$3,Database!$P:$P,$C$33,Database!$N:$N,"n/a") -> 0 | AF39: =SUMIFS(Database!$L:$L,Database!$F:$F,$B39,Database!$C:$C,AF$3,Database!$P:$P,$C$33,Database!$N:$N,AF$5)+SUMIFS(Database!$L:$L,Database!$F:$F,$B39,Database!$C:$C,AF$3,Database!$P:$P,$C$33,Database!$N:$N,"n/a") -> 0 | AH39: =SUMIFS(Database!$L:$L,Database!$F:$F,$B39,Database!$C:$C,AH$3,Database!$P:$P,$C$33,Database!$N:$N,AH$5)+SUMIFS(Database!$L:$L,Database!$F:$F,$B39,Database!$C:$C,AH$3,Database!$P:$P,$C$33,Database!$N:$N,"n/a") -> 0
B40: Housing management cost | C40: Running costs | D40: Production costs | E40: =SUMIFS(Database!$L:$L,Database!$F:$F,$B40,Database!$C:$C,E$3,Database!$P:$P,$C$33,Database!$N:$N,E$5)+SUMIFS(Database!$L:$L,Database!$F:$F,$B40,Database!$C:$C,E$3,Database!$P:$P,$C$33,Database!$N:$N,"n/a") -> 6448 | J40: =SUMIFS(Database!$L:$L,Database!$F:$F,$B40,Database!$C:$C,J$3,Database!$P:$P,$C$33,Database!$N:$N,J$5)+SUMIFS(Database!$L:$L,Database!$F:$F,$B40,Database!$C:$C,J$3,Database!$P:$P,$C$33,Database!$N:$N,"n/a") -> 6448 | M40: =SUMIFS(Database!$L:$L,Database!$F:$F,$B40,Database!$C:$C,M$3,Database!$P:$P,$C$33,Database!$N:$N,M$5)+SUMIFS(Database!$L:$L,Database!$F:$F,$B40,Database!$C:$C,M$3,Database!$P:$P,$C$33,Database!$N:$N,"n/a") -> 2743.52 | N40: 0 | P40: 0 | R40: =SUMIFS(Database!$L:$L,Database!$F:$F,$B40,Database!$C:$C,R$3,Database!$P:$P,$C$33,Database!$N:$N,R$5)+SUMIFS(Database!$L:$L,Database!$F:$F,$B40,Database!$C:$C,R$3,Database!$P:$P,$C$33,Database!$N:$N,"n/a") -> 2743.52 | U40: =SUMIFS(Database!$L:$L,Database!$F:$F,$B40,Database!$C:$C,U$3,Database!$P:$P,$C$33,Database!$N:$N,U$5)+SUMIFS(Database!$L:$L,Database!$F:$F,$B40,Database!$C:$C,U$3,Database!$P:$P,$C$33,Database!$N:$N,"n/a") -> 1456 | Z40: =SUMIFS(Database!$L:$L,Database!$F:$F,$B40,Database!$C:$C,Z$3,Database!$P:$P,$C$33,Database!$N:$N,Z$5)+SUMIFS(Database!$L:$L,Database!$F:$F,$B40,Database!$C:$C,Z$3,Database!$P:$P,$C$33,Database!$N:$N,"n/a") -> 1456 | AC40: =SUMIFS(Database!$L:$L,Database!$F:$F,$B40,Database!$C:$C,AC$3,Database!$P:$P,$C$33,Database!$N:$N,AC$5)+SUMIFS(Database!$L:$L,Database!$F:$F,$B40,Database!$C:$C,AC$3,Database!$P:$P,$C$33,Database!$N:$N,"n/a") -> 2250 | AH40: =SUMIFS(Database!$L:$L,Database!$F:$F,$B40,Database!$C:$C,AH$3,Database!$P:$P,$C$33,Database!$N:$N,AH$5)+SUMIFS(Database!$L:$L,Database!$F:$F,$B40,Database!$C:$C,AH$3,Database!$P:$P,$C$33,Database!$N:$N,"n/a") -> 2250
B41: Running costs | C41: Running costs | D41: Production costs | E41: =SUM(E39:E40) -> 6448 | J41: =SUM(J39:J40) -> 6448 | M41: 2743.52 | N41: 0 | P41: 0 | R41: 2743.52 | T41: 0 | U41: 4940 | V41: 0 | X41: 0 | Z41: =SUM(Z39:Z40) -> 4940 | AB41: 0 | AC41: 2250 | AD41: 0 | AF41: 0 | AH41: =SUM(AH39:AH40) -> 2250 | AJ41: =SUM(AJ39:AJ40) -> 0
B42: Land costs | C42: Land costs | D42: Capital costs | E42: 0 | F42: =SUMIFS(Database!$L:$L,Database!$F:$F,$B42,Database!$C:$C,F$3,Database!$P:$P,$C$33,Database!$N:$N,F$5)+SUMIFS(Database!$L:$L,Database!$F:$F,$B42,Database!$C:$C,F$3,Database!$P:$P,$C$33,Database!$N:$N,"n/a") -> 6396 | J42: =SUMIFS(Database!$L:$L,Database!$F:$F,$B42,Database!$C:$C,J$3,Database!$P:$P,$C$33,Database!$N:$N,J$5)+SUMIFS(Database!$L:$L,Database!$F:$F,$B42,Database!$C:$C,J$3,Database!$P:$P,$C$33,Database!$N:$N,"n/a") -> 6396 | M42: 0 | N42: =SUMIFS(Database!$L:$L,Database!$F:$F,$B42,Database!$C:$C,N$3,Database!$P:$P,$C$33,Database!$N:$N,N$5)+SUMIFS(Database!$L:$L,Database!$F:$F,$B42,Database!$C:$C,N$3,Database!$P:$P,$C$33,Database!$N:$N,"n/a") -> 6032 | P42: 0 | R42: =SUMIFS(Database!$L:$L,Database!$F:$F,$B42,Database!$C:$C,R$3,Database!$P:$P,$C$33,Database!$N:$N,R$5)+SUMIFS(Database!$L:$L,Database!$F:$F,$B42,Database!$C:$C,R$3,Database!$P:$P,$C$33,Database!$N:$N,"n/a") -> 6032 | U42: =SUMIFS(Database!$L:$L,Database!$F:$F,$B42,Database!$C:$C,U$3,Database!$P:$P,$C$33,Database!$N:$N,U$5)+SUMIFS(Database!$L:$L,Database!$F:$F,$B42,Database!$C:$C,U$3,Database!$P:$P,$C$33,Database!$N:$N,"n/a") -> 0 | V42: =SUMIFS(Database!$L:$L,Database!$F:$F,$B42,Database!$C:$C,V$3,Database!$P:$P,$C$33,Database!$N:$N,V$5)+SUMIFS(Database!$L:$L,Database!$F:$F,$B42,Database!$C:$C,V$3,Database!$P:$P,$C$33,Database!$N:$N,"n/a") -> 0 | X42: =SUMIFS(Database!$L:$L,Database!$F:$F,$B42,Database!$C:$C,X$3,Database!$P:$P,$C$33,Database!$N:$N,X$5)+SUMIFS(Database!$L:$L,Database!$F:$F,$B42,Database!$C:$C,X$3,Database!$P:$P,$C$33,Database!$N:$N,"n/a") -> 0 | Z42: =SUMIFS(Database!$L:$L,Database!$F:$F,$B42,Database!$C:$C,Z$3,Database!$P:$P,$C$33,Database!$N:$N,Z$5)+SUMIFS(Database!$L:$L,Database!$F:$F,$B42,Database!$C:$C,Z$3,Database!$P:$P,$C$33,Database!$N:$N,"n/a") -> 0 | AD42: =SUMIFS(Database!$L:$L,Database!$F:$F,$B42,Database!$C:$C,AD$3,Database!$P:$P,$C$33,Database!$N:$N,AD$5)+SUMIFS(Database!$L:$L,Database!$F:$F,$B42,Database!$C:$C,AD$3,Database!$P:$P,$C$33,Database!$N:$N,"n/a") -> 9360 | AH42: =SUMIFS(Database!$L:$L,Database!$F:$F,$B42,Database!$C:$C,AH$3,Database!$P:$P,$C$33,Database!$N:$N,AH$5)+SUMIFS(Database!$L:$L,Database!$F:$F,$B42,Database!$C:$C,AH$3,Database!$P:$P,$C$33,Database!$N:$N,"n/a") -> 9360
B43: Financial support
B44: Rental of a room in a Shared Lives scheme - housing benefit | C44: Production cost | D44: Financial support | J44: =SUMIFS(Database!$L:$L,Database!$F:$F,$B44,Database!$C:$C,J$3,Database!$P:$P,$C$3,Database!$N:$N,J$5)+SUMIFS(Database!$L:$L,Database!$F:$F,$B44,Database!$C:$C,J$3,Database!$P:$P,$C$3,Database!$N:$N,"n/a") -> 0 | P44: =SUMIFS(Database!$L:$L,Database!$F:$F,$B44,Database!$C:$C,P$3,Database!$P:$P,$C$3,Database!$N:$N,P$5)+SUMIFS(Database!$L:$L,Database!$F:$F,$B44,Database!$C:$C,P$3,Database!$P:$P,$C$3,Database!$N:$N,"n/a") -> 0 | R44: =SUMIFS(Database!$L:$L,Database!$F:$F,$B44,Database!$C:$C,R$3,Database!$P:$P,$C$3,Database!$N:$N,R$5)+SUMIFS(Database!$L:$L,Database!$F:$F,$B44,Database!$C:$C,R$3,Database!$P:$P,$C$3,Database!$N:$N,"n/a") -> 0 | T44: =SUMIFS(Database!$L:$L,Database!$F:$F,$B44,Database!$C:$C,T$3,Database!$P:$P,$C$3,Database!$N:$N,T$5)+SUMIFS(Database!$L:$L,Database!$F:$F,$B44,Database!$C:$C,T$3,Database!$P:$P,$C$3,Database!$N:$N,"n/a") -> 0 | U44: =SUMIFS(Database!$L:$L,Database!$F:$F,$B44,Database!$C:$C,U$3,Database!$P:$P,$C$3,Database!$N:$N,U$5)+SUMIFS(Database!$L:$L,Database!$F:$F,$B44,Database!$C:$C,U$3,Database!$P:$P,$C$3,Database!$N:$N,"n/a") -> 4056 | AB44: =SUMIFS(Database!$L:$L,Database!$F:$F,$B44,Database!$C:$C,AB$3,Database!$P:$P,$C$3,Database!$N:$N,AB$5)+SUMIFS(Database!$L:$L,Database!$F:$F,$B44,Database!$C:$C,AB$3,Database!$P:$P,$C$3,Database!$N:$N,"n/a") -> 4056 | AC44: =SUMIFS(Database!$L:$L,Database!$F:$F,$B44,Database!$C:$C,AC$3,Database!$P:$P,$C$3,Database!$N:$N,AC$5)+SUMIFS(Database!$L:$L,Database!$F:$F,$B44,Database!$C:$C,AC$3,Database!$P:$P,$C$3,Database!$N:$N,"n/a") -> 0 | AD44: =SUMIFS(Database!$L:$L,Database!$F:$F,$B44,Database!$C:$C,AD$3,Database!$P:$P,$C$3,Database!$N:$N,AD$5)+SUMIFS(Database!$L:$L,Database!$F:$F,$B44,Database!$C:$C,AD$3,Database!$P:$P,$C$3,Database!$N:$N,"n/a") -> 0 | AF44: =SUMIFS(Database!$L:$L,Database!$F:$F,$B44,Database!$C:$C,AF$3,Database!$P:$P,$C$3,Database!$N:$N,AF$5)+SUMIFS(Database!$L:$L,Database!$F:$F,$B44,Database!$C:$C,AF$3,Database!$P:$P,$C$3,Database!$N:$N,"n/a") -> 0 | AH44: =SUMIFS(Database!$L:$L,Database!$F:$F,$B44,Database!$C:$C,AH$3,Database!$P:$P,$C$3,Database!$N:$N,AH$5)+SUMIFS(Database!$L:$L,Database!$F:$F,$B44,Database!$C:$C,AH$3,Database!$P:$P,$C$3,Database!$N:$N,"n/a") -> 0
B45: Rental - Housing benefit | C45: Housing benefit | D45: Financial support | J45: =T45 -> 4056 | T45: =SUMIFS(Database!$L:$L,Database!$F:$F,$B45,Database!$C:$C,T$3,Database!$P:$P,$C$3,Database!$N:$N,T$5)+SUMIFS(Database!$L:$L,Database!$F:$F,$B45,Database!$C:$C,T$3,Database!$P:$P,$C$3,Database!$N:$N,"n/a") -> 4056 | AJ45: =SUMIFS(Database!$L:$L,Database!$F:$F,$B45,Database!$C:$C,AJ$3,Database!$P:$P,$C$3,Database!$N:$N,AJ$5)+SUMIFS(Database!$L:$L,Database!$F:$F,$B45,Database!$C:$C,AJ$3,Database!$P:$P,$C$3,Database!$N:$N,"n/a") -> 4056
B46: Attendance Allowance | C46: Attendance Allowance | D46: Financial support | H46: =SUMIFS(Database!$L:$L,Database!$F:$F,$B46,Database!$C:$C,H$3,Database!$P:$P,$C$33,Database!$N:$N,H$5)+SUMIFS(Database!$L:$L,Database!$F:$F,$B46,Database!$C:$C,H$3,Database!$P:$P,$C$33,Database!$N:$N,"n/a") -> 21791 | J46: =SUMIFS(Database!$L:$L,Database!$F:$F,$B46,Database!$C:$C,J$3,Database!$P:$P,$C$33,Database!$N:$N,J$5)+SUMIFS(Database!$L:$L,Database!$F:$F,$B46,Database!$C:$C,J$3,Database!$P:$P,$C$33,Database!$N:$N,"n/a") -> 21791 | P46: =SUMIFS(Database!$L:$L,Database!$F:$F,$B46,Database!$C:$C,P$3,Database!$P:$P,$C$33,Database!$N:$N,P$5)+SUMIFS(Database!$L:$L,Database!$F:$F,$B46,Database!$C:$C,P$3,Database!$P:$P,$C$33,Database!$N:$N,"n/a") -> 21791 | R46: =SUMIFS(Database!$L:$L,Database!$F:$F,$B46,Database!$C:$C,R$3,Database!$P:$P,$C$33,Database!$N:$N,R$5)+SUMIFS(Database!$L:$L,Database!$F:$F,$B46,Database!$C:$C,R$3,Database!$P:$P,$C$33,Database!$N:$N,"n/a") -> 21791 | X46: =SUMIFS(Database!$L:$L,Database!$F:$F,$B46,Database!$C:$C,X$3,Database!$P:$P,$C$33,Database!$N:$N,X$5)+SUMIFS(Database!$L:$L,Database!$F:$F,$B46,Database!$C:$C,X$3,Database!$P:$P,$C$33,Database!$N:$N,"n/a") -> 21791 | Z46: =SUMIFS(Database!$L:$L,Database!$F:$F,$B46,Database!$C:$C,Z$3,Database!$P:$P,$C$33,Database!$N:$N,Z$5)+SUMIFS(Database!$L:$L,Database!$F:$F,$B46,Database!$C:$C,Z$3,Database!$P:$P,$C$33,Database!$N:$N,"n/a") -> 21791 | AF46: =SUMIFS(Database!$L:$L,Database!$F:$F,$B46,Database!$C:$C,AF$3,Database!$P:$P,$C$33,Database!$N:$N,AF$5)+SUMIFS(Database!$L:$L,Database!$F:$F,$B46,Database!$C:$C,AF$3,Database!$P:$P,$C$33,Database!$N:$N,"n/a") -> 21791 | AH46: =SUMIFS(Database!$L:$L,Database!$F:$F,$B46,Database!$C:$C,AH$3,Database!$P:$P,$C$33,Database!$N:$N,AH$5)+SUMIFS(Database!$L:$L,Database!$F:$F,$B46,Database!$C:$C,AH$3,Database!$P:$P,$C$33,Database!$N:$N,"n/a") -> 21791
B47: Equipment and adaptions | C47: Other | D47: Financial support | P47: =SUMIFS(Database!$L:$L,Database!$F:$F,$B47,Database!$C:$C,P$3,Database!$P:$P,$C$33,Database!$N:$N,P$5)+SUMIFS(Database!$L:$L,Database!$F:$F,$B47,Database!$C:$C,P$3,Database!$P:$P,$C$33,Database!$N:$N,"n/a") -> 0 | U47: =SUMIFS(Database!$L:$L,Database!$F:$F,$B47,Database!$C:$C,U$3,Database!$P:$P,$C$33,Database!$N:$N,U$5)+SUMIFS(Database!$L:$L,Database!$F:$F,$B47,Database!$C:$C,U$3,Database!$P:$P,$C$33,Database!$N:$N,"n/a") -> 0 | V47: =SUMIFS(Database!$L:$L,Database!$F:$F,$B47,Database!$C:$C,V$3,Database!$P:$P,$C$33,Database!$N:$N,V$5)+SUMIFS(Database!$L:$L,Database!$F:$F,$B47,Database!$C:$C,V$3,Database!$P:$P,$C$33,Database!$N:$N,"n/a") -> 0 | X47: =SUMIFS(Database!$L:$L,Database!$F:$F,$B47,Database!$C:$C,X$3,Database!$P:$P,$C$33,Database!$N:$N,X$5)+SUMIFS(Database!$L:$L,Database!$F:$F,$B47,Database!$C:$C,X$3,Database!$P:$P,$C$33,Database!$N:$N,"n/a") -> 0 | Z47: =SUMIFS(Database!$L:$L,Database!$F:$F,$B47,Database!$C:$C,Z$3,Database!$P:$P,$C$33,Database!$N:$N,Z$5)+SUMIFS(Database!$L:$L,Database!$F:$F,$B47,Database!$C:$C,Z$3,Database!$P:$P,$C$33,Database!$N:$N,"n/a") -> 125 | AC47: =SUMIFS(Database!$L:$L,Database!$F:$F,$B47,Database!$C:$C,AC$3,Database!$P:$P,$C$33,Database!$N:$N,AC$5)+SUMIFS(Database!$L:$L,Database!$F:$F,$B47,Database!$C:$C,AC$3,Database!$P:$P,$C$33,Database!$N:$N,"n/a") -> 0 | AD47: =SUMIFS(Database!$L:$L,Database!$F:$F,$B47,Database!$C:$C,AD$3,Database!$P:$P,$C$33,Database!$N:$N,AD$5)+SUMIFS(Database!$L:$L,Database!$F:$F,$B47,Database!$C:$C,AD$3,Database!$P:$P,$C$33,Database!$N:$N,"n/a") -> 0 | AF47: =SUMIFS(Database!$L:$L,Database!$F:$F,$B47,Database!$C:$C,AF$3,Database!$P:$P,$C$33,Database!$N:$N,AF$5)+SUMIFS(Database!$L:$L,Database!$F:$F,$B47,Database!$C:$C,AF$3,Database!$P:$P,$C$33,Database!$N:$N,"n/a") -> 0 | AH47: =SUMIFS(Database!$L:$L,Database!$F:$F,$B47,Database!$C:$C,AH$3,Database!$P:$P,$C$33,Database!$N:$N,AH$5)+SUMIFS(Database!$L:$L,Database!$F:$F,$B47,Database!$C:$C,AH$3,Database!$P:$P,$C$33,Database!$N:$N,"n/a") -> 125
B48: Disability and Facilities grant | C48: Other | D48: Financial support | P48: =SUMIFS(Database!$L:$L,Database!$F:$F,$B48,Database!$C:$C,P$3,Database!$P:$P,$C$33,Database!$N:$N,P$5)+SUMIFS(Database!$L:$L,Database!$F:$F,$B48,Database!$C:$C,P$3,Database!$P:$P,$C$33,Database!$N:$N,"n/a") -> 0 | U48: =SUMIFS(Database!$L:$L,Database!$F:$F,$B48,Database!$C:$C,U$3,Database!$P:$P,$C$33,Database!$N:$N,U$5)+SUMIFS(Database!$L:$L,Database!$F:$F,$B48,Database!$C:$C,U$3,Database!$P:$P,$C$33,Database!$N:$N,"n/a") -> 0 | V48: =SUMIFS(Database!$L:$L,Database!$F:$F,$B48,Database!$C:$C,V$3,Database!$P:$P,$C$33,Database!$N:$N,V$5)+SUMIFS(Database!$L:$L,Database!$F:$F,$B48,Database!$C:$C,V$3,Database!$P:$P,$C$33,Database!$N:$N,"n/a") -> 0 | X48: =SUMIFS(Database!$L:$L,Database!$F:$F,$B48,Database!$C:$C,X$3,Database!$P:$P,$C$33,Database!$N:$N,X$5)+SUMIFS(Database!$L:$L,Database!$F:$F,$B48,Database!$C:$C,X$3,Database!$P:$P,$C$33,Database!$N:$N,"n/a") -> 0 | AB48: =SUMIFS(Database!$L:$L,Database!$F:$F,$B48,Database!$C:$C,AB$3,Database!$P:$P,$C$33,Database!$N:$N,AB$5)+SUMIFS(Database!$L:$L,Database!$F:$F,$B48,Database!$C:$C,AB$3,Database!$P:$P,$C$33,Database!$N:$N,"n/a") -> 750 | AC48: =SUMIFS(Database!$L:$L,Database!$F:$F,$B48,Database!$C:$C,AC$3,Database!$P:$P,$C$33,Database!$N:$N,AC$5)+SUMIFS(Database!$L:$L,Database!$F:$F,$B48,Database!$C:$C,AC$3,Database!$P:$P,$C$33,Database!$N:$N,"n/a") -> 0 | AD48: =SUMIFS(Database!$L:$L,Database!$F:$F,$B48,Database!$C:$C,AD$3,Database!$P:$P,$C$33,Database!$N:$N,AD$5)+SUMIFS(Database!$L:$L,Database!$F:$F,$B48,Database!$C:$C,AD$3,Database!$P:$P,$C$33,Database!$N:$N,"n/a") -> 0 | AF48: =SUMIFS(Database!$L:$L,Database!$F:$F,$B48,Database!$C:$C,AF$3,Database!$P:$P,$C$33,Database!$N:$N,AF$5)+SUMIFS(Database!$L:$L,Database!$F:$F,$B48,Database!$C:$C,AF$3,Database!$P:$P,$C$33,Database!$N:$N,"n/a") -> 0 | AJ48: =SUMIFS(Database!$L:$L,Database!$F:$F,$B48,Database!$C:$C,AJ$3,Database!$P:$P,$C$33,Database!$N:$N,AJ$5)+SUMIFS(Database!$L:$L,Database!$F:$F,$B48,Database!$C:$C,AJ$3,Database!$P:$P,$C$33,Database!$N:$N,"n/a") -> 750
B49: Other | C49: Other | D49: Financial support | P49: =SUM(P47:P48) -> 0 | R49: 0 | T49: 0 | U49: 0 | V49: 0 | X49: 0 | Z49: =SUM(Z47:Z48) -> 125 | AB49: 750 | AC49: 0 | AD49: 0 | AF49: 0 | AH49: =SUM(AH47:AH48) -> 125 | AJ49: =SUM(AJ47:AJ48) -> 750
B50: Council tax | C50: Council tax | D50: Financial support | M50: =SUMIFS(Database!$L:$L,Database!$F:$F,$B50,Database!$C:$C,M$3,Database!$P:$P,$C$33,Database!$N:$N,M$5)+SUMIFS(Database!$L:$L,Database!$F:$F,$B50,Database!$C:$C,M$3,Database!$P:$P,$C$33,Database!$N:$N,"n/a") -> 852.02 | R50: =M50 -> 852.02 | U50: =SUMIFS(Database!$L:$L,Database!$F:$F,$B50,Database!$C:$C,U$3,Database!$P:$P,$C$33,Database!$N:$N,U$5)+SUMIFS(Database!$L:$L,Database!$F:$F,$B50,Database!$C:$C,U$3,Database!$P:$P,$C$33,Database!$N:$N,"n/a") -> 0 | V50: =SUMIFS(Database!$L:$L,Database!$F:$F,$B50,Database!$C:$C,V$3,Database!$P:$P,$C$33,Database!$N:$N,V$5)+SUMIFS(Database!$L:$L,Database!$F:$F,$B50,Database!$C:$C,V$3,Database!$P:$P,$C$33,Database!$N:$N,"n/a") -> 0 | Z50: =SUMIFS(Database!$L:$L,Database!$F:$F,$B50,Database!$C:$C,Z$3,Database!$P:$P,$C$33,Database!$N:$N,Z$5)+SUMIFS(Database!$L:$L,Database!$F:$F,$B50,Database!$C:$C,Z$3,Database!$P:$P,$C$33,Database!$N:$N,"n/a") -> 0 | AC50: =SUMIFS(Database!$L:$L,Database!$F:$F,$B50,Database!$C:$C,AC$3,Database!$P:$P,$C$33,Database!$N:$N,AC$5)+SUMIFS(Database!$L:$L,Database!$F:$F,$B50,Database!$C:$C,AC$3,Database!$P:$P,$C$33,Database!$N:$N,"n/a") -> 852.02 | AH50: =AC50 -> 852.02
B51: Benefits
B52: Falls | C52: NHS Benefits | D52: Benefits | G52: =SUMIFS(Database!$L:$L,Database!$F:$F,$B52,Database!$C:$C,G$3,Database!$P:$P,$C$33,Database!$N:$N,G$5)+SUMIFS(Database!$L:$L,Database!$F:$F,$B52,Database!$C:$C,G$3,Database!$P:$P,$C$33,Database!$N:$N,"n/a") -> -21.08 | K52: =SUMIFS(Database!$L:$L,Database!$F:$F,$B52,Database!$C:$C,K$3,Database!$P:$P,$C$33,Database!$N:$N,K$5)+SUMIFS(Database!$L:$L,Database!$F:$F,$B52,Database!$C:$C,K$3,Database!$P:$P,$C$33,Database!$N:$N,"n/a") -> -21.08 | O52: =SUMIFS(Database!$L:$L,Database!$F:$F,$B52,Database!$C:$C,O$3,Database!$P:$P,$C$33,Database!$N:$N,O$5)+SUMIFS(Database!$L:$L,Database!$F:$F,$B52,Database!$C:$C,O$3,Database!$P:$P,$C$33,Database!$N:$N,"n/a") -> 379.44 | S52: =SUMIFS(Database!$L:$L,Database!$F:$F,$B52,Database!$C:$C,S$3,Database!$P:$P,$C$33,Database!$N:$N,S$5)+SUMIFS(Database!$L:$L,Database!$F:$F,$B52,Database!$C:$C,S$3,Database!$P:$P,$C$33,Database!$N:$N,"n/a") -> 379.44 | V52: =SUMIFS(Database!$L:$L,Database!$F:$F,$B52,Database!$C:$C,V$3,Database!$P:$P,$C$33,Database!$N:$N,V$5)+SUMIFS(Database!$L:$L,Database!$F:$F,$B52,Database!$C:$C,V$3,Database!$P:$P,$C$33,Database!$N:$N,"n/a") -> 716.72 | AA52: =SUMIFS(Database!$L:$L,Database!$F:$F,$B52,Database!$C:$C,AA$3,Database!$P:$P,$C$33,Database!$N:$N,AA$5)+SUMIFS(Database!$L:$L,Database!$F:$F,$B52,Database!$C:$C,AA$3,Database!$P:$P,$C$33,Database!$N:$N,"n/a") -> 716.72 | AE52: =SUMIFS(Database!$L:$L,Database!$F:$F,$B52,Database!$C:$C,AE$3,Database!$P:$P,$C$33,Database!$N:$N,AE$5)+SUMIFS(Database!$L:$L,Database!$F:$F,$B52,Database!$C:$C,AE$3,Database!$P:$P,$C$33,Database!$N:$N,"n/a") -> 480.427907 | AI52: =SUMIFS(Database!$L:$L,Database!$F:$F,$B52,Database!$C:$C,AI$3,Database!$P:$P,$C$33,Database!$N:$N,AI$5)+SUMIFS(Database!$L:$L,Database!$F:$F,$B52,Database!$C:$C,AI$3,Database!$P:$P,$C$33,Database!$N:$N,"n/a") -> 480.427907
B53: Reduction in loneliness | C53: NHS Benefits | D53: Benefits | G53: =SUMIFS(Database!$L:$L,Database!$F:$F,$B53,Database!$C:$C,G$3,Database!$P:$P,$C$33,Database!$N:$N,G$5)+SUMIFS(Database!$L:$L,Database!$F:$F,$B53,Database!$C:$C,G$3,Database!$P:$P,$C$33,Database!$N:$N,"n/a") -> 27.86 | K53: =SUMIFS(Database!$L:$L,Database!$F:$F,$B53,Database!$C:$C,K$3,Database!$P:$P,$C$33,Database!$N:$N,K$5)+SUMIFS(Database!$L:$L,Database!$F:$F,$B53,Database!$C:$C,K$3,Database!$P:$P,$C$33,Database!$N:$N,"n/a") -> 27.86 | O53: =SUMIFS(Database!$L:$L,Database!$F:$F,$B53,Database!$C:$C,O$3,Database!$P:$P,$C$33,Database!$N:$N,O$5)+SUMIFS(Database!$L:$L,Database!$F:$F,$B53,Database!$C:$C,O$3,Database!$P:$P,$C$33,Database!$N:$N,"n/a") -> 171.14 | S53: =SUMIFS(Database!$L:$L,Database!$F:$F,$B53,Database!$C:$C,S$3,Database!$P:$P,$C$33,Database!$N:$N,S$5)+SUMIFS(Database!$L:$L,Database!$F:$F,$B53,Database!$C:$C,S$3,Database!$P:$P,$C$33,Database!$N:$N,"n/a") -> 171.14 | V53: =SUMIFS(Database!$L:$L,Database!$F:$F,$B53,Database!$C:$C,V$3,Database!$P:$P,$C$33,Database!$N:$N,V$5)+SUMIFS(Database!$L:$L,Database!$F:$F,$B53,Database!$C:$C,V$3,Database!$P:$P,$C$33,Database!$N:$N,"n/a") -> 151.24 | AA53: =SUMIFS(Database!$L:$L,Database!$F:$F,$B53,Database!$C:$C,AA$3,Database!$P:$P,$C$33,Database!$N:$N,AA$5)+SUMIFS(Database!$L:$L,Database!$F:$F,$B53,Database!$C:$C,AA$3,Database!$P:$P,$C$33,Database!$N:$N,"n/a") -> 151.24 | AE53: =SUMIFS(Database!$L:$L,Database!$F:$F,$B53,Database!$C:$C,AE$3,Database!$P:$P,$C$33,Database!$N:$N,AE$5)+SUMIFS(Database!$L:$L,Database!$F:$F,$B53,Database!$C:$C,AE$3,Database!$P:$P,$C$33,Database!$N:$N,"n/a") -> 97.51 | AI53: =SUMIFS(Database!$L:$L,Database!$F:$F,$B53,Database!$C:$C,AI$3,Database!$P:$P,$C$33,Database!$N:$N,AI$5)+SUMIFS(Database!$L:$L,Database!$F:$F,$B53,Database!$C:$C,AI$3,Database!$P:$P,$C$33,Database!$N:$N,"n/a") -> 97.51
B54: Hospital admissions | C54: NHS Benefits | D54: Benefits | G54: =SUMIFS(Database!$L:$L,Database!$F:$F,$B54,Database!$C:$C,G$3,Database!$P:$P,$C$33,Database!$N:$N,G$5)+SUMIFS(Database!$L:$L,Database!$F:$F,$B54,Database!$C:$C,G$3,Database!$P:$P,$C$33,Database!$N:$N,"n/a") -> 4044 | K54: =SUMIFS(Database!$L:$L,Database!$F:$F,$B54,Database!$C:$C,K$3,Database!$P:$P,$C$33,Database!$N:$N,K$5)+SUMIFS(Database!$L:$L,Database!$F:$F,$B54,Database!$C:$C,K$3,Database!$P:$P,$C$33,Database!$N:$N,"n/a") -> 4044 | O54: =SUMIFS(Database!$L:$L,Database!$F:$F,$B54,Database!$C:$C,O$3,Database!$P:$P,$C$33,Database!$N:$N,O$5)+SUMIFS(Database!$L:$L,Database!$F:$F,$B54,Database!$C:$C,O$3,Database!$P:$P,$C$33,Database!$N:$N,"n/a") -> 5055 | S54: =SUMIFS(Database!$L:$L,Database!$F:$F,$B54,Database!$C:$C,S$3,Database!$P:$P,$C$33,Database!$N:$N,S$5)+SUMIFS(Database!$L:$L,Database!$F:$F,$B54,Database!$C:$C,S$3,Database!$P:$P,$C$33,Database!$N:$N,"n/a") -> 5055 | V54: =SUMIFS(Database!$L:$L,Database!$F:$F,$B54,Database!$C:$C,V$3,Database!$P:$P,$C$33,Database!$N:$N,V$5)+SUMIFS(Database!$L:$L,Database!$F:$F,$B54,Database!$C:$C,V$3,Database!$P:$P,$C$33,Database!$N:$N,"n/a") -> 3341.916667 | AA54: =SUMIFS(Database!$L:$L,Database!$F:$F,$B54,Database!$C:$C,AA$3,Database!$P:$P,$C$33,Database!$N:$N,AA$5)+SUMIFS(Database!$L:$L,Database!$F:$F,$B54,Database!$C:$C,AA$3,Database!$P:$P,$C$33,Database!$N:$N,"n/a") -> 3341.916667 | AE54: =SUMIFS(Database!$L:$L,Database!$F:$F,$B54,Database!$C:$C,AE$3,Database!$P:$P,$C$33,Database!$N:$N,AE$5)+SUMIFS(Database!$L:$L,Database!$F:$F,$B54,Database!$C:$C,AE$3,Database!$P:$P,$C$33,Database!$N:$N,"n/a") -> 3370 | AI54: =SUMIFS(Database!$L:$L,Database!$F:$F,$B54,Database!$C:$C,AI$3,Database!$P:$P,$C$33,Database!$N:$N,AI$5)+SUMIFS(Database!$L:$L,Database!$F:$F,$B54,Database!$C:$C,AI$3,Database!$P:$P,$C$33,Database!$N:$N,"n/a") -> 3370
B55: GP visits | C55: NHS Benefits | D55: Benefits | G55: =SUMIFS(Database!$L:$L,Database!$F:$F,$B55,Database!$C:$C,G$3,Database!$P:$P,$C$33,Database!$N:$N,G$5)+SUMIFS(Database!$L:$L,Database!$F:$F,$B55,Database!$C:$C,G$3,Database!$P:$P,$C$33,Database!$N:$N,"n/a") -> 0 | K55: =SUMIFS(Database!$L:$L,Database!$F:$F,$B55,Database!$C:$C,K$3,Database!$P:$P,$C$33,Database!$N:$N,K$5)+SUMIFS(Database!$L:$L,Database!$F:$F,$B55,Database!$C:$C,K$3,Database!$P:$P,$C$33,Database!$N:$N,"n/a") -> 0 | O55: =SUMIFS(Database!$L:$L,Database!$F:$F,$B55,Database!$C:$C,O$3,Database!$P:$P,$C$33,Database!$N:$N,O$5)+SUMIFS(Database!$L:$L,Database!$F:$F,$B55,Database!$C:$C,O$3,Database!$P:$P,$C$33,Database!$N:$N,"n/a") -> 144.78 | S55: =SUMIFS(Database!$L:$L,Database!$F:$F,$B55,Database!$C:$C,S$3,Database!$P:$P,$C$33,Database!$N:$N,S$5)+SUMIFS(Database!$L:$L,Database!$F:$F,$B55,Database!$C:$C,S$3,Database!$P:$P,$C$33,Database!$N:$N,"n/a") -> 144.78 | V55: =SUMIFS(Database!$L:$L,Database!$F:$F,$B55,Database!$C:$C,V$3,Database!$P:$P,$C$33,Database!$N:$N,V$5)+SUMIFS(Database!$L:$L,Database!$F:$F,$B55,Database!$C:$C,V$3,Database!$P:$P,$C$33,Database!$N:$N,"n/a") -> 0 | AA55: =SUMIFS(Database!$L:$L,Database!$F:$F,$B55,Database!$C:$C,AA$3,Database!$P:$P,$C$33,Database!$N:$N,AA$5)+SUMIFS(Database!$L:$L,Database!$F:$F,$B55,Database!$C:$C,AA$3,Database!$P:$P,$C$33,Database!$N:$N,"n/a") -> 0 | AE55: =SUMIFS(Database!$L:$L,Database!$F:$F,$B55,Database!$C:$C,AE$3,Database!$P:$P,$C$33,Database!$N:$N,AE$5)+SUMIFS(Database!$L:$L,Database!$F:$F,$B55,Database!$C:$C,AE$3,Database!$P:$P,$C$33,Database!$N:$N,"n/a") -> 0 | AI55: =SUMIFS(Database!$L:$L,Database!$F:$F,$B55,Database!$C:$C,AI$3,Database!$P:$P,$C$33,Database!$N:$N,AI$5)+SUMIFS(Database!$L:$L,Database!$F:$F,$B55,Database!$C:$C,AI$3,Database!$P:$P,$C$33,Database!$N:$N,"n/a") -> 0
B56: Community nurse visits | C56: NHS Benefits | D56: Benefits | G56: =SUMIFS(Database!$L:$L,Database!$F:$F,$B56,Database!$C:$C,G$3,Database!$P:$P,$C$33,Database!$N:$N,G$5)+SUMIFS(Database!$L:$L,Database!$F:$F,$B56,Database!$C:$C,G$3,Database!$P:$P,$C$33,Database!$N:$N,"n/a") -> 0 | K56: =SUMIFS(Database!$L:$L,Database!$F:$F,$B56,Database!$C:$C,K$3,Database!$P:$P,$C$33,Database!$N:$N,K$5)+SUMIFS(Database!$L:$L,Database!$F:$F,$B56,Database!$C:$C,K$3,Database!$P:$P,$C$33,Database!$N:$N,"n/a") -> 0 | O56: =SUMIFS(Database!$L:$L,Database!$F:$F,$B56,Database!$C:$C,O$3,Database!$P:$P,$C$33,Database!$N:$N,O$5)+SUMIFS(Database!$L:$L,Database!$F:$F,$B56,Database!$C:$C,O$3,Database!$P:$P,$C$33,Database!$N:$N,"n/a") -> 362.55 | S56: =SUMIFS(Database!$L:$L,Database!$F:$F,$B56,Database!$C:$C,S$3,Database!$P:$P,$C$33,Database!$N:$N,S$5)+SUMIFS(Database!$L:$L,Database!$F:$F,$B56,Database!$C:$C,S$3,Database!$P:$P,$C$33,Database!$N:$N,"n/a") -> 362.55 | V56: =SUMIFS(Database!$L:$L,Database!$F:$F,$B56,Database!$C:$C,V$3,Database!$P:$P,$C$33,Database!$N:$N,V$5)+SUMIFS(Database!$L:$L,Database!$F:$F,$B56,Database!$C:$C,V$3,Database!$P:$P,$C$33,Database!$N:$N,"n/a") -> 0 | AA56: =SUMIFS(Database!$L:$L,Database!$F:$F,$B56,Database!$C:$C,AA$3,Database!$P:$P,$C$33,Database!$N:$N,AA$5)+SUMIFS(Database!$L:$L,Database!$F:$F,$B56,Database!$C:$C,AA$3,Database!$P:$P,$C$33,Database!$N:$N,"n/a") -> 0 | AE56: =SUMIFS(Database!$L:$L,Database!$F:$F,$B56,Database!$C:$C,AE$3,Database!$P:$P,$C$33,Database!$N:$N,AE$5)+SUMIFS(Database!$L:$L,Database!$F:$F,$B56,Database!$C:$C,AE$3,Database!$P:$P,$C$33,Database!$N:$N,"n/a") -> 0 | AI56: =SUMIFS(Database!$L:$L,Database!$F:$F,$B56,Database!$C:$C,AI$3,Database!$P:$P,$C$33,Database!$N:$N,AI$5)+SUMIFS(Database!$L:$L,Database!$F:$F,$B56,Database!$C:$C,AI$3,Database!$P:$P,$C$33,Database!$N:$N,"n/a") -> 0
B57: DTOC | C57: NHS Benefits | D57: Benefits | G57: =SUMIFS(Database!$L:$L,Database!$F:$F,$B57,Database!$C:$C,G$3,Database!$P:$P,$C$33,Database!$N:$N,G$5)+SUMIFS(Database!$L:$L,Database!$F:$F,$B57,Database!$C:$C,G$3,Database!$P:$P,$C$33,Database!$N:$N,"n/a") -> 0 | K57: =SUMIFS(Database!$L:$L,Database!$F:$F,$B57,Database!$C:$C,K$3,Database!$P:$P,$C$33,Database!$N:$N,K$5)+SUMIFS(Database!$L:$L,Database!$F:$F,$B57,Database!$C:$C,K$3,Database!$P:$P,$C$33,Database!$N:$N,"n/a") -> 0 | O57: =SUMIFS(Database!$L:$L,Database!$F:$F,$B57,Database!$C:$C,O$3,Database!$P:$P,$C$33,Database!$N:$N,O$5)+SUMIFS(Database!$L:$L,Database!$F:$F,$B57,Database!$C:$C,O$3,Database!$P:$P,$C$33,Database!$N:$N,"n/a") -> 465.3 | S57: =SUMIFS(Database!$L:$L,Database!$F:$F,$B57,Database!$C:$C,S$3,Database!$P:$P,$C$33,Database!$N:$N,S$5)+SUMIFS(Database!$L:$L,Database!$F:$F,$B57,Database!$C:$C,S$3,Database!$P:$P,$C$33,Database!$N:$N,"n/a") -> 465.3 | V57: =SUMIFS(Database!$L:$L,Database!$F:$F,$B57,Database!$C:$C,V$3,Database!$P:$P,$C$33,Database!$N:$N,V$5)+SUMIFS(Database!$L:$L,Database!$F:$F,$B57,Database!$C:$C,V$3,Database!$P:$P,$C$33,Database!$N:$N,"n/a") -> 0 | AA57: =SUMIFS(Database!$L:$L,Database!$F:$F,$B57,Database!$C:$C,AA$3,Database!$P:$P,$C$33,Database!$N:$N,AA$5)+SUMIFS(Database!$L:$L,Database!$F:$F,$B57,Database!$C:$C,AA$3,Database!$P:$P,$C$33,Database!$N:$N,"n/a") -> 0 | AE57: =SUMIFS(Database!$L:$L,Database!$F:$F,$B57,Database!$C:$C,AE$3,Database!$P:$P,$C$33,Database!$N:$N,AE$5)+SUMIFS(Database!$L:$L,Database!$F:$F,$B57,Database!$C:$C,AE$3,Database!$P:$P,$C$33,Database!$N:$N,"n/a") -> 0 | AI57: =SUMIFS(Database!$L:$L,Database!$F:$F,$B57,Database!$C:$C,AI$3,Database!$P:$P,$C$33,Database!$N:$N,AI$5)+SUMIFS(Database!$L:$L,Database!$F:$F,$B57,Database!$C:$C,AI$3,Database!$P:$P,$C$33,Database!$N:$N,"n/a") -> 0
B58: Fire-related fatalities | C58: Social Benefits | D58: Benefits | G58: =SUMIFS(Database!$L:$L,Database!$F:$F,$B58,Database!$C:$C,G$3,Database!$P:$P,$C$33,Database!$N:$N,G$5)+SUMIFS(Database!$L:$L,Database!$F:$F,$B58,Database!$C:$C,G$3,Database!$P:$P,$C$33,Database!$N:$N,"n/a") -> 116.6608696 | K58: =SUMIFS(Database!$L:$L,Database!$F:$F,$B58,Database!$C:$C,K$3,Database!$P:$P,$C$33,Database!$N:$N,K$5)+SUMIFS(Database!$L:$L,Database!$F:$F,$B58,Database!$C:$C,K$3,Database!$P:$P,$C$33,Database!$N:$N,"n/a") -> 116.6608696 | O58: =SUMIFS(Database!$L:$L,Database!$F:$F,$B58,Database!$C:$C,O$3,Database!$P:$P,$C$33,Database!$N:$N,O$5)+SUMIFS(Database!$L:$L,Database!$F:$F,$B58,Database!$C:$C,O$3,Database!$P:$P,$C$33,Database!$N:$N,"n/a") -> 116.6608696 | S58: =SUMIFS(Database!$L:$L,Database!$F:$F,$B58,Database!$C:$C,S$3,Database!$P:$P,$C$33,Database!$N:$N,S$5)+SUMIFS(Database!$L:$L,Database!$F:$F,$B58,Database!$C:$C,S$3,Database!$P:$P,$C$33,Database!$N:$N,"n/a") -> 116.6608696 | V58: =SUMIFS(Database!$L:$L,Database!$F:$F,$B58,Database!$C:$C,V$3,Database!$P:$P,$C$33,Database!$N:$N,V$5)+SUMIFS(Database!$L:$L,Database!$F:$F,$B58,Database!$C:$C,V$3,Database!$P:$P,$C$33,Database!$N:$N,"n/a") -> 103.2 | AA58: =SUMIFS(Database!$L:$L,Database!$F:$F,$B58,Database!$C:$C,AA$3,Database!$P:$P,$C$33,Database!$N:$N,AA$5)+SUMIFS(Database!$L:$L,Database!$F:$F,$B58,Database!$C:$C,AA$3,Database!$P:$P,$C$33,Database!$N:$N,"n/a") -> 103.2 | AE58: =SUMIFS(Database!$L:$L,Database!$F:$F,$B58,Database!$C:$C,AE$3,Database!$P:$P,$C$33,Database!$N:$N,AE$5)+SUMIFS(Database!$L:$L,Database!$F:$F,$B58,Database!$C:$C,AE$3,Database!$P:$P,$C$33,Database!$N:$N,"n/a") -> 91.73333333 | AI58: =SUMIFS(Database!$L:$L,Database!$F:$F,$B58,Database!$C:$C,AI$3,Database!$P:$P,$C$33,Database!$N:$N,AI$5)+SUMIFS(Database!$L:$L,Database!$F:$F,$B58,Database!$C:$C,AI$3,Database!$P:$P,$C$33,Database!$N:$N,"n/a") -> 91.73333333
B59: Price | E59: =J59 -> 37544 | J59: ='Price assumptions'!C8 -> 37544 | R59: ='Price assumptions'!D8 -> 0 | U59: =Z59 -> 22516 | Z59: ='Price assumptions'!E8 -> 22516 | AC59: =AH59 -> 0 | AH59: ='Price assumptions'!F8 -> 0
E62: =CONCATENATE($C$63,E63,E64,E67) -> HighResidential careSelf funderPerson | F62: =CONCATENATE($C$63,F63,F64,F67) -> HighResidential careSelf funderLA | G62: HighResidential careSelf funderNHS | H62: HighResidential careSelf funderCentral Govt | I62: HighResidential careFundedPerson | J62: HighResidential careFundedLA | K62: HighResidential careFundedNHS | L62: HighResidential careFundedCentral Govt | M62: HighExtra careSelf funderPerson | N62: HighExtra careSelf funderLA | O62: HighExtra careSelf funderNHS | P62: HighExtra careSelf funderCentral Govt | Q62: HighExtra careFundedPerson | R62: HighExtra careFundedLA | S62: HighExtra careFundedNHS | T62: HighExtra careFundedCentral Govt | U62: HighShared LivesSelf funderPerson | V62: HighShared LivesSelf funderLA | W62: HighShared LivesSelf funderNHS | X62: HighShared LivesSelf funderCentral Govt | Y62: HighShared LivesFundedPerson | Z62: HighShared LivesFundedLA | AA62: HighShared LivesFundedNHS | AB62: HighShared LivesFundedCentral Govt | AC62: HighRetirement housingSelf funderPerson | AD62: HighRetirement housingSelf funderLA | AE62: HighRetirement housingSelf funderNHS | AF62: HighRetirement housingSelf funderCentral Govt | AG62: HighRetirement housingFundedPerson | AH62: HighRetirement housingFundedLA | AI62: HighRetirement housingFundedNHS | AJ62: HighRetirement housingFundedCentral Govt
B63: Needs assumption * Please see needs assumption sheet to understand how needs change costs and benefits | C63: High | E63: Residential care | F63: Residential care | G63: Residential care | H63: Residential care | I63: Residential care | J63: Residential care | K63: Residential care | L63: Residential care | M63: Extra care | N63: Extra care | O63: Extra care | P63: Extra care | Q63: Extra care | R63: Extra care | S63: Extra care | T63: Extra care | U63: Shared Lives | V63: Shared Lives | W63: Shared Lives | X63: Shared Lives | Y63: Shared Lives | Z63: Shared Lives | AA63: Shared Lives | AB63: Shared Lives | AC63: Retirement housing | AD63: Retirement housing | AE63: Retirement housing | AF63: Retirement housing | AG63: Retirement housing | AH63: Retirement housing | AI63: Retirement housing | AJ63: Retirement housing
E64: Self funder | F64: Self funder | G64: Self funder | H64: Self funder | I64: Funded | J64: Funded | K64: Funded | L64: Funded | M64: Self funder | N64: Self funder | O64: Self funder | P64: Self funder | Q64: Funded | R64: Funded | S64: Funded | T64: Funded | U64: Self funder | V64: Self funder | W64: Self funder | X64: Self funder | Y64: Funded | Z64: Funded | AA64: Funded | AB64: Funded | AC64: Self funder | AD64: Self funder | AE64: Self funder | AF64: Self funder | AG64: Funded | AH64: Funded | AI64: Funded | AJ64: Funded
E65: Yes | F65: Yes | G65: Yes | H65: Yes | I65: No | J65: No | K65: No | L65: No | M65: Yes | N65: Yes | O65: Yes | P65: Yes | Q65: No | R65: No | S65: No | T65: No | U65: Yes | V65: Yes | W65: Yes | X65: Yes | Y65: No | Z65: No | AA65: No | AB65: No | AC65: Yes | AD65: Yes | AE65: Yes | AF65: Yes | AG65: No | AH65: No | AI65: No | AJ65: No
E66: Who Pays | I66: Who Pays | M66: Who Pays | Q66: Who Pays | U66: Who pays | Y66: Who pays | AC66: Who pays | AG66: Who pays
B67: Cost detail | C67: Cost theme | D67: Cost category | E67: Person | F67: LA | G67: NHS | H67: Central Govt | I67: Person | J67: LA | K67: NHS | L67: Central Govt | M67: Person | N67: LA | O67: NHS | P67: Central Govt | Q67: Person | R67: LA | S67: NHS | T67: Central Govt | U67: Person | V67: LA | W67: NHS | X67: Central Govt | Y67: Person | Z67: LA | AA67: NHS | AB67: Central Govt | AC67: Person | AD67: LA | AE67: NHS | AF67: Central Govt | AG67: Person | AH67: LA | AI67: NHS | AJ67: Central Govt
B68: Care costs | C68: Care staff costs | D68: Production costs | E68: ='Care staff costs'!$H$9 -> 30846.68 | J68: ='Care staff costs'!$H$9 -> 30846.68 | M68: ='Care staff costs'!$H$27 -> 22361.28 | N68: 0 | O68: 0 | P68: 0 | R68: ='Care staff costs'!$H$27 -> 22361.28 | U68: ='Care staff costs'!$H$32 -> 17680 | Z68: ='Care staff costs'!$H$32 -> 17680 | AC68: ='Care staff costs'!$H$18 -> 22361.28 | AH68: ='Care staff costs'!$H$18 -> 22361.28
B69: Board and lodgings payment | C69: Running costs | D69: Production costs | J69: =SUMIFS(Database!$L:$L,Database!$F:$F,$B69,Database!$C:$C,J$3,Database!$P:$P,$C$63,Database!$N:$N,J$5)+SUMIFS(Database!$L:$L,Database!$F:$F,$B69,Database!$C:$C,J$3,Database!$P:$P,$C$63,Database!$N:$N,"n/a") -> 0 | M69: =SUMIFS(Database!$L:$L,Database!$F:$F,$B69,Database!$C:$C,M$3,Database!$P:$P,$C$63,Database!$N:$N,M$5)+SUMIFS(Database!$L:$L,Database!$F:$F,$B69,Database!$C:$C,M$3,Database!$P:$P,$C$63,Database!$N:$N,"n/a") -> 0 | N69: =SUMIFS(Database!$L:$L,Database!$F:$F,$B69,Database!$C:$C,N$3,Database!$P:$P,$C$63,Database!$N:$N,N$5)+SUMIFS(Database!$L:$L,Database!$F:$F,$B69,Database!$C:$C,N$3,Database!$P:$P,$C$63,Database!$N:$N,"n/a") -> 0 | O69: 0 | P69: 0 | R69: =SUMIFS(Database!$L:$L,Database!$F:$F,$B69,Database!$C:$C,R$3,Database!$P:$P,$C$63,Database!$N:$N,R$5)+SUMIFS(Database!$L:$L,Database!$F:$F,$B69,Database!$C:$C,R$3,Database!$P:$P,$C$63,Database!$N:$N,"n/a") -> 0 | U69: =SUMIFS(Database!$L:$L,Database!$F:$F,$B69,Database!$C:$C,U$3,Database!$P:$P,$C$63,Database!$N:$N,U$5)+SUMIFS(Database!$L:$L,Database!$F:$F,$B69,Database!$C:$C,U$3,Database!$P:$P,$C$63,Database!$N:$N,"n/a") -> 3484 | Z69: =SUMIFS(Database!$L:$L,Database!$F:$F,$B69,Database!$C:$C,Z$3,Database!$P:$P,$C$63,Database!$N:$N,Z$5)+SUMIFS(Database!$L:$L,Database!$F:$F,$B69,Database!$C:$C,Z$3,Database!$P:$P,$C$63,Database!$N:$N,"n/a") -> 3484 | AC69: =SUMIFS(Database!$L:$L,Database!$F:$F,$B69,Database!$C:$C,AC$3,Database!$P:$P,$C$63,Database!$N:$N,AC$5)+SUMIFS(Database!$L:$L,Database!$F:$F,$B69,Database!$C:$C,AC$3,Database!$P:$P,$C$63,Database!$N:$N,"n/a") -> 0 | AD69: =SUMIFS(Database!$L:$L,Database!$F:$F,$B69,Database!$C:$C,AD$3,Database!$P:$P,$C$63,Database!$N:$N,AD$5)+SUMIFS(Database!$L:$L,Database!$F:$F,$B69,Database!$C:$C,AD$3,Database!$P:$P,$C$63,Database!$N:$N,"n/a") -> 0 | AE69: =SUMIFS(Database!$L:$L,Database!$F:$F,$B69,Database!$C:$C,AE$3,Database!$P:$P,$C$63,Database!$N:$N,AE$5)+SUMIFS(Database!$L:$L,Database!$F:$F,$B69,Database!$C:$C,AE$3,Database!$P:$P,$C$63,Database!$N:$N,"n/a") -> 0 | AF69: =SUMIFS(Database!$L:$L,Database!$F:$F,$B69,Database!$C:$C,AF$3,Database!$P:$P,$C$63,Database!$N:$N,AF$5)+SUMIFS(Database!$L:$L,Database!$F:$F,$B69,Database!$C:$C,AF$3,Database!$P:$P,$C$63,Database!$N:$N,"n/a") -> 0 | AH69: =SUMIFS(Database!$L:$L,Database!$F:$F,$B69,Database!$C:$C,AH$3,Database!$P:$P,$C$63,Database!$N:$N,AH$5)+SUMIFS(Database!$L:$L,Database!$F:$F,$B69,Database!$C:$C,AH$3,Database!$P:$P,$C$63,Database!$N:$N,"n/a") -> 0
B70: Housing management cost | C70: Running costs | D70: Production costs | E70: =SUMIFS(Database!$L:$L,Database!$F:$F,$B70,Database!$C:$C,E$3,Database!$P:$P,$C$63,Database!$N:$N,E$5)+SUMIFS(Database!$L:$L,Database!$F:$F,$B70,Database!$C:$C,E$3,Database!$P:$P,$C$63,Database!$N:$N,"n/a") -> 6448 | J70: =SUMIFS(Database!$L:$L,Database!$F:$F,$B70,Database!$C:$C,J$3,Database!$P:$P,$C$63,Database!$N:$N,J$5)+SUMIFS(Database!$L:$L,Database!$F:$F,$B70,Database!$C:$C,J$3,Database!$P:$P,$C$63,Database!$N:$N,"n/a") -> 6448 | M70: =SUMIFS(Database!$L:$L,Database!$F:$F,$B70,Database!$C:$C,M$3,Database!$P:$P,$C$63,Database!$N:$N,M$5)+SUMIFS(Database!$L:$L,Database!$F:$F,$B70,Database!$C:$C,M$3,Database!$P:$P,$C$63,Database!$N:$N,"n/a") -> 2743.52 | N70: 0 | O70: 0 | P70: 0 | R70: =SUMIFS(Database!$L:$L,Database!$F:$F,$B70,Database!$C:$C,R$3,Database!$P:$P,$C$63,Database!$N:$N,R$5)+SUMIFS(Database!$L:$L,Database!$F:$F,$B70,Database!$C:$C,R$3,Database!$P:$P,$C$63,Database!$N:$N,"n/a") -> 2743.52 | U70: =SUMIFS(Database!$L:$L,Database!$F:$F,$B70,Database!$C:$C,U$3,Database!$P:$P,$C$63,Database!$N:$N,U$5)+SUMIFS(Database!$L:$L,Database!$F:$F,$B70,Database!$C:$C,U$3,Database!$P:$P,$C$63,Database!$N:$N,"n/a") -> 1456 | Z70: =SUMIFS(Database!$L:$L,Database!$F:$F,$B70,Database!$C:$C,Z$3,Database!$P:$P,$C$63,Database!$N:$N,Z$5)+SUMIFS(Database!$L:$L,Database!$F:$F,$B70,Database!$C:$C,Z$3,Database!$P:$P,$C$63,Database!$N:$N,"n/a") -> 1456 | AC70: =SUMIFS(Database!$L:$L,Database!$F:$F,$B70,Database!$C:$C,AC$3,Database!$P:$P,$C$63,Database!$N:$N,AC$5)+SUMIFS(Database!$L:$L,Database!$F:$F,$B70,Database!$C:$C,AC$3,Database!$P:$P,$C$63,Database!$N:$N,"n/a") -> 2250 | AH70: =SUMIFS(Database!$L:$L,Database!$F:$F,$B70,Database!$C:$C,AH$3,Database!$P:$P,$C$63,Database!$N:$N,AH$5)+SUMIFS(Database!$L:$L,Database!$F:$F,$B70,Database!$C:$C,AH$3,Database!$P:$P,$C$63,Database!$N:$N,"n/a") -> 2250
B71: Running costs | C71: Running costs | D71: Production costs | E71: =SUM(E69:E70) -> 6448 | F71: =SUM(F69:F70) -> 0 | G71: =SUM(G69:G70) -> 0 | H71: =SUM(H69:H70) -> 0 | J71: =SUM(J69:J70) -> 6448 | K71: 0 | M71: 2743.52 | N71: 0 | O71: 0 | P71: 0 | R71: 2743.52 | S71: 0 | T71: 0 | U71: 4940 | V71: 0 | W71: 0 | X71: 0 | Z71: =SUM(Z69:Z70) -> 4940 | AA71: 0 | AB71: 0 | AC71: 2250 | AD71: 0 | AE71: 0 | AF71: 0 | AH71: =SUM(AH69:AH70) -> 2250 | AJ71: =SUM(AJ69:AJ70) -> 0
B72: Land costs | C72: Land costs | D72: Capital costs | E72: 0 | F72: =SUMIFS(Database!$L:$L,Database!$F:$F,$B72,Database!$C:$C,F$3,Database!$P:$P,$C$63,Database!$N:$N,F$5)+SUMIFS(Database!$L:$L,Database!$F:$F,$B72,Database!$C:$C,F$3,Database!$P:$P,$C$63,Database!$N:$N,"n/a") -> 6396 | J72: =SUMIFS(Database!$L:$L,Database!$F:$F,$B72,Database!$C:$C,J$3,Database!$P:$P,$C$63,Database!$N:$N,J$5)+SUMIFS(Database!$L:$L,Database!$F:$F,$B72,Database!$C:$C,J$3,Database!$P:$P,$C$63,Database!$N:$N,"n/a") -> 6396 | M72: 0 | N72: =SUMIFS(Database!$L:$L,Database!$F:$F,$B72,Database!$C:$C,N$3,Database!$P:$P,$C$63,Database!$N:$N,N$5)+SUMIFS(Database!$L:$L,Database!$F:$F,$B72,Database!$C:$C,N$3,Database!$P:$P,$C$63,Database!$N:$N,"n/a") -> 6032 | O72: 0 | P72: 0 | R72: =SUMIFS(Database!$L:$L,Database!$F:$F,$B72,Database!$C:$C,R$3,Database!$P:$P,$C$63,Database!$N:$N,R$5)+SUMIFS(Database!$L:$L,Database!$F:$F,$B72,Database!$C:$C,R$3,Database!$P:$P,$C$63,Database!$N:$N,"n/a") -> 6032 | U72: =SUMIFS(Database!$L:$L,Database!$F:$F,$B72,Database!$C:$C,U$3,Database!$P:$P,$C$63,Database!$N:$N,U$5)+SUMIFS(Database!$L:$L,Database!$F:$F,$B72,Database!$C:$C,U$3,Database!$P:$P,$C$63,Database!$N:$N,"n/a") -> 0 | V72: =SUMIFS(Database!$L:$L,Database!$F:$F,$B72,Database!$C:$C,V$3,Database!$P:$P,$C$63,Database!$N:$N,V$5)+SUMIFS(Database!$L:$L,Database!$F:$F,$B72,Database!$C:$C,V$3,Database!$P:$P,$C$63,Database!$N:$N,"n/a") -> 0 | W72: =SUMIFS(Database!$L:$L,Database!$F:$F,$B72,Database!$C:$C,W$3,Database!$P:$P,$C$63,Database!$N:$N,W$5)+SUMIFS(Database!$L:$L,Database!$F:$F,$B72,Database!$C:$C,W$3,Database!$P:$P,$C$63,Database!$N:$N,"n/a") -> 0 | X72: =SUMIFS(Database!$L:$L,Database!$F:$F,$B72,Database!$C:$C,X$3,Database!$P:$P,$C$63,Database!$N:$N,X$5)+SUMIFS(Database!$L:$L,Database!$F:$F,$B72,Database!$C:$C,X$3,Database!$P:$P,$C$63,Database!$N:$N,"n/a") -> 0 | Z72: =SUMIFS(Database!$L:$L,Database!$F:$F,$B72,Database!$C:$C,Z$3,Database!$P:$P,$C$63,Database!$N:$N,Z$5)+SUMIFS(Database!$L:$L,Database!$F:$F,$B72,Database!$C:$C,Z$3,Database!$P:$P,$C$63,Database!$N:$N,"n/a") -> 0 | AD72: =SUMIFS(Database!$L:$L,Database!$F:$F,$B72,Database!$C:$C,AD$3,Database!$P:$P,$C$63,Database!$N:$N,AD$5)+SUMIFS(Database!$L:$L,Database!$F:$F,$B72,Database!$C:$C,AD$3,Database!$P:$P,$C$63,Database!$N:$N,"n/a") -> 9360 | AH72: =SUMIFS(Database!$L:$L,Database!$F:$F,$B72,Database!$C:$C,AH$3,Database!$P:$P,$C$63,Database!$N:$N,AH$5)+SUMIFS(Database!$L:$L,Database!$F:$F,$B72,Database!$C:$C,AH$3,Database!$P:$P,$C$63,Database!$N:$N,"n/a") -> 9360
B73: Financial support
B74: Rental of a room in a Shared Lives scheme - housing benefit | C74: Production cost | D74: Financial support | E74: =SUMIFS(Database!$L:$L,Database!$F:$F,$B74,Database!$C:$C,E$3,Database!$P:$P,$C$3,Database!$N:$N,E$5)+SUMIFS(Database!$L:$L,Database!$F:$F,$B74,Database!$C:$C,E$3,Database!$P:$P,$C$3,Database!$N:$N,"n/a") -> 0 | J74: =SUMIFS(Database!$L:$L,Database!$F:$F,$B74,Database!$C:$C,J$3,Database!$P:$P,$C$3,Database!$N:$N,J$5)+SUMIFS(Database!$L:$L,Database!$F:$F,$B74,Database!$C:$C,J$3,Database!$P:$P,$C$3,Database!$N:$N,"n/a") -> 0 | K74: =SUMIFS(Database!$L:$L,Database!$F:$F,$B74,Database!$C:$C,K$3,Database!$P:$P,$C$3,Database!$N:$N,K$5)+SUMIFS(Database!$L:$L,Database!$F:$F,$B74,Database!$C:$C,K$3,Database!$P:$P,$C$3,Database!$N:$N,"n/a") -> 0 | M74: =SUMIFS(Database!$L:$L,Database!$F:$F,$B74,Database!$C:$C,M$3,Database!$P:$P,$C$3,Database!$N:$N,M$5)+SUMIFS(Database!$L:$L,Database!$F:$F,$B74,Database!$C:$C,M$3,Database!$P:$P,$C$3,Database!$N:$N,"n/a") -> 0 | N74: =SUMIFS(Database!$L:$L,Database!$F:$F,$B74,Database!$C:$C,N$3,Database!$P:$P,$C$3,Database!$N:$N,N$5)+SUMIFS(Database!$L:$L,Database!$F:$F,$B74,Database!$C:$C,N$3,Database!$P:$P,$C$3,Database!$N:$N,"n/a") -> 0 | O74: 0 | P74: =SUMIFS(Database!$L:$L,Database!$F:$F,$B74,Database!$C:$C,P$3,Database!$P:$P,$C$3,Database!$N:$N,P$5)+SUMIFS(Database!$L:$L,Database!$F:$F,$B74,Database!$C:$C,P$3,Database!$P:$P,$C$3,Database!$N:$N,"n/a") -> 0 | R74: =SUMIFS(Database!$L:$L,Database!$F:$F,$B74,Database!$C:$C,R$3,Database!$P:$P,$C$3,Database!$N:$N,R$5)+SUMIFS(Database!$L:$L,Database!$F:$F,$B74,Database!$C:$C,R$3,Database!$P:$P,$C$3,Database!$N:$N,"n/a") -> 0 | S74: =SUMIFS(Database!$L:$L,Database!$F:$F,$B74,Database!$C:$C,S$3,Database!$P:$P,$C$3,Database!$N:$N,S$5)+SUMIFS(Database!$L:$L,Database!$F:$F,$B74,Database!$C:$C,S$3,Database!$P:$P,$C$3,Database!$N:$N,"n/a") -> 0 | T74: =SUMIFS(Database!$L:$L,Database!$F:$F,$B74,Database!$C:$C,T$3,Database!$P:$P,$C$3,Database!$N:$N,T$5)+SUMIFS(Database!$L:$L,Database!$F:$F,$B74,Database!$C:$C,T$3,Database!$P:$P,$C$3,Database!$N:$N,"n/a") -> 0 | U74: =SUMIFS(Database!$L:$L,Database!$F:$F,$B74,Database!$C:$C,U$3,Database!$P:$P,$C$3,Database!$N:$N,U$5)+SUMIFS(Database!$L:$L,Database!$F:$F,$B74,Database!$C:$C,U$3,Database!$P:$P,$C$3,Database!$N:$N,"n/a") -> 4056 | AB74: =SUMIFS(Database!$L:$L,Database!$F:$F,$B74,Database!$C:$C,AB$3,Database!$P:$P,$C$3,Database!$N:$N,AB$5)+SUMIFS(Database!$L:$L,Database!$F:$F,$B74,Database!$C:$C,AB$3,Database!$P:$P,$C$3,Database!$N:$N,"n/a") -> 4056 | AC74: =SUMIFS(Database!$L:$L,Database!$F:$F,$B74,Database!$C:$C,AC$3,Database!$P:$P,$C$3,Database!$N:$N,AC$5)+SUMIFS(Database!$L:$L,Database!$F:$F,$B74,Database!$C:$C,AC$3,Database!$P:$P,$C$3,Database!$N:$N,"n/a") -> 0 | AD74: =SUMIFS(Database!$L:$L,Database!$F:$F,$B74,Database!$C:$C,AD$3,Database!$P:$P,$C$3,Database!$N:$N,AD$5)+SUMIFS(Database!$L:$L,Database!$F:$F,$B74,Database!$C:$C,AD$3,Database!$P:$P,$C$3,Database!$N:$N,"n/a") -> 0 | AE74: =SUMIFS(Database!$L:$L,Database!$F:$F,$B74,Database!$C:$C,AE$3,Database!$P:$P,$C$3,Database!$N:$N,AE$5)+SUMIFS(Database!$L:$L,Database!$F:$F,$B74,Database!$C:$C,AE$3,Database!$P:$P,$C$3,Database!$N:$N,"n/a") -> 0 | AF74: =SUMIFS(Database!$L:$L,Database!$F:$F,$B74,Database!$C:$C,AF$3,Database!$P:$P,$C$3,Database!$N:$N,AF$5)+SUMIFS(Database!$L:$L,Database!$F:$F,$B74,Database!$C:$C,AF$3,Database!$P:$P,$C$3,Database!$N:$N,"n/a") -> 0 | AH74: =SUMIFS(Database!$L:$L,Database!$F:$F,$B74,Database!$C:$C,AH$3,Database!$P:$P,$C$3,Database!$N:$N,AH$5)+SUMIFS(Database!$L:$L,Database!$F:$F,$B74,Database!$C:$C,AH$3,Database!$P:$P,$C$3,Database!$N:$N,"n/a") -> 0
B75: Rental - Housing benefit | C75: Housing benefit | D75: Financial support | J75: =T75 -> 4056 | T75: =SUMIFS(Database!$L:$L,Database!$F:$F,$B75,Database!$C:$C,T$3,Database!$P:$P,$C$3,Database!$N:$N,T$5)+SUMIFS(Database!$L:$L,Database!$F:$F,$B75,Database!$C:$C,T$3,Database!$P:$P,$C$3,Database!$N:$N,"n/a") -> 4056 | AJ75: =SUMIFS(Database!$L:$L,Database!$F:$F,$B75,Database!$C:$C,AJ$3,Database!$P:$P,$C$3,Database!$N:$N,AJ$5)+SUMIFS(Database!$L:$L,Database!$F:$F,$B75,Database!$C:$C,AJ$3,Database!$P:$P,$C$3,Database!$N:$N,"n/a") -> 4056
B76: Attendance Allowance | C76: Attendance Allowance | D76: Financial support | E76: 0 | F76: 0 | H76: =SUMIFS(Database!$L:$L,Database!$F:$F,$B76,Database!$C:$C,H$3,Database!$P:$P,$C$63,Database!$N:$N,H$5)+SUMIFS(Database!$L:$L,Database!$F:$F,$B76,Database!$C:$C,H$3,Database!$P:$P,$C$63,Database!$N:$N,"n/a") -> 32540 | J76: =SUMIFS(Database!$L:$L,Database!$F:$F,$B76,Database!$C:$C,J$3,Database!$P:$P,$C$63,Database!$N:$N,J$5)+SUMIFS(Database!$L:$L,Database!$F:$F,$B76,Database!$C:$C,J$3,Database!$P:$P,$C$63,Database!$N:$N,"n/a") -> 32540 | O76: 0 | P76: =SUMIFS(Database!$L:$L,Database!$F:$F,$B76,Database!$C:$C,P$3,Database!$P:$P,$C$63,Database!$N:$N,P$5)+SUMIFS(Database!$L:$L,Database!$F:$F,$B76,Database!$C:$C,P$3,Database!$P:$P,$C$63,Database!$N:$N,"n/a") -> 32540 | R76: =SUMIFS(Database!$L:$L,Database!$F:$F,$B76,Database!$C:$C,R$3,Database!$P:$P,$C$63,Database!$N:$N,R$5)+SUMIFS(Database!$L:$L,Database!$F:$F,$B76,Database!$C:$C,R$3,Database!$P:$P,$C$63,Database!$N:$N,"n/a") -> 32540 | X76: =SUMIFS(Database!$L:$L,Database!$F:$F,$B76,Database!$C:$C,X$3,Database!$P:$P,$C$63,Database!$N:$N,X$5)+SUMIFS(Database!$L:$L,Database!$F:$F,$B76,Database!$C:$C,X$3,Database!$P:$P,$C$63,Database!$N:$N,"n/a") -> 32540 | Z76: =SUMIFS(Database!$L:$L,Database!$F:$F,$B76,Database!$C:$C,Z$3,Database!$P:$P,$C$63,Database!$N:$N,Z$5)+SUMIFS(Database!$L:$L,Database!$F:$F,$B76,Database!$C:$C,Z$3,Database!$P:$P,$C$63,Database!$N:$N,"n/a") -> 32540 | AF76: =SUMIFS(Database!$L:$L,Database!$F:$F,$B76,Database!$C:$C,AF$3,Database!$P:$P,$C$63,Database!$N:$N,AF$5)+SUMIFS(Database!$L:$L,Database!$F:$F,$B76,Database!$C:$C,AF$3,Database!$P:$P,$C$63,Database!$N:$N,"n/a") -> 32540 | AH76: =SUMIFS(Database!$L:$L,Database!$F:$F,$B76,Database!$C:$C,AH$3,Database!$P:$P,$C$63,Database!$N:$N,AH$5)+SUMIFS(Database!$L:$L,Database!$F:$F,$B76,Database!$C:$C,AH$3,Database!$P:$P,$C$63,Database!$N:$N,"n/a") -> 32540
B77: Equipment and adaptions | C77: Other | D77: Financial support | F77: =SUMIFS(Database!$L:$L,Database!$F:$F,$B77,Database!$C:$C,F$3,Database!$P:$P,$C$63,Database!$N:$N,F$5)+SUMIFS(Database!$L:$L,Database!$F:$F,$B77,Database!$C:$C,F$3,Database!$P:$P,$C$63,Database!$N:$N,"n/a") -> 0 | G77: =SUMIFS(Database!$L:$L,Database!$F:$F,$B77,Database!$C:$C,G$3,Database!$P:$P,$C$63,Database!$N:$N,G$5)+SUMIFS(Database!$L:$L,Database!$F:$F,$B77,Database!$C:$C,G$3,Database!$P:$P,$C$63,Database!$N:$N,"n/a") -> 0 | H77: =SUMIFS(Database!$L:$L,Database!$F:$F,$B77,Database!$C:$C,H$3,Database!$P:$P,$C$63,Database!$N:$N,H$5)+SUMIFS(Database!$L:$L,Database!$F:$F,$B77,Database!$C:$C,H$3,Database!$P:$P,$C$63,Database!$N:$N,"n/a") -> 0 | M77: =SUMIFS(Database!$L:$L,Database!$F:$F,$B77,Database!$C:$C,M$3,Database!$P:$P,$C$63,Database!$N:$N,M$5)+SUMIFS(Database!$L:$L,Database!$F:$F,$B77,Database!$C:$C,M$3,Database!$P:$P,$C$63,Database!$N:$N,"n/a") -> 0 | N77: =SUMIFS(Database!$L:$L,Database!$F:$F,$B77,Database!$C:$C,N$3,Database!$P:$P,$C$63,Database!$N:$N,N$5)+SUMIFS(Database!$L:$L,Database!$F:$F,$B77,Database!$C:$C,N$3,Database!$P:$P,$C$63,Database!$N:$N,"n/a") -> 0 | O77: =SUMIFS(Database!$L:$L,Database!$F:$F,$B77,Database!$C:$C,O$3,Database!$P:$P,$C$63,Database!$N:$N,O$5)+SUMIFS(Database!$L:$L,Database!$F:$F,$B77,Database!$C:$C,O$3,Database!$P:$P,$C$63,Database!$N:$N,"n/a") -> 0 | P77: =SUMIFS(Database!$L:$L,Database!$F:$F,$B77,Database!$C:$C,P$3,Database!$P:$P,$C$63,Database!$N:$N,P$5)+SUMIFS(Database!$L:$L,Database!$F:$F,$B77,Database!$C:$C,P$3,Database!$P:$P,$C$63,Database!$N:$N,"n/a") -> 0 | U77: =SUMIFS(Database!$L:$L,Database!$F:$F,$B77,Database!$C:$C,U$3,Database!$P:$P,$C$63,Database!$N:$N,U$5)+SUMIFS(Database!$L:$L,Database!$F:$F,$B77,Database!$C:$C,U$3,Database!$P:$P,$C$63,Database!$N:$N,"n/a") -> 0 | V77: =SUMIFS(Database!$L:$L,Database!$F:$F,$B77,Database!$C:$C,V$3,Database!$P:$P,$C$63,Database!$N:$N,V$5)+SUMIFS(Database!$L:$L,Database!$F:$F,$B77,Database!$C:$C,V$3,Database!$P:$P,$C$63,Database!$N:$N,"n/a") -> 0 | W77: =SUMIFS(Database!$L:$L,Database!$F:$F,$B77,Database!$C:$C,W$3,Database!$P:$P,$C$63,Database!$N:$N,W$5)+SUMIFS(Database!$L:$L,Database!$F:$F,$B77,Database!$C:$C,W$3,Database!$P:$P,$C$63,Database!$N:$N,"n/a") -> 0 | X77: =SUMIFS(Database!$L:$L,Database!$F:$F,$B77,Database!$C:$C,X$3,Database!$P:$P,$C$63,Database!$N:$N,X$5)+SUMIFS(Database!$L:$L,Database!$F:$F,$B77,Database!$C:$C,X$3,Database!$P:$P,$C$63,Database!$N:$N,"n/a") -> 0 | Z77: =SUMIFS(Database!$L:$L,Database!$F:$F,$B77,Database!$C:$C,Z$3,Database!$P:$P,$C$63,Database!$N:$N,Z$5)+SUMIFS(Database!$L:$L,Database!$F:$F,$B77,Database!$C:$C,Z$3,Database!$P:$P,$C$63,Database!$N:$N,"n/a") -> 166.6666667 | AC77: =SUMIFS(Database!$L:$L,Database!$F:$F,$B77,Database!$C:$C,AC$3,Database!$P:$P,$C$63,Database!$N:$N,AC$5)+SUMIFS(Database!$L:$L,Database!$F:$F,$B77,Database!$C:$C,AC$3,Database!$P:$P,$C$63,Database!$N:$N,"n/a") -> 0 | AD77: =SUMIFS(Database!$L:$L,Database!$F:$F,$B77,Database!$C:$C,AD$3,Database!$P:$P,$C$63,Database!$N:$N,AD$5)+SUMIFS(Database!$L:$L,Database!$F:$F,$B77,Database!$C:$C,AD$3,Database!$P:$P,$C$63,Database!$N:$N,"n/a") -> 0 | AE77: =SUMIFS(Database!$L:$L,Database!$F:$F,$B77,Database!$C:$C,AE$3,Database!$P:$P,$C$63,Database!$N:$N,AE$5)+SUMIFS(Database!$L:$L,Database!$F:$F,$B77,Database!$C:$C,AE$3,Database!$P:$P,$C$63,Database!$N:$N,"n/a") -> 0 | AF77: =SUMIFS(Database!$L:$L,Database!$F:$F,$B77,Database!$C:$C,AF$3,Database!$P:$P,$C$63,Database!$N:$N,AF$5)+SUMIFS(Database!$L:$L,Database!$F:$F,$B77,Database!$C:$C,AF$3,Database!$P:$P,$C$63,Database!$N:$N,"n/a") -> 0 | AH77: =SUMIFS(Database!$L:$L,Database!$F:$F,$B77,Database!$C:$C,AH$3,Database!$P:$P,$C$63,Database!$N:$N,AH$5)+SUMIFS(Database!$L:$L,Database!$F:$F,$B77,Database!$C:$C,AH$3,Database!$P:$P,$C$63,Database!$N:$N,"n/a") -> 166.6666667
B78: Disability and Facilities grant | C78: Other | D78: Financial support | E78: =SUMIFS(Database!$L:$L,Database!$F:$F,$B78,Database!$C:$C,E$3,Database!$P:$P,$C$63,Database!$N:$N,E$5)+SUMIFS(Database!$L:$L,Database!$F:$F,$B78,Database!$C:$C,E$3,Database!$P:$P,$C$63,Database!$N:$N,"n/a") -> 0 | F78: =SUMIFS(Database!$L:$L,Database!$F:$F,$B78,Database!$C:$C,F$3,Database!$P:$P,$C$63,Database!$N:$N,F$5)+SUMIFS(Database!$L:$L,Database!$F:$F,$B78,Database!$C:$C,F$3,Database!$P:$P,$C$63,Database!$N:$N,"n/a") -> 0 | G78: =SUMIFS(Database!$L:$L,Database!$F:$F,$B78,Database!$C:$C,G$3,Database!$P:$P,$C$63,Database!$N:$N,G$5)+SUMIFS(Database!$L:$L,Database!$F:$F,$B78,Database!$C:$C,G$3,Database!$P:$P,$C$63,Database!$N:$N,"n/a") -> 0 | H78: =SUMIFS(Database!$L:$L,Database!$F:$F,$B78,Database!$C:$C,H$3,Database!$P:$P,$C$63,Database!$N:$N,H$5)+SUMIFS(Database!$L:$L,Database!$F:$F,$B78,Database!$C:$C,H$3,Database!$P:$P,$C$63,Database!$N:$N,"n/a") -> 0 | M78: =SUMIFS(Database!$L:$L,Database!$F:$F,$B78,Database!$C:$C,M$3,Database!$P:$P,$C$63,Database!$N:$N,M$5)+SUMIFS(Database!$L:$L,Database!$F:$F,$B78,Database!$C:$C,M$3,Database!$P:$P,$C$63,Database!$N:$N,"n/a") -> 0 | N78: =SUMIFS(Database!$L:$L,Database!$F:$F,$B78,Database!$C:$C,N$3,Database!$P:$P,$C$63,Database!$N:$N,N$5)+SUMIFS(Database!$L:$L,Database!$F:$F,$B78,Database!$C:$C,N$3,Database!$P:$P,$C$63,Database!$N:$N,"n/a") -> 0 | O78: =SUMIFS(Database!$L:$L,Database!$F:$F,$B78,Database!$C:$C,O$3,Database!$P:$P,$C$63,Database!$N:$N,O$5)+SUMIFS(Database!$L:$L,Database!$F:$F,$B78,Database!$C:$C,O$3,Database!$P:$P,$C$63,Database!$N:$N,"n/a") -> 0 | P78: =SUMIFS(Database!$L:$L,Database!$F:$F,$B78,Database!$C:$C,P$3,Database!$P:$P,$C$63,Database!$N:$N,P$5)+SUMIFS(Database!$L:$L,Database!$F:$F,$B78,Database!$C:$C,P$3,Database!$P:$P,$C$63,Database!$N:$N,"n/a") -> 0 | U78: =SUMIFS(Database!$L:$L,Database!$F:$F,$B78,Database!$C:$C,U$3,Database!$P:$P,$C$63,Database!$N:$N,U$5)+SUMIFS(Database!$L:$L,Database!$F:$F,$B78,Database!$C:$C,U$3,Database!$P:$P,$C$63,Database!$N:$N,"n/a") -> 0 | V78: =SUMIFS(Database!$L:$L,Database!$F:$F,$B78,Database!$C:$C,V$3,Database!$P:$P,$C$63,Database!$N:$N,V$5)+SUMIFS(Database!$L:$L,Database!$F:$F,$B78,Database!$C:$C,V$3,Database!$P:$P,$C$63,Database!$N:$N,"n/a") -> 0 | W78: =SUMIFS(Database!$L:$L,Database!$F:$F,$B78,Database!$C:$C,W$3,Database!$P:$P,$C$63,Database!$N:$N,W$5)+SUMIFS(Database!$L:$L,Database!$F:$F,$B78,Database!$C:$C,W$3,Database!$P:$P,$C$63,Database!$N:$N,"n/a") -> 0 | X78: =SUMIFS(Database!$L:$L,Database!$F:$F,$B78,Database!$C:$C,X$3,Database!$P:$P,$C$63,Database!$N:$N,X$5)+SUMIFS(Database!$L:$L,Database!$F:$F,$B78,Database!$C:$C,X$3,Database!$P:$P,$C$63,Database!$N:$N,"n/a") -> 0 | AB78: =SUMIFS(Database!$L:$L,Database!$F:$F,$B78,Database!$C:$C,AB$3,Database!$P:$P,$C$63,Database!$N:$N,AB$5)+SUMIFS(Database!$L:$L,Database!$F:$F,$B78,Database!$C:$C,AB$3,Database!$P:$P,$C$63,Database!$N:$N,"n/a") -> 1000 | AC78: =SUMIFS(Database!$L:$L,Database!$F:$F,$B78,Database!$C:$C,AC$3,Database!$P:$P,$C$63,Database!$N:$N,AC$5)+SUMIFS(Database!$L:$L,Database!$F:$F,$B78,Database!$C:$C,AC$3,Database!$P:$P,$C$63,Database!$N:$N,"n/a") -> 0 | AD78: =SUMIFS(Database!$L:$L,Database!$F:$F,$B78,Database!$C:$C,AD$3,Database!$P:$P,$C$63,Database!$N:$N,AD$5)+SUMIFS(Database!$L:$L,Database!$F:$F,$B78,Database!$C:$C,AD$3,Database!$P:$P,$C$63,Database!$N:$N,"n/a") -> 0 | AE78: =SUMIFS(Database!$L:$L,Database!$F:$F,$B78,Database!$C:$C,AE$3,Database!$P:$P,$C$63,Database!$N:$N,AE$5)+SUMIFS(Database!$L:$L,Database!$F:$F,$B78,Database!$C:$C,AE$3,Database!$P:$P,$C$63,Database!$N:$N,"n/a") -> 0 | AF78: =SUMIFS(Database!$L:$L,Database!$F:$F,$B78,Database!$C:$C,AF$3,Database!$P:$P,$C$63,Database!$N:$N,AF$5)+SUMIFS(Database!$L:$L,Database!$F:$F,$B78,Database!$C:$C,AF$3,Database!$P:$P,$C$63,Database!$N:$N,"n/a") -> 0 | AJ78: =SUMIFS(Database!$L:$L,Database!$F:$F,$B78,Database!$C:$C,AJ$3,Database!$P:$P,$C$63,Database!$N:$N,AJ$5)+SUMIFS(Database!$L:$L,Database!$F:$F,$B78,Database!$C:$C,AJ$3,Database!$P:$P,$C$63,Database!$N:$N,"n/a") -> 1000
B79: Other | C79: Other | D79: Financial support | E79: =SUM(E77:E78) -> 0 | F79: =SUM(F77:F78) -> 0 | G79: =SUM(G77:G78) -> 0 | H79: =SUM(H77:H78) -> 0 | J79: =SUM(J77:J78) -> 0 | K79: 0 | M79: 0 | N79: 0 | O79: 0 | P79: 0 | R79: 0 | S79: 0 | T79: 0 | U79: 0 | V79: 0 | W79: 0 | X79: 0 | Z79: =SUM(Z77:Z78) -> 166.6666667 | AA79: 0 | AB79: 1000 | AC79: 0 | AD79: 0 | AE79: 0 | AF79: 0 | AH79: =SUM(AH77:AH78) -> 166.6666667 | AJ79: =SUM(AJ77:AJ78) -> 1000
B80: Council tax | C80: Council tax | D80: Financial support | E80: =SUMIFS(Database!$L:$L,Database!$F:$F,$B80,Database!$C:$C,E$3,Database!$P:$P,$C$63,Database!$N:$N,E$5)+SUMIFS(Database!$L:$L,Database!$F:$F,$B80,Database!$C:$C,E$3,Database!$P:$P,$C$63,Database!$N:$N,"n/a") -> 0 | J80: =SUMIFS(Database!$L:$L,Database!$F:$F,$B80,Database!$C:$C,J$3,Database!$P:$P,$C$63,Database!$N:$N,J$5)+SUMIFS(Database!$L:$L,Database!$F:$F,$B80,Database!$C:$C,J$3,Database!$P:$P,$C$63,Database!$N:$N,"n/a") -> 0 | M80: =SUMIFS(Database!$L:$L,Database!$F:$F,$B80,Database!$C:$C,M$3,Database!$P:$P,$C$63,Database!$N:$N,M$5)+SUMIFS(Database!$L:$L,Database!$F:$F,$B80,Database!$C:$C,M$3,Database!$P:$P,$C$63,Database!$N:$N,"n/a") -> 852.02 | R80: =M80 -> 852.02 | U80: =SUMIFS(Database!$L:$L,Database!$F:$F,$B80,Database!$C:$C,U$3,Database!$P:$P,$C$63,Database!$N:$N,U$5)+SUMIFS(Database!$L:$L,Database!$F:$F,$B80,Database!$C:$C,U$3,Database!$P:$P,$C$63,Database!$N:$N,"n/a") -> 0 | Z80: =SUMIFS(Database!$L:$L,Database!$F:$F,$B80,Database!$C:$C,Z$3,Database!$P:$P,$C$63,Database!$N:$N,Z$5)+SUMIFS(Database!$L:$L,Database!$F:$F,$B80,Database!$C:$C,Z$3,Database!$P:$P,$C$63,Database!$N:$N,"n/a") -> 0 | AC80: =SUMIFS(Database!$L:$L,Database!$F:$F,$B80,Database!$C:$C,AC$3,Database!$P:$P,$C$63,Database!$N:$N,AC$5)+SUMIFS(Database!$L:$L,Database!$F:$F,$B80,Database!$C:$C,AC$3,Database!$P:$P,$C$63,Database!$N:$N,"n/a") -> 852.02 | AH80: =AC80 -> 852.02
B81: Benefits
B82: Falls | C82: NHS Benefits | D82: Benefits | G82: =SUMIFS(Database!$L:$L,Database!$F:$F,$B82,Database!$C:$C,G$3,Database!$P:$P,$C$63,Database!$N:$N,G$5)+SUMIFS(Database!$L:$L,Database!$F:$F,$B82,Database!$C:$C,G$3,Database!$P:$P,$C$63,Database!$N:$N,"n/a") -> -26.35 | K82: =SUMIFS(Database!$L:$L,Database!$F:$F,$B82,Database!$C:$C,K$3,Database!$P:$P,$C$63,Database!$N:$N,K$5)+SUMIFS(Database!$L:$L,Database!$F:$F,$B82,Database!$C:$C,K$3,Database!$P:$P,$C$63,Database!$N:$N,"n/a") -> -26.35 | O82: =SUMIFS(Database!$L:$L,Database!$F:$F,$B82,Database!$C:$C,O$3,Database!$P:$P,$C$63,Database!$N:$N,O$5)+SUMIFS(Database!$L:$L,Database!$F:$F,$B82,Database!$C:$C,O$3,Database!$P:$P,$C$63,Database!$N:$N,"n/a") -> 474.3 | S82: =SUMIFS(Database!$L:$L,Database!$F:$F,$B82,Database!$C:$C,S$3,Database!$P:$P,$C$63,Database!$N:$N,S$5)+SUMIFS(Database!$L:$L,Database!$F:$F,$B82,Database!$C:$C,S$3,Database!$P:$P,$C$63,Database!$N:$N,"n/a") -> 474.3 | V82: =SUMIFS(Database!$L:$L,Database!$F:$F,$B82,Database!$C:$C,V$3,Database!$P:$P,$C$63,Database!$N:$N,V$5)+SUMIFS(Database!$L:$L,Database!$F:$F,$B82,Database!$C:$C,V$3,Database!$P:$P,$C$63,Database!$N:$N,"n/a") -> 895.9 | AA82: =SUMIFS(Database!$L:$L,Database!$F:$F,$B82,Database!$C:$C,AA$3,Database!$P:$P,$C$63,Database!$N:$N,AA$5)+SUMIFS(Database!$L:$L,Database!$F:$F,$B82,Database!$C:$C,AA$3,Database!$P:$P,$C$63,Database!$N:$N,"n/a") -> 895.9 | AE82: =SUMIFS(Database!$L:$L,Database!$F:$F,$B82,Database!$C:$C,AE$3,Database!$P:$P,$C$63,Database!$N:$N,AE$5)+SUMIFS(Database!$L:$L,Database!$F:$F,$B82,Database!$C:$C,AE$3,Database!$P:$P,$C$63,Database!$N:$N,"n/a") -> 600.5348837 | AI82: =SUMIFS(Database!$L:$L,Database!$F:$F,$B82,Database!$C:$C,AI$3,Database!$P:$P,$C$63,Database!$N:$N,AI$5)+SUMIFS(Database!$L:$L,Database!$F:$F,$B82,Database!$C:$C,AI$3,Database!$P:$P,$C$63,Database!$N:$N,"n/a") -> 600.5348837
B83: Reduction in loneliness | C83: NHS Benefits | D83: Benefits | G83: =SUMIFS(Database!$L:$L,Database!$F:$F,$B83,Database!$C:$C,G$3,Database!$P:$P,$C$63,Database!$N:$N,G$5)+SUMIFS(Database!$L:$L,Database!$F:$F,$B83,Database!$C:$C,G$3,Database!$P:$P,$C$63,Database!$N:$N,"n/a") -> 34.825 | K83: =SUMIFS(Database!$L:$L,Database!$F:$F,$B83,Database!$C:$C,K$3,Database!$P:$P,$C$63,Database!$N:$N,K$5)+SUMIFS(Database!$L:$L,Database!$F:$F,$B83,Database!$C:$C,K$3,Database!$P:$P,$C$63,Database!$N:$N,"n/a") -> 34.825 | O83: =SUMIFS(Database!$L:$L,Database!$F:$F,$B83,Database!$C:$C,O$3,Database!$P:$P,$C$63,Database!$N:$N,O$5)+SUMIFS(Database!$L:$L,Database!$F:$F,$B83,Database!$C:$C,O$3,Database!$P:$P,$C$63,Database!$N:$N,"n/a") -> 213.925 | S83: =SUMIFS(Database!$L:$L,Database!$F:$F,$B83,Database!$C:$C,S$3,Database!$P:$P,$C$63,Database!$N:$N,S$5)+SUMIFS(Database!$L:$L,Database!$F:$F,$B83,Database!$C:$C,S$3,Database!$P:$P,$C$63,Database!$N:$N,"n/a") -> 213.925 | V83: =SUMIFS(Database!$L:$L,Database!$F:$F,$B83,Database!$C:$C,V$3,Database!$P:$P,$C$63,Database!$N:$N,V$5)+SUMIFS(Database!$L:$L,Database!$F:$F,$B83,Database!$C:$C,V$3,Database!$P:$P,$C$63,Database!$N:$N,"n/a") -> 189.05 | AA83: =SUMIFS(Database!$L:$L,Database!$F:$F,$B83,Database!$C:$C,AA$3,Database!$P:$P,$C$63,Database!$N:$N,AA$5)+SUMIFS(Database!$L:$L,Database!$F:$F,$B83,Database!$C:$C,AA$3,Database!$P:$P,$C$63,Database!$N:$N,"n/a") -> 189.05 | AE83: =SUMIFS(Database!$L:$L,Database!$F:$F,$B83,Database!$C:$C,AE$3,Database!$P:$P,$C$63,Database!$N:$N,AE$5)+SUMIFS(Database!$L:$L,Database!$F:$F,$B83,Database!$C:$C,AE$3,Database!$P:$P,$C$63,Database!$N:$N,"n/a") -> 121.8875 | AI83: =SUMIFS(Database!$L:$L,Database!$F:$F,$B83,Database!$C:$C,AI$3,Database!$P:$P,$C$63,Database!$N:$N,AI$5)+SUMIFS(Database!$L:$L,Database!$F:$F,$B83,Database!$C:$C,AI$3,Database!$P:$P,$C$63,Database!$N:$N,"n/a") -> 121.8875
B84: Hospital admissions | C84: NHS Benefits | D84: Benefits | G84: =SUMIFS(Database!$L:$L,Database!$F:$F,$B84,Database!$C:$C,G$3,Database!$P:$P,$C$63,Database!$N:$N,G$5)+SUMIFS(Database!$L:$L,Database!$F:$F,$B84,Database!$C:$C,G$3,Database!$P:$P,$C$63,Database!$N:$N,"n/a") -> 5055 | K84: =SUMIFS(Database!$L:$L,Database!$F:$F,$B84,Database!$C:$C,K$3,Database!$P:$P,$C$63,Database!$N:$N,K$5)+SUMIFS(Database!$L:$L,Database!$F:$F,$B84,Database!$C:$C,K$3,Database!$P:$P,$C$63,Database!$N:$N,"n/a") -> 5055 | O84: =SUMIFS(Database!$L:$L,Database!$F:$F,$B84,Database!$C:$C,O$3,Database!$P:$P,$C$63,Database!$N:$N,O$5)+SUMIFS(Database!$L:$L,Database!$F:$F,$B84,Database!$C:$C,O$3,Database!$P:$P,$C$63,Database!$N:$N,"n/a") -> 6318.75 | S84: =SUMIFS(Database!$L:$L,Database!$F:$F,$B84,Database!$C:$C,S$3,Database!$P:$P,$C$63,Database!$N:$N,S$5)+SUMIFS(Database!$L:$L,Database!$F:$F,$B84,Database!$C:$C,S$3,Database!$P:$P,$C$63,Database!$N:$N,"n/a") -> 6318.75 | V84: =SUMIFS(Database!$L:$L,Database!$F:$F,$B84,Database!$C:$C,V$3,Database!$P:$P,$C$63,Database!$N:$N,V$5)+SUMIFS(Database!$L:$L,Database!$F:$F,$B84,Database!$C:$C,V$3,Database!$P:$P,$C$63,Database!$N:$N,"n/a") -> 4177.395833 | AA84: =SUMIFS(Database!$L:$L,Database!$F:$F,$B84,Database!$C:$C,AA$3,Database!$P:$P,$C$63,Database!$N:$N,AA$5)+SUMIFS(Database!$L:$L,Database!$F:$F,$B84,Database!$C:$C,AA$3,Database!$P:$P,$C$63,Database!$N:$N,"n/a") -> 4177.395833 | AE84: =SUMIFS(Database!$L:$L,Database!$F:$F,$B84,Database!$C:$C,AE$3,Database!$P:$P,$C$63,Database!$N:$N,AE$5)+SUMIFS(Database!$L:$L,Database!$F:$F,$B84,Database!$C:$C,AE$3,Database!$P:$P,$C$63,Database!$N:$N,"n/a") -> 4212.5 | AI84: =SUMIFS(Database!$L:$L,Database!$F:$F,$B84,Database!$C:$C,AI$3,Database!$P:$P,$C$63,Database!$N:$N,AI$5)+SUMIFS(Database!$L:$L,Database!$F:$F,$B84,Database!$C:$C,AI$3,Database!$P:$P,$C$63,Database!$N:$N,"n/a") -> 4212.5
B85: GP visits | C85: NHS Benefits | D85: Benefits | G85: =SUMIFS(Database!$L:$L,Database!$F:$F,$B85,Database!$C:$C,G$3,Database!$P:$P,$C$63,Database!$N:$N,G$5)+SUMIFS(Database!$L:$L,Database!$F:$F,$B85,Database!$C:$C,G$3,Database!$P:$P,$C$63,Database!$N:$N,"n/a") -> 0 | K85: =SUMIFS(Database!$L:$L,Database!$F:$F,$B85,Database!$C:$C,K$3,Database!$P:$P,$C$63,Database!$N:$N,K$5)+SUMIFS(Database!$L:$L,Database!$F:$F,$B85,Database!$C:$C,K$3,Database!$P:$P,$C$63,Database!$N:$N,"n/a") -> 0 | O85: =SUMIFS(Database!$L:$L,Database!$F:$F,$B85,Database!$C:$C,O$3,Database!$P:$P,$C$63,Database!$N:$N,O$5)+SUMIFS(Database!$L:$L,Database!$F:$F,$B85,Database!$C:$C,O$3,Database!$P:$P,$C$63,Database!$N:$N,"n/a") -> 180.975 | S85: =SUMIFS(Database!$L:$L,Database!$F:$F,$B85,Database!$C:$C,S$3,Database!$P:$P,$C$63,Database!$N:$N,S$5)+SUMIFS(Database!$L:$L,Database!$F:$F,$B85,Database!$C:$C,S$3,Database!$P:$P,$C$63,Database!$N:$N,"n/a") -> 180.975 | V85: =SUMIFS(Database!$L:$L,Database!$F:$F,$B85,Database!$C:$C,V$3,Database!$P:$P,$C$63,Database!$N:$N,V$5)+SUMIFS(Database!$L:$L,Database!$F:$F,$B85,Database!$C:$C,V$3,Database!$P:$P,$C$63,Database!$N:$N,"n/a") -> 0 | AA85: =SUMIFS(Database!$L:$L,Database!$F:$F,$B85,Database!$C:$C,AA$3,Database!$P:$P,$C$63,Database!$N:$N,AA$5)+SUMIFS(Database!$L:$L,Database!$F:$F,$B85,Database!$C:$C,AA$3,Database!$P:$P,$C$63,Database!$N:$N,"n/a") -> 0 | AE85: =SUMIFS(Database!$L:$L,Database!$F:$F,$B85,Database!$C:$C,AE$3,Database!$P:$P,$C$63,Database!$N:$N,AE$5)+SUMIFS(Database!$L:$L,Database!$F:$F,$B85,Database!$C:$C,AE$3,Database!$P:$P,$C$63,Database!$N:$N,"n/a") -> 0 | AI85: =SUMIFS(Database!$L:$L,Database!$F:$F,$B85,Database!$C:$C,AI$3,Database!$P:$P,$C$63,Database!$N:$N,AI$5)+SUMIFS(Database!$L:$L,Database!$F:$F,$B85,Database!$C:$C,AI$3,Database!$P:$P,$C$63,Database!$N:$N,"n/a") -> 0
B86: Community nurse visits | C86: NHS Benefits | D86: Benefits | G86: =SUMIFS(Database!$L:$L,Database!$F:$F,$B86,Database!$C:$C,G$3,Database!$P:$P,$C$63,Database!$N:$N,G$5)+SUMIFS(Database!$L:$L,Database!$F:$F,$B86,Database!$C:$C,G$3,Database!$P:$P,$C$63,Database!$N:$N,"n/a") -> 0 | K86: =SUMIFS(Database!$L:$L,Database!$F:$F,$B86,Database!$C:$C,K$3,Database!$P:$P,$C$63,Database!$N:$N,K$5)+SUMIFS(Database!$L:$L,Database!$F:$F,$B86,Database!$C:$C,K$3,Database!$P:$P,$C$63,Database!$N:$N,"n/a") -> 0 | O86: =SUMIFS(Database!$L:$L,Database!$F:$F,$B86,Database!$C:$C,O$3,Database!$P:$P,$C$63,Database!$N:$N,O$5)+SUMIFS(Database!$L:$L,Database!$F:$F,$B86,Database!$C:$C,O$3,Database!$P:$P,$C$63,Database!$N:$N,"n/a") -> 453.1875 | S86: =SUMIFS(Database!$L:$L,Database!$F:$F,$B86,Database!$C:$C,S$3,Database!$P:$P,$C$63,Database!$N:$N,S$5)+SUMIFS(Database!$L:$L,Database!$F:$F,$B86,Database!$C:$C,S$3,Database!$P:$P,$C$63,Database!$N:$N,"n/a") -> 453.1875 | V86: =SUMIFS(Database!$L:$L,Database!$F:$F,$B86,Database!$C:$C,V$3,Database!$P:$P,$C$63,Database!$N:$N,V$5)+SUMIFS(Database!$L:$L,Database!$F:$F,$B86,Database!$C:$C,V$3,Database!$P:$P,$C$63,Database!$N:$N,"n/a") -> 0 | AA86: =SUMIFS(Database!$L:$L,Database!$F:$F,$B86,Database!$C:$C,AA$3,Database!$P:$P,$C$63,Database!$N:$N,AA$5)+SUMIFS(Database!$L:$L,Database!$F:$F,$B86,Database!$C:$C,AA$3,Database!$P:$P,$C$63,Database!$N:$N,"n/a") -> 0 | AE86: =SUMIFS(Database!$L:$L,Database!$F:$F,$B86,Database!$C:$C,AE$3,Database!$P:$P,$C$63,Database!$N:$N,AE$5)+SUMIFS(Database!$L:$L,Database!$F:$F,$B86,Database!$C:$C,AE$3,Database!$P:$P,$C$63,Database!$N:$N,"n/a") -> 0 | AI86: =SUMIFS(Database!$L:$L,Database!$F:$F,$B86,Database!$C:$C,AI$3,Database!$P:$P,$C$63,Database!$N:$N,AI$5)+SUMIFS(Database!$L:$L,Database!$F:$F,$B86,Database!$C:$C,AI$3,Database!$P:$P,$C$63,Database!$N:$N,"n/a") -> 0
B87: DTOC | C87: NHS Benefits | D87: Benefits | G87: =SUMIFS(Database!$L:$L,Database!$F:$F,$B87,Database!$C:$C,G$3,Database!$P:$P,$C$63,Database!$N:$N,G$5)+SUMIFS(Database!$L:$L,Database!$F:$F,$B87,Database!$C:$C,G$3,Database!$P:$P,$C$63,Database!$N:$N,"n/a") -> 0 | K87: =SUMIFS(Database!$L:$L,Database!$F:$F,$B87,Database!$C:$C,K$3,Database!$P:$P,$C$63,Database!$N:$N,K$5)+SUMIFS(Database!$L:$L,Database!$F:$F,$B87,Database!$C:$C,K$3,Database!$P:$P,$C$63,Database!$N:$N,"n/a") -> 0 | O87: =SUMIFS(Database!$L:$L,Database!$F:$F,$B87,Database!$C:$C,O$3,Database!$P:$P,$C$63,Database!$N:$N,O$5)+SUMIFS(Database!$L:$L,Database!$F:$F,$B87,Database!$C:$C,O$3,Database!$P:$P,$C$63,Database!$N:$N,"n/a") -> 581.625 | S87: =SUMIFS(Database!$L:$L,Database!$F:$F,$B87,Database!$C:$C,S$3,Database!$P:$P,$C$63,Database!$N:$N,S$5)+SUMIFS(Database!$L:$L,Database!$F:$F,$B87,Database!$C:$C,S$3,Database!$P:$P,$C$63,Database!$N:$N,"n/a") -> 581.625 | V87: =SUMIFS(Database!$L:$L,Database!$F:$F,$B87,Database!$C:$C,V$3,Database!$P:$P,$C$63,Database!$N:$N,V$5)+SUMIFS(Database!$L:$L,Database!$F:$F,$B87,Database!$C:$C,V$3,Database!$P:$P,$C$63,Database!$N:$N,"n/a") -> 0 | AA87: =SUMIFS(Database!$L:$L,Database!$F:$F,$B87,Database!$C:$C,AA$3,Database!$P:$P,$C$63,Database!$N:$N,AA$5)+SUMIFS(Database!$L:$L,Database!$F:$F,$B87,Database!$C:$C,AA$3,Database!$P:$P,$C$63,Database!$N:$N,"n/a") -> 0 | AE87: =SUMIFS(Database!$L:$L,Database!$F:$F,$B87,Database!$C:$C,AE$3,Database!$P:$P,$C$63,Database!$N:$N,AE$5)+SUMIFS(Database!$L:$L,Database!$F:$F,$B87,Database!$C:$C,AE$3,Database!$P:$P,$C$63,Database!$N:$N,"n/a") -> 0 | AI87: =SUMIFS(Database!$L:$L,Database!$F:$F,$B87,Database!$C:$C,AI$3,Database!$P:$P,$C$63,Database!$N:$N,AI$5)+SUMIFS(Database!$L:$L,Database!$F:$F,$B87,Database!$C:$C,AI$3,Database!$P:$P,$C$63,Database!$N:$N,"n/a") -> 0
B88: Fire-related fatalities | C88: Social Benefits | D88: Benefits | G88: =SUMIFS(Database!$L:$L,Database!$F:$F,$B88,Database!$C:$C,G$3,Database!$P:$P,$C$63,Database!$N:$N,G$5)+SUMIFS(Database!$L:$L,Database!$F:$F,$B88,Database!$C:$C,G$3,Database!$P:$P,$C$63,Database!$N:$N,"n/a") -> 149.325913 | K88: =SUMIFS(Database!$L:$L,Database!$F:$F,$B88,Database!$C:$C,K$3,Database!$P:$P,$C$63,Database!$N:$N,K$5)+SUMIFS(Database!$L:$L,Database!$F:$F,$B88,Database!$C:$C,K$3,Database!$P:$P,$C$63,Database!$N:$N,"n/a") -> 149.325913 | O88: =SUMIFS(Database!$L:$L,Database!$F:$F,$B88,Database!$C:$C,O$3,Database!$P:$P,$C$63,Database!$N:$N,O$5)+SUMIFS(Database!$L:$L,Database!$F:$F,$B88,Database!$C:$C,O$3,Database!$P:$P,$C$63,Database!$N:$N,"n/a") -> 149.325913 | S88: =SUMIFS(Database!$L:$L,Database!$F:$F,$B88,Database!$C:$C,S$3,Database!$P:$P,$C$63,Database!$N:$N,S$5)+SUMIFS(Database!$L:$L,Database!$F:$F,$B88,Database!$C:$C,S$3,Database!$P:$P,$C$63,Database!$N:$N,"n/a") -> 149.325913 | V88: =SUMIFS(Database!$L:$L,Database!$F:$F,$B88,Database!$C:$C,V$3,Database!$P:$P,$C$63,Database!$N:$N,V$5)+SUMIFS(Database!$L:$L,Database!$F:$F,$B88,Database!$C:$C,V$3,Database!$P:$P,$C$63,Database!$N:$N,"n/a") -> 132.096 | AA88: =SUMIFS(Database!$L:$L,Database!$F:$F,$B88,Database!$C:$C,AA$3,Database!$P:$P,$C$63,Database!$N:$N,AA$5)+SUMIFS(Database!$L:$L,Database!$F:$F,$B88,Database!$C:$C,AA$3,Database!$P:$P,$C$63,Database!$N:$N,"n/a") -> 132.096 | AE88: =SUMIFS(Database!$L:$L,Database!$F:$F,$B88,Database!$C:$C,AE$3,Database!$P:$P,$C$63,Database!$N:$N,AE$5)+SUMIFS(Database!$L:$L,Database!$F:$F,$B88,Database!$C:$C,AE$3,Database!$P:$P,$C$63,Database!$N:$N,"n/a") -> 117.4186667 | AI88: =SUMIFS(Database!$L:$L,Database!$F:$F,$B88,Database!$C:$C,AI$3,Database!$P:$P,$C$63,Database!$N:$N,AI$5)+SUMIFS(Database!$L:$L,Database!$F:$F,$B88,Database!$C:$C,AI$3,Database!$P:$P,$C$63,Database!$N:$N,"n/a") -> 117.4186667
B89: Price | E89: =J89 -> 0 | J89: ='Price assumptions'!C9 -> 0 | M89: =R89 -> 0 | R89: ='Price assumptions'!D9 -> 0 | U89: =Z89 -> 25220 | Z89: ='Price assumptions'!E9 -> 25220 | AC89: =AH89 -> 0 | AH89: ='Price assumptions'!F9 -> 0
E93: =IF($C$94="Low",E2,IF($C$94="Medium",E32,E62)) -> MediumResidential careSelf funderPerson | F93: MediumResidential careSelf funderLA | G93: MediumResidential careSelf funderNHS | H93: MediumResidential careSelf funderCentral Govt | I93: MediumResidential careFundedPerson | J93: MediumResidential careFundedLA | K93: MediumResidential careFundedNHS | L93: MediumResidential careFundedCentral Govt | M93: MediumExtra careSelf funderPerson | N93: MediumExtra careSelf funderLA | O93: MediumExtra careSelf funderNHS | P93: MediumExtra careSelf funderCentral Govt | Q93: MediumExtra careFundedPerson | R93: MediumExtra careFundedLA | S93: MediumExtra careFundedNHS | T93: MediumExtra careFundedCentral Govt | U93: MediumShared LivesSelf funderPerson | V93: MediumShared LivesSelf funderLA | W93: MediumShared LivesSelf funderNHS | X93: MediumShared LivesSelf funderCentral Govt | Y93: MediumShared LivesFundedPerson | Z93: MediumShared LivesFundedLA | AA93: MediumShared LivesFundedNHS | AB93: MediumShared LivesFundedCentral Govt | AC93: MediumRetirement housingSelf funderPerson | AD93: MediumRetirement housingSelf funderLA | AE93: MediumRetirement housingSelf funderNHS | AF93: MediumRetirement housingSelf funderCentral Govt | AG93: MediumRetirement housingFundedPerson | AH93: MediumRetirement housingFundedLA | AI93: MediumRetirement housingFundedNHS | AJ93: MediumRetirement housingFundedCentral Govt
B94: Needs assumption * Please see needs assumption sheet to understand how needs change costs and benefits | C94: ='User inputs'!D33 -> Medium | E94: Residential care | F94: Residential care | G94: Residential care | H94: Residential care | I94: Residential care | J94: Residential care | K94: Residential care | L94: Residential care | M94: Extra care | N94: Extra care | O94: Extra care | P94: Extra care | Q94: Extra care | R94: Extra care | S94: Extra care | T94: Extra care | U94: Shared Lives | V94: Shared Lives | W94: Shared Lives | X94: Shared Lives | Y94: Shared Lives | Z94: Shared Lives | AA94: Shared Lives | AB94: Shared Lives | AC94: Retirement housing | AD94: Retirement housing | AE94: Retirement housing | AF94: Retirement housing | AG94: Retirement housing | AH94: Retirement housing | AI94: Retirement housing | AJ94: Retirement housing
E95: Self funder | F95: Self funder | G95: Self funder | H95: Self funder | I95: Funded | J95: Funded | K95: Funded | L95: Funded | M95: Self funder | N95: Self funder | O95: Self funder | P95: Self funder | Q95: Funded | R95: Funded | S95: Funded | T95: Funded | U95: Self funder | V95: Self funder | W95: Self funder | X95: Self funder | Y95: Funded | Z95: Funded | AA95: Funded | AB95: Funded | AC95: Self funder | AD95: Self funder | AE95: Self funder | AF95: Self funder | AG95: Funded | AH95: Funded | AI95: Funded | AJ95: Funded
E96: Yes | F96: Yes | G96: Yes | H96: Yes | I96: No | J96: No | K96: No | L96: No | M96: Yes | N96: Yes | O96: Yes | P96: Yes | Q96: No | R96: No | S96: No | T96: No | U96: Yes | V96: Yes | W96: Yes | X96: Yes | Y96: No | Z96: No | AA96: No | AB96: No | AC96: Yes | AD96: Yes | AE96: Yes | AF96: Yes | AG96: No | AH96: No | AI96: No | AJ96: No
E97: Who Pays | I97: Who Pays | M97: Who Pays | Q97: Who Pays | U97: Who pays | Y97: Who pays | AC97: Who pays | AG97: Who pays
B98: Cost detail | C98: Cost theme | D98: Cost category | E98: Person | F98: LA | G98: NHS | H98: Central Govt | I98: Person | J98: LA | K98: NHS | L98: Central Govt | M98: Person | N98: LA | O98: NHS | P98: Central Govt | Q98: Person | R98: LA | S98: NHS | T98: Central Govt | U98: Person | V98: LA | W98: NHS | X98: Central Govt | Y98: Person | Z98: LA | AA98: NHS | AB98: Central Govt | AC98: Person | AD98: LA | AE98: NHS | AF98: Central Govt | AG98: Person | AH98: LA | AI98: NHS | AJ98: Central Govt
B99: Care costs | C99: Care staff costs | D99: Production costs | E99: =IF($C$94="Low",E8,IF($C$94="Medium",E38,E68)) -> 23575 | J99: =IF($C$94="Low",J8,IF($C$94="Medium",J38,J68)) -> 23575 | M99: =IF($C$94="Low",M8,IF($C$94="Medium",M38,M68)) -> 15089.6 | N99: 0 | P99: =IF($C$94="Low",P8,IF($C$94="Medium",P38,P68)) -> 0 | R99: =IF($C$94="Low",R8,IF($C$94="Medium",R38,R68)) -> 15089.6 | U99: =IF($C$94="Low",U8,IF($C$94="Medium",U38,U68)) -> 14976 | Z99: =IF($C$94="Low",Z8,IF($C$94="Medium",Z38,Z68)) -> 14976 | AC99: =IF($C$94="Low",AC8,IF($C$94="Medium",AC38,AC68)) -> 15089.6 | AH99: =IF($C$94="Low",AH8,IF($C$94="Medium",AH38,AH68)) -> 15089.6
B100: Board and lodgings payment | C100: Running costs | D100: Production costs | J100: =IF($C$94="Low",J9,IF($C$94="Medium",J39,J69)) -> 0 | M100: 0 | N100: 0 | P100: =IF($C$94="Low",P9,IF($C$94="Medium",P39,P69)) -> 0 | R100: =IF($C$94="Low",R9,IF($C$94="Medium",R39,R69)) -> 0 | U100: =IF($C$94="Low",U9,IF($C$94="Medium",U39,U69)) -> 3484 | Z100: =IF($C$94="Low",Z9,IF($C$94="Medium",Z39,Z69)) -> 3484 | AC100: =IF($C$94="Low",AC9,IF($C$94="Medium",AC39,AC69)) -> 0 | AD100: =IF($C$94="Low",AD9,IF($C$94="Medium",AD39,AD69)) -> 0 | AF100: =IF($C$94="Low",AF9,IF($C$94="Medium",AF39,AF69)) -> 0 | AH100: =IF($C$94="Low",AH9,IF($C$94="Medium",AH39,AH69)) -> 0
B101: Housing management cost | C101: Running costs | D101: Production costs | E101: =IF($C$94="Low",E10,IF($C$94="Medium",E40,E70)) -> 6448 | J101: =IF($C$94="Low",J10,IF($C$94="Medium",J40,J70)) -> 6448 | M101: 2743.52 | N101: 0 | P101: =IF($C$94="Low",P10,IF($C$94="Medium",P40,P70)) -> 0 | R101: =IF($C$94="Low",R10,IF($C$94="Medium",R40,R70)) -> 2743.52 | U101: =IF($C$94="Low",U10,IF($C$94="Medium",U40,U70)) -> 1456 | Z101: =IF($C$94="Low",Z10,IF($C$94="Medium",Z40,Z70)) -> 1456 | AC101: =IF($C$94="Low",AC10,IF($C$94="Medium",AC40,AC70)) -> 2250 | AD101: =IF($C$94="Low",AD10,IF($C$94="Medium",AD40,AD70)) -> 0 | AH101: =IF($C$94="Low",AH10,IF($C$94="Medium",AH40,AH70)) -> 2250
B102: Running costs | C102: Running costs | D102: Production costs | E102: =IF($C$94="Low",E11,IF($C$94="Medium",E41,E71)) -> 6448 | F102: =IF($C$94="Low",F11,IF($C$94="Medium",F41,F71)) -> 0 | H102: =IF($C$94="Low",H11,IF($C$94="Medium",H41,H71)) -> 0 | J102: =IF($C$94="Low",J11,IF($C$94="Medium",J41,J71)) -> 6448 | M102: 2743.52 | N102: 0 | P102: =IF($C$94="Low",P11,IF($C$94="Medium",P41,P71)) -> 0 | R102: =IF($C$94="Low",R11,IF($C$94="Medium",R41,R71)) -> 2743.52 | T102: =IF($C$94="Low",T11,IF($C$94="Medium",T41,T71)) -> 0 | U102: =IF($C$94="Low",U11,IF($C$94="Medium",U41,U71)) -> 4940 | V102: =IF($C$94="Low",V11,IF($C$94="Medium",V41,V71)) -> 0 | X102: =IF($C$94="Low",X11,IF($C$94="Medium",X41,X71)) -> 0 | Z102: =IF($C$94="Low",Z11,IF($C$94="Medium",Z41,Z71)) -> 4940 | AB102: =IF($C$94="Low",AB11,IF($C$94="Medium",AB41,AB71)) -> 0 | AC102: =IF($C$94="Low",AC11,IF($C$94="Medium",AC41,AC71)) -> 2250 | AD102: =IF($C$94="Low",AD11,IF($C$94="Medium",AD41,AD71)) -> 0 | AF102: =IF($C$94="Low",AF11,IF($C$94="Medium",AF41,AF71)) -> 0 | AH102: =IF($C$94="Low",AH11,IF($C$94="Medium",AH41,AH71)) -> 2250 | AJ102: =IF($C$94="Low",AJ11,IF($C$94="Medium",AJ41,AJ71)) -> 0
B103: Land costs | C103: Land costs | D103: Capital costs | F103: =IF($C$94="Low",F12,IF($C$94="Medium",F42,F72)) -> 6396 | J103: =IF($C$94="Low",J12,IF($C$94="Medium",J42,J72)) -> 6396 | M103: 0 | N103: 6032 | P103: =IF($C$94="Low",P12,IF($C$94="Medium",P42,P72)) -> 0 | R103: =IF($C$94="Low",R12,IF($C$94="Medium",R42,R72)) -> 6032 | U103: =IF($C$94="Low",U12,IF($C$94="Medium",U42,U72)) -> 0 | V103: =IF($C$94="Low",V12,IF($C$94="Medium",V42,V72)) -> 0 | X103: =IF($C$94="Low",X12,IF($C$94="Medium",X42,X72)) -> 0 | Z103: =IF($C$94="Low",Z12,IF($C$94="Medium",Z42,Z72)) -> 0 | AD103: =IF($C$94="Low",AD12,IF($C$94="Medium",AD42,AD72)) -> 9360 | AH103: =IF($C$94="Low",AH12,IF($C$94="Medium",AH42,AH72)) -> 9360
B104: Financial support
B105: Rental of a room in a Shared Lives scheme - housing benefit | C105: Production cost | D105: Financial support | H105: =IF($C$94="Low",H14,IF($C$94="Medium",H44,H74)) -> 0 | J105: =IF($C$94="Low",J14,IF($C$94="Medium",J44,J74)) -> 0 | M105: =IF($C$94="Low",M14,IF($C$94="Medium",M44,M74)) -> 0 | N105: =IF($C$94="Low",N14,IF($C$94="Medium",N44,N74)) -> 0 | P105: =IF($C$94="Low",P14,IF($C$94="Medium",P44,P74)) -> 0 | R105: =IF($C$94="Low",R14,IF($C$94="Medium",R44,R74)) -> 0 | T105: =IF($C$94="Low",T14,IF($C$94="Medium",T44,T74)) -> 0 | U105: 4056 | V105: 0 | X105: =IF($C$94="Low",X14,IF($C$94="Medium",X44,X74)) -> 0 | Z105: =IF($C$94="Low",Z14,IF($C$94="Medium",Z44,Z74)) -> 0 | AB105: =IF($C$94="Low",AB14,IF($C$94="Medium",AB44,AB74)) -> 4056 | AC105: 0 | AD105: 0 | AF105: =IF($C$94="Low",AF14,IF($C$94="Medium",AF44,AF74)) -> 0 | AH105: =IF($C$94="Low",AH14,IF($C$94="Medium",AH44,AH74)) -> 0 | AJ105: =IF($C$94="Low",AJ14,IF($C$94="Medium",AJ44,AJ74)) -> 0
B106: Rental - Housing benefit | C106: Housing benefit | D106: Financial support | H106: 0 | J106: =IF($C$94="Low",J15,IF($C$94="Medium",J45,J75)) -> 4056 | M106: =IF($C$94="Low",M15,IF($C$94="Medium",M45,M75)) -> 0 | N106: =IF($C$94="Low",N15,IF($C$94="Medium",N45,N75)) -> 0 | P106: 0 | R106: =IF($C$94="Low",R15,IF($C$94="Medium",R45,R75)) -> 0 | T106: 4056 | U106: 0 | V106: 0 | X106: 0 | Z106: =IF($C$94="Low",Z15,IF($C$94="Medium",Z45,Z75)) -> 0 | AB106: 0 | AC106: 0 | AD106: 0 | AF106: 0 | AH106: =IF($C$94="Low",AH15,IF($C$94="Medium",AH45,AH75)) -> 0 | AJ106: =IF($C$94="Low",AJ15,IF($C$94="Medium",AJ45,AJ75)) -> 4056
B107: Attendance Allowance | C107: Attendance Allowance | D107: Financial support | H107: 21791 | J107: =IF($C$94="Low",J16,IF($C$94="Medium",J46,J76)) -> 21791 | P107: 21791 | R107: =IF($C$94="Low",R16,IF($C$94="Medium",R46,R76)) -> 21791 | X107: 21791 | Z107: =IF($C$94="Low",Z16,IF($C$94="Medium",Z46,Z76)) -> 21791 | AF107: 21791 | AH107: =IF($C$94="Low",AH16,IF($C$94="Medium",AH46,AH76)) -> 21791
B108: Equipment and adaptions | C108: Other | D108: Financial support | H108: 0 | M108: =IF($C$94="Low",M17,IF($C$94="Medium",M47,M77)) -> 0 | N108: 0 | P108: 0 | U108: =IF($C$94="Low",U17,IF($C$94="Medium",U47,U77)) -> 0 | V108: 0 | X108: 0 | Z108: =IF($C$94="Low",Z17,IF($C$94="Medium",Z47,Z77)) -> 125 | AC108: =IF($C$94="Low",AC17,IF($C$94="Medium",AC47,AC77)) -> 0 | AD108: 0 | AF108: 0 | AH108: =IF($C$94="Low",AH17,IF($C$94="Medium",AH47,AH77)) -> 125
B109: Disability and Facilities grant | C109: Other | D109: Financial support | H109: 0 | M109: 0 | N109: 0 | P109: 0 | U109: 0 | V109: 0 | X109: 0 | AB109: =IF($C$94="Low",AB18,IF($C$94="Medium",AB48,AB78)) -> 750 | AC109: 0 | AD109: 0 | AF109: 0 | AJ109: =IF($C$94="Low",AJ18,IF($C$94="Medium",AJ48,AJ78)) -> 750
B110: Other | C110: Other | D110: Financial support | H110: 0 | J110: =IF($C$94="Low",J19,IF($C$94="Medium",J49,J79)) -> 0 | M110: 0 | N110: 0 | P110: 0 | R110: =IF($C$94="Low",R19,IF($C$94="Medium",R49,R79)) -> 0 | T110: =IF($C$94="Low",T19,IF($C$94="Medium",T49,T79)) -> 0 | U110: 0 | V110: 0 | X110: 0 | Z110: =IF($C$94="Low",Z19,IF($C$94="Medium",Z49,Z79)) -> 125 | AB110: =IF($C$94="Low",AB19,IF($C$94="Medium",AB49,AB79)) -> 750 | AC110: 0 | AD110: 0 | AF110: 0 | AH110: =IF($C$94="Low",AH19,IF($C$94="Medium",AH49,AH79)) -> 125 | AJ110: =IF($C$94="Low",AJ19,IF($C$94="Medium",AJ49,AJ79)) -> 750
B111: Council tax | C111: Council tax | D111: Financial support | H111: 0 | J111: =IF($C$94="Low",J20,IF($C$94="Medium",J50,J80)) -> 0 | M111: 852.02 | N111: 0 | P111: 0 | R111: =IF($C$94="Low",R20,IF($C$94="Medium",R50,R80)) -> 852.02 | U111: 0 | V111: 0 | X111: 0 | Z111: =SUMIFS(Database!$L:$L,Database!$F:$F,$B111,Database!$C:$C,Z$3,Database!$P:$P,$C$3,Database!$N:$N,Z$5)+SUMIFS(Database!$L:$L,Database!$F:$F,$B111,Database!$C:$C,Z$3,Database!$P:$P,$C$3,Database!$N:$N,"n/a") -> 0 | AB111: =IF($C$94="Low",AB20,IF($C$94="Medium",AB50,AB80)) -> 0 | AC111: 852.02 | AD111: 0 | AF111: 0 | AH111: =IF($C$94="Low",AH20,IF($C$94="Medium",AH50,AH80)) -> 852.02
B112: Benefits
B113: Falls | C113: NHS Benefits | D113: Benefits | G113: =IF($C$94="Low",G22,IF($C$94="Medium",G52,G82)) -> -21.08 | K113: =IF($C$94="Low",K22,IF($C$94="Medium",K52,K82)) -> -21.08 | M113: =IF($C$94="Low",M22,IF($C$94="Medium",#REF!,M82)) ->  | O113: =IF($C$94="Low",O22,IF($C$94="Medium",O52,O82)) -> 379.44 | S113: =IF($C$94="Low",S22,IF($C$94="Medium",S52,S82)) -> 379.44 | V113: =IF($C$94="Low",V22,IF($C$94="Medium",V52,V82)) -> 716.72 | AA113: =IF($C$94="Low",AA22,IF($C$94="Medium",AA52,AA82)) -> 716.72 | AE113: =IF($C$94="Low",AE22,IF($C$94="Medium",AE52,AE82)) -> 480.427907 | AI113: =IF($C$94="Low",AI22,IF($C$94="Medium",AI52,AI82)) -> 480.427907
B114: Reduction in loneliness | C114: NHS Benefits | D114: Benefits | G114: 27.86 | K114: 27.86 | M114: =IF($C$94="Low",M23,IF($C$94="Medium",M53,M83)) -> 0 | O114: 171.14 | S114: 171.14 | V114: 151.24 | AA114: 151.24 | AE114: 97.51 | AI114: 97.51
B115: Hospital admissions | C115: NHS Benefits | D115: Benefits | G115: 4044 | K115: 4044 | M115: 0 | O115: 5055 | S115: 5055 | V115: 3341.916667 | AA115: 3341.916667 | AE115: 3370 | AI115: 3370
B116: GP visits | C116: NHS Benefits | D116: Benefits | G116: 0 | K116: 0 | M116: 0 | O116: 144.78 | S116: 144.78 | U116: =IF($C$94="Low",U25,IF($C$94="Medium",U55,U85)) -> 0 | V116: 0 | AA116: 0 | AE116: 0 | AI116: 0
B117: Community nurse visits | C117: NHS Benefits | D117: Benefits | G117: 0 | K117: 0 | M117: 0 | O117: 362.55 | S117: 362.55 | U117: =IF($C$94="Low",U26,IF($C$94="Medium",U56,U86)) -> 0 | V117: 0 | AA117: 0 | AE117: 0 | AI117: 0
B118: DTOC | C118: NHS Benefits | D118: Benefits | G118: 0 | K118: 0 | M118: 0 | O118: 465.3 | S118: 465.3 | U118: =IF($C$94="Low",U27,IF($C$94="Medium",U57,U87)) -> 0 | V118: 0 | AA118: 0 | AE118: 0 | AI118: 0
B119: Fire-related fatalities | C119: Social Benefits | D119: Benefits | G119: 116.6608696 | K119: 116.6608696 | M119: 0 | O119: 116.6608696 | S119: 116.6608696 | V119: 103.2 | AA119: 103.2 | AE119: 91.73333333 | AI119: 91.73333333
B120: Price | E120: =IF($C$94="Low",E29,IF($C$94="Medium",E59,E89)) -> 37544 | J120: =IF($C$94="Low",J29,IF($C$94="Medium",J59,J89)) -> 37544 | M120: 0 | R120: =IF($C$94="Low",R29,IF($C$94="Medium",R59,R89)) -> 0 | U120: =IF($C$94="Low",U29,IF($C$94="Medium",U59,U89)) -> 22516 | Z120: =IF($C$94="Low",Z29,IF($C$94="Medium",Z59,Z89)) -> 22516 | AC120: =IF($C$94="Low",AC29,IF($C$94="Medium",AC59,AC89)) -> 0 | AH120: =IF($C$94="Low",AH29,IF($C$94="Medium",AH59,AH89)) -> 0

Sheet Who pays assumptions - ORIGINAL
E2: =CONCATENATE($C$3,E3,E4,E7) -> LowResidential careSelf funderPerson | F2: =CONCATENATE($C$3,F3,F4,F7) -> LowResidential careSelf funderLA | G2: LowResidential careSelf funderNHS | H2: LowResidential careSelf funderCentral Govt | I2: LowResidential careFundedPerson | J2: LowResidential careFundedLA | K2: LowResidential careFundedNHS | L2: LowResidential careFundedCentral Govt | M2: LowExtra careSelf funderPerson | N2: LowExtra careSelf funderLA | O2: LowExtra careSelf funderNHS | P2: LowExtra careSelf funderCentral Govt | Q2: LowExtra careFundedPerson | R2: LowExtra careFundedLA | S2: LowExtra careFundedNHS | T2: LowExtra careFundedCentral Govt | U2: LowShared LivesSelf funderPerson | V2: LowShared LivesSelf funderLA | W2: LowShared LivesSelf funderNHS | X2: LowShared LivesSelf funderCentral Govt | Y2: LowShared LivesFundedPerson | Z2: LowShared LivesFundedLA | AA2: LowShared LivesFundedNHS | AB2: LowShared LivesFundedCentral Govt | AC2: LowRetirement housingSelf funderPerson | AD2: LowRetirement housingSelf funderLA | AE2: LowRetirement housingSelf funderNHS | AF2: LowRetirement housingSelf funderCentral Govt | AG2: LowRetirement housingFundedPerson | AH2: LowRetirement housingFundedLA | AI2: LowRetirement housingFundedNHS | AJ2: LowRetirement housingFundedCentral Govt
B3: Needs assumption * Please see needs assumption sheet to understand how needs change costs and benefits | C3: Low | E3: Residential care | F3: Residential care | G3: Residential care | H3: Residential care | I3: Residential care | J3: Residential care | K3: Residential care | L3: Residential care | M3: Extra care | N3: Extra care | O3: Extra care | P3: Extra care | Q3: Extra care | R3: Extra care | S3: Extra care | T3: Extra care | U3: Shared Lives | V3: Shared Lives | W3: Shared Lives | X3: Shared Lives | Y3: Shared Lives | Z3: Shared Lives | AA3: Shared Lives | AB3: Shared Lives | AC3: Retirement housing | AD3: Retirement housing | AE3: Retirement housing | AF3: Retirement housing | AG3: Retirement housing | AH3: Retirement housing | AI3: Retirement housing | AJ3: Retirement housing
E4: Self funder | F4: Self funder | G4: Self funder | H4: Self funder | I4: Funded | J4: Funded | K4: Funded | L4: Funded | M4: Self funder | N4: Self funder | O4: Self funder | P4: Self funder | Q4: Funded | R4: Funded | S4: Funded | T4: Funded | U4: Self funder | V4: Self funder | W4: Self funder | X4: Self funder | Y4: Funded | Z4: Funded | AA4: Funded | AB4: Funded | AC4: Self funder | AD4: Self funder | AE4: Self funder | AF4: Self funder | AG4: Funded | AH4: Funded | AI4: Funded | AJ4: Funded
E5: Yes | F5: Yes | G5: Yes | H5: Yes | I5: No | J5: No | K5: No | L5: No | M5: Yes | N5: Yes | O5: Yes | P5: Yes | Q5: No | R5: No | S5: No | T5: No | U5: Yes | V5: Yes | W5: Yes | X5: Yes | Y5: No | Z5: No | AA5: No | AB5: No | AC5: Yes | AD5: Yes | AE5: Yes | AF5: Yes | AG5: No | AH5: No | AI5: No | AJ5: No
E6: Who Pays | I6: Who Pays | M6: Who Pays | Q6: Who Pays | U6: Who pays | Y6: Who pays | AC6: Who pays | AG6: Who pays
B7: Cost detail | C7: Cost theme | D7: Cost category | E7: Person | F7: LA | G7: NHS | H7: Central Govt | I7: Person | J7: LA | K7: NHS | L7: Central Govt | M7: Person | N7: LA | O7: NHS | P7: Central Govt | Q7: Person | R7: LA | S7: NHS | T7: Central Govt | U7: Person | V7: LA | W7: NHS | X7: Central Govt | Y7: Person | Z7: LA | AA7: NHS | AB7: Central Govt | AC7: Person | AD7: LA | AE7: NHS | AF7: Central Govt | AG7: Person | AH7: LA | AI7: NHS | AJ7: Central Govt
B8: Care costs | C8: Care staff costs | D8: Production costs | E8: ='Care staff costs'!$H$7 -> 19030.2 | J8: ='Care staff costs'!$H$7 -> 19030.2 | M8: ='Care staff costs'!$H$25 -> 10544.8 | N8: 0 | R8: ='Care staff costs'!$H$25 -> 10544.8 | U8: ='Care staff costs'!$H$30 -> 12688 | Z8: ='Care staff costs'!$H$30 -> 12688 | AC8: ='Care staff costs'!$H$16 -> 10544.8 | AH8: ='Care staff costs'!$H$16 -> 10544.8
B9: Board and lodgings payment | C9: Running costs | D9: Production costs | J9: =SUMIFS(Database!$L:$L,Database!$F:$F,$B9,Database!$C:$C,J$3,Database!$P:$P,$C$3,Database!$N:$N,J$5)+SUMIFS(Database!$L:$L,Database!$F:$F,$B9,Database!$C:$C,J$3,Database!$P:$P,$C$3,Database!$N:$N,"n/a") -> 0 | M9: =SUMIFS(Database!$L:$L,Database!$F:$F,$B9,Database!$C:$C,M$3,Database!$P:$P,$C$3,Database!$N:$N,M$5)+SUMIFS(Database!$L:$L,Database!$F:$F,$B9,Database!$C:$C,M$3,Database!$P:$P,$C$3,Database!$N:$N,"n/a") -> 0 | N9: =SUMIFS(Database!$L:$L,Database!$F:$F,$B9,Database!$C:$C,N$3,Database!$P:$P,$C$3,Database!$N:$N,N$5)+SUMIFS(Database!$L:$L,Database!$F:$F,$B9,Database!$C:$C,N$3,Database!$P:$P,$C$3,Database!$N:$N,"n/a") -> 0 | R9: =SUMIFS(Database!$L:$L,Database!$F:$F,$B9,Database!$C:$C,R$3,Database!$P:$P,$C$3,Database!$N:$N,R$5)+SUMIFS(Database!$L:$L,Database!$F:$F,$B9,Database!$C:$C,R$3,Database!$P:$P,$C$3,Database!$N:$N,"n/a") -> 0 | U9: =SUMIFS(Database!$L:$L,Database!$F:$F,$B9,Database!$C:$C,U$3,Database!$P:$P,$C$3,Database!$N:$N,U$5)+SUMIFS(Database!$L:$L,Database!$F:$F,$B9,Database!$C:$C,U$3,Database!$P:$P,$C$3,Database!$N:$N,"n/a") -> 3484 | Z9: =SUMIFS(Database!$L:$L,Database!$F:$F,$B9,Database!$C:$C,Z$3,Database!$P:$P,$C$3,Database!$N:$N,Z$5)+SUMIFS(Database!$L:$L,Database!$F:$F,$B9,Database!$C:$C,Z$3,Database!$P:$P,$C$3,Database!$N:$N,"n/a") -> 3484 | AC9: =SUMIFS(Database!$L:$L,Database!$F:$F,$B9,Database!$C:$C,AC$3,Database!$P:$P,$C$3,Database!$N:$N,AC$5)+SUMIFS(Database!$L:$L,Database!$F:$F,$B9,Database!$C:$C,AC$3,Database!$P:$P,$C$3,Database!$N:$N,"n/a") -> 0 | AD9: =SUMIFS(Database!$L:$L,Database!$F:$F,$B9,Database!$C:$C,AD$3,Database!$P:$P,$C$3,Database!$N:$N,AD$5)+SUMIFS(Database!$L:$L,Database!$F:$F,$B9,Database!$C:$C,AD$3,Database!$P:$P,$C$3,Database!$N:$N,"n/a") -> 0 | AF9: =SUMIFS(Database!$L:$L,Database!$F:$F,$B9,Database!$C:$C,AF$3,Database!$P:$P,$C$3,Database!$N:$N,AF$5)+SUMIFS(Database!$L:$L,Database!$F:$F,$B9,Database!$C:$C,AF$3,Database!$P:$P,$C$3,Database!$N:$N,"n/a") -> 0 | AH9: =SUMIFS(Database!$L:$L,Database!$F:$F,$B9,Database!$C:$C,AH$3,Database!$P:$P,$C$3,Database!$N:$N,AH$5)+SUMIFS(Database!$L:$L,Database!$F:$F,$B9,Database!$C:$C,AH$3,Database!$P:$P,$C$3,Database!$N:$N,"n/a") -> 0
B10: Housing management cost | C10: Running costs | D10: Production costs | E10: =SUMIFS(Database!$L:$L,Database!$F:$F,$B10,Database!$C:$C,E$3,Database!$P:$P,$C$3,Database!$N:$N,E$5)+SUMIFS(Database!$L:$L,Database!$F:$F,$B10,Database!$C:$C,E$3,Database!$P:$P,$C$3,Database!$N:$N,"n/a") -> 6448 | J10: =SUMIFS(Database!$L:$L,Database!$F:$F,$B10,Database!$C:$C,J$3,Database!$P:$P,$C$3,Database!$N:$N,J$5)+SUMIFS(Database!$L:$L,Database!$F:$F,$B10,Database!$C:$C,J$3,Database!$P:$P,$C$3,Database!$N:$N,"n/a") -> 6448 | M10: =SUMIFS(Database!$L:$L,Database!$F:$F,$B10,Database!$C:$C,M$3,Database!$P:$P,$C$3,Database!$N:$N,M$5)+SUMIFS(Database!$L:$L,Database!$F:$F,$B10,Database!$C:$C,M$3,Database!$P:$P,$C$3,Database!$N:$N,"n/a") -> 2743.52 | N10: 0 | R10: =SUMIFS(Database!$L:$L,Database!$F:$F,$B10,Database!$C:$C,R$3,Database!$P:$P,$C$3,Database!$N:$N,R$5)+SUMIFS(Database!$L:$L,Database!$F:$F,$B10,Database!$C:$C,R$3,Database!$P:$P,$C$3,Database!$N:$N,"n/a") -> 2743.52 | U10: =SUMIFS(Database!$L:$L,Database!$F:$F,$B10,Database!$C:$C,U$3,Database!$P:$P,$C$3,Database!$N:$N,U$5)+SUMIFS(Database!$L:$L,Database!$F:$F,$B10,Database!$C:$C,U$3,Database!$P:$P,$C$3,Database!$N:$N,"n/a") -> 1456 | Z10: =SUMIFS(Database!$L:$L,Database!$F:$F,$B10,Database!$C:$C,Z$3,Database!$P:$P,$C$3,Database!$N:$N,Z$5)+SUMIFS(Database!$L:$L,Database!$F:$F,$B10,Database!$C:$C,Z$3,Database!$P:$P,$C$3,Database!$N:$N,"n/a") -> 1456 | AC10: =SUMIFS(Database!$L:$L,Database!$F:$F,$B10,Database!$C:$C,AC$3,Database!$P:$P,$C$3,Database!$N:$N,AC$5)+SUMIFS(Database!$L:$L,Database!$F:$F,$B10,Database!$C:$C,AC$3,Database!$P:$P,$C$3,Database!$N:$N,"n/a") -> 2250 | AH10: =SUMIFS(Database!$L:$L,Database!$F:$F,$B10,Database!$C:$C,AH$3,Database!$P:$P,$C$3,Database!$N:$N,AH$5)+SUMIFS(Database!$L:$L,Database!$F:$F,$B10,Database!$C:$C,AH$3,Database!$P:$P,$C$3,Database!$N:$N,"n/a") -> 2250
B11: Running costs | C11: Running costs | D11: Production costs | E11: =SUM(E9:E10) -> 6448 | J11: =SUM(J9:J10) -> 6448 | M11: 2743.52 | N11: 0 | R11: 2743.52 | T11: 0 | U11: 4940 | V11: 0 | X11: 0 | Z11: =SUM(Z9:Z10) -> 4940 | AB11: 0 | AC11: 2250 | AD11: 0 | AF11: 0 | AH11: =SUM(AH9:AH10) -> 2250 | AJ11: =SUM(AJ9:AJ10) -> 0
B12: Land costs | C12: Land costs | D12: Capital costs | F12: =SUMIFS(Database!$L:$L,Database!$F:$F,$B12,Database!$C:$C,F$3,Database!$P:$P,$C$3,Database!$N:$N,F$5)+SUMIFS(Database!$L:$L,Database!$F:$F,$B12,Database!$C:$C,F$3,Database!$P:$P,$C$3,Database!$N:$N,"n/a") -> 6396 | J12: =SUMIFS(Database!$L:$L,Database!$F:$F,$B12,Database!$C:$C,J$3,Database!$P:$P,$C$3,Database!$N:$N,J$5)+SUMIFS(Database!$L:$L,Database!$F:$F,$B12,Database!$C:$C,J$3,Database!$P:$P,$C$3,Database!$N:$N,"n/a") -> 6396 | M12: 0 | N12: =SUMIFS(Database!$L:$L,Database!$F:$F,$B12,Database!$C:$C,N$3,Database!$P:$P,$C$3,Database!$N:$N,N$5)+SUMIFS(Database!$L:$L,Database!$F:$F,$B12,Database!$C:$C,N$3,Database!$P:$P,$C$3,Database!$N:$N,"n/a") -> 6032 | R12: =SUMIFS(Database!$L:$L,Database!$F:$F,$B12,Database!$C:$C,R$3,Database!$P:$P,$C$3,Database!$N:$N,R$5)+SUMIFS(Database!$L:$L,Database!$F:$F,$B12,Database!$C:$C,R$3,Database!$P:$P,$C$3,Database!$N:$N,"n/a") -> 6032 | U12: =SUMIFS(Database!$L:$L,Database!$F:$F,$B12,Database!$C:$C,U$3,Database!$P:$P,$C$3,Database!$N:$N,U$5)+SUMIFS(Database!$L:$L,Database!$F:$F,$B12,Database!$C:$C,U$3,Database!$P:$P,$C$3,Database!$N:$N,"n/a") -> 0 | V12: =SUMIFS(Database!$L:$L,Database!$F:$F,$B12,Database!$C:$C,V$3,Database!$P:$P,$C$3,Database!$N:$N,V$5)+SUMIFS(Database!$L:$L,Database!$F:$F,$B12,Database!$C:$C,V$3,Database!$P:$P,$C$3,Database!$N:$N,"n/a") -> 0 | X12: =SUMIFS(Database!$L:$L,Database!$F:$F,$B12,Database!$C:$C,X$3,Database!$P:$P,$C$3,Database!$N:$N,X$5)+SUMIFS(Database!$L:$L,Database!$F:$F,$B12,Database!$C:$C,X$3,Database!$P:$P,$C$3,Database!$N:$N,"n/a") -> 0 | Z12: =SUMIFS(Database!$L:$L,Database!$F:$F,$B12,Database!$C:$C,Z$3,Database!$P:$P,$C$3,Database!$N:$N,Z$5)+SUMIFS(Database!$L:$L,Database!$F:$F,$B12,Database!$C:$C,Z$3,Database!$P:$P,$C$3,Database!$N:$N,"n/a") -> 0 | AD12: =SUMIFS(Database!$L:$L,Database!$F:$F,$B12,Database!$C:$C,AD$3,Database!$P:$P,$C$3,Database!$N:$N,AD$5)+SUMIFS(Database!$L:$L,Database!$F:$F,$B12,Database!$C:$C,AD$3,Database!$P:$P,$C$3,Database!$N:$N,"n/a") -> 9360 | AH12: =SUMIFS(Database!$L:$L,Database!$F:$F,$B12,Database!$C:$C,AH$3,Database!$P:$P,$C$3,Database!$N:$N,AH$5)+SUMIFS(Database!$L:$L,Database!$F:$F,$B12,Database!$C:$C,AH$3,Database!$P:$P,$C$3,Database!$N:$N,"n/a") -> 9360
B13: Financial support
B14: Rental of a room in a Shared Lives scheme - housing benefit | C14: Production cost | D14: Financial support | J14: =SUMIFS(Database!$L:$L,Database!$F:$F,$B14,Database!$C:$C,J$3,Database!$P:$P,$C$3,Database!$N:$N,J$5)+SUMIFS(Database!$L:$L,Database!$F:$F,$B14,Database!$C:$C,J$3,Database!$P:$P,$C$3,Database!$N:$N,"n/a") -> 0 | M14: =SUMIFS(Database!$L:$L,Database!$F:$F,$B14,Database!$C:$C,M$3,Database!$P:$P,$C$3,Database!$N:$N,M$5)+SUMIFS(Database!$L:$L,Database!$F:$F,$B14,Database!$C:$C,M$3,Database!$P:$P,$C$3,Database!$N:$N,"n/a") -> 0 | N14: =SUMIFS(Database!$L:$L,Database!$F:$F,$B14,Database!$C:$C,N$3,Database!$P:$P,$C$3,Database!$N:$N,N$5)+SUMIFS(Database!$L:$L,Database!$F:$F,$B14,Database!$C:$C,N$3,Database!$P:$P,$C$3,Database!$N:$N,"n/a") -> 0 | R14: =SUMIFS(Database!$L:$L,Database!$F:$F,$B14,Database!$C:$C,R$3,Database!$P:$P,$C$3,Database!$N:$N,R$5)+SUMIFS(Database!$L:$L,Database!$F:$F,$B14,Database!$C:$C,R$3,Database!$P:$P,$C$3,Database!$N:$N,"n/a") -> 0 | T14: =SUMIFS(Database!$L:$L,Database!$F:$F,$B14,Database!$C:$C,T$3,Database!$P:$P,$C$3,Database!$N:$N,T$5)+SUMIFS(Database!$L:$L,Database!$F:$F,$B14,Database!$C:$C,T$3,Database!$P:$P,$C$3,Database!$N:$N,"n/a") -> 0 | U14: =SUMIFS(Database!$L:$L,Database!$F:$F,$B14,Database!$C:$C,U$3,Database!$P:$P,$C$3,Database!$N:$N,U$5)+SUMIFS(Database!$L:$L,Database!$F:$F,$B14,Database!$C:$C,U$3,Database!$P:$P,$C$3,Database!$N:$N,"n/a") -> 4056 | AB14: =SUMIFS(Database!$L:$L,Database!$F:$F,$B14,Database!$C:$C,AB$3,Database!$P:$P,$C$3,Database!$N:$N,AB$5)+SUMIFS(Database!$L:$L,Database!$F:$F,$B14,Database!$C:$C,AB$3,Database!$P:$P,$C$3,Database!$N:$N,"n/a") -> 4056 | AC14: =SUMIFS(Database!$L:$L,Database!$F:$F,$B14,Database!$C:$C,AC$3,Database!$P:$P,$C$3,Database!$N:$N,AC$5)+SUMIFS(Database!$L:$L,Database!$F:$F,$B14,Database!$C:$C,AC$3,Database!$P:$P,$C$3,Database!$N:$N,"n/a") -> 0 | AD14: =SUMIFS(Database!$L:$L,Database!$F:$F,$B14,Database!$C:$C,AD$3,Database!$P:$P,$C$3,Database!$N:$N,AD$5)+SUMIFS(Database!$L:$L,Database!$F:$F,$B14,Database!$C:$C,AD$3,Database!$P:$P,$C$3,Database!$N:$N,"n/a") -> 0 | AF14: =SUMIFS(Database!$L:$L,Database!$F:$F,$B14,Database!$C:$C,AF$3,Database!$P:$P,$C$3,Database!$N:$N,AF$5)+SUMIFS(Database!$L:$L,Database!$F:$F,$B14,Database!$C:$C,AF$3,Database!$P:$P,$C$3,Database!$N:$N,"n/a") -> 0 | AH14: =SUMIFS(Database!$L:$L,Database!$F:$F,$B14,Database!$C:$C,AH$3,Database!$P:$P,$C$3,Database!$N:$N,AH$5)+SUMIFS(Database!$L:$L,Database!$F:$F,$B14,Database!$C:$C,AH$3,Database!$P:$P,$C$3,Database!$N:$N,"n/a") -> 0
B15: Rental - Housing benefit | C15: Housing benefit | D15: Financial support | J15: =T15 -> 4056 | T15: =SUMIFS(Database!$L:$L,Database!$F:$F,$B15,Database!$C:$C,T$3,Database!$P:$P,$C$3,Database!$N:$N,T$5)+SUMIFS(Database!$L:$L,Database!$F:$F,$B15,Database!$C:$C,T$3,Database!$P:$P,$C$3,Database!$N:$N,"n/a") -> 4056 | AJ15: =SUMIFS(Database!$L:$L,Database!$F:$F,$B15,Database!$C:$C,AJ$3,Database!$P:$P,$C$3,Database!$N:$N,AJ$5)+SUMIFS(Database!$L:$L,Database!$F:$F,$B15,Database!$C:$C,AJ$3,Database!$P:$P,$C$3,Database!$N:$N,"n/a") -> 4056
B16: Attendance Allowance | C16: Attendance Allowance | D16: Financial support | J16: =SUMIFS(Database!$L:$L,Database!$F:$F,$B16,Database!$C:$C,J$3,Database!$P:$P,$C$3,Database!$N:$N,J$5)+SUMIFS(Database!$L:$L,Database!$F:$F,$B16,Database!$C:$C,J$3,Database!$P:$P,$C$3,Database!$N:$N,"n/a") -> 0 | R16: =SUMIFS(Database!$L:$L,Database!$F:$F,$B16,Database!$C:$C,R$3,Database!$P:$P,$C$3,Database!$N:$N,R$5)+SUMIFS(Database!$L:$L,Database!$F:$F,$B16,Database!$C:$C,R$3,Database!$P:$P,$C$3,Database!$N:$N,"n/a") -> 0 | X16: =SUMIFS(Database!$L:$L,Database!$F:$F,$B16,Database!$C:$C,X$3,Database!$P:$P,$C$3,Database!$N:$N,X$5)+SUMIFS(Database!$L:$L,Database!$F:$F,$B16,Database!$C:$C,X$3,Database!$P:$P,$C$3,Database!$N:$N,"n/a") -> 0 | Z16: =SUMIFS(Database!$L:$L,Database!$F:$F,$B16,Database!$C:$C,Z$3,Database!$P:$P,$C$3,Database!$N:$N,Z$5)+SUMIFS(Database!$L:$L,Database!$F:$F,$B16,Database!$C:$C,Z$3,Database!$P:$P,$C$3,Database!$N:$N,"n/a") -> 0 | AF16: =SUMIFS(Database!$L:$L,Database!$F:$F,$B16,Database!$C:$C,AF$3,Database!$P:$P,$C$3,Database!$N:$N,AF$5)+SUMIFS(Database!$L:$L,Database!$F:$F,$B16,Database!$C:$C,AF$3,Database!$P:$P,$C$3,Database!$N:$N,"n/a") -> 0 | AH16: =SUMIFS(Database!$L:$L,Database!$F:$F,$B16,Database!$C:$C,AH$3,Database!$P:$P,$C$3,Database!$N:$N,AH$5)+SUMIFS(Database!$L:$L,Database!$F:$F,$B16,Database!$C:$C,AH$3,Database!$P:$P,$C$3,Database!$N:$N,"n/a") -> 0
B17: Equipment and adaptions | C17: Other | D17: Financial support | M17: =SUMIFS(Database!$L:$L,Database!$F:$F,$B17,Database!$C:$C,M$3,Database!$P:$P,$C$3,Database!$N:$N,M$5)+SUMIFS(Database!$L:$L,Database!$F:$F,$B17,Database!$C:$C,M$3,Database!$P:$P,$C$3,Database!$N:$N,"n/a") -> 0 | N17: =SUMIFS(Database!$L:$L,Database!$F:$F,$B17,Database!$C:$C,N$3,Database!$P:$P,$C$3,Database!$N:$N,N$5)+SUMIFS(Database!$L:$L,Database!$F:$F,$B17,Database!$C:$C,N$3,Database!$P:$P,$C$3,Database!$N:$N,"n/a") -> 0 | U17: =SUMIFS(Database!$L:$L,Database!$F:$F,$B17,Database!$C:$C,U$3,Database!$P:$P,$C$3,Database!$N:$N,U$5)+SUMIFS(Database!$L:$L,Database!$F:$F,$B17,Database!$C:$C,U$3,Database!$P:$P,$C$3,Database!$N:$N,"n/a") -> 0 | V17: =SUMIFS(Database!$L:$L,Database!$F:$F,$B17,Database!$C:$C,V$3,Database!$P:$P,$C$3,Database!$N:$N,V$5)+SUMIFS(Database!$L:$L,Database!$F:$F,$B17,Database!$C:$C,V$3,Database!$P:$P,$C$3,Database!$N:$N,"n/a") -> 0 | X17: =SUMIFS(Database!$L:$L,Database!$F:$F,$B17,Database!$C:$C,X$3,Database!$P:$P,$C$3,Database!$N:$N,X$5)+SUMIFS(Database!$L:$L,Database!$F:$F,$B17,Database!$C:$C,X$3,Database!$P:$P,$C$3,Database!$N:$N,"n/a") -> 0 | Z17: =SUMIFS(Database!$L:$L,Database!$F:$F,$B17,Database!$C:$C,Z$3,Database!$P:$P,$C$3,Database!$N:$N,Z$5)+SUMIFS(Database!$L:$L,Database!$F:$F,$B17,Database!$C:$C,Z$3,Database!$P:$P,$C$3,Database!$N:$N,"n/a") -> 83.33333333 | AC17: =SUMIFS(Database!$L:$L,Database!$F:$F,$B17,Database!$C:$C,AC$3,Database!$P:$P,$C$3,Database!$N:$N,AC$5)+SUMIFS(Database!$L:$L,Database!$F:$F,$B17,Database!$C:$C,AC$3,Database!$P:$P,$C$3,Database!$N:$N,"n/a") -> 0 | AD17: =SUMIFS(Database!$L:$L,Database!$F:$F,$B17,Database!$C:$C,AD$3,Database!$P:$P,$C$3,Database!$N:$N,AD$5)+SUMIFS(Database!$L:$L,Database!$F:$F,$B17,Database!$C:$C,AD$3,Database!$P:$P,$C$3,Database!$N:$N,"n/a") -> 0 | AF17: =SUMIFS(Database!$L:$L,Database!$F:$F,$B17,Database!$C:$C,AF$3,Database!$P:$P,$C$3,Database!$N:$N,AF$5)+SUMIFS(Database!$L:$L,Database!$F:$F,$B17,Database!$C:$C,AF$3,Database!$P:$P,$C$3,Database!$N:$N,"n/a") -> 0 | AH17: =SUMIFS(Database!$L:$L,Database!$F:$F,$B17,Database!$C:$C,AH$3,Database!$P:$P,$C$3,Database!$N:$N,AH$5)+SUMIFS(Database!$L:$L,Database!$F:$F,$B17,Database!$C:$C,AH$3,Database!$P:$P,$C$3,Database!$N:$N,"n/a") -> 83.33333333
B18: Disability and Facilities grant | C18: Other | D18: Financial support | M18: =SUMIFS(Database!$L:$L,Database!$F:$F,$B18,Database!$C:$C,M$3,Database!$P:$P,$C$3,Database!$N:$N,M$5)+SUMIFS(Database!$L:$L,Database!$F:$F,$B18,Database!$C:$C,M$3,Database!$P:$P,$C$3,Database!$N:$N,"n/a") -> 0 | N18: =SUMIFS(Database!$L:$L,Database!$F:$F,$B18,Database!$C:$C,N$3,Database!$P:$P,$C$3,Database!$N:$N,N$5)+SUMIFS(Database!$L:$L,Database!$F:$F,$B18,Database!$C:$C,N$3,Database!$P:$P,$C$3,Database!$N:$N,"n/a") -> 0 | U18: =SUMIFS(Database!$L:$L,Database!$F:$F,$B18,Database!$C:$C,U$3,Database!$P:$P,$C$3,Database!$N:$N,U$5)+SUMIFS(Database!$L:$L,Database!$F:$F,$B18,Database!$C:$C,U$3,Database!$P:$P,$C$3,Database!$N:$N,"n/a") -> 0 | V18: =SUMIFS(Database!$L:$L,Database!$F:$F,$B18,Database!$C:$C,V$3,Database!$P:$P,$C$3,Database!$N:$N,V$5)+SUMIFS(Database!$L:$L,Database!$F:$F,$B18,Database!$C:$C,V$3,Database!$P:$P,$C$3,Database!$N:$N,"n/a") -> 0 | X18: =SUMIFS(Database!$L:$L,Database!$F:$F,$B18,Database!$C:$C,X$3,Database!$P:$P,$C$3,Database!$N:$N,X$5)+SUMIFS(Database!$L:$L,Database!$F:$F,$B18,Database!$C:$C,X$3,Database!$P:$P,$C$3,Database!$N:$N,"n/a") -> 0 | AB18: =SUMIFS(Database!$L:$L,Database!$F:$F,$B18,Database!$C:$C,AB$3,Database!$P:$P,$C$3,Database!$N:$N,AB$5)+SUMIFS(Database!$L:$L,Database!$F:$F,$B18,Database!$C:$C,AB$3,Database!$P:$P,$C$3,Database!$N:$N,"n/a") -> 250 | AC18: =SUMIFS(Database!$L:$L,Database!$F:$F,$B18,Database!$C:$C,AC$3,Database!$P:$P,$C$3,Database!$N:$N,AC$5)+SUMIFS(Database!$L:$L,Database!$F:$F,$B18,Database!$C:$C,AC$3,Database!$P:$P,$C$3,Database!$N:$N,"n/a") -> 0 | AD18: =SUMIFS(Database!$L:$L,Database!$F:$F,$B18,Database!$C:$C,AD$3,Database!$P:$P,$C$3,Database!$N:$N,AD$5)+SUMIFS(Database!$L:$L,Database!$F:$F,$B18,Database!$C:$C,AD$3,Database!$P:$P,$C$3,Database!$N:$N,"n/a") -> 0 | AF18: =SUMIFS(Database!$L:$L,Database!$F:$F,$B18,Database!$C:$C,AF$3,Database!$P:$P,$C$3,Database!$N:$N,AF$5)+SUMIFS(Database!$L:$L,Database!$F:$F,$B18,Database!$C:$C,AF$3,Database!$P:$P,$C$3,Database!$N:$N,"n/a") -> 0 | AJ18: =SUMIFS(Database!$L:$L,Database!$F:$F,$B18,Database!$C:$C,AJ$3,Database!$P:$P,$C$3,Database!$N:$N,AJ$5)+SUMIFS(Database!$L:$L,Database!$F:$F,$B18,Database!$C:$C,AJ$3,Database!$P:$P,$C$3,Database!$N:$N,"n/a") -> 250
B19: Other | C19: Other | D19: Financial support | J19: =SUM(J17:J18) -> 0 | M19: 0 | N19: 0 | R19: 0 | T19: 0 | U19: 0 | V19: 0 | X19: 0 | Z19: =SUM(Z17:Z18) -> 83.33333333 | AB19: 250 | AC19: 0 | AD19: 0 | AF19: 0 | AH19: =SUM(AH17:AH18) -> 83.33333333 | AJ19: =SUM(AJ17:AJ18) -> 250
B20: Council tax | C20: Council tax | D20: Financial support | J20: =SUMIFS(Database!$L:$L,Database!$F:$F,$B20,Database!$C:$C,J$3,Database!$P:$P,$C$3,Database!$N:$N,J$5)+SUMIFS(Database!$L:$L,Database!$F:$F,$B20,Database!$C:$C,J$3,Database!$P:$P,$C$3,Database!$N:$N,"n/a") -> 0 | M20: =SUMIFS(Database!$L:$L,Database!$F:$F,$B20,Database!$C:$C,M$3,Database!$P:$P,$C$3,Database!$N:$N,M$5)+SUMIFS(Database!$L:$L,Database!$F:$F,$B20,Database!$C:$C,M$3,Database!$P:$P,$C$3,Database!$N:$N,"n/a") -> 852.02 | R20: =M20 -> 852.02 | U20: =SUMIFS(Database!$L:$L,Database!$F:$F,$B20,Database!$C:$C,U$3,Database!$P:$P,$C$3,Database!$N:$N,U$5)+SUMIFS(Database!$L:$L,Database!$F:$F,$B20,Database!$C:$C,U$3,Database!$P:$P,$C$3,Database!$N:$N,"n/a") -> 0 | V20: =SUMIFS(Database!$L:$L,Database!$F:$F,$B20,Database!$C:$C,V$3,Database!$P:$P,$C$3,Database!$N:$N,V$5)+SUMIFS(Database!$L:$L,Database!$F:$F,$B20,Database!$C:$C,V$3,Database!$P:$P,$C$3,Database!$N:$N,"n/a") -> 0 | X20: =SUMIFS(Database!$L:$L,Database!$F:$F,$B20,Database!$C:$C,X$3,Database!$P:$P,$C$3,Database!$N:$N,X$5)+SUMIFS(Database!$L:$L,Database!$F:$F,$B20,Database!$C:$C,X$3,Database!$P:$P,$C$3,Database!$N:$N,"n/a") -> 0 | Z20: =SUMIFS(Database!$L:$L,Database!$F:$F,$B20,Database!$C:$C,Z$3,Database!$P:$P,$C$3,Database!$N:$N,Z$5)+SUMIFS(Database!$L:$L,Database!$F:$F,$B20,Database!$C:$C,Z$3,Database!$P:$P,$C$3,Database!$N:$N,"n/a") -> 0 | AB20: =SUMIFS(Database!$L:$L,Database!$F:$F,$B20,Database!$C:$C,AB$3,Database!$P:$P,$C$3,Database!$N:$N,AB$5)+SUMIFS(Database!$L:$L,Database!$F:$F,$B20,Database!$C:$C,AB$3,Database!$P:$P,$C$3,Database!$N:$N,"n/a") -> 0 | AC20: =SUMIFS(Database!$L:$L,Database!$F:$F,$B20,Database!$C:$C,AC$3,Database!$P:$P,$C$3,Database!$N:$N,AC$5)+SUMIFS(Database!$L:$L,Database!$F:$F,$B20,Database!$C:$C,AC$3,Database!$P:$P,$C$3,Database!$N:$N,"n/a") -> 852.02 | AH20: =AC20 -> 852.02
B21: Benefits
B22: Falls | C22: NHS Benefits | D22: Benefits | G22: =SUMIFS(Database!$L:$L,Database!$F:$F,$B22,Database!$C:$C,G$3,Database!$P:$P,$C$3,Database!$N:$N,G$5)+SUMIFS(Database!$L:$L,Database!$F:$F,$B22,Database!$C:$C,G$3,Database!$P:$P,$C$3,Database!$N:$N,"n/a") -> -10.54 | K22: =SUMIFS(Database!$L:$L,Database!$F:$F,$B22,Database!$C:$C,K$3,Database!$P:$P,$C$3,Database!$N:$N,K$5)+SUMIFS(Database!$L:$L,Database!$F:$F,$B22,Database!$C:$C,K$3,Database!$P:$P,$C$3,Database!$N:$N,"n/a") -> -10.54 | O22: =SUMIFS(Database!$L:$L,Database!$F:$F,$B22,Database!$C:$C,O$3,Database!$P:$P,$C$3,Database!$N:$N,O$5)+SUMIFS(Database!$L:$L,Database!$F:$F,$B22,Database!$C:$C,O$3,Database!$P:$P,$C$3,Database!$N:$N,"n/a") -> 569.16 | S22: =SUMIFS(Database!$L:$L,Database!$F:$F,$B22,Database!$C:$C,S$3,Database!$P:$P,$C$3,Database!$N:$N,S$5)+SUMIFS(Database!$L:$L,Database!$F:$F,$B22,Database!$C:$C,S$3,Database!$P:$P,$C$3,Database!$N:$N,"n/a") -> 569.16 | V22: =SUMIFS(Database!$L:$L,Database!$F:$F,$B22,Database!$C:$C,V$3,Database!$P:$P,$C$3,Database!$N:$N,V$5)+SUMIFS(Database!$L:$L,Database!$F:$F,$B22,Database!$C:$C,V$3,Database!$P:$P,$C$3,Database!$N:$N,"n/a") -> 358.36 | AA22: =SUMIFS(Database!$L:$L,Database!$F:$F,$B22,Database!$C:$C,AA$3,Database!$P:$P,$C$3,Database!$N:$N,AA$5)+SUMIFS(Database!$L:$L,Database!$F:$F,$B22,Database!$C:$C,AA$3,Database!$P:$P,$C$3,Database!$N:$N,"n/a") -> 358.36 | AE22: =SUMIFS(Database!$L:$L,Database!$F:$F,$B22,Database!$C:$C,AE$3,Database!$P:$P,$C$3,Database!$N:$N,AE$5)+SUMIFS(Database!$L:$L,Database!$F:$F,$B22,Database!$C:$C,AE$3,Database!$P:$P,$C$3,Database!$N:$N,"n/a") -> 240.2139535 | AI22: =SUMIFS(Database!$L:$L,Database!$F:$F,$B22,Database!$C:$C,AI$3,Database!$P:$P,$C$3,Database!$N:$N,AI$5)+SUMIFS(Database!$L:$L,Database!$F:$F,$B22,Database!$C:$C,AI$3,Database!$P:$P,$C$3,Database!$N:$N,"n/a") -> 240.2139535
B23: Reduction in loneliness | C23: NHS Benefits | D23: Benefits | G23: =SUMIFS(Database!$L:$L,Database!$F:$F,$B23,Database!$C:$C,G$3,Database!$P:$P,$C$3,Database!$N:$N,G$5)+SUMIFS(Database!$L:$L,Database!$F:$F,$B23,Database!$C:$C,G$3,Database!$P:$P,$C$3,Database!$N:$N,"n/a") -> 13.93 | K23: =SUMIFS(Database!$L:$L,Database!$F:$F,$B23,Database!$C:$C,K$3,Database!$P:$P,$C$3,Database!$N:$N,K$5)+SUMIFS(Database!$L:$L,Database!$F:$F,$B23,Database!$C:$C,K$3,Database!$P:$P,$C$3,Database!$N:$N,"n/a") -> 13.93 | O23: =SUMIFS(Database!$L:$L,Database!$F:$F,$B23,Database!$C:$C,O$3,Database!$P:$P,$C$3,Database!$N:$N,O$5)+SUMIFS(Database!$L:$L,Database!$F:$F,$B23,Database!$C:$C,O$3,Database!$P:$P,$C$3,Database!$N:$N,"n/a") -> 85.57 | S23: =SUMIFS(Database!$L:$L,Database!$F:$F,$B23,Database!$C:$C,S$3,Database!$P:$P,$C$3,Database!$N:$N,S$5)+SUMIFS(Database!$L:$L,Database!$F:$F,$B23,Database!$C:$C,S$3,Database!$P:$P,$C$3,Database!$N:$N,"n/a") -> 85.57 | V23: =SUMIFS(Database!$L:$L,Database!$F:$F,$B23,Database!$C:$C,V$3,Database!$P:$P,$C$3,Database!$N:$N,V$5)+SUMIFS(Database!$L:$L,Database!$F:$F,$B23,Database!$C:$C,V$3,Database!$P:$P,$C$3,Database!$N:$N,"n/a") -> 75.62 | AA23: =SUMIFS(Database!$L:$L,Database!$F:$F,$B23,Database!$C:$C,AA$3,Database!$P:$P,$C$3,Database!$N:$N,AA$5)+SUMIFS(Database!$L:$L,Database!$F:$F,$B23,Database!$C:$C,AA$3,Database!$P:$P,$C$3,Database!$N:$N,"n/a") -> 75.62 | AE23: =SUMIFS(Database!$L:$L,Database!$F:$F,$B23,Database!$C:$C,AE$3,Database!$P:$P,$C$3,Database!$N:$N,AE$5)+SUMIFS(Database!$L:$L,Database!$F:$F,$B23,Database!$C:$C,AE$3,Database!$P:$P,$C$3,Database!$N:$N,"n/a") -> 48.755 | AI23: =SUMIFS(Database!$L:$L,Database!$F:$F,$B23,Database!$C:$C,AI$3,Database!$P:$P,$C$3,Database!$N:$N,AI$5)+SUMIFS(Database!$L:$L,Database!$F:$F,$B23,Database!$C:$C,AI$3,Database!$P:$P,$C$3,Database!$N:$N,"n/a") -> 48.755
B24: Hospital admissions | C24: NHS Benefits | D24: Benefits | G24: =SUMIFS(Database!$L:$L,Database!$F:$F,$B24,Database!$C:$C,G$3,Database!$P:$P,$C$3,Database!$N:$N,G$5)+SUMIFS(Database!$L:$L,Database!$F:$F,$B24,Database!$C:$C,G$3,Database!$P:$P,$C$3,Database!$N:$N,"n/a") -> 2022 | K24: =SUMIFS(Database!$L:$L,Database!$F:$F,$B24,Database!$C:$C,K$3,Database!$P:$P,$C$3,Database!$N:$N,K$5)+SUMIFS(Database!$L:$L,Database!$F:$F,$B24,Database!$C:$C,K$3,Database!$P:$P,$C$3,Database!$N:$N,"n/a") -> 2022 | O24: =SUMIFS(Database!$L:$L,Database!$F:$F,$B24,Database!$C:$C,O$3,Database!$P:$P,$C$3,Database!$N:$N,O$5)+SUMIFS(Database!$L:$L,Database!$F:$F,$B24,Database!$C:$C,O$3,Database!$P:$P,$C$3,Database!$N:$N,"n/a") -> 2527.5 | S24: =SUMIFS(Database!$L:$L,Database!$F:$F,$B24,Database!$C:$C,S$3,Database!$P:$P,$C$3,Database!$N:$N,S$5)+SUMIFS(Database!$L:$L,Database!$F:$F,$B24,Database!$C:$C,S$3,Database!$P:$P,$C$3,Database!$N:$N,"n/a") -> 2527.5 | V24: =SUMIFS(Database!$L:$L,Database!$F:$F,$B24,Database!$C:$C,V$3,Database!$P:$P,$C$3,Database!$N:$N,V$5)+SUMIFS(Database!$L:$L,Database!$F:$F,$B24,Database!$C:$C,V$3,Database!$P:$P,$C$3,Database!$N:$N,"n/a") -> 1670.958333 | AA24: =SUMIFS(Database!$L:$L,Database!$F:$F,$B24,Database!$C:$C,AA$3,Database!$P:$P,$C$3,Database!$N:$N,AA$5)+SUMIFS(Database!$L:$L,Database!$F:$F,$B24,Database!$C:$C,AA$3,Database!$P:$P,$C$3,Database!$N:$N,"n/a") -> 1670.958333 | AE24: =SUMIFS(Database!$L:$L,Database!$F:$F,$B24,Database!$C:$C,AE$3,Database!$P:$P,$C$3,Database!$N:$N,AE$5)+SUMIFS(Database!$L:$L,Database!$F:$F,$B24,Database!$C:$C,AE$3,Database!$P:$P,$C$3,Database!$N:$N,"n/a") -> 1685 | AI24: =SUMIFS(Database!$L:$L,Database!$F:$F,$B24,Database!$C:$C,AI$3,Database!$P:$P,$C$3,Database!$N:$N,AI$5)+SUMIFS(Database!$L:$L,Database!$F:$F,$B24,Database!$C:$C,AI$3,Database!$P:$P,$C$3,Database!$N:$N,"n/a") -> 1685
B25: GP visits | C25: NHS Benefits | D25: Benefits | G25: =SUMIFS(Database!$L:$L,Database!$F:$F,$B25,Database!$C:$C,G$3,Database!$P:$P,$C$3,Database!$N:$N,G$5)+SUMIFS(Database!$L:$L,Database!$F:$F,$B25,Database!$C:$C,G$3,Database!$P:$P,$C$3,Database!$N:$N,"n/a") -> 0 | K25: =SUMIFS(Database!$L:$L,Database!$F:$F,$B25,Database!$C:$C,K$3,Database!$P:$P,$C$3,Database!$N:$N,K$5)+SUMIFS(Database!$L:$L,Database!$F:$F,$B25,Database!$C:$C,K$3,Database!$P:$P,$C$3,Database!$N:$N,"n/a") -> 0 | O25: =SUMIFS(Database!$L:$L,Database!$F:$F,$B25,Database!$C:$C,O$3,Database!$P:$P,$C$3,Database!$N:$N,O$5)+SUMIFS(Database!$L:$L,Database!$F:$F,$B25,Database!$C:$C,O$3,Database!$P:$P,$C$3,Database!$N:$N,"n/a") -> 72.39 | S25: =SUMIFS(Database!$L:$L,Database!$F:$F,$B25,Database!$C:$C,S$3,Database!$P:$P,$C$3,Database!$N:$N,S$5)+SUMIFS(Database!$L:$L,Database!$F:$F,$B25,Database!$C:$C,S$3,Database!$P:$P,$C$3,Database!$N:$N,"n/a") -> 72.39 | U25: =SUMIFS(Database!$L:$L,Database!$F:$F,$B25,Database!$C:$C,U$3,Database!$P:$P,$C$3,Database!$N:$N,U$5)+SUMIFS(Database!$L:$L,Database!$F:$F,$B25,Database!$C:$C,U$3,Database!$P:$P,$C$3,Database!$N:$N,"n/a") -> 0 | V25: =SUMIFS(Database!$L:$L,Database!$F:$F,$B25,Database!$C:$C,V$3,Database!$P:$P,$C$3,Database!$N:$N,V$5)+SUMIFS(Database!$L:$L,Database!$F:$F,$B25,Database!$C:$C,V$3,Database!$P:$P,$C$3,Database!$N:$N,"n/a") -> 0 | AA25: =SUMIFS(Database!$L:$L,Database!$F:$F,$B25,Database!$C:$C,AA$3,Database!$P:$P,$C$3,Database!$N:$N,AA$5)+SUMIFS(Database!$L:$L,Database!$F:$F,$B25,Database!$C:$C,AA$3,Database!$P:$P,$C$3,Database!$N:$N,"n/a") -> 0 | AE25: =SUMIFS(Database!$L:$L,Database!$F:$F,$B25,Database!$C:$C,AE$3,Database!$P:$P,$C$3,Database!$N:$N,AE$5)+SUMIFS(Database!$L:$L,Database!$F:$F,$B25,Database!$C:$C,AE$3,Database!$P:$P,$C$3,Database!$N:$N,"n/a") -> 0 | AI25: =SUMIFS(Database!$L:$L,Database!$F:$F,$B25,Database!$C:$C,AI$3,Database!$P:$P,$C$3,Database!$N:$N,AI$5)+SUMIFS(Database!$L:$L,Database!$F:$F,$B25,Database!$C:$C,AI$3,Database!$P:$P,$C$3,Database!$N:$N,"n/a") -> 0
B26: Community nurse visits | C26: NHS Benefits | D26: Benefits | G26: =SUMIFS(Database!$L:$L,Database!$F:$F,$B26,Database!$C:$C,G$3,Database!$P:$P,$C$3,Database!$N:$N,G$5)+SUMIFS(Database!$L:$L,Database!$F:$F,$B26,Database!$C:$C,G$3,Database!$P:$P,$C$3,Database!$N:$N,"n/a") -> 0 | K26: =SUMIFS(Database!$L:$L,Database!$F:$F,$B26,Database!$C:$C,K$3,Database!$P:$P,$C$3,Database!$N:$N,K$5)+SUMIFS(Database!$L:$L,Database!$F:$F,$B26,Database!$C:$C,K$3,Database!$P:$P,$C$3,Database!$N:$N,"n/a") -> 0 | O26: =SUMIFS(Database!$L:$L,Database!$F:$F,$B26,Database!$C:$C,O$3,Database!$P:$P,$C$3,Database!$N:$N,O$5)+SUMIFS(Database!$L:$L,Database!$F:$F,$B26,Database!$C:$C,O$3,Database!$P:$P,$C$3,Database!$N:$N,"n/a") -> 181.275 | S26: =SUMIFS(Database!$L:$L,Database!$F:$F,$B26,Database!$C:$C,S$3,Database!$P:$P,$C$3,Database!$N:$N,S$5)+SUMIFS(Database!$L:$L,Database!$F:$F,$B26,Database!$C:$C,S$3,Database!$P:$P,$C$3,Database!$N:$N,"n/a") -> 181.275 | U26: =SUMIFS(Database!$L:$L,Database!$F:$F,$B26,Database!$C:$C,U$3,Database!$P:$P,$C$3,Database!$N:$N,U$5)+SUMIFS(Database!$L:$L,Database!$F:$F,$B26,Database!$C:$C,U$3,Database!$P:$P,$C$3,Database!$N:$N,"n/a") -> 0 | V26: =SUMIFS(Database!$L:$L,Database!$F:$F,$B26,Database!$C:$C,V$3,Database!$P:$P,$C$3,Database!$N:$N,V$5)+SUMIFS(Database!$L:$L,Database!$F:$F,$B26,Database!$C:$C,V$3,Database!$P:$P,$C$3,Database!$N:$N,"n/a") -> 0 | AA26: =SUMIFS(Database!$L:$L,Database!$F:$F,$B26,Database!$C:$C,AA$3,Database!$P:$P,$C$3,Database!$N:$N,AA$5)+SUMIFS(Database!$L:$L,Database!$F:$F,$B26,Database!$C:$C,AA$3,Database!$P:$P,$C$3,Database!$N:$N,"n/a") -> 0 | AE26: =SUMIFS(Database!$L:$L,Database!$F:$F,$B26,Database!$C:$C,AE$3,Database!$P:$P,$C$3,Database!$N:$N,AE$5)+SUMIFS(Database!$L:$L,Database!$F:$F,$B26,Database!$C:$C,AE$3,Database!$P:$P,$C$3,Database!$N:$N,"n/a") -> 0 | AI26: =SUMIFS(Database!$L:$L,Database!$F:$F,$B26,Database!$C:$C,AI$3,Database!$P:$P,$C$3,Database!$N:$N,AI$5)+SUMIFS(Database!$L:$L,Database!$F:$F,$B26,Database!$C:$C,AI$3,Database!$P:$P,$C$3,Database!$N:$N,"n/a") -> 0
B27: DTOC | C27: NHS Benefits | D27: Benefits | G27: =SUMIFS(Database!$L:$L,Database!$F:$F,$B27,Database!$C:$C,G$3,Database!$P:$P,$C$3,Database!$N:$N,G$5)+SUMIFS(Database!$L:$L,Database!$F:$F,$B27,Database!$C:$C,G$3,Database!$P:$P,$C$3,Database!$N:$N,"n/a") -> 0 | K27: =SUMIFS(Database!$L:$L,Database!$F:$F,$B27,Database!$C:$C,K$3,Database!$P:$P,$C$3,Database!$N:$N,K$5)+SUMIFS(Database!$L:$L,Database!$F:$F,$B27,Database!$C:$C,K$3,Database!$P:$P,$C$3,Database!$N:$N,"n/a") -> 0 | O27: =SUMIFS(Database!$L:$L,Database!$F:$F,$B27,Database!$C:$C,O$3,Database!$P:$P,$C$3,Database!$N:$N,O$5)+SUMIFS(Database!$L:$L,Database!$F:$F,$B27,Database!$C:$C,O$3,Database!$P:$P,$C$3,Database!$N:$N,"n/a") -> 232.65 | S27: =SUMIFS(Database!$L:$L,Database!$F:$F,$B27,Database!$C:$C,S$3,Database!$P:$P,$C$3,Database!$N:$N,S$5)+SUMIFS(Database!$L:$L,Database!$F:$F,$B27,Database!$C:$C,S$3,Database!$P:$P,$C$3,Database!$N:$N,"n/a") -> 232.65 | U27: =SUMIFS(Database!$L:$L,Database!$F:$F,$B27,Database!$C:$C,U$3,Database!$P:$P,$C$3,Database!$N:$N,U$5)+SUMIFS(Database!$L:$L,Database!$F:$F,$B27,Database!$C:$C,U$3,Database!$P:$P,$C$3,Database!$N:$N,"n/a") -> 0 | V27: =SUMIFS(Database!$L:$L,Database!$F:$F,$B27,Database!$C:$C,V$3,Database!$P:$P,$C$3,Database!$N:$N,V$5)+SUMIFS(Database!$L:$L,Database!$F:$F,$B27,Database!$C:$C,V$3,Database!$P:$P,$C$3,Database!$N:$N,"n/a") -> 0 | AA27: =SUMIFS(Database!$L:$L,Database!$F:$F,$B27,Database!$C:$C,AA$3,Database!$P:$P,$C$3,Database!$N:$N,AA$5)+SUMIFS(Database!$L:$L,Database!$F:$F,$B27,Database!$C:$C,AA$3,Database!$P:$P,$C$3,Database!$N:$N,"n/a") -> 0 | AE27: =SUMIFS(Database!$L:$L,Database!$F:$F,$B27,Database!$C:$C,AE$3,Database!$P:$P,$C$3,Database!$N:$N,AE$5)+SUMIFS(Database!$L:$L,Database!$F:$F,$B27,Database!$C:$C,AE$3,Database!$P:$P,$C$3,Database!$N:$N,"n/a") -> 0 | AI27: =SUMIFS(Database!$L:$L,Database!$F:$F,$B27,Database!$C:$C,AI$3,Database!$P:$P,$C$3,Database!$N:$N,AI$5)+SUMIFS(Database!$L:$L,Database!$F:$F,$B27,Database!$C:$C,AI$3,Database!$P:$P,$C$3,Database!$N:$N,"n/a") -> 0
B28: Fire-related fatalities | C28: Social Benefits | D28: Benefits | G28: =SUMIFS(Database!$L:$L,Database!$F:$F,$B28,Database!$C:$C,G$3,Database!$P:$P,$C$3,Database!$N:$N,G$5)+SUMIFS(Database!$L:$L,Database!$F:$F,$B28,Database!$C:$C,G$3,Database!$P:$P,$C$3,Database!$N:$N,"n/a") -> 93.32869565 | K28: =SUMIFS(Database!$L:$L,Database!$F:$F,$B28,Database!$C:$C,K$3,Database!$P:$P,$C$3,Database!$N:$N,K$5)+SUMIFS(Database!$L:$L,Database!$F:$F,$B28,Database!$C:$C,K$3,Database!$P:$P,$C$3,Database!$N:$N,"n/a") -> 93.32869565 | O28: =SUMIFS(Database!$L:$L,Database!$F:$F,$B28,Database!$C:$C,O$3,Database!$P:$P,$C$3,Database!$N:$N,O$5)+SUMIFS(Database!$L:$L,Database!$F:$F,$B28,Database!$C:$C,O$3,Database!$P:$P,$C$3,Database!$N:$N,"n/a") -> 93.32869565 | S28: =SUMIFS(Database!$L:$L,Database!$F:$F,$B28,Database!$C:$C,S$3,Database!$P:$P,$C$3,Database!$N:$N,S$5)+SUMIFS(Database!$L:$L,Database!$F:$F,$B28,Database!$C:$C,S$3,Database!$P:$P,$C$3,Database!$N:$N,"n/a") -> 93.32869565 | V28: =SUMIFS(Database!$L:$L,Database!$F:$F,$B28,Database!$C:$C,V$3,Database!$P:$P,$C$3,Database!$N:$N,V$5)+SUMIFS(Database!$L:$L,Database!$F:$F,$B28,Database!$C:$C,V$3,Database!$P:$P,$C$3,Database!$N:$N,"n/a") -> 82.56 | AA28: =SUMIFS(Database!$L:$L,Database!$F:$F,$B28,Database!$C:$C,AA$3,Database!$P:$P,$C$3,Database!$N:$N,AA$5)+SUMIFS(Database!$L:$L,Database!$F:$F,$B28,Database!$C:$C,AA$3,Database!$P:$P,$C$3,Database!$N:$N,"n/a") -> 82.56 | AE28: =SUMIFS(Database!$L:$L,Database!$F:$F,$B28,Database!$C:$C,AE$3,Database!$P:$P,$C$3,Database!$N:$N,AE$5)+SUMIFS(Database!$L:$L,Database!$F:$F,$B28,Database!$C:$C,AE$3,Database!$P:$P,$C$3,Database!$N:$N,"n/a") -> 73.38666667 | AI28: =SUMIFS(Database!$L:$L,Database!$F:$F,$B28,Database!$C:$C,AI$3,Database!$P:$P,$C$3,Database!$N:$N,AI$5)+SUMIFS(Database!$L:$L,Database!$F:$F,$B28,Database!$C:$C,AI$3,Database!$P:$P,$C$3,Database!$N:$N,"n/a") -> 73.38666667
B29: Price | E29: =J29 -> 0 | J29: ='Price assumptions'!C7 -> 0 | R29: ='Price assumptions'!D7 -> 0 | U29: =Z29 -> 20228 | Z29: ='Price assumptions'!E7 -> 20228 | AC29: =AH29 -> 0 | AH29: ='Price assumptions'!F7 -> 0
E32: =CONCATENATE($C$33,E33,E34,E37) -> MediumResidential careSelf funderPerson | F32: =CONCATENATE($C$33,F33,F34,F37) -> MediumResidential careSelf funderLA | G32: MediumResidential careSelf funderNHS | H32: MediumResidential careSelf funderCentral Govt | I32: MediumResidential careFundedPerson | J32: MediumResidential careFundedLA | K32: MediumResidential careFundedNHS | L32: MediumResidential careFundedCentral Govt | M32: MediumExtra careSelf funderPerson | N32: MediumExtra careSelf funderLA | O32: MediumExtra careSelf funderNHS | P32: MediumExtra careSelf funderCentral Govt | Q32: MediumExtra careFundedPerson | R32: MediumExtra careFundedLA | S32: MediumExtra careFundedNHS | T32: MediumExtra careFundedCentral Govt | U32: MediumShared LivesSelf funderPerson | V32: MediumShared LivesSelf funderLA | W32: MediumShared LivesSelf funderNHS | X32: MediumShared LivesSelf funderCentral Govt | Y32: MediumShared LivesFundedPerson | Z32: MediumShared LivesFundedLA | AA32: MediumShared LivesFundedNHS | AB32: MediumShared LivesFundedCentral Govt | AC32: MediumRetirement housingSelf funderPerson | AD32: MediumRetirement housingSelf funderLA | AE32: MediumRetirement housingSelf funderNHS | AF32: MediumRetirement housingSelf funderCentral Govt | AG32: MediumRetirement housingFundedPerson | AH32: MediumRetirement housingFundedLA | AI32: MediumRetirement housingFundedNHS | AJ32: MediumRetirement housingFundedCentral Govt | AM32: Needs categories
B33: Needs assumption * Please see needs assumption sheet to understand how needs change costs and benefits | C33: Medium | E33: Residential care | F33: Residential care | G33: Residential care | H33: Residential care | I33: Residential care | J33: Residential care | K33: Residential care | L33: Residential care | M33: Extra care | N33: Extra care | O33: Extra care | P33: Extra care | Q33: Extra care | R33: Extra care | S33: Extra care | T33: Extra care | U33: Shared Lives | V33: Shared Lives | W33: Shared Lives | X33: Shared Lives | Y33: Shared Lives | Z33: Shared Lives | AA33: Shared Lives | AB33: Shared Lives | AC33: Retirement housing | AD33: Retirement housing | AE33: Retirement housing | AF33: Retirement housing | AG33: Retirement housing | AH33: Retirement housing | AI33: Retirement housing | AJ33: Retirement housing | AM33: None
E34: Self funder | F34: Self funder | G34: Self funder | H34: Self funder | I34: Funded | J34: Funded | K34: Funded | L34: Funded | M34: Self funder | N34: Self funder | O34: Self funder | P34: Self funder | Q34: Funded | R34: Funded | S34: Funded | T34: Funded | U34: Self funder | V34: Self funder | W34: Self funder | X34: Self funder | Y34: Funded | Z34: Funded | AA34: Funded | AB34: Funded | AC34: Self funder | AD34: Self funder | AE34: Self funder | AF34: Self funder | AG34: Funded | AH34: Funded | AI34: Funded | AJ34: Funded | AM34: Low
E35: Yes | F35: Yes | G35: Yes | H35: Yes | I35: No | J35: No | K35: No | L35: No | M35: Yes | N35: Yes | O35: Yes | P35: Yes | Q35: No | R35: No | S35: No | T35: No | U35: Yes | V35: Yes | W35: Yes | X35: Yes | Y35: No | Z35: No | AA35: No | AB35: No | AC35: Yes | AD35: Yes | AE35: Yes | AF35: Yes | AG35: No | AH35: No | AI35: No | AJ35: No | AM35: Medium
E36: Who Pays | I36: Who Pays | M36: Who Pays | Q36: Who Pays | U36: Who pays | Y36: Who pays | AC36: Who pays | AG36: Who pays | AM36: High
B37: Cost detail | C37: Cost theme | D37: Cost category | E37: Person | F37: LA | G37: NHS | H37: Central Govt | I37: Person | J37: LA | K37: NHS | L37: Central Govt | M37: Person | N37: LA | O37: NHS | P37: Central Govt | Q37: Person | R37: LA | S37: NHS | T37: Central Govt | U37: Person | V37: LA | W37: NHS | X37: Central Govt | Y37: Person | Z37: LA | AA37: NHS | AB37: Central Govt | AC37: Person | AD37: LA | AE37: NHS | AF37: Central Govt | AG37: Person | AH37: LA | AI37: NHS | AJ37: Central Govt
B38: Care costs | C38: Care staff costs | D38: Production costs | E38: ='Care staff costs'!$H$8 -> 23575 | J38: ='Care staff costs'!$H$8 -> 23575 | M38: ='Care staff costs'!$H$26 -> 15089.6 | N38: 0 | P38: 0 | R38: ='Care staff costs'!$H$26 -> 15089.6 | U38: ='Care staff costs'!$H$31 -> 14976 | Z38: ='Care staff costs'!$H$31 -> 14976 | AC38: ='Care staff costs'!$H$17 -> 15089.6 | AH38: ='Care staff costs'!$H$17 -> 15089.6
B39: Board and lodgings payment | C39: Running costs | D39: Production costs | J39: =SUMIFS(Database!$L:$L,Database!$F:$F,$B39,Database!$C:$C,J$3,Database!$P:$P,$C$33,Database!$N:$N,J$5)+SUMIFS(Database!$L:$L,Database!$F:$F,$B39,Database!$C:$C,J$3,Database!$P:$P,$C$33,Database!$N:$N,"n/a") -> 0 | M39: =SUMIFS(Database!$L:$L,Database!$F:$F,$B39,Database!$C:$C,M$3,Database!$P:$P,$C$33,Database!$N:$N,M$5)+SUMIFS(Database!$L:$L,Database!$F:$F,$B39,Database!$C:$C,M$3,Database!$P:$P,$C$33,Database!$N:$N,"n/a") -> 0 | N39: =SUMIFS(Database!$L:$L,Database!$F:$F,$B39,Database!$C:$C,N$3,Database!$P:$P,$C$33,Database!$N:$N,N$5)+SUMIFS(Database!$L:$L,Database!$F:$F,$B39,Database!$C:$C,N$3,Database!$P:$P,$C$33,Database!$N:$N,"n/a") -> 0 | P39: 0 | R39: =SUMIFS(Database!$L:$L,Database!$F:$F,$B39,Database!$C:$C,R$3,Database!$P:$P,$C$33,Database!$N:$N,R$5)+SUMIFS(Database!$L:$L,Database!$F:$F,$B39,Database!$C:$C,R$3,Database!$P:$P,$C$33,Database!$N:$N,"n/a") -> 0 | U39: =SUMIFS(Database!$L:$L,Database!$F:$F,$B39,Database!$C:$C,U$3,Database!$P:$P,$C$33,Database!$N:$N,U$5)+SUMIFS(Database!$L:$L,Database!$F:$F,$B39,Database!$C:$C,U$3,Database!$P:$P,$C$33,Database!$N:$N,"n/a") -> 3484 | Z39: =SUMIFS(Database!$L:$L,Database!$F:$F,$B39,Database!$C:$C,Z$3,Database!$P:$P,$C$33,Database!$N:$N,Z$5)+SUMIFS(Database!$L:$L,Database!$F:$F,$B39,Database!$C:$C,Z$3,Database!$P:$P,$C$33,Database!$N:$N,"n/a") -> 3484 | AC39: =SUMIFS(Database!$L:$L,Database!$F:$F,$B39,Database!$C:$C,AC$3,Database!$P:$P,$C$33,Database!$N:$N,AC$5)+SUMIFS(Database!$L:$L,Database!$F:$F,$B39,Database!$C:$C,AC$3,Database!$P:$P,$C$33,Database!$N:$N,"n/a") -> 0 | AD39: =SUMIFS(Database!$L:$L,Database!$F:$F,$B39,Database!$C:$C,AD$3,Database!$P:$P,$C$33,Database!$N:$N,AD$5)+SUMIFS(Database!$L:$L,Database!$F:$F,$B39,Database!$C:$C,AD$3,Database!$P:$P,$C$33,Database!$N:$N,"n/a") -> 0 | AF39: =SUMIFS(Database!$L:$L,Database!$F:$F,$B39,Database!$C:$C,AF$3,Database!$P:$P,$C$33,Database!$N:$N,AF$5)+SUMIFS(Database!$L:$L,Database!$F:$F,$B39,Database!$C:$C,AF$3,Database!$P:$P,$C$33,Database!$N:$N,"n/a") -> 0 | AH39: =SUMIFS(Database!$L:$L,Database!$F:$F,$B39,Database!$C:$C,AH$3,Database!$P:$P,$C$33,Database!$N:$N,AH$5)+SUMIFS(Database!$L:$L,Database!$F:$F,$B39,Database!$C:$C,AH$3,Database!$P:$P,$C$33,Database!$N:$N,"n/a") -> 0
B40: Housing management cost | C40: Running costs | D40: Production costs | E40: =SUMIFS(Database!$L:$L,Database!$F:$F,$B40,Database!$C:$C,E$3,Database!$P:$P,$C$33,Database!$N:$N,E$5)+SUMIFS(Database!$L:$L,Database!$F:$F,$B40,Database!$C:$C,E$3,Database!$P:$P,$C$33,Database!$N:$N,"n/a") -> 6448 | J40: =SUMIFS(Database!$L:$L,Database!$F:$F,$B40,Database!$C:$C,J$3,Database!$P:$P,$C$33,Database!$N:$N,J$5)+SUMIFS(Database!$L:$L,Database!$F:$F,$B40,Database!$C:$C,J$3,Database!$P:$P,$C$33,Database!$N:$N,"n/a") -> 6448 | M40: =SUMIFS(Database!$L:$L,Database!$F:$F,$B40,Database!$C:$C,M$3,Database!$P:$P,$C$33,Database!$N:$N,M$5)+SUMIFS(Database!$L:$L,Database!$F:$F,$B40,Database!$C:$C,M$3,Database!$P:$P,$C$33,Database!$N:$N,"n/a") -> 2743.52 | N40: 0 | P40: 0 | R40: =SUMIFS(Database!$L:$L,Database!$F:$F,$B40,Database!$C:$C,R$3,Database!$P:$P,$C$33,Database!$N:$N,R$5)+SUMIFS(Database!$L:$L,Database!$F:$F,$B40,Database!$C:$C,R$3,Database!$P:$P,$C$33,Database!$N:$N,"n/a") -> 2743.52 | U40: =SUMIFS(Database!$L:$L,Database!$F:$F,$B40,Database!$C:$C,U$3,Database!$P:$P,$C$33,Database!$N:$N,U$5)+SUMIFS(Database!$L:$L,Database!$F:$F,$B40,Database!$C:$C,U$3,Database!$P:$P,$C$33,Database!$N:$N,"n/a") -> 1456 | Z40: =SUMIFS(Database!$L:$L,Database!$F:$F,$B40,Database!$C:$C,Z$3,Database!$P:$P,$C$33,Database!$N:$N,Z$5)+SUMIFS(Database!$L:$L,Database!$F:$F,$B40,Database!$C:$C,Z$3,Database!$P:$P,$C$33,Database!$N:$N,"n/a") -> 1456 | AC40: =SUMIFS(Database!$L:$L,Database!$F:$F,$B40,Database!$C:$C,AC$3,Database!$P:$P,$C$33,Database!$N:$N,AC$5)+SUMIFS(Database!$L:$L,Database!$F:$F,$B40,Database!$C:$C,AC$3,Database!$P:$P,$C$33,Database!$N:$N,"n/a") -> 2250 | AH40: =SUMIFS(Database!$L:$L,Database!$F:$F,$B40,Database!$C:$C,AH$3,Database!$P:$P,$C$33,Database!$N:$N,AH$5)+SUMIFS(Database!$L:$L,Database!$F:$F,$B40,Database!$C:$C,AH$3,Database!$P:$P,$C$33,Database!$N:$N,"n/a") -> 2250
B41: Running costs | C41: Running costs | D41: Production costs | E41: =SUM(E39:E40) -> 6448 | J41: =SUM(J39:J40) -> 6448 | M41: 2743.52 | N41: 0 | P41: 0 | R41: 2743.52 | T41: 0 | U41: 4940 | V41: 0 | X41: 0 | Z41: =SUM(Z39:Z40) -> 4940 | AB41: 0 | AC41: 2250 | AD41: 0 | AF41: 0 | AH41: =SUM(AH39:AH40) -> 2250 | AJ41: =SUM(AJ39:AJ40) -> 0
B42: Land costs | C42: Land costs | D42: Capital costs | E42: 0 | F42: =SUMIFS(Database!$L:$L,Database!$F:$F,$B42,Database!$C:$C,F$3,Database!$P:$P,$C$33,Database!$N:$N,F$5)+SUMIFS(Database!$L:$L,Database!$F:$F,$B42,Database!$C:$C,F$3,Database!$P:$P,$C$33,Database!$N:$N,"n/a") -> 6396 | J42: =SUMIFS(Database!$L:$L,Database!$F:$F,$B42,Database!$C:$C,J$3,Database!$P:$P,$C$33,Database!$N:$N,J$5)+SUMIFS(Database!$L:$L,Database!$F:$F,$B42,Database!$C:$C,J$3,Database!$P:$P,$C$33,Database!$N:$N,"n/a") -> 6396 | M42: 0 | N42: =SUMIFS(Database!$L:$L,Database!$F:$F,$B42,Database!$C:$C,N$3,Database!$P:$P,$C$33,Database!$N:$N,N$5)+SUMIFS(Database!$L:$L,Database!$F:$F,$B42,Database!$C:$C,N$3,Database!$P:$P,$C$33,Database!$N:$N,"n/a") -> 6032 | P42: 0 | R42: =SUMIFS(Database!$L:$L,Database!$F:$F,$B42,Database!$C:$C,R$3,Database!$P:$P,$C$33,Database!$N:$N,R$5)+SUMIFS(Database!$L:$L,Database!$F:$F,$B42,Database!$C:$C,R$3,Database!$P:$P,$C$33,Database!$N:$N,"n/a") -> 6032 | U42: =SUMIFS(Database!$L:$L,Database!$F:$F,$B42,Database!$C:$C,U$3,Database!$P:$P,$C$33,Database!$N:$N,U$5)+SUMIFS(Database!$L:$L,Database!$F:$F,$B42,Database!$C:$C,U$3,Database!$P:$P,$C$33,Database!$N:$N,"n/a") -> 0 | V42: =SUMIFS(Database!$L:$L,Database!$F:$F,$B42,Database!$C:$C,V$3,Database!$P:$P,$C$33,Database!$N:$N,V$5)+SUMIFS(Database!$L:$L,Database!$F:$F,$B42,Database!$C:$C,V$3,Database!$P:$P,$C$33,Database!$N:$N,"n/a") -> 0 | X42: =SUMIFS(Database!$L:$L,Database!$F:$F,$B42,Database!$C:$C,X$3,Database!$P:$P,$C$33,Database!$N:$N,X$5)+SUMIFS(Database!$L:$L,Database!$F:$F,$B42,Database!$C:$C,X$3,Database!$P:$P,$C$33,Database!$N:$N,"n/a") -> 0 | Z42: =SUMIFS(Database!$L:$L,Database!$F:$F,$B42,Database!$C:$C,Z$3,Database!$P:$P,$C$33,Database!$N:$N,Z$5)+SUMIFS(Database!$L:$L,Database!$F:$F,$B42,Database!$C:$C,Z$3,Database!$P:$P,$C$33,Database!$N:$N,"n/a") -> 0 | AD42: =SUMIFS(Database!$L:$L,Database!$F:$F,$B42,Database!$C:$C,AD$3,Database!$P:$P,$C$33,Database!$N:$N,AD$5)+SUMIFS(Database!$L:$L,Database!$F:$F,$B42,Database!$C:$C,AD$3,Database!$P:$P,$C$33,Database!$N:$N,"n/a") -> 9360 | AH42: =SUMIFS(Database!$L:$L,Database!$F:$F,$B42,Database!$C:$C,AH$3,Database!$P:$P,$C$33,Database!$N:$N,AH$5)+SUMIFS(Database!$L:$L,Database!$F:$F,$B42,Database!$C:$C,AH$3,Database!$P:$P,$C$33,Database!$N:$N,"n/a") -> 9360
B43: Financial support
B44: Rental of a room in a Shared Lives scheme - housing benefit | C44: Production cost | D44: Financial support | J44: =SUMIFS(Database!$L:$L,Database!$F:$F,$B44,Database!$C:$C,J$3,Database!$P:$P,$C$3,Database!$N:$N,J$5)+SUMIFS(Database!$L:$L,Database!$F:$F,$B44,Database!$C:$C,J$3,Database!$P:$P,$C$3,Database!$N:$N,"n/a") -> 0 | P44: =SUMIFS(Database!$L:$L,Database!$F:$F,$B44,Database!$C:$C,P$3,Database!$P:$P,$C$3,Database!$N:$N,P$5)+SUMIFS(Database!$L:$L,Database!$F:$F,$B44,Database!$C:$C,P$3,Database!$P:$P,$C$3,Database!$N:$N,"n/a") -> 0 | R44: =SUMIFS(Database!$L:$L,Database!$F:$F,$B44,Database!$C:$C,R$3,Database!$P:$P,$C$3,Database!$N:$N,R$5)+SUMIFS(Database!$L:$L,Database!$F:$F,$B44,Database!$C:$C,R$3,Database!$P:$P,$C$3,Database!$N:$N,"n/a") -> 0 | T44: =SUMIFS(Database!$L:$L,Database!$F:$F,$B44,Database!$C:$C,T$3,Database!$P:$P,$C$3,Database!$N:$N,T$5)+SUMIFS(Database!$L:$L,Database!$F:$F,$B44,Database!$C:$C,T$3,Database!$P:$P,$C$3,Database!$N:$N,"n/a") -> 0 | U44: =SUMIFS(Database!$L:$L,Database!$F:$F,$B44,Database!$C:$C,U$3,Database!$P:$P,$C$3,Database!$N:$N,U$5)+SUMIFS(Database!$L:$L,Database!$F:$F,$B44,Database!$C:$C,U$3,Database!$P:$P,$C$3,Database!$N:$N,"n/a") -> 4056 | AB44: =SUMIFS(Database!$L:$L,Database!$F:$F,$B44,Database!$C:$C,AB$3,Database!$P:$P,$C$3,Database!$N:$N,AB$5)+SUMIFS(Database!$L:$L,Database!$F:$F,$B44,Database!$C:$C,AB$3,Database!$P:$P,$C$3,Database!$N:$N,"n/a") -> 4056 | AC44: =SUMIFS(Database!$L:$L,Database!$F:$F,$B44,Database!$C:$C,AC$3,Database!$P:$P,$C$3,Database!$N:$N,AC$5)+SUMIFS(Database!$L:$L,Database!$F:$F,$B44,Database!$C:$C,AC$3,Database!$P:$P,$C$3,Database!$N:$N,"n/a") -> 0 | AD44: =SUMIFS(Database!$L:$L,Database!$F:$F,$B44,Database!$C:$C,AD$3,Database!$P:$P,$C$3,Database!$N:$N,AD$5)+SUMIFS(Database!$L:$L,Database!$F:$F,$B44,Database!$C:$C,AD$3,Database!$P:$P,$C$3,Database!$N:$N,"n/a") -> 0 | AF44: =SUMIFS(Database!$L:$L,Database!$F:$F,$B44,Database!$C:$C,AF$3,Database!$P:$P,$C$3,Database!$N:$N,AF$5)+SUMIFS(Database!$L:$L,Database!$F:$F,$B44,Database!$C:$C,AF$3,Database!$P:$P,$C$3,Database!$N:$N,"n/a") -> 0 | AH44: =SUMIFS(Database!$L:$L,Database!$F:$F,$B44,Database!$C:$C,AH$3,Database!$P:$P,$C$3,Database!$N:$N,AH$5)+SUMIFS(Database!$L:$L,Database!$F:$F,$B44,Database!$C:$C,AH$3,Database!$P:$P,$C$3,Database!$N:$N,"n/a") -> 0
B45: Rental - Housing benefit | C45: Housing benefit | D45: Financial support | J45: =T45 -> 4056 | T45: =SUMIFS(Database!$L:$L,Database!$F:$F,$B45,Database!$C:$C,T$3,Database!$P:$P,$C$3,Database!$N:$N,T$5)+SUMIFS(Database!$L:$L,Database!$F:$F,$B45,Database!$C:$C,T$3,Database!$P:$P,$C$3,Database!$N:$N,"n/a") -> 4056 | AJ45: =SUMIFS(Database!$L:$L,Database!$F:$F,$B45,Database!$C:$C,AJ$3,Database!$P:$P,$C$3,Database!$N:$N,AJ$5)+SUMIFS(Database!$L:$L,Database!$F:$F,$B45,Database!$C:$C,AJ$3,Database!$P:$P,$C$3,Database!$N:$N,"n/a") -> 4056
B46: Attendance Allowance | C46: Attendance Allowance | D46: Financial support | H46: =SUMIFS(Database!$L:$L,Database!$F:$F,$B46,Database!$C:$C,H$3,Database!$P:$P,$C$33,Database!$N:$N,H$5)+SUMIFS(Database!$L:$L,Database!$F:$F,$B46,Database!$C:$C,H$3,Database!$P:$P,$C$33,Database!$N:$N,"n/a") -> 21791 | J46: =SUMIFS(Database!$L:$L,Database!$F:$F,$B46,Database!$C:$C,J$3,Database!$P:$P,$C$33,Database!$N:$N,J$5)+SUMIFS(Database!$L:$L,Database!$F:$F,$B46,Database!$C:$C,J$3,Database!$P:$P,$C$33,Database!$N:$N,"n/a") -> 21791 | P46: =SUMIFS(Database!$L:$L,Database!$F:$F,$B46,Database!$C:$C,P$3,Database!$P:$P,$C$33,Database!$N:$N,P$5)+SUMIFS(Database!$L:$L,Database!$F:$F,$B46,Database!$C:$C,P$3,Database!$P:$P,$C$33,Database!$N:$N,"n/a") -> 21791 | R46: =SUMIFS(Database!$L:$L,Database!$F:$F,$B46,Database!$C:$C,R$3,Database!$P:$P,$C$33,Database!$N:$N,R$5)+SUMIFS(Database!$L:$L,Database!$F:$F,$B46,Database!$C:$C,R$3,Database!$P:$P,$C$33,Database!$N:$N,"n/a") -> 21791 | X46: =SUMIFS(Database!$L:$L,Database!$F:$F,$B46,Database!$C:$C,X$3,Database!$P:$P,$C$33,Database!$N:$N,X$5)+SUMIFS(Database!$L:$L,Database!$F:$F,$B46,Database!$C:$C,X$3,Database!$P:$P,$C$33,Database!$N:$N,"n/a") -> 21791 | Z46: =SUMIFS(Database!$L:$L,Database!$F:$F,$B46,Database!$C:$C,Z$3,Database!$P:$P,$C$33,Database!$N:$N,Z$5)+SUMIFS(Database!$L:$L,Database!$F:$F,$B46,Database!$C:$C,Z$3,Database!$P:$P,$C$33,Database!$N:$N,"n/a") -> 21791 | AF46: =SUMIFS(Database!$L:$L,Database!$F:$F,$B46,Database!$C:$C,AF$3,Database!$P:$P,$C$33,Database!$N:$N,AF$5)+SUMIFS(Database!$L:$L,Database!$F:$F,$B46,Database!$C:$C,AF$3,Database!$P:$P,$C$33,Database!$N:$N,"n/a") -> 21791 | AH46: =SUMIFS(Database!$L:$L,Database!$F:$F,$B46,Database!$C:$C,AH$3,Database!$P:$P,$C$33,Database!$N:$N,AH$5)+SUMIFS(Database!$L:$L,Database!$F:$F,$B46,Database!$C:$C,AH$3,Database!$P:$P,$C$33,Database!$N:$N,"n/a") -> 21791
B47: Equipment and adaptions | C47: Other | D47: Financial support | P47: =SUMIFS(Database!$L:$L,Database!$F:$F,$B47,Database!$C:$C,P$3,Database!$P:$P,$C$33,Database!$N:$N,P$5)+SUMIFS(Database!$L:$L,Database!$F:$F,$B47,Database!$C:$C,P$3,Database!$P:$P,$C$33,Database!$N:$N,"n/a") -> 0 | U47: =SUMIFS(Database!$L:$L,Database!$F:$F,$B47,Database!$C:$C,U$3,Database!$P:$P,$C$33,Database!$N:$N,U$5)+SUMIFS(Database!$L:$L,Database!$F:$F,$B47,Database!$C:$C,U$3,Database!$P:$P,$C$33,Database!$N:$N,"n/a") -> 0 | V47: =SUMIFS(Database!$L:$L,Database!$F:$F,$B47,Database!$C:$C,V$3,Database!$P:$P,$C$33,Database!$N:$N,V$5)+SUMIFS(Database!$L:$L,Database!$F:$F,$B47,Database!$C:$C,V$3,Database!$P:$P,$C$33,Database!$N:$N,"n/a") -> 0 | X47: =SUMIFS(Database!$L:$L,Database!$F:$F,$B47,Database!$C:$C,X$3,Database!$P:$P,$C$33,Database!$N:$N,X$5)+SUMIFS(Database!$L:$L,Database!$F:$F,$B47,Database!$C:$C,X$3,Database!$P:$P,$C$33,Database!$N:$N,"n/a") -> 0 | Z47: =SUMIFS(Database!$L:$L,Database!$F:$F,$B47,Database!$C:$C,Z$3,Database!$P:$P,$C$33,Database!$N:$N,Z$5)+SUMIFS(Database!$L:$L,Database!$F:$F,$B47,Database!$C:$C,Z$3,Database!$P:$P,$C$33,Database!$N:$N,"n/a") -> 125 | AC47: =SUMIFS(Database!$L:$L,Database!$F:$F,$B47,Database!$C:$C,AC$3,Database!$P:$P,$C$33,Database!$N:$N,AC$5)+SUMIFS(Database!$L:$L,Database!$F:$F,$B47,Database!$C:$C,AC$3,Database!$P:$P,$C$33,Database!$N:$N,"n/a") -> 0 | AD47: =SUMIFS(Database!$L:$L,Database!$F:$F,$B47,Database!$C:$C,AD$3,Database!$P:$P,$C$33,Database!$N:$N,AD$5)+SUMIFS(Database!$L:$L,Database!$F:$F,$B47,Database!$C:$C,AD$3,Database!$P:$P,$C$33,Database!$N:$N,"n/a") -> 0 | AF47: =SUMIFS(Database!$L:$L,Database!$F:$F,$B47,Database!$C:$C,AF$3,Database!$P:$P,$C$33,Database!$N:$N,AF$5)+SUMIFS(Database!$L:$L,Database!$F:$F,$B47,Database!$C:$C,AF$3,Database!$P:$P,$C$33,Database!$N:$N,"n/a") -> 0 | AH47: =SUMIFS(Database!$L:$L,Database!$F:$F,$B47,Database!$C:$C,AH$3,Database!$P:$P,$C$33,Database!$N:$N,AH$5)+SUMIFS(Database!$L:$L,Database!$F:$F,$B47,Database!$C:$C,AH$3,Database!$P:$P,$C$33,Database!$N:$N,"n/a") -> 125
B48: Disability and Facilities grant | C48: Other | D48: Financial support | P48: =SUMIFS(Database!$L:$L,Database!$F:$F,$B48,Database!$C:$C,P$3,Database!$P:$P,$C$33,Database!$N:$N,P$5)+SUMIFS(Database!$L:$L,Database!$F:$F,$B48,Database!$C:$C,P$3,Database!$P:$P,$C$33,Database!$N:$N,"n/a") -> 0 | U48: =SUMIFS(Database!$L:$L,Database!$F:$F,$B48,Database!$C:$C,U$3,Database!$P:$P,$C$33,Database!$N:$N,U$5)+SUMIFS(Database!$L:$L,Database!$F:$F,$B48,Database!$C:$C,U$3,Database!$P:$P,$C$33,Database!$N:$N,"n/a") -> 0 | V48: =SUMIFS(Database!$L:$L,Database!$F:$F,$B48,Database!$C:$C,V$3,Database!$P:$P,$C$33,Database!$N:$N,V$5)+SUMIFS(Database!$L:$L,Database!$F:$F,$B48,Database!$C:$C,V$3,Database!$P:$P,$C$33,Database!$N:$N,"n/a") -> 0 | X48: =SUMIFS(Database!$L:$L,Database!$F:$F,$B48,Database!$C:$C,X$3,Database!$P:$P,$C$33,Database!$N:$N,X$5)+SUMIFS(Database!$L:$L,Database!$F:$F,$B48,Database!$C:$C,X$3,Database!$P:$P,$C$33,Database!$N:$N,"n/a") -> 0 | AB48: =SUMIFS(Database!$L:$L,Database!$F:$F,$B48,Database!$C:$C,AB$3,Database!$P:$P,$C$33,Database!$N:$N,AB$5)+SUMIFS(Database!$L:$L,Database!$F:$F,$B48,Database!$C:$C,AB$3,Database!$P:$P,$C$33,Database!$N:$N,"n/a") -> 750 | AC48: =SUMIFS(Database!$L:$L,Database!$F:$F,$B48,Database!$C:$C,AC$3,Database!$P:$P,$C$33,Database!$N:$N,AC$5)+SUMIFS(Database!$L:$L,Database!$F:$F,$B48,Database!$C:$C,AC$3,Database!$P:$P,$C$33,Database!$N:$N,"n/a") -> 0 | AD48: =SUMIFS(Database!$L:$L,Database!$F:$F,$B48,Database!$C:$C,AD$3,Database!$P:$P,$C$33,Database!$N:$N,AD$5)+SUMIFS(Database!$L:$L,Database!$F:$F,$B48,Database!$C:$C,AD$3,Database!$P:$P,$C$33,Database!$N:$N,"n/a") -> 0 | AF48: =SUMIFS(Database!$L:$L,Database!$F:$F,$B48,Database!$C:$C,AF$3,Database!$P:$P,$C$33,Database!$N:$N,AF$5)+SUMIFS(Database!$L:$L,Database!$F:$F,$B48,Database!$C:$C,AF$3,Database!$P:$P,$C$33,Database!$N:$N,"n/a") -> 0 | AJ48: =SUMIFS(Database!$L:$L,Database!$F:$F,$B48,Database!$C:$C,AJ$3,Database!$P:$P,$C$33,Database!$N:$N,AJ$5)+SUMIFS(Database!$L:$L,Database!$F:$F,$B48,Database!$C:$C,AJ$3,Database!$P:$P,$C$33,Database!$N:$N,"n/a") -> 750
B49: Other | C49: Other | D49: Financial support | P49: =SUM(P47:P48) -> 0 | R49: 0 | T49: 0 | U49: 0 | V49: 0 | X49: 0 | Z49: =SUM(Z47:Z48) -> 125 | AB49: 750 | AC49: 0 | AD49: 0 | AF49: 0 | AH49: =SUM(AH47:AH48) -> 125 | AJ49: =SUM(AJ47:AJ48) -> 750
B50: Council tax | C50: Council tax | D50: Financial support | M50: =SUMIFS(Database!$L:$L,Database!$F:$F,$B50,Database!$C:$C,M$3,Database!$P:$P,$C$33,Database!$N:$N,M$5)+SUMIFS(Database!$L:$L,Database!$F:$F,$B50,Database!$C:$C,M$3,Database!$P:$P,$C$33,Database!$N:$N,"n/a") -> 852.02 | R50: =M50 -> 852.02 | U50: =SUMIFS(Database!$L:$L,Database!$F:$F,$B50,Database!$C:$C,U$3,Database!$P:$P,$C$33,Database!$N:$N,U$5)+SUMIFS(Database!$L:$L,Database!$F:$F,$B50,Database!$C:$C,U$3,Database!$P:$P,$C$33,Database!$N:$N,"n/a") -> 0 | V50: =SUMIFS(Database!$L:$L,Database!$F:$F,$B50,Database!$C:$C,V$3,Database!$P:$P,$C$33,Database!$N:$N,V$5)+SUMIFS(Database!$L:$L,Database!$F:$F,$B50,Database!$C:$C,V$3,Database!$P:$P,$C$33,Database!$N:$N,"n/a") -> 0 | Z50: =SUMIFS(Database!$L:$L,Database!$F:$F,$B50,Database!$C:$C,Z$3,Database!$P:$P,$C$33,Database!$N:$N,Z$5)+SUMIFS(Database!$L:$L,Database!$F:$F,$B50,Database!$C:$C,Z$3,Database!$P:$P,$C$33,Database!$N:$N,"n/a") -> 0 | AC50: =SUMIFS(Database!$L:$L,Database!$F:$F,$B50,Database!$C:$C,AC$3,Database!$P:$P,$C$33,Database!$N:$N,AC$5)+SUMIFS(Database!$L:$L,Database!$F:$F,$B50,Database!$C:$C,AC$3,Database!$P:$P,$C$33,Database!$N:$N,"n/a") -> 852.02 | AH50: =AC50 -> 852.02
B51: Benefits
B52: Falls | C52: NHS Benefits | D52: Benefits | G52: =SUMIFS(Database!$L:$L,Database!$F:$F,$B52,Database!$C:$C,G$3,Database!$P:$P,$C$33,Database!$N:$N,G$5)+SUMIFS(Database!$L:$L,Database!$F:$F,$B52,Database!$C:$C,G$3,Database!$P:$P,$C$33,Database!$N:$N,"n/a") -> -21.08 | K52: =SUMIFS(Database!$L:$L,Database!$F:$F,$B52,Database!$C:$C,K$3,Database!$P:$P,$C$33,Database!$N:$N,K$5)+SUMIFS(Database!$L:$L,Database!$F:$F,$B52,Database!$C:$C,K$3,Database!$P:$P,$C$33,Database!$N:$N,"n/a") -> -21.08 | O52: =SUMIFS(Database!$L:$L,Database!$F:$F,$B52,Database!$C:$C,O$3,Database!$P:$P,$C$33,Database!$N:$N,O$5)+SUMIFS(Database!$L:$L,Database!$F:$F,$B52,Database!$C:$C,O$3,Database!$P:$P,$C$33,Database!$N:$N,"n/a") -> 379.44 | S52: =SUMIFS(Database!$L:$L,Database!$F:$F,$B52,Database!$C:$C,S$3,Database!$P:$P,$C$33,Database!$N:$N,S$5)+SUMIFS(Database!$L:$L,Database!$F:$F,$B52,Database!$C:$C,S$3,Database!$P:$P,$C$33,Database!$N:$N,"n/a") -> 379.44 | V52: =SUMIFS(Database!$L:$L,Database!$F:$F,$B52,Database!$C:$C,V$3,Database!$P:$P,$C$33,Database!$N:$N,V$5)+SUMIFS(Database!$L:$L,Database!$F:$F,$B52,Database!$C:$C,V$3,Database!$P:$P,$C$33,Database!$N:$N,"n/a") -> 716.72 | AA52: =SUMIFS(Database!$L:$L,Database!$F:$F,$B52,Database!$C:$C,AA$3,Database!$P:$P,$C$33,Database!$N:$N,AA$5)+SUMIFS(Database!$L:$L,Database!$F:$F,$B52,Database!$C:$C,AA$3,Database!$P:$P,$C$33,Database!$N:$N,"n/a") -> 716.72 | AE52: =SUMIFS(Database!$L:$L,Database!$F:$F,$B52,Database!$C:$C,AE$3,Database!$P:$P,$C$33,Database!$N:$N,AE$5)+SUMIFS(Database!$L:$L,Database!$F:$F,$B52,Database!$C:$C,AE$3,Database!$P:$P,$C$33,Database!$N:$N,"n/a") -> 480.427907 | AI52: =SUMIFS(Database!$L:$L,Database!$F:$F,$B52,Database!$C:$C,AI$3,Database!$P:$P,$C$33,Database!$N:$N,AI$5)+SUMIFS(Database!$L:$L,Database!$F:$F,$B52,Database!$C:$C,AI$3,Database!$P:$P,$C$33,Database!$N:$N,"n/a") -> 480.427907
B53: Reduction in loneliness | C53: NHS Benefits | D53: Benefits | G53: =SUMIFS(Database!$L:$L,Database!$F:$F,$B53,Database!$C:$C,G$3,Database!$P:$P,$C$33,Database!$N:$N,G$5)+SUMIFS(Database!$L:$L,Database!$F:$F,$B53,Database!$C:$C,G$3,Database!$P:$P,$C$33,Database!$N:$N,"n/a") -> 27.86 | K53: =SUMIFS(Database!$L:$L,Database!$F:$F,$B53,Database!$C:$C,K$3,Database!$P:$P,$C$33,Database!$N:$N,K$5)+SUMIFS(Database!$L:$L,Database!$F:$F,$B53,Database!$C:$C,K$3,Database!$P:$P,$C$33,Database!$N:$N,"n/a") -> 27.86 | O53: =SUMIFS(Database!$L:$L,Database!$F:$F,$B53,Database!$C:$C,O$3,Database!$P:$P,$C$33,Database!$N:$N,O$5)+SUMIFS(Database!$L:$L,Database!$F:$F,$B53,Database!$C:$C,O$3,Database!$P:$P,$C$33,Database!$N:$N,"n/a") -> 171.14 | S53: =SUMIFS(Database!$L:$L,Database!$F:$F,$B53,Database!$C:$C,S$3,Database!$P:$P,$C$33,Database!$N:$N,S$5)+SUMIFS(Database!$L:$L,Database!$F:$F,$B53,Database!$C:$C,S$3,Database!$P:$P,$C$33,Database!$N:$N,"n/a") -> 171.14 | V53: =SUMIFS(Database!$L:$L,Database!$F:$F,$B53,Database!$C:$C,V$3,Database!$P:$P,$C$33,Database!$N:$N,V$5)+SUMIFS(Database!$L:$L,Database!$F:$F,$B53,Database!$C:$C,V$3,Database!$P:$P,$C$33,Database!$N:$N,"n/a") -> 151.24 | AA53: =SUMIFS(Database!$L:$L,Database!$F:$F,$B53,Database!$C:$C,AA$3,Database!$P:$P,$C$33,Database!$N:$N,AA$5)+SUMIFS(Database!$L:$L,Database!$F:$F,$B53,Database!$C:$C,AA$3,Database!$P:$P,$C$33,Database!$N:$N,"n/a") -> 151.24 | AE53: =SUMIFS(Database!$L:$L,Database!$F:$F,$B53,Database!$C:$C,AE$3,Database!$P:$P,$C$33,Database!$N:$N,AE$5)+SUMIFS(Database!$L:$L,Database!$F:$F,$B53,Database!$C:$C,AE$3,Database!$P:$P,$C$33,Database!$N:$N,"n/a") -> 97.51 | AI53: =SUMIFS(Database!$L:$L,Database!$F:$F,$B53,Database!$C:$C,AI$3,Database!$P:$P,$C$33,Database!$N:$N,AI$5)+SUMIFS(Database!$L:$L,Database!$F:$F,$B53,Database!$C:$C,AI$3,Database!$P:$P,$C$33,Database!$N:$N,"n/a") -> 97.51
B54: Hospital admissions | C54: NHS Benefits | D54: Benefits | G54: =SUMIFS(Database!$L:$L,Database!$F:$F,$B54,Database!$C:$C,G$3,Database!$P:$P,$C$33,Database!$N:$N,G$5)+SUMIFS(Database!$L:$L,Database!$F:$F,$B54,Database!$C:$C,G$3,Database!$P:$P,$C$33,Database!$N:$N,"n/a") -> 4044 | K54: =SUMIFS(Database!$L:$L,Database!$F:$F,$B54,Database!$C:$C,K$3,Database!$P:$P,$C$33,Database!$N:$N,K$5)+SUMIFS(Database!$L:$L,Database!$F:$F,$B54,Database!$C:$C,K$3,Database!$P:$P,$C$33,Database!$N:$N,"n/a") -> 4044 | O54: =SUMIFS(Database!$L:$L,Database!$F:$F,$B54,Database!$C:$C,O$3,Database!$P:$P,$C$33,Database!$N:$N,O$5)+SUMIFS(Database!$L:$L,Database!$F:$F,$B54,Database!$C:$C,O$3,Database!$P:$P,$C$33,Database!$N:$N,"n/a") -> 5055 | S54: =SUMIFS(Database!$L:$L,Database!$F:$F,$B54,Database!$C:$C,S$3,Database!$P:$P,$C$33,Database!$N:$N,S$5)+SUMIFS(Database!$L:$L,Database!$F:$F,$B54,Database!$C:$C,S$3,Database!$P:$P,$C$33,Database!$N:$N,"n/a") -> 5055 | V54: =SUMIFS(Database!$L:$L,Database!$F:$F,$B54,Database!$C:$C,V$3,Database!$P:$P,$C$33,Database!$N:$N,V$5)+SUMIFS(Database!$L:$L,Database!$F:$F,$B54,Database!$C:$C,V$3,Database!$P:$P,$C$33,Database!$N:$N,"n/a") -> 3341.916667 | AA54: =SUMIFS(Database!$L:$L,Database!$F:$F,$B54,Database!$C:$C,AA$3,Database!$P:$P,$C$33,Database!$N:$N,AA$5)+SUMIFS(Database!$L:$L,Database!$F:$F,$B54,Database!$C:$C,AA$3,Database!$P:$P,$C$33,Database!$N:$N,"n/a") -> 3341.916667 | AE54: =SUMIFS(Database!$L:$L,Database!$F:$F,$B54,Database!$C:$C,AE$3,Database!$P:$P,$C$33,Database!$N:$N,AE$5)+SUMIFS(Database!$L:$L,Database!$F:$F,$B54,Database!$C:$C,AE$3,Database!$P:$P,$C$33,Database!$N:$N,"n/a") -> 3370 | AI54: =SUMIFS(Database!$L:$L,Database!$F:$F,$B54,Database!$C:$C,AI$3,Database!$P:$P,$C$33,Database!$N:$N,AI$5)+SUMIFS(Database!$L:$L,Database!$F:$F,$B54,Database!$C:$C,AI$3,Database!$P:$P,$C$33,Database!$N:$N,"n/a") -> 3370
B55: GP visits | C55: NHS Benefits | D55: Benefits | G55: =SUMIFS(Database!$L:$L,Database!$F:$F,$B55,Database!$C:$C,G$3,Database!$P:$P,$C$33,Database!$N:$N,G$5)+SUMIFS(Database!$L:$L,Database!$F:$F,$B55,Database!$C:$C,G$3,Database!$P:$P,$C$33,Database!$N:$N,"n/a") -> 0 | K55: =SUMIFS(Database!$L:$L,Database!$F:$F,$B55,Database!$C:$C,K$3,Database!$P:$P,$C$33,Database!$N:$N,K$5)+SUMIFS(Database!$L:$L,Database!$F:$F,$B55,Database!$C:$C,K$3,Database!$P:$P,$C$33,Database!$N:$N,"n/a") -> 0 | O55: =SUMIFS(Database!$L:$L,Database!$F:$F,$B55,Database!$C:$C,O$3,Database!$P:$P,$C$33,Database!$N:$N,O$5)+SUMIFS(Database!$L:$L,Database!$F:$F,$B55,Database!$C:$C,O$3,Database!$P:$P,$C$33,Database!$N:$N,"n/a") -> 144.78 | S55: =SUMIFS(Database!$L:$L,Database!$F:$F,$B55,Database!$C:$C,S$3,Database!$P:$P,$C$33,Database!$N:$N,S$5)+SUMIFS(Database!$L:$L,Database!$F:$F,$B55,Database!$C:$C,S$3,Database!$P:$P,$C$33,Database!$N:$N,"n/a") -> 144.78 | V55: =SUMIFS(Database!$L:$L,Database!$F:$F,$B55,Database!$C:$C,V$3,Database!$P:$P,$C$33,Database!$N:$N,V$5)+SUMIFS(Database!$L:$L,Database!$F:$F,$B55,Database!$C:$C,V$3,Database!$P:$P,$C$33,Database!$N:$N,"n/a") -> 0 | AA55: =SUMIFS(Database!$L:$L,Database!$F:$F,$B55,Database!$C:$C,AA$3,Database!$P:$P,$C$33,Database!$N:$N,AA$5)+SUMIFS(Database!$L:$L,Database!$F:$F,$B55,Database!$C:$C,AA$3,Database!$P:$P,$C$33,Database!$N:$N,"n/a") -> 0 | AE55: =SUMIFS(Database!$L:$L,Database!$F:$F,$B55,Database!$C:$C,AE$3,Database!$P:$P,$C$33,Database!$N:$N,AE$5)+SUMIFS(Database!$L:$L,Database!$F:$F,$B55,Database!$C:$C,AE$3,Database!$P:$P,$C$33,Database!$N:$N,"n/a") -> 0 | AI55: =SUMIFS(Database!$L:$L,Database!$F:$F,$B55,Database!$C:$C,AI$3,Database!$P:$P,$C$33,Database!$N:$N,AI$5)+SUMIFS(Database!$L:$L,Database!$F:$F,$B55,Database!$C:$C,AI$3,Database!$P:$P,$C$33,Database!$N:$N,"n/a") -> 0
B56: Community nurse visits | C56: NHS Benefits | D56: Benefits | G56: =SUMIFS(Database!$L:$L,Database!$F:$F,$B56,Database!$C:$C,G$3,Database!$P:$P,$C$33,Database!$N:$N,G$5)+SUMIFS(Database!$L:$L,Database!$F:$F,$B56,Database!$C:$C,G$3,Database!$P:$P,$C$33,Database!$N:$N,"n/a") -> 0 | K56: =SUMIFS(Database!$L:$L,Database!$F:$F,$B56,Database!$C:$C,K$3,Database!$P:$P,$C$33,Database!$N:$N,K$5)+SUMIFS(Database!$L:$L,Database!$F:$F,$B56,Database!$C:$C,K$3,Database!$P:$P,$C$33,Database!$N:$N,"n/a") -> 0 | O56: =SUMIFS(Database!$L:$L,Database!$F:$F,$B56,Database!$C:$C,O$3,Database!$P:$P,$C$33,Database!$N:$N,O$5)+SUMIFS(Database!$L:$L,Database!$F:$F,$B56,Database!$C:$C,O$3,Database!$P:$P,$C$33,Database!$N:$N,"n/a") -> 362.55 | S56: =SUMIFS(Database!$L:$L,Database!$F:$F,$B56,Database!$C:$C,S$3,Database!$P:$P,$C$33,Database!$N:$N,S$5)+SUMIFS(Database!$L:$L,Database!$F:$F,$B56,Database!$C:$C,S$3,Database!$P:$P,$C$33,Database!$N:$N,"n/a") -> 362.55 | V56: =SUMIFS(Database!$L:$L,Database!$F:$F,$B56,Database!$C:$C,V$3,Database!$P:$P,$C$33,Database!$N:$N,V$5)+SUMIFS(Database!$L:$L,Database!$F:$F,$B56,Database!$C:$C,V$3,Database!$P:$P,$C$33,Database!$N:$N,"n/a") -> 0 | AA56: =SUMIFS(Database!$L:$L,Database!$F:$F,$B56,Database!$C:$C,AA$3,Database!$P:$P,$C$33,Database!$N:$N,AA$5)+SUMIFS(Database!$L:$L,Database!$F:$F,$B56,Database!$C:$C,AA$3,Database!$P:$P,$C$33,Database!$N:$N,"n/a") -> 0 | AE56: =SUMIFS(Database!$L:$L,Database!$F:$F,$B56,Database!$C:$C,AE$3,Database!$P:$P,$C$33,Database!$N:$N,AE$5)+SUMIFS(Database!$L:$L,Database!$F:$F,$B56,Database!$C:$C,AE$3,Database!$P:$P,$C$33,Database!$N:$N,"n/a") -> 0 | AI56: =SUMIFS(Database!$L:$L,Database!$F:$F,$B56,Database!$C:$C,AI$3,Database!$P:$P,$C$33,Database!$N:$N,AI$5)+SUMIFS(Database!$L:$L,Database!$F:$F,$B56,Database!$C:$C,AI$3,Database!$P:$P,$C$33,Database!$N:$N,"n/a") -> 0
B57: DTOC | C57: NHS Benefits | D57: Benefits | G57: =SUMIFS(Database!$L:$L,Database!$F:$F,$B57,Database!$C:$C,G$3,Database!$P:$P,$C$33,Database!$N:$N,G$5)+SUMIFS(Database!$L:$L,Database!$F:$F,$B57,Database!$C:$C,G$3,Database!$P:$P,$C$33,Database!$N:$N,"n/a") -> 0 | K57: =SUMIFS(Database!$L:$L,Database!$F:$F,$B57,Database!$C:$C,K$3,Database!$P:$P,$C$33,Database!$N:$N,K$5)+SUMIFS(Database!$L:$L,Database!$F:$F,$B57,Database!$C:$C,K$3,Database!$P:$P,$C$33,Database!$N:$N,"n/a") -> 0 | O57: =SUMIFS(Database!$L:$L,Database!$F:$F,$B57,Database!$C:$C,O$3,Database!$P:$P,$C$33,Database!$N:$N,O$5)+SUMIFS(Database!$L:$L,Database!$F:$F,$B57,Database!$C:$C,O$3,Database!$P:$P,$C$33,Database!$N:$N,"n/a") -> 465.3 | S57: =SUMIFS(Database!$L:$L,Database!$F:$F,$B57,Database!$C:$C,S$3,Database!$P:$P,$C$33,Database!$N:$N,S$5)+SUMIFS(Database!$L:$L,Database!$F:$F,$B57,Database!$C:$C,S$3,Database!$P:$P,$C$33,Database!$N:$N,"n/a") -> 465.3 | V57: =SUMIFS(Database!$L:$L,Database!$F:$F,$B57,Database!$C:$C,V$3,Database!$P:$P,$C$33,Database!$N:$N,V$5)+SUMIFS(Database!$L:$L,Database!$F:$F,$B57,Database!$C:$C,V$3,Database!$P:$P,$C$33,Database!$N:$N,"n/a") -> 0 | AA57: =SUMIFS(Database!$L:$L,Database!$F:$F,$B57,Database!$C:$C,AA$3,Database!$P:$P,$C$33,Database!$N:$N,AA$5)+SUMIFS(Database!$L:$L,Database!$F:$F,$B57,Database!$C:$C,AA$3,Database!$P:$P,$C$33,Database!$N:$N,"n/a") -> 0 | AE57: =SUMIFS(Database!$L:$L,Database!$F:$F,$B57,Database!$C:$C,AE$3,Database!$P:$P,$C$33,Database!$N:$N,AE$5)+SUMIFS(Database!$L:$L,Database!$F:$F,$B57,Database!$C:$C,AE$3,Database!$P:$P,$C$33,Database!$N:$N,"n/a") -> 0 | AI57: =SUMIFS(Database!$L:$L,Database!$F:$F,$B57,Database!$C:$C,AI$3,Database!$P:$P,$C$33,Database!$N:$N,AI$5)+SUMIFS(Database!$L:$L,Database!$F:$F,$B57,Database!$C:$C,AI$3,Database!$P:$P,$C$33,Database!$N:$N,"n/a") -> 0
B58: Fire-related fatalities | C58: Social Benefits | D58: Benefits | G58: =SUMIFS(Database!$L:$L,Database!$F:$F,$B58,Database!$C:$C,G$3,Database!$P:$P,$C$33,Database!$N:$N,G$5)+SUMIFS(Database!$L:$L,Database!$F:$F,$B58,Database!$C:$C,G$3,Database!$P:$P,$C$33,Database!$N:$N,"n/a") -> 116.6608696 | K58: =SUMIFS(Database!$L:$L,Database!$F:$F,$B58,Database!$C:$C,K$3,Database!$P:$P,$C$33,Database!$N:$N,K$5)+SUMIFS(Database!$L:$L,Database!$F:$F,$B58,Database!$C:$C,K$3,Database!$P:$P,$C$33,Database!$N:$N,"n/a") -> 116.6608696 | O58: =SUMIFS(Database!$L:$L,Database!$F:$F,$B58,Database!$C:$C,O$3,Database!$P:$P,$C$33,Database!$N:$N,O$5)+SUMIFS(Database!$L:$L,Database!$F:$F,$B58,Database!$C:$C,O$3,Database!$P:$P,$C$33,Database!$N:$N,"n/a") -> 116.6608696 | S58: =SUMIFS(Database!$L:$L,Database!$F:$F,$B58,Database!$C:$C,S$3,Database!$P:$P,$C$33,Database!$N:$N,S$5)+SUMIFS(Database!$L:$L,Database!$F:$F,$B58,Database!$C:$C,S$3,Database!$P:$P,$C$33,Database!$N:$N,"n/a") -> 116.6608696 | V58: =SUMIFS(Database!$L:$L,Database!$F:$F,$B58,Database!$C:$C,V$3,Database!$P:$P,$C$33,Database!$N:$N,V$5)+SUMIFS(Database!$L:$L,Database!$F:$F,$B58,Database!$C:$C,V$3,Database!$P:$P,$C$33,Database!$N:$N,"n/a") -> 103.2 | AA58: =SUMIFS(Database!$L:$L,Database!$F:$F,$B58,Database!$C:$C,AA$3,Database!$P:$P,$C$33,Database!$N:$N,AA$5)+SUMIFS(Database!$L:$L,Database!$F:$F,$B58,Database!$C:$C,AA$3,Database!$P:$P,$C$33,Database!$N:$N,"n/a") -> 103.2 | AE58: =SUMIFS(Database!$L:$L,Database!$F:$F,$B58,Database!$C:$C,AE$3,Database!$P:$P,$C$33,Database!$N:$N,AE$5)+SUMIFS(Database!$L:$L,Database!$F:$F,$B58,Database!$C:$C,AE$3,Database!$P:$P,$C$33,Database!$N:$N,"n/a") -> 91.73333333 | AI58: =SUMIFS(Database!$L:$L,Database!$F:$F,$B58,Database!$C:$C,AI$3,Database!$P:$P,$C$33,Database!$N:$N,AI$5)+SUMIFS(Database!$L:$L,Database!$F:$F,$B58,Database!$C:$C,AI$3,Database!$P:$P,$C$33,Database!$N:$N,"n/a") -> 91.73333333
B59: Price | E59: =J59 -> 37544 | J59: ='Price assumptions'!C8 -> 37544 | R59: ='Price assumptions'!D8 -> 0 | U59: =Z59 -> 22516 | Z59: ='Price assumptions'!E8 -> 22516 | AC59: =AH59 -> 0 | AH59: ='Price assumptions'!F8 -> 0
E62: =CONCATENATE($C$63,E63,E64,E67) -> HighResidential careSelf funderPerson | F62: =CONCATENATE($C$63,F63,F64,F67) -> HighResidential careSelf funderLA | G62: HighResidential careSelf funderNHS | H62: HighResidential careSelf funderCentral Govt | I62: HighResidential careFundedPerson | J62: HighResidential careFundedLA | K62: HighResidential careFundedNHS | L62: HighResidential careFundedCentral Govt | M62: HighExtra careSelf funderPerson | N62: HighExtra careSelf funderLA | O62: HighExtra careSelf funderNHS | P62: HighExtra careSelf funderCentral Govt | Q62: HighExtra careFundedPerson | R62: HighExtra careFundedLA | S62: HighExtra careFundedNHS | T62: HighExtra careFundedCentral Govt | U62: HighShared LivesSelf funderPerson | V62: HighShared LivesSelf funderLA | W62: HighShared LivesSelf funderNHS | X62: HighShared LivesSelf funderCentral Govt | Y62: HighShared LivesFundedPerson | Z62: HighShared LivesFundedLA | AA62: HighShared LivesFundedNHS | AB62: HighShared LivesFundedCentral Govt | AC62: HighRetirement housingSelf funderPerson | AD62: HighRetirement housingSelf funderLA | AE62: HighRetirement housingSelf funderNHS | AF62: HighRetirement housingSelf funderCentral Govt | AG62: HighRetirement housingFundedPerson | AH62: HighRetirement housingFundedLA | AI62: HighRetirement housingFundedNHS | AJ62: HighRetirement housingFundedCentral Govt
B63: Needs assumption * Please see needs assumption sheet to understand how needs change costs and benefits | C63: High | E63: Residential care | F63: Residential care | G63: Residential care | H63: Residential care | I63: Residential care | J63: Residential care | K63: Residential care | L63: Residential care | M63: Extra care | N63: Extra care | O63: Extra care | P63: Extra care | Q63: Extra care | R63: Extra care | S63: Extra care | T63: Extra care | U63: Shared Lives | V63: Shared Lives | W63: Shared Lives | X63: Shared Lives | Y63: Shared Lives | Z63: Shared Lives | AA63: Shared Lives | AB63: Shared Lives | AC63: Retirement housing | AD63: Retirement housing | AE63: Retirement housing | AF63: Retirement housing | AG63: Retirement housing | AH63: Retirement housing | AI63: Retirement housing | AJ63: Retirement housing
E64: Self funder | F64: Self funder | G64: Self funder | H64: Self funder | I64: Funded | J64: Funded | K64: Funded | L64: Funded | M64: Self funder | N64: Self funder | O64: Self funder | P64: Self funder | Q64: Funded | R64: Funded | S64: Funded | T64: Funded | U64: Self funder | V64: Self funder | W64: Self funder | X64: Self funder | Y64: Funded | Z64: Funded | AA64: Funded | AB64: Funded | AC64: Self funder | AD64: Self funder | AE64: Self funder | AF64: Self funder | AG64: Funded | AH64: Funded | AI64: Funded | AJ64: Funded
E65: Yes | F65: Yes | G65: Yes | H65: Yes | I65: No | J65: No | K65: No | L65: No | M65: Yes | N65: Yes | O65: Yes | P65: Yes | Q65: No | R65: No | S65: No | T65: No | U65: Yes | V65: Yes | W65: Yes | X65: Yes | Y65: No | Z65: No | AA65: No | AB65: No | AC65: Yes | AD65: Yes | AE65: Yes | AF65: Yes | AG65: No | AH65: No | AI65: No | AJ65: No
E66: Who Pays | I66: Who Pays | M66: Who Pays | Q66: Who Pays | U66: Who pays | Y66: Who pays | AC66: Who pays | AG66: Who pays
B67: Cost detail | C67: Cost theme | D67: Cost category | E67: Person | F67: LA | G67: NHS | H67: Central Govt | I67: Person | J67: LA | K67: NHS | L67: Central Govt | M67: Person | N67: LA | O67: NHS | P67: Central Govt | Q67: Person | R67: LA | S67: NHS | T67: Central Govt | U67: Person | V67: LA | W67: NHS | X67: Central Govt | Y67: Person | Z67: LA | AA67: NHS | AB67: Central Govt | AC67: Person | AD67: LA | AE67: NHS | AF67: Central Govt | AG67: Person | AH67: LA | AI67: NHS | AJ67: Central Govt
B68: Care costs | C68: Care staff costs | D68: Production costs | E68: ='Care staff costs'!$H$9 -> 30846.68 | J68: ='Care staff costs'!$H$9 -> 30846.68 | M68: ='Care staff costs'!$H$27 -> 22361.28 | N68: 0 | O68: 0 | P68: 0 | R68: ='Care staff costs'!$H$27 -> 22361.28 | U68: ='Care staff costs'!$H$32 -> 17680 | Z68: ='Care staff costs'!$H$32 -> 17680 | AC68: ='Care staff costs'!$H$18 -> 22361.28 | AH68: ='Care staff costs'!$H$18 -> 22361.28
B69: Board and lodgings payment | C69: Running costs | D69: Production costs | J69: =SUMIFS(Database!$L:$L,Database!$F:$F,$B69,Database!$C:$C,J$3,Database!$P:$P,$C$63,Database!$N:$N,J$5)+SUMIFS(Database!$L:$L,Database!$F:$F,$B69,Database!$C:$C,J$3,Database!$P:$P,$C$63,Database!$N:$N,"n/a") -> 0 | M69: =SUMIFS(Database!$L:$L,Database!$F:$F,$B69,Database!$C:$C,M$3,Database!$P:$P,$C$63,Database!$N:$N,M$5)+SUMIFS(Database!$L:$L,Database!$F:$F,$B69,Database!$C:$C,M$3,Database!$P:$P,$C$63,Database!$N:$N,"n/a") -> 0 | N69: =SUMIFS(Database!$L:$L,Database!$F:$F,$B69,Database!$C:$C,N$3,Database!$P:$P,$C$63,Database!$N:$N,N$5)+SUMIFS(Database!$L:$L,Database!$F:$F,$B69,Database!$C:$C,N$3,Database!$P:$P,$C$63,Database!$N:$N,"n/a") -> 0 | O69: 0 | P69: 0 | R69: =SUMIFS(Database!$L:$L,Database!$F:$F,$B69,Database!$C:$C,R$3,Database!$P:$P,$C$63,Database!$N:$N,R$5)+SUMIFS(Database!$L:$L,Database!$F:$F,$B69,Database!$C:$C,R$3,Database!$P:$P,$C$63,Database!$N:$N,"n/a") -> 0 | U69: =SUMIFS(Database!$L:$L,Database!$F:$F,$B69,Database!$C:$C,U$3,Database!$P:$P,$C$63,Database!$N:$N,U$5)+SUMIFS(Database!$L:$L,Database!$F:$F,$B69,Database!$C:$C,U$3,Database!$P:$P,$C$63,Database!$N:$N,"n/a") -> 3484 | Z69: =SUMIFS(Database!$L:$L,Database!$F:$F,$B69,Database!$C:$C,Z$3,Database!$P:$P,$C$63,Database!$N:$N,Z$5)+SUMIFS(Database!$L:$L,Database!$F:$F,$B69,Database!$C:$C,Z$3,Database!$P:$P,$C$63,Database!$N:$N,"n/a") -> 3484 | AC69: =SUMIFS(Database!$L:$L,Database!$F:$F,$B69,Database!$C:$C,AC$3,Database!$P:$P,$C$63,Database!$N:$N,AC$5)+SUMIFS(Database!$L:$L,Database!$F:$F,$B69,Database!$C:$C,AC$3,Database!$P:$P,$C$63,Database!$N:$N,"n/a") -> 0 | AD69: =SUMIFS(Database!$L:$L,Database!$F:$F,$B69,Database!$C:$C,AD$3,Database!$P:$P,$C$63,Database!$N:$N,AD$5)+SUMIFS(Database!$L:$L,Database!$F:$F,$B69,Database!$C:$C,AD$3,Database!$P:$P,$C$63,Database!$N:$N,"n/a") -> 0 | AE69: =SUMIFS(Database!$L:$L,Database!$F:$F,$B69,Database!$C:$C,AE$3,Database!$P:$P,$C$63,Database!$N:$N,AE$5)+SUMIFS(Database!$L:$L,Database!$F:$F,$B69,Database!$C:$C,AE$3,Database!$P:$P,$C$63,Database!$N:$N,"n/a") -> 0 | AF69: =SUMIFS(Database!$L:$L,Database!$F:$F,$B69,Database!$C:$C,AF$3,Database!$P:$P,$C$63,Database!$N:$N,AF$5)+SUMIFS(Database!$L:$L,Database!$F:$F,$B69,Database!$C:$C,AF$3,Database!$P:$P,$C$63,Database!$N:$N,"n/a") -> 0 | AH69: =SUMIFS(Database!$L:$L,Database!$F:$F,$B69,Database!$C:$C,AH$3,Database!$P:$P,$C$63,Database!$N:$N,AH$5)+SUMIFS(Database!$L:$L,Database!$F:$F,$B69,Database!$C:$C,AH$3,Database!$P:$P,$C$63,Database!$N:$N,"n/a") -> 0
B70: Housing management cost | C70: Running costs | D70: Production costs | E70: =SUMIFS(Database!$L:$L,Database!$F:$F,$B70,Database!$C:$C,E$3,Database!$P:$P,$C$63,Database!$N:$N,E$5)+SUMIFS(Database!$L:$L,Database!$F:$F,$B70,Database!$C:$C,E$3,Database!$P:$P,$C$63,Database!$N:$N,"n/a") -> 6448 | J70: =SUMIFS(Database!$L:$L,Database!$F:$F,$B70,Database!$C:$C,J$3,Database!$P:$P,$C$63,Database!$N:$N,J$5)+SUMIFS(Database!$L:$L,Database!$F:$F,$B70,Database!$C:$C,J$3,Database!$P:$P,$C$63,Database!$N:$N,"n/a") -> 6448 | M70: =SUMIFS(Database!$L:$L,Database!$F:$F,$B70,Database!$C:$C,M$3,Database!$P:$P,$C$63,Database!$N:$N,M$5)+SUMIFS(Database!$L:$L,Database!$F:$F,$B70,Database!$C:$C,M$3,Database!$P:$P,$C$63,Database!$N:$N,"n/a") -> 2743.52 | N70: 0 | O70: 0 | P70: 0 | R70: =SUMIFS(Database!$L:$L,Database!$F:$F,$B70,Database!$C:$C,R$3,Database!$P:$P,$C$63,Database!$N:$N,R$5)+SUMIFS(Database!$L:$L,Database!$F:$F,$B70,Database!$C:$C,R$3,Database!$P:$P,$C$63,Database!$N:$N,"n/a") -> 2743.52 | U70: =SUMIFS(Database!$L:$L,Database!$F:$F,$B70,Database!$C:$C,U$3,Database!$P:$P,$C$63,Database!$N:$N,U$5)+SUMIFS(Database!$L:$L,Database!$F:$F,$B70,Database!$C:$C,U$3,Database!$P:$P,$C$63,Database!$N:$N,"n/a") -> 1456 | Z70: =SUMIFS(Database!$L:$L,Database!$F:$F,$B70,Database!$C:$C,Z$3,Database!$P:$P,$C$63,Database!$N:$N,Z$5)+SUMIFS(Database!$L:$L,Database!$F:$F,$B70,Database!$C:$C,Z$3,Database!$P:$P,$C$63,Database!$N:$N,"n/a") -> 1456 | AC70: =SUMIFS(Database!$L:$L,Database!$F:$F,$B70,Database!$C:$C,AC$3,Database!$P:$P,$C$63,Database!$N:$N,AC$5)+SUMIFS(Database!$L:$L,Database!$F:$F,$B70,Database!$C:$C,AC$3,Database!$P:$P,$C$63,Database!$N:$N,"n/a") -> 2250 | AH70: =SUMIFS(Database!$L:$L,Database!$F:$F,$B70,Database!$C:$C,AH$3,Database!$P:$P,$C$63,Database!$N:$N,AH$5)+SUMIFS(Database!$L:$L,Database!$F:$F,$B70,Database!$C:$C,AH$3,Database!$P:$P,$C$63,Database!$N:$N,"n/a") -> 2250
B71: Running costs | C71: Running costs | D71: Production costs | E71: =SUM(E69:E70) -> 6448 | F71: =SUM(F69:F70) -> 0 | G71: =SUM(G69:G70) -> 0 | H71: =SUM(H69:H70) -> 0 | J71: =SUM(J69:J70) -> 6448 | K71: 0 | M71: 2743.52 | N71: 0 | O71: 0 | P71: 0 | R71: 2743.52 | S71: 0 | T71: 0 | U71: 4940 | V71: 0 | W71: 0 | X71: 0 | Z71: =SUM(Z69:Z70) -> 4940 | AA71: 0 | AB71: 0 | AC71: 2250 | AD71: 0 | AE71: 0 | AF71: 0 | AH71: =SUM(AH69:AH70) -> 2250 | AJ71: =SUM(AJ69:AJ70) -> 0
B72: Land costs | C72: Land costs | D72: Capital costs | E72: 0 | F72: =SUMIFS(Database!$L:$L,Database!$F:$F,$B72,Database!$C:$C,F$3,Database!$P:$P,$C$63,Database!$N:$N,F$5)+SUMIFS(Database!$L:$L,Database!$F:$F,$B72,Database!$C:$C,F$3,Database!$P:$P,$C$63,Database!$N:$N,"n/a") -> 6396 | J72: =SUMIFS(Database!$L:$L,Database!$F:$F,$B72,Database!$C:$C,J$3,Database!$P:$P,$C$63,Database!$N:$N,J$5)+SUMIFS(Database!$L:$L,Database!$F:$F,$B72,Database!$C:$C,J$3,Database!$P:$P,$C$63,Database!$N:$N,"n/a") -> 6396 | M72: 0 | N72: =SUMIFS(Database!$L:$L,Database!$F:$F,$B72,Database!$C:$C,N$3,Database!$P:$P,$C$63,Database!$N:$N,N$5)+SUMIFS(Database!$L:$L,Database!$F:$F,$B72,Database!$C:$C,N$3,Database!$P:$P,$C$63,Database!$N:$N,"n/a") -> 6032 | O72: 0 | P72: 0 | R72: =SUMIFS(Database!$L:$L,Database!$F:$F,$B72,Database!$C:$C,R$3,Database!$P:$P,$C$63,Database!$N:$N,R$5)+SUMIFS(Database!$L:$L,Database!$F:$F,$B72,Database!$C:$C,R$3,Database!$P:$P,$C$63,Database!$N:$N,"n/a") -> 6032 | U72: =SUMIFS(Database!$L:$L,Database!$F:$F,$B72,Database!$C:$C,U$3,Database!$P:$P,$C$63,Database!$N:$N,U$5)+SUMIFS(Database!$L:$L,Database!$F:$F,$B72,Database!$C:$C,U$3,Database!$P:$P,$C$63,Database!$N:$N,"n/a") -> 0 | V72: =SUMIFS(Database!$L:$L,Database!$F:$F,$B72,Database!$C:$C,V$3,Database!$P:$P,$C$63,Database!$N:$N,V$5)+SUMIFS(Database!$L:$L,Database!$F:$F,$B72,Database!$C:$C,V$3,Database!$P:$P,$C$63,Database!$N:$N,"n/a") -> 0 | W72: =SUMIFS(Database!$L:$L,Database!$F:$F,$B72,Database!$C:$C,W$3,Database!$P:$P,$C$63,Database!$N:$N,W$5)+SUMIFS(Database!$L:$L,Database!$F:$F,$B72,Database!$C:$C,W$3,Database!$P:$P,$C$63,Database!$N:$N,"n/a") -> 0 | X72: =SUMIFS(Database!$L:$L,Database!$F:$F,$B72,Database!$C:$C,X$3,Database!$P:$P,$C$63,Database!$N:$N,X$5)+SUMIFS(Database!$L:$L,Database!$F:$F,$B72,Database!$C:$C,X$3,Database!$P:$P,$C$63,Database!$N:$N,"n/a") -> 0 | Z72: =SUMIFS(Database!$L:$L,Database!$F:$F,$B72,Database!$C:$C,Z$3,Database!$P:$P,$C$63,Database!$N:$N,Z$5)+SUMIFS(Database!$L:$L,Database!$F:$F,$B72,Database!$C:$C,Z$3,Database!$P:$P,$C$63,Database!$N:$N,"n/a") -> 0 | AD72: =SUMIFS(Database!$L:$L,Database!$F:$F,$B72,Database!$C:$C,AD$3,Database!$P:$P,$C$63,Database!$N:$N,AD$5)+SUMIFS(Database!$L:$L,Database!$F:$F,$B72,Database!$C:$C,AD$3,Database!$P:$P,$C$63,Database!$N:$N,"n/a") -> 9360 | AH72: =SUMIFS(Database!$L:$L,Database!$F:$F,$B72,Database!$C:$C,AH$3,Database!$P:$P,$C$63,Database!$N:$N,AH$5)+SUMIFS(Database!$L:$L,Database!$F:$F,$B72,Database!$C:$C,AH$3,Database!$P:$P,$C$63,Database!$N:$N,"n/a") -> 9360
B73: Financial support
